Workbook

Sheet 0_Tabla Forrajes
A1: Nombre | B1: MS % | C1: UFL | D1: UFV | E1: MNT_PB | F1: PDIA | G1: PDI | H1: BPR | I1: UEL | J1: UEB | K1: UEM | L1: NI ref | M1: dMO | N1: MOD | O1: EE | P1: FB | Q1: NDF | R1: ADF | S1: Lignina | T1: Cenizas | U1: Ca | V1: P | W1: Mg | X1: Cl | Y1: K | Z1: Na | AA1: S | AB1: Co | AC1: Cu | AD1: Mo | AE1: Yodo | AF1: Fe | AG1: Mn | AH1: Se | AI1: Zn | AJ1: Vit A | AK1: Vit D | AL1: Vit E | AM1: AG | AN1: DT_N | AO1: PF | AP1: MOF
A3: VERDE raigrás italiano Hoja otoño / invierno | B3: 16.6 | C3: 0.987525423 | D3: 0.968623439 | E3: 190 | F3: 37.05 | G3: 83.72930525 | H3: 43.99629972 | I3: 0.9908485486 | J3: 0.9829225231 | K3: 0.9787806617 | L3: 2.753201964 | M3: 0.75792 | N3: 649.53744 | O3: 41 | P3: 238 | Q3: 531.32 | R3: 265 | T3: 143 | U3: 2.28 | V3: 2.58 | AM3: 27.18 | AN3: 0.74 | AP3: 566.5326882
A4: VERDE raigrás italiano Hoja primavera | B4: 15.1 | C4: 1.1 | D4: 1.09899354 | E4: 191 | F4: 34.38 | G4: 86.07504607 | H4: 44.12488481 | I4: 0.9708980146 | J4: 0.9494630462 | K4: 0.9358514742 | L4: 2.879496281 | M4: 0.81287 | N4: 704.75829 | O4: 43 | P4: 178 | Q4: 462.92 | R4: 203 | T4: 133 | U4: 2 | V4: 2.4 | W4: 1.7 | Y4: 30 | Z4: 3 | AC4: 8.1 | AG4: 85.1 | AM4: 27.285 | AN4: 0.76 | AP4: 628.165719
A5: VERDE raigrás italiano Espiga a 10 cm | B5: 15.8 | C5: 1.073514419 | D5: 1.069426873 | E5: 168 | F5: 26.46 | G5: 77.8462145 | H5: 31.10451486 | I5: 0.9910346389 | J5: 0.9832391547 | K5: 0.9791911182 | L5: 2.752047879 | M5: 0.79572 | N5: 705.00792 | O5: 39 | P5: 188 | Q5: 474.32 | R5: 213 | T5: 114 | U5: 1.8 | V5: 2.1 | W5: 1.7 | Y5: 30 | Z5: 3 | AA5: 1 | AC5: 8.1 | AG5: 85.1 | AM5: 24.87 | AN5: 0.79 | AP5: 636.2376237
A6: VERDE raigrás italiano 1 semana antes inicio espigado | B6: 16.4 | C6: 0.9568987067 | D6: 0.9279323027 | E6: 112 | F6: 22.68 | G6: 69.96884231 | H6: -17.0368975 | I6: 1.057101244 | J6: 1.101295022 | K6: 1.137999252 | L6: 2.36799878 | M6: 0.7379 | N6: 663.3721 | O6: 33 | P6: 230 | Q6: 522.2 | R6: 257 | T6: 101 | U6: 1.8 | V6: 1.8 | W6: 1.7 | Y6: 30 | Z6: 3 | AA6: 1 | AC6: 6 | AG6: 80 | AI6: 23 | AJ6: 80000 | AK6: 30 | AL6: 20 | AM6: 18.99 | AN6: 0.73 | AP6: 597.0361265
A7: VERDE raigrás italiano Inicio espigado | B7: 16.5 | C7: 0.9368495611 | D7: 0.9041024886 | E7: 105 | F7: 21.2625 | G7: 67.81242603 | H7: -21.5953848 | I7: 1.067222853 | J7: 1.120433875 | K7: 1.164876603 | L7: 2.313361632 | M7: 0.72817 | N7: 654.62483 | O7: 32 | P7: 238 | Q7: 531.32 | R7: 265 | T7: 101 | U7: 1.8 | V7: 1.8 | W7: 1.7 | Y7: 30 | Z7: 3 | AA7: 1 | AC7: 5 | AG7: 80 | AI7: 23 | AJ7: 80000 | AK7: 30 | AL7: 20 | AM7: 18.255 | AN7: 0.73 | AP7: 589.3655744
A8: VERDE raigrás italiano Espigado | B8: 17.8 | C8: 0.8818407587 | D8: 0.8377966687 | E8: 88 | F8: 19.14 | G8: 63.38289694 | H8: -34.0522143 | I8: 1.091434895 | J8: 1.167439208 | K8: 1.232308365 | L8: 2.186774769 | M8: 0.69765 | N8: 629.97795 | O8: 30 | P8: 265 | Q8: 562.1 | R8: 293 | T8: 97 | U8: 1.8 | V8: 1.5 | AC8: 5 | AG8: 79.6 | AI8: 23.8 | AJ8: 80000 | AK8: 30 | AL8: 20 | AM8: 16.47 | AN8: 0.71 | AP8: 565.5384465
A9: VERDE raigrás italiano Final espigado | B9: 20.4 | C9: 0.8544008851 | D9: 0.8031831803 | E9: 80 | F9: 17.4 | G9: 60.32551195 | H9: -38.91893425 | I9: 1.096771795 | J9: 1.178039486 | K9: 1.247801042 | L9: 2.15962381 | M9: 0.67756 | N9: 617.93472 | O9: 29 | P9: 284 | Q9: 583.76 | R9: 313 | T9: 88 | U9: 1.8 | V9: 1.5 | W9: 2.3 | Y9: 26 | Z9: 1.5 | AJ9: 80000 | AK9: 30 | AL9: 20 | AM9: 15.63 | AN9: 0.71 | AP9: 554.2271801
A10: VERDE raigrás italiano Inicio floración | B10: 24 | C10: 0.8342394507 | D10: 0.7793634604 | E10: 70 | F10: 15.225 | G10: 57.3422064 | H10: -45.48047731 | I10: 1.094099952 | J10: 1.172721579 | K10: 1.240015355 | L10: 2.173183444 | M10: 0.66587 | N10: 608.60518 | O10: 28 | P10: 293 | Q10: 594.02 | R10: 322 | T10: 86 | U10: 1.8 | V10: 1.2 | AJ10: 80000 | AK10: 30 | AL10: 20 | AM10: 14.58 | AN10: 0.71 | AP10: 546.7382102
A11: VERDE raigrás italiano Floración | B11: 27.5 | C11: 0.8068536711 | D11: 0.7469697818 | E11: 60 | F11: 13.5 | G11: 54.39933876 | H11: -52.28407859 | I11: 1.094509341 | J11: 1.173534971 | K11: 1.241204453 | L11: 2.171101492 | M11: 0.64963 | N11: 595.06108 | O11: 27 | P11: 307 | Q11: 609.98 | R11: 337 | T11: 84 | U11: 1.8 | V11: 1.2 | AJ11: 80000 | AK11: 30 | AL11: 20 | AM11: 13.53 | AN11: 0.7 | AP11: 534.2709123
A12: VERDE Maíz Pastoso | B12: 30.7 | C12: 1.336519373 | D12: 1.297656969 | E12: 77.4 | F12: 13.932 | G12: 58.79146932 | H12: -42.36519209 | I12: 1.02870768 | J12: 1.049139944 | K12: 1.066392013 | L12: 1.4 | M12: 0.720464135 | N12: 687.4668776 | O12: 23.8 | P12: 208 | Q12: 454.4 | R12: 243.9 | S12: 29.5 | T12: 45.8 | U12: 0.84 | V12: 1.61 | AA12: 1.1 | AF12: 160 | AJ12: 80000 | AK12: 30 | AL12: 20 | AM12: 15.357 | AN12: 0.76 | AP12: 630.3086521
A13: VERDE Avena Inicio alargamiento tallos | B13: 14.9 | C13: 1.064086631 | D13: 1.064854725 | E13: 120 | F13: 26.1 | G13: 78.54094724 | H13: -13.57775696 | I13: 1.020791557 | J13: 1.034988504 | K13: 1.047364373 | L13: 2.572916273 | M13: 0.8100113766 | N13: 712 | O13: 34 | P13: 230 | Q13: 522.2 | R13: 257 | T13: 121 | U13: 2 | V13: 2.64 | AJ13: 80000 | AK13: 30 | AL13: 20 | AM13: 19.83 | AN13: 0.74 | AP13: 646.839457
A14: VERDE Avena Inicio espigado | B14: 20.6 | C14: 0.9133309306 | D14: 0.8741939522 | E14: 102 | F14: 19.89 | G14: 65.21758227 | H14: -21.9507916 | I14: 1.060258573 | J14: 1.1072336 | K14: 1.146303874 | L14: 2.350843351 | M14: 0.7104972376 | N14: 643 | O14: 32 | P14: 302 | Q14: 604.28 | R14: 331 | T14: 95 | U14: 1.8 | V14: 2.31 | AJ14: 80000 | AK14: 30 | AL14: 20 | AM14: 17.94 | AN14: 0.74 | AP14: 578.0360445
A15: VERDE Avena Floración | B15: 17.7 | C15: 0.8229420319 | D15: 0.7662555366 | E15: 101 | F15: 18.9375 | G15: 59.89304518 | H15: -17.97919135 | I15: 1.102855944 | J15: 1.190232315 | K15: 1.265754423 | L15: 2.128991841 | M15: 0.66 | N15: 594 | O15: 32 | P15: 333 | Q15: 639.62 | R15: 364 | T15: 100 | U15: 1.6 | V15: 1.98 | AJ15: 80000 | AK15: 30 | AL15: 20 | AM15: 17.835 | AN15: 0.75 | AP15: 526.5534262
A16: VERDE Avena Lechoso-pastoso | B16: 31.8 | C16: 0.735658448 | D16: 0.6565506562 | E16: 67 | F16: 12.5625 | G16: 48.69970816 | H16: -40.32371469 | I16: 1.10231487 | J16: 1.18914327 | K16: 1.26414502 | L16: 2.131702295 | M16: 0.5894396552 | N16: 547 | O16: 25 | P16: 270 | Q16: 567.8 | R16: 298 | T16: 72 | U16: 1.4 | V16: 1.65 | AJ16: 80000 | AK16: 30 | AL16: 20 | AM16: 14.265 | AN16: 0.75 | AP16: 482.6664074
A17: VERDE Avena Pastoso | B17: 38.3 | C17: 0.7072537332 | D17: 0.6232506884 | E17: 63 | F17: 12.285 | G17: 46.82400532 | H17: -42.66801408 | I17: 1.085210225 | J17: 1.155186303 | K17: 1.214532939 | L17: 2.218779543 | M17: 0.5698924731 | N17: 530 | O17: 25 | P17: 263 | Q17: 559.82 | R17: 291 | T17: 70 | U17: 1.2 | V17: 1.65 | AJ17: 80000 | AK17: 30 | AL17: 20 | AM17: 13.845 | AN17: 0.74 | AP17: 464.7846187
A18: VERDE Triticale Lechoso-pastoso | B18: 40.51 | C18: 0.7866308836 | D18: 0.7130740068 | E18: 71.9 | F18: 13.48125 | G18: 51.74268223 | H18: -38.67729114 | I18: 1.046395966 | J18: 1.081369429 | K18: 1.110363008 | L18: 2.426936796 | M18: 0.6102620087 | N18: 574.9278384 | O18: 14.8 | P18: 299 | Q18: 618.4 | R18: 350.1 | S18: 43.5 | T18: 57.9 | U18: 1.16 | V18: 0.99 | W18: 2.7 | Y18: 25 | Z18: 1.7 | AA18: 3 | AC18: 8.6 | AD18: 0.44 | AG18: 43.9 | AI18: 24.1 | AJ18: 80000 | AK18: 30 | AL18: 20 | AM18: 14.7795 | AN18: 0.75 | AP18: 510.8802662
A19: VERDE Alfalfa Inicio botones florales | B19: 19.83 | C19: 0.8954507068 | D19: 0.8453932124 | E19: 196.7 | F19: 33.93075 | G19: 74.37573864 | H19: 59.44643611 | I19: 0.9783295072 | J19: 0.9618149826 | K19: 0.9515972519 | L19: 2.83185017 | M19: 0.674826 | N19: 585.2091072 | O19: 22.6 | P19: 277.4 | Q19: 442.1 | R19: 334.4 | S19: 74.3 | T19: 132.8 | U19: 5.43 | V19: 1.75 | AC19: 8.8 | AD19: 1.3 | AG19: 26.7 | AI19: 32.3 | AJ19: 120000 | AK19: 20 | AL19: 100 | AM19: 20.3135 | AN19: 0.77 | AP19: 502.6782183
A20: VERDE Alfalfa Vegetativo 30 cm | B20: 14.4 | C20: 1.057970395 | D20: 1.037917837 | E20: 246 | F20: 40.59 | G20: 87.13790609 | H20: 95.11408255 | I20: 0.9343019937 | J20: 0.8904932233 | K20: 0.8622791436 | L20: 3.125183834 | M20: 0.75199 | N20: 654.98329 | O20: 33 | P20: 201 | Q20: 489.14 | R20: 259 | T20: 129 | U20: 4.95 | V20: 3.15 | AC20: 8.8 | AD20: 1.3 | AG20: 26.7 | AI20: 32.3 | AJ20: 120000 | AK20: 20 | AL20: 100 | AM20: 25.49 | AN20: 0.78 | AP20: 568.7888379
A21: VERDE Zulla hoja, 1º año | B21: 11 | C21: 1.096854529 | D21: 1.092315415 | E21: 233.5 | F21: 47.28375 | G21: 101.4759961 | H21: 71.57961546 | I21: 0.9440674911 | J21: 0.9059343706 | K21: 0.8812924975 | L21: 3.057759878 | M21: 0.789865 | N21: 687.814442 | O21: 27 | P21: 163.5 | Q21: 249.6 | R21: 234.1 | T21: 129.2 | U21: 3.3 | V21: 2.1 | AM21: 24.1775 | AN21: 0.73 | AP21: 598.1277405 | AQ21: 17.00377003 | AR21: 2.8672075 | AS21: 3.72277 | AT21: 18.7616 | AU21: 52.11987442
A22: VERDE Zulla tallo hoja, 1º año | B22: 11.5 | C22: 1.018584209 | D22: 0.9979952283 | E22: 186 | F22: 37.665 | G22: 91.19718606 | H22: 37.93595928 | I22: 0.988232989 | J22: 0.9784811434 | K22: 0.9730315989 | L22: 2.76946899 | M22: 0.754515 | N22: 664.0486515 | O22: 27 | P22: 198.5 | Q22: 280.5 | R22: 269.9 | T22: 119.9 | U22: 3.3 | V22: 2.1 | AM22: 19.19 | AN22: 0.73 | AP22: 583.7835984 | AQ22: 18.1417305 | AR22: 3.00187 | AS22: 3.98212 | AT22: 19.5596 | AU22: 49.1942568
A23: VERDE Zulla yemas florales, 1º año | B23: 11.91 | C23: 0.971662067 | D23: 0.9400058138 | E23: 170.3 | F23: 34.48575 | G23: 87.26725566 | H23: 27.64789741 | I23: 1.00280174 | J23: 1.003435006 | K23: 1.005537317 | L23: 2.679941156 | M23: 0.727447 | N23: 645.6819572 | O23: 27 | P23: 225.3 | Q23: 323.9 | R23: 304.2 | T23: 112.4 | U23: 3.6 | V23: 2.1 | AM23: 17.5415 | AN23: 0.73 | AP23: 567.4701334 | AQ23: 18.57255361 | AR23: 3.0463795 | AS23: 4.067842 | AT23: 19.82336 | AU23: 48.09598983
A24: VERDE Zulla Botones florales, 1º año | B24: 13.77 | C24: 0.9661408557 | D24: 0.9305393291 | E24: 168.9 | F24: 34.20225 | G24: 86.94535264 | H24: 26.68590212 | I24: 1.000730959 | J24: 0.9998558827 | K24: 1.000844288 | L24: 2.692507587 | M24: 0.717953 | N24: 645.1525658 | O24: 27 | P24: 234.7 | Q24: 348.5 | R24: 330.4 | T24: 101.4 | U24: 3.6 | V24: 2.1 | AM24: 17.3945 | AN24: 0.73 | AP24: 566.6355756 | AQ24: 18.61229065 | AR24: 3.0503485 | AS24: 4.075486 | AT24: 19.84688 | AU24: 47.99488794
A25: VERDE Zulla Inicio Floración, 1º año | B25: 14.5 | C25: 0.9196215428 | D25: 0.8756744961 | E25: 167 | F25: 32.565 | G25: 84.17295987 | H25: 28.74256271 | I25: 1.010019035 | J25: 1.015994101 | K25: 1.022087499 | L25: 2.63654613 | M25: 0.695127 | N25: 620.3313348 | O25: 23 | P25: 257.3 | Q25: 366 | R25: 334.1 | T25: 107.6 | U25: 3.6 | V25: 2.1 | AM25: 17.195 | AN25: 0.74 | AP25: 541.967139 | AQ25: 18.66656512 | AR25: 3.055735 | AS25: 4.08586 | AT25: 19.8788 | AU25: 47.8568487
A26: VERDE Zulla Floración, 1º año | B26: 14.92 | C26: 0.8896999035 | D26: 0.8413566291 | E26: 162.4 | F26: 31.668 | G26: 82.56252045 | H26: 26.45331179 | I26: 1.017849675 | J26: 1.029771407 | K26: 1.040391915 | L26: 2.590159344 | M26: 0.682098 | N26: 604.6116672 | O26: 23 | P26: 270.2 | Q26: 390.1 | R26: 346.3 | T26: 113.6 | U26: 2.7 | V26: 3.5 | AM26: 16.712 | AN26: 0.74 | AP26: 526.4629793 | AQ26: 18.79961472 | AR26: 3.068776 | AS26: 4.110976 | AT26: 19.95608 | AU26: 47.51869267
A27: VERDE Zulla Fructificación, 1º año | B27: 18.93 | C27: 0.7740194666 | D27: 0.7050334795 | E27: 130.8 | F27: 25.506 | G27: 74.01316404 | H27: 6.799556184 | I27: 1.056133358 | J27: 1.099480224 | K27: 1.135467666 | L27: 2.373278359 | M27: 0.618165 | N27: 549.4868685 | O27: 21 | P27: 333.5 | Q27: 519.6 | R27: 450.7 | T27: 111.1 | U27: 2.7 | V27: 3.5 | AM27: 13.394 | AN27: 0.74 | AP27: 474.5819724 | AQ27: 19.77666618 | AR27: 3.158362 | AS27: 4.283512 | AT27: 20.48696 | AU27: 45.04436717
A28: VERDE Zulla hoja, 2º año | B28: 11 | C28: 1.099747568 | D28: 1.095573936 | E28: 240.5 | F28: 48.70125 | G28: 102.775997 | H28: 76.87320774 | I28: 0.9385770623 | J28: 0.8972271293 | K28: 0.8705493025 | L28: 3.095494801 | M28: 0.790269 | N28: 686.9808417 | O28: 27 | P28: 163.1 | Q28: 272.8 | R28: 253.3 | T28: 130.7 | U28: 3.3 | V28: 2.1 | AM28: 24.9125 | AN28: 0.73 | AP28: 595.5743013 | AQ28: 16.85710078 | AR28: 2.8473625 | AS28: 3.68455 | AT28: 18.644 | AU28: 52.50054562
A29: VERDE Zulla tallo hoja, 2º año | B29: 10.03 | C29: 1.027185591 | D29: 1.007222315 | E29: 206.5 | F29: 41.81625 | G29: 95.04208597 | H29: 53.3796313 | I29: 0.9734076994 | J29: 0.9536197806 | K29: 0.9411371114 | L29: 2.863324384 | M29: 0.755121 | N29: 662.4676533 | O29: 27 | P29: 197.9 | Q29: 311.2 | R29: 290.4 | T29: 122.7 | U29: 3.3 | V29: 2.1 | AM29: 21.3425 | AN29: 0.73 | AP29: 577.1261293 | AQ29: 17.62009903 | AR29: 2.9437525 | AS29: 3.87019 | AT29: 19.2152 | AU29: 50.53011982
A30: VERDE Zulla yemas florales, 2º año | B30: 12.06 | C30: 0.9414798783 | D30: 0.9030186208 | E30: 177.4 | F30: 35.9235 | G30: 87.76027264 | H30: 34.30704275 | I30: 1.00595395 | J30: 1.008904022 | K30: 1.012728493 | L30: 2.660911447 | M30: 0.709469 | N30: 628.1638526 | O30: 27 | P30: 243.1 | Q30: 360.2 | R30: 330.5 | T30: 114.6 | U30: 3.6 | V30: 2.1 | AM30: 18.287 | AN30: 0.73 | AP30: 546.9396001 | AQ30: 18.37435685 | AR30: 3.026251 | AS30: 4.029076 | AT30: 19.70408 | AU30: 48.60073657
A31: VERDE Zulla Botones Florales, 2º año | B31: 12.51 | C31: 0.8951169505 | D31: 0.8483103437 | E31: 168.9 | F31: 34.20225 | G31: 85.02746379 | H31: 29.68260345 | I31: 1.021257856 | J31: 1.035817512 | K31: 1.048474402 | L31: 2.570192304 | M31: 0.686441 | N31: 605.6468943 | O31: 27 | P31: 265.9 | Q31: 382.3 | R31: 352.4 | T31: 117.7 | U31: 3.6 | V31: 2.1 | AM31: 17.3945 | AN31: 0.73 | AP31: 524.9568365 | AQ31: 18.61229065 | AR31: 3.0503485 | AS31: 4.075486 | AT31: 19.84688 | AU31: 47.99488794
A32: VERDE Zulla Inicio Floración, 2º año | B32: 15.37 | C32: 0.8688196702 | D32: 0.8142223989 | E32: 151.5 | F32: 29.5425 | G32: 80.22335033 | H32: 18.72117137 | I32: 1.03172308 | J32: 1.054574304 | K32: 1.073743818 | L32: 2.50970557 | M32: 0.666039 | N32: 598.4360415 | O32: 23 | P32: 286.1 | Q32: 406 | R32: 371.5 | T32: 101.5 | U32: 3.6 | V32: 2.1 | AM32: 15.5675 | AN32: 0.74 | AP32: 521.8195916 | AQ32: 19.12419778 | AR32: 3.0996775 | AS32: 4.17049 | AT32: 20.1392 | AU32: 46.69505782
A33: VERDE Zulla Floración, 2º año | B33: 17.12 | C33: 0.8321434211 | D33: 0.7722857657 | E33: 141.1 | F33: 27.5145 | G33: 77.40801428 | H33: 12.25538394 | I33: 1.04040746 | J33: 1.070362352 | K33: 1.095245434 | L33: 2.460435584 | M33: 0.64897 | N33: 579.984489 | O33: 23 | P33: 303 | Q33: 452.6 | R33: 406.5 | T33: 106.3 | U33: 2.7 | V33: 3.5 | AM33: 14.4755 | AN33: 0.74 | AP33: 504.7095418 | AQ33: 19.446103 | AR33: 3.1291615 | AS33: 4.227274 | AT33: 20.31392 | AU33: 45.8798973
A34: VERDE Zulla Fructificación, 2º año | B34: 20.03 | C34: 0.7714311913 | D34: 0.6990913505 | E34: 135.4 | F34: 26.403 | G34: 74.79356037 | H34: 10.38574942 | I34: 1.052200861 | J34: 1.092134028 | K34: 1.125249773 | L34: 2.394829046 | M34: 0.609681 | N34: 548.6519319 | O34: 21 | P34: 341.9 | Q34: 491.1 | R34: 452.9 | T34: 100.1 | U34: 2.7 | V34: 3.5 | AM34: 13.877 | AN34: 0.74 | AP34: 472.0479914 | AQ34: 19.62759064 | AR34: 3.145321 | AS34: 4.258396 | AT34: 20.40968 | AU34: 45.42098545
A35: VERDE Zulla Botones | B35: 11 | C35: 0.9871458131 | D35: 0.9668537027 | E35: 199 | F35: 40.2975 | G35: 86.21303252 | H35: 49.55476384 | I35: 0.9828422118 | J35: 0.9693798556 | K35: 0.9612993691 | L35: 2.803269123 | M35: 0.753 | N35: 637.791 | O35: 27 | P35: 200 | Q35: 488 | R35: 230 | T35: 153 | U35: 3.3 | V35: 2.1 | AJ35: 120000 | AK35: 20 | AL35: 100 | AM35: 20.555 | AN35: 0.73 | AP35: 554.1757463
A36: VERDE Zulla Floración | B36: 13.5 | C36: 0.8566351193 | D36: 0.8059033998 | E36: 155 | F36: 30.225 | G36: 70.91503133 | H36: 22.20440079 | I36: 1.033625341 | J36: 1.058015117 | K36: 1.078411657 | L36: 2.498842463 | M36: 0.67321 | N36: 586.36591 | O36: 23 | P36: 279 | Q36: 578.06 | R36: 305.05 | T36: 129 | U36: 3.6 | V36: 2.1 | AJ36: 120000 | AK36: 20 | AL36: 100 | AM36: 15.935 | AN36: 0.74 | AP36: 509.3963728
A37: VERDE Zulla Final floración | B37: 15.3 | C37: 0.8276145297 | D37: 0.7672213764 | E37: 152 | F37: 29.64 | G37: 68.69210074 | H37: 20.9161303 | I37: 1.041416423 | J37: 1.072209943 | K37: 1.097775658 | L37: 2.454764615 | M37: 0.64695 | N37: 574.4916 | O37: 21 | P37: 305 | Q37: 607.7 | R37: 329.75 | T37: 112 | U37: 2.7 | V37: 3.5 | AJ37: 120000 | AK37: 20 | AL37: 100 | AM37: 15.62 | AN37: 0.74 | AP37: 496.437687
A38: ENSILADO prehenificado raigrás italiano 1 semana antes inicio espigado | B38: 33.5 | C38: 0.9154038958 | D38: 0.8723292381 | E38: 123 | F38: 17 | G38: 67 | H38: 5 | I38: 1.05 | J38: 1.07 | K38: 1.35 | L38: 2 | M38: 0.73 | N38: 649.7 | O38: 36 | P38: 246 | Q38: 510 | R38: 275 | T38: 110 | U38: 1.84 | V38: 1.56 | AJ38: 8000 | AK38: 200 | AL38: 5 | AM38: 19 | AN38: 0.79 | AO38: 80 | AP38: 588.49475
A39: ENSILADO prehenificado raigrás italiano Inicio espigado | B39: 33.5 | C39: 0.88 | D39: 0.82 | E39: 117 | F39: 16 | G39: 65 | H39: 1 | I39: 1.06 | J39: 1.08 | K39: 1.39 | L39: 1.9 | M39: 0.706043 | N39: 631.9 | O39: 35 | P39: 254 | Q39: 520 | R39: 283 | T39: 110 | U39: 1.84 | V39: 1.56 | AJ39: 8000 | AK39: 200 | AL39: 5 | AM39: 19 | AN39: 0.79 | AO39: 80 | AP39: 570.0426753
A40: ENSILADO prehenificado raigrás italiano Final espigado | B40: 33.5 | C40: 0.78 | D40: 0.71 | E40: 95 | F40: 12 | G40: 59 | H40: -14 | I40: 1.11 | J40: 1.18 | K40: 1.62 | L40: 1.7 | M40: 0.66 | N40: 594.66 | O40: 33 | P40: 297 | Q40: 571 | R40: 327 | T40: 99 | U40: 1.84 | V40: 1.38 | AJ40: 8000 | AK40: 200 | AL40: 5 | AM40: 17 | AN40: 0.79 | AO40: 80 | AP40: 534.52605
A41: ENSILADO Prat natural plano, gramíneas en gran parte | B41: 48 | C41: 0.9301076693 | D41: 0.8656931921 | E41: 114.3 | F41: 15.0876 | G41: 51.5305866 | H41: -5.252929949 | I41: 1.131789867 | J41: 1.229566374 | K41: 1.638343115 | L41: 1.644820804 | M41: 0.668711 | N41: 599.165056 | O41: 22.2 | P41: 311.3 | Q41: 584.2 | R41: 385 | T41: 104 | U41: 3.48 | V41: 1.82 | AJ41: 8000 | AK41: 200 | AL41: 5 | AM41: 18.2569 | AN41: 0.78 | AO41: 115 | AP41: 535.9795542
A42: ENSILADO Maíz Lechoso | B42: 28.5 | C42: 0.9421569565 | D42: 0.8895769703 | E42: 78.1 | F42: 13.6675 | G42: 49.99866751 | H42: -39.59697674 | I42: 1.080663836 | J42: 1.19129726 | K42: 1.345532831 | L42: 1.4 | M42: 0.69 | N42: 651.222 | O42: 33.3 | P42: 232.6 | Q42: 488.2 | R42: 278.4 | S42: 30.4 | T42: 56.2 | U42: 1.44 | V42: 1.61 | AM42: 24 | AN42: 0.75 | AO42: 100 | AP42: 588.3446
A43: ENSILADO Maíz Lechoso-pastoso | B43: 28.5 | C43: 0.9787464011 | D43: 0.9339294308 | E43: 78.1 | F43: 13.6675 | G43: 51.60752582 | H43: -41.05332562 | I43: 1.042209484 | J43: 1.152562936 | K43: 1.284686536 | L43: 1.4 | M43: 0.71 | N43: 670.098 | O43: 33.3 | P43: 232.6 | Q43: 488.2 | R43: 278.4 | S43: 30.4 | T43: 56.2 | U43: 1.44 | V43: 1.61 | AM43: 24 | AN43: 0.75 | AO43: 125 | AP43: 608.5998
A44: ENSILADO Maíz Pastoso | B44: 30 | C44: 0.9962612852 | D44: 0.9540342158 | E44: 77 | F44: 13.475 | G44: 54.02881787 | H44: -42.65449475 | I44: 1.01329589 | J44: 1.116491162 | K44: 1.278523867 | L44: 1.4 | M44: 0.717 | N44: 680.2179 | O44: 34.4 | P44: 216.5 | Q44: 450.9 | R44: 287.5 | S44: 29.3 | T44: 51.3 | U44: 1.2 | V44: 1.54 | AM44: 24 | AN44: 0.75 | AO44: 80 | AP44: 619.39492
A45: ENSILADO Maíz Pastoso-vidrioso | B45: 32 | C45: 0.9831423928 | D45: 0.9382032062 | E45: 75.9 | F45: 13.2825 | G45: 52.11647112 | H45: -42.99002243 | I45: 1.004191288 | J45: 1.098575718 | K45: 1.284420211 | L45: 1.4 | M45: 0.7101910828 | N45: 673.6872611 | O45: 32.1 | P45: 203.7 | Q45: 432.7 | R45: 244.4 | S45: 22.9 | T45: 51.4 | U45: 1.2 | V45: 1.61 | AM45: 24 | AN45: 0.75 | AO45: 100 | AP45: 612.5872382
A46: ENSILADO Maíz vidrioso | B46: 32 | C46: 0.9640116468 | D46: 0.9154634589 | E46: 76 | F46: 13.3 | G46: 51.89904202 | H46: -42.13633028 | I46: 1.020614142 | J46: 1.114790276 | K46: 1.304256824 | L46: 1.4 | M46: 0.7008046463 | N46: 663.5218391 | O46: 32 | P46: 202 | Q46: 432.4 | R46: 244.4 | S46: 26.5 | T46: 53.2 | U46: 1.24 | V46: 1.61 | AM46: 24 | AN46: 0.75 | AO46: 80 | AP46: 601.7570275
A47: ENSILADO Avena Lechoso-pastoso | B47: 31 | C47: 0.6642411484 | D47: 0.5695207363 | E47: 96.6 | F47: 18.9336 | G47: 47.97507469 | H47: -17.51123621 | I47: 1.154955419 | J47: 1.282660589 | K47: 1.791224433 | L47: 1.504435061 | M47: 0.56 | N47: 508.704 | O47: 45 | P47: 333.4 | Q47: 600.1 | R47: 385.3 | S47: 49.3 | T47: 91.6 | U47: 2.16 | V47: 1.848 | AC47: 5 | AD47: 0.13 | AG47: 30 | AJ47: 5000 | AK47: 200 | AL47: 5 | AM47: 19 | AN47: 0.72 | AO47: 80 | AP47: 433.84195
A48: ENSILADO Cebada Lechoso-pastoso | B48: 30.5 | C48: 0.721420216 | D48: 0.6340131908 | E48: 98.8 | F48: 19.3648 | G48: 51.13221978 | H48: -18.30719857 | I48: 1.147495958 | J48: 1.265287422 | K48: 1.745392764 | L48: 1.543939505 | M48: 0.5903225806 | N48: 540.1451613 | O48: 40.7 | P48: 278.4 | Q48: 533.3 | R48: 328.5 | S48: 42.9 | T48: 85 | U48: 2.12 | V48: 1.782 | AJ48: 5000 | AK48: 200 | AL48: 5 | AM48: 19 | AN48: 0.72 | AO48: 80 | AP48: 466.9429565
A49: ENSILADO Sorgo Pastoso | B49: 24 | C49: 0.8946611737 | D49: 0.8448988526 | E49: 102.3 | F49: 26.4957 | G49: 67.48794219 | H49: -32.54844063 | I49: 1.126297354 | J49: 1.216028017 | K49: 1.608406605 | L49: 1.675435074 | M49: 0.701 | N49: 644.7097 | O49: 25 | P49: 293.4 | Q49: 586.4 | R49: 346.8 | S49: 42.4 | T49: 80.3 | U49: 2.24 | V49: 1.584 | AJ49: 5000 | AK49: 200 | AL49: 5 | AM49: 19 | AN49: 0.63 | AO49: 80 | AP49: 572.00891
A50: ENSILADO Triticale lechoso | B50: 28.1 | C50: 0.7185428841 | D50: 0.6315093177 | E50: 99.8 | F50: 19.5608 | G50: 51.20239422 | H50: -17.39059614 | I50: 1.146293336 | J50: 1.262798213 | K50: 1.742230253 | L50: 1.546742077 | M50: 0.5903225806 | N50: 537.6067742 | O50: 46.6 | P50: 329.3 | Q50: 589.7 | R50: 373.5 | S50: 46.2 | T50: 89.3 | U50: 1.96 | V50: 1.914 | AJ50: 5000 | AK50: 200 | AL50: 5 | AM50: 19 | AN50: 0.72 | AO50: 80 | AP50: 464.2085694
A51: ENSILADO prehenificado Alfalfa Inicio botones florales | B51: 45 | C51: 0.980732297 | D51: 0.9375437283 | E51: 213.6 | F51: 22.3212 | G51: 62.68377642 | H51: 81.82328754 | I51: 0.9797376592 | J51: 0.954797698 | K51: 1.099990717 | L51: 2.449821438 | M51: 0.709856 | N51: 621.9758272 | O51: 20.8 | P51: 247.2 | Q51: 407.2 | R51: 320.1 | S51: 64.3 | T51: 123.8 | U51: 3.84 | V51: 1.82 | AJ51: 3000 | AK51: 200 | AL51: 5 | AM51: 26.4988 | AN51: 0.83 | AO51: 80 | AP51: 550.6914111
A52: ENSILADO prehenificado Alfalfa antes floración | B52: 43 | C52: 0.9478567903 | D52: 0.9046584391 | E52: 198.2 | F52: 21.802 | G52: 61.32585238 | H52: 64.24775046 | I52: 0.9937421911 | J52: 0.9777668498 | K52: 1.121023222 | L52: 2.403858178 | M52: 0.707306 | N52: 605.0295524 | O52: 18.7 | P52: 249.7 | Q52: 424.6 | R52: 336.1 | S52: 65.9 | T52: 144.6 | U52: 3.84 | V52: 1.82 | AJ52: 3000 | AK52: 200 | AL52: 5 | AM52: 25.2206 | AN52: 0.8 | AO52: 80 | AP52: 534.6627196
A53: ENSILADO prehenificado Alfalfa rebrotes floración | B53: 47 | C53: 1.003207297 | D53: 0.9674763745 | E53: 219.7 | F53: 27.79205 | G53: 68.85859238 | H53: 78.00981843 | I53: 0.972568435 | J53: 0.942718323 | K53: 1.084479733 | L53: 2.484860488 | M53: 0.726176 | N53: 627.779152 | O53: 17.8 | P53: 231.2 | Q53: 391.4 | R53: 298.9 | S53: 61.9 | T53: 135.5 | U53: 5.22 | V53: 2.45 | AJ53: 3000 | AK53: 200 | AL53: 5 | AM53: 27.0051 | AN53: 0.79 | AO53: 80 | AP53: 551.9218578
A54: ENSILADO Zulla Botones Florales Floracion, Bolas | B54: 27.16 | C54: 0.754603903 | D54: 0.6728644459 | E54: 140.9 | F54: 16.27395 | G54: 57.0350509 | H54: 33.42177985 | I54: 1.075441606 | J54: 1.126048654 | K54: 1.267021205 | L54: 2.126863251 | M54: 0.60143 | N54: 526.25125 | O54: 27 | P54: 353.5 | Q54: 537.2 | R54: 351.6765 | T54: 125 | U54: 3.6 | V54: 2.1 | AM54: 20.4647 | AN54: 0.79 | AO54: 150 | AP54: 306.2478463 | AQ54: 18.9901 | AR54: 2.96 | AS54: 4.2346 | AT54: 20.182 | AU54: 48.0613
A55: ENSILADO Zulla Inicio Floración en Fructificación | B55: 19.66 | C55: 0.7669925154 | D55: 0.6858718121 | E55: 135.6 | F55: 15.6618 | G55: 56.90934942 | H55: 28.47470403 | I55: 1.080492689 | J55: 1.135321292 | K55: 1.273160331 | L55: 2.116607605 | M55: 0.605612 | N55: 535.7243752 | O55: 27 | P55: 349.4 | Q55: 589.3 | R55: 349.3026 | T55: 115.4 | U55: 3.6 | V55: 2.1 | AM55: 20.0248 | AN55: 0.79 | AO55: 150 | AP55: 316.8191373 | AQ55: 19.0484 | AR55: 2.96 | AS55: 4.2664 | AT55: 20.288 | AU55: 47.7592
A56: HENO Bromo Final vegetación | B56: 85 | C56: 0.7641928518 | D56: 0.6935543947 | E56: 100 | F56: 20.3 | G56: 58.49315002 | H56: -20.42784718 | I56: 1.083509489 | J56: 1.149054212 | K56: 1.470370044 | L56: 1.832722892 | M56: 0.62749 | N56: 564.741 | O56: 34 | P56: 320 | Q56: 640 | R56: 333 | T56: 100 | U56: 1.24 | V56: 2.03 | AJ56: 50000 | AK56: 50 | AL56: 5 | AM56: 15.93 | AN56: 0.71 | AP56: 494.5458579
A57: HENO Dáctilo Floración | B57: 85 | C57: 0.6267609342 | D57: 0.5315550907 | E57: 88 | F57: 17.248 | G57: 48.36165599 | H57: -22.60508827 | I57: 1.134465219 | J57: 1.249296501 | K57: 1.633810149 | L57: 1.649384319 | M57: 0.537152 | N57: 491.49408 | O57: 27 | P57: 372 | Q57: 684.08 | R57: 404 | T57: 85 | U57: 0.92 | V57: 1.26 | AJ57: 50000 | AK57: 50 | AL57: 5 | AM57: 14.934 | AN57: 0.72 | AP57: 418.5686824
A58: HENO Festuca Floración | B58: 88.2 | C58: 0.7394322088 | D58: 0.6592885094 | E58: 116 | F58: 23.548 | G58: 59.75765181 | H58: -7.64311645 | I58: 1.079354117 | J58: 1.140751809 | K58: 1.457997654 | L58: 1.848275155 | M58: 0.6004725 | N58: 550.6332825 | O58: 27 | P58: 331 | Q58: 637.34 | R58: 354.45 | T58: 83 | U58: 0.92 | V58: 1.26 | AJ58: 50000 | AK58: 50 | AL58: 5 | AM58: 17.258 | AN58: 0.71 | AP58: 474.7304096
A59: HENO raigrás italiano Espigado | B59: 85 | C59: 0.7551388452 | D59: 0.682416558 | E59: 79 | F59: 13.825 | G59: 52.18563094 | H59: -32.77260482 | I59: 1.106265531 | J59: 1.193403103 | K59: 1.540819033 | L59: 1.74892754 | M59: 0.622116 | N59: 566.12556 | O59: 26 | P59: 307 | Q59: 609.98 | R59: 337 | T59: 90 | U59: 1.6 | V59: 1.61 | W59: 2 | Y59: 20 | Z59: 2 | AC59: 4.9 | AG59: 110 | AI59: 26.5 | AJ59: 50000 | AK59: 50 | AL59: 5 | AM59: 14.187 | AN59: 0.75 | AP59: 502.8178696
A60: HENO raigrás italiano Floración | B60: 85 | C60: 0.6767027483 | D60: 0.590716319 | E60: 52 | F60: 10.92 | G60: 45.71239642 | H60: -52.98300282 | I60: 1.155610109 | J60: 1.294411723 | K60: 1.707296002 | L60: 1.578391115 | M60: 0.574748 | N60: 528.76816 | O60: 24 | P60: 344 | Q60: 652.16 | R60: 374 | T60: 80 | U60: 1.6 | V60: 1.26 | AJ60: 50000 | AK60: 50 | AL60: 5 | AM60: 11.946 | AN60: 0.7 | AP60: 466.1057416
A61: HENO raigrás italiano rebrotes de espigado con hojas | B61: 85 | C61: 0.8845575231 | D61: 0.835550182 | E61: 107 | F61: 23.219 | G61: 65.95615613 | H61: -22.33097018 | I61: 1.050313537 | J61: 1.087684312 | K61: 1.37366381 | L61: 1.961746987 | M61: 0.69441 | N61: 629.13546 | O61: 29 | P61: 256 | Q61: 567 | R61: 291 | T61: 94 | U61: 1.6 | V61: 1.89 | W61: 2 | Y61: 20 | Z61: 2 | AJ61: 50000 | AK61: 50 | AL61: 5 | AM61: 16.511 | AN61: 0.69 | AP61: 560.3751069
A62: HENO Avena Floración | B62: 90 | C62: 0.6748031786 | D62: 0.5822746186 | E62: 140 | F62: 33.32 | G62: 65.22813994 | H62: 6.340615698 | I62: 1.074914591 | J62: 1.131741987 | K62: 1.444961085 | L62: 1.864950459 | M62: 0.55566 | N62: 509.54022 | O62: 33 | P62: 320 | Q62: 620 | R62: 390 | S62: 60 | T62: 83 | U62: 2.52 | V62: 0.66 | AJ62: 50000 | AK62: 50 | AL62: 5 | AM62: 19.25 | AN62: 0.66 | AP62: 419.8801711
A63: HENO Avena Inicio espigado | B63: 90 | C63: 0.7865238981 | D63: 0.7057522891 | E63: 175 | F63: 41.65 | G63: 77.97898436 | H63: 25.71188765 | I63: 1.023756676 | J63: 1.039063255 | K63: 1.301625956 | L63: 2.070318916 | M63: 0.60695 | N63: 567.49825 | O63: 26 | P63: 290 | Q63: 580 | R63: 350 | S63: 40 | T63: 65 | U63: 2.52 | V63: 0.66 | AJ63: 50000 | AK63: 50 | AL63: 5 | AM63: 22.155 | AN63: 0.66 | AP63: 471.7400882
A64: HENO Cebada Espigado | B64: 78.5 | C64: 0.5919301713 | D64: 0.4925934379 | E64: 112 | F64: 26.656 | G64: 55.09811221 | H64: -9.266789075 | I64: 1.11967543 | J64: 1.218703295 | K64: 1.584554034 | L64: 1.700655693 | M64: 0.514628 | N64: 464.709084 | O64: 12.5 | P64: 285 | Q64: 584.9 | R64: 422 | T64: 97 | U64: 1.18 | V64: 1.65 | W64: 1.6 | Y64: 14.15 | Z64: 1.75 | AA64: 1.7 | AB64: 0.07 | AC64: 24 | AF64: 101 | AG64: 27 | AH64: 0.16 | AI64: 48 | AM64: 16.926 | AN64: 0.66 | AP64: 379.9275254
A65: HENO Cebada Inicio espigado | B65: 83.7 | C65: 0.7873403043 | D65: 0.7263260237 | E65: 108 | F65: 25.704 | G65: 65.002965 | H65: -20.29450546 | I65: 1.065656642 | J65: 1.11556277 | K65: 1.417509819 | L65: 1.901066789 | M65: 0.653002 | N65: 570.723748 | O65: 12.5 | P65: 285 | Q65: 584.9 | R65: 313 | T65: 126 | U65: 1.18 | V65: 1.65 | W65: 1.6 | Y65: 14.15 | Z65: 1.75 | AA65: 1.7 | AB65: 0.07 | AC65: 24 | AF65: 101 | AG65: 27 | AH65: 0.16 | AI65: 48 | AJ65: 50000 | AK65: 50 | AL65: 5 | AM65: 16.594 | AN65: 0.66 | AP65: 496.5856114
A66: HENO Cebada Lechoso | B66: 90 | C66: 0.7063206172 | D66: 0.6214014901 | E66: 135 | F66: 32.13 | G66: 65.96134992 | H66: 1.60549777 | I66: 1.06938303 | J66: 1.121640879 | K66: 1.428604953 | L66: 1.886302322 | M66: 0.58099 | N66: 526.37694 | O66: 12.5 | P66: 285 | Q66: 610 | R66: 370 | T66: 94 | U66: 1.44 | V66: 1.584 | W66: 1.6 | Y66: 14.15 | Z66: 1.75 | AA66: 1.7 | AB66: 0.07 | AC66: 24 | AF66: 101 | AG66: 27 | AH66: 0.16 | AI66: 48 | AJ66: 50000 | AK66: 50 | AL66: 5 | AM66: 18.835 | AN66: 0.66 | AP66: 439.8400866
A67: HENO Cebada vidrioso | B67: 76.3 | C67: 0.7403468234 | D67: 0.6622083638 | E67: 99 | F67: 23.562 | G67: 60.20475676 | H67: -25.00432611 | I67: 1.093450987 | J67: 1.167979739 | K67: 1.500772141 | L67: 1.795596257 | M67: 0.605886 | N67: 554.38569 | O67: 12.5 | P67: 285 | Q67: 584.9 | R67: 350 | T67: 85 | U67: 1.44 | V67: 1.584 | W67: 1.8 | Y67: 11.8 | Z67: 1.4 | AA67: 1.7 | AB67: 0.07 | AC67: 24 | AF67: 101 | AG67: 27 | AH67: 0.16 | AI67: 48 | AJ67: 50000 | AK67: 50 | AL67: 5 | AM67: 15.847 | AN67: 0.66 | AP67: 479.4760238
A68: PAJA trigo | B68: 88 | C68: 0.5448944996 | D68: 0.4422046337 | E68: 35 | F68: 7.84 | G68: 35.75192835 | H68: -59.96328956 | I68: 1.215855774 | J68: 1.428129804 | K68: 1.940357448 | L68: 1.388806399 | M68: 0.49196 | N68: 452.6032 | O68: 15 | P68: 420 | Q68: 738.8 | R68: 439 | T68: 80 | U68: 0.8 | V68: 0.66 | W68: 1.4 | Y68: 16.5 | Z68: 2.1 | AM68: 10.535 | AN68: 0.68 | AP68: 387.9456129
A69: PAJA Trigo tratada amoniaco | B69: 88 | C69: 0.565316952 | D69: 0.4605385981 | E69: 100 | F69: 22.4 | G69: 49.60791438 | H69: -16.60686793 | I69: 1.141925732 | J69: 1.264114285 | K69: 1.659586355 | L69: 1.623766568 | M69: 0.49287 | N69: 453.4404 | O69: 15 | P69: 420 | Q69: 738.8 | R69: 439 | T69: 80 | U69: 0.8 | V69: 0.7 | AM69: 15.93 | AN69: 0.66 | AP69: 371.8618627
A70: PAJA Maíz rastrojo | B70: 85 | C70: 0.6529503033 | D70: 0.5611555319 | E70: 59 | F70: 14.042 | G70: 47.1604761 | H70: -49.08081739 | I70: 1.157472222 | J70: 1.298062411 | K70: 1.714069322 | L70: 1.572153941 | M70: 0.554526 | N70: 514.600128 | O70: 13 | P70: 344 | Q70: 670 | R70: 390 | S70: 110 | T70: 72 | U70: 2.28 | V70: 0.66 | W70: 1.4 | Y70: 16.5 | Z70: 2.1 | AJ70: 50000 | AK70: 50 | AL70: 5 | AM70: 12.527 | AN70: 0.66 | AP70: 447.1601862
A71: PAJA Avena | B71: 88 | C71: 0.5381272518 | D71: 0.4366356893 | E71: 32 | F71: 7.392 | G71: 35.09975274 | H71: -62.00686823 | I71: 1.219499726 | J71: 1.436733453 | K71: 1.955627715 | L71: 1.377962083 | M71: 0.491918 | N71: 447.64538 | O71: 15 | P71: 420 | Q71: 738.8 | R71: 439 | T71: 90 | U71: 1.4 | V71: 0.66 | AJ71: 50000 | AK71: 50 | AL71: 5 | AM71: 10.286 | AN71: 0.67 | AP71: 383.5447598
A72: PAJA Cebada | B72: 88 | C72: 0.54583885 | D72: 0.4430524613 | E72: 38 | F72: 8.512 | G72: 36.3914354 | H72: -57.86991626 | I72: 1.212233533 | J72: 1.419628584 | K72: 1.925323806 | L72: 1.399650714 | M72: 0.492002 | N72: 452.64184 | O72: 12.5 | P72: 420 | Q72: 738.8 | R72: 439 | T72: 80 | U72: 1.4 | V72: 0.66 | W72: 1.4 | Y72: 16.5 | Z72: 2.1 | AC72: 3.1 | AG72: 17.6 | AI72: 7.3 | AJ72: 50000 | AK72: 50 | AL72: 5 | AM72: 10.784 | AN72: 0.68 | AP72: 387.2032859
A73: PAJA Cebada tratada amoniaco | B73: 88 | C73: 0.565316952 | D73: 0.4605385981 | E73: 100 | F73: 22.4 | G73: 49.60791438 | H73: -16.60686793 | I73: 1.141925732 | J73: 1.264114285 | K73: 1.659586355 | L73: 1.623766568 | M73: 0.49287 | N73: 453.4404 | O73: 12.5 | P73: 420 | Q73: 738.8 | R73: 439 | T73: 80 | U73: 1.4 | V73: 0.66 | AM73: 15.93 | AN73: 0.66 | AP73: 371.8618627
A74: HENO Alfalfa Botones florales | B74: 85 | C74: 0.5712355805 | D74: 0.464442748 | E74: 171 | F74: 35.91 | G74: 61.68676322 | H74: 42.44499475 | I74: 1.073184795 | J74: 1.127610305 | K74: 1.440095705 | L74: 1.871251216 | M74: 0.48796 | N74: 443.06768 | O74: 26 | P74: 372 | Q74: 684.08 | R74: 436 | T74: 92 | U74: 4.2 | V74: 1.75 | AC74: 7.1 | AG74: 29 | AI74: 24.6 | AJ74: 45000 | AK74: 400 | AL74: 10 | AM74: 21.823 | AN74: 0.72 | AP74: 344.9931188
A75: HENO Alfalfa Inicio vegetación | B75: 85 | C75: 0.7631700038 | D75: 0.6873563 | E75: 168.5 | F75: 35.385 | G75: 71.39879666 | H75: 32.37218784 | I75: 1.027253066 | J75: 1.045286018 | K75: 1.31089825 | L75: 2.055675061 | M75: 0.612562 | N75: 548.9168082 | O75: 21.2 | P75: 283.4 | Q75: 483.1 | R75: 326.7 | S75: 69.3 | T75: 103.9 | U75: 3.75 | V75: 1.68 | AB75: 0.1 | AC75: 4.6 | AD75: 0.6 | AG75: 42.9 | AH75: 0.03 | AI75: 21.3 | AJ75: 45000 | AK75: 400 | AL75: 10 | AM75: 21.6155 | AN75: 0.72 | AP75: 460.0530203
A76: HENO Alfalfa Floración | B76: 85 | C76: 0.5304260801 | D76: 0.4188102854 | E76: 160 | F76: 33.6 | G76: 57.35624758 | H76: 35.98633783 | I76: 1.094986479 | J76: 1.168978414 | K76: 1.506087001 | L76: 1.789259742 | M76: 0.4606 | N76: 421.9096 | O76: 24 | P76: 395 | Q76: 710.3 | R76: 460 | T76: 84 | U76: 4.2 | V76: 1.54 | AJ76: 45000 | AK76: 400 | AL76: 10 | AM76: 20.91 | AN76: 0.72 | AP76: 324.6684585
A77: HENO Alfalfa floración (Cataluña) | B77: 89 | C77: 0.7804774848 | D77: 0.7084236384 | E77: 174.5 | F77: 36.645 | G77: 73.40253262 | H77: 36.23664732 | I77: 1.017963166 | J77: 1.029102189 | K77: 1.286335584 | L77: 2.094928316 | M77: 0.623962 | N77: 555.950142 | O77: 19.8 | P77: 271.5 | Q77: 446.6 | R77: 316.7 | S77: 69.1 | T77: 109 | U77: 5.67 | V77: 2.1 | AB77: 0.1 | AC77: 4.6 | AD77: 0.6 | AG77: 42.9 | AH77: 0.03 | AI77: 21.3 | AJ77: 45000 | AK77: 400 | AL77: 10 | AM77: 22.1135 | AN77: 0.72 | AP77: 466.3887716
A78: HENO Alfalfa rebrotes (Cataluña) | B78: 89 | C78: 0.8220547044 | D78: 0.7561386752 | E78: 179.3 | F78: 37.653 | G78: 76.25857889 | H78: 38.09099042 | I78: 1.006503009 | J78: 1.009490389 | K78: 1.256671417 | L78: 2.14437983 | M78: 0.64471 | N78: 577.982515 | O78: 19.8 | P78: 259.6 | Q78: 442.1 | R78: 298.5 | S78: 65.8 | T78: 103.5 | U78: 3.3 | V78: 1.54 | AB78: 0.1 | AC78: 4.6 | AD78: 0.6 | AG78: 42.9 | AH78: 0.03 | AI78: 21.3 | AJ78: 45000 | AK78: 400 | AL78: 10 | AM78: 22.5119 | AN78: 0.72 | AP78: 488.6649455
A79: HENO Alfalfa rebrotes de floración | B79: 85 | C79: 0.5559914214 | D79: 0.4463183361 | E79: 174 | F79: 36.54 | G79: 61.35273255 | H79: 45.33409107 | I79: 1.075441268 | J79: 1.131707149 | K79: 1.446811059 | L79: 1.86256583 | M79: 0.47542 | N79: 434.53388 | O79: 24 | P79: 382 | Q79: 695.48 | R79: 447 | T79: 86 | U79: 3.66 | V79: 1.54 | AB79: 0.1 | AC79: 4.6 | AD79: 0.6 | AG79: 42.9 | AH79: 0.03 | AI79: 21.3 | AJ79: 45000 | AK79: 400 | AL79: 10 | AM79: 22.072 | AN79: 0.72 | AP79: 334.8526972
A80: HENO Alfalfa Sin especificar (primavera) IAMZ | B80: 90 | C80: 0.8022678479 | D80: 0.7359621515 | E80: 171 | F80: 35.91 | G80: 73.93543875 | H80: 32.77416797 | I80: 1.014835798 | J80: 1.023836553 | K80: 1.278138126 | L80: 2.108364335 | M80: 0.64072 | N80: 567.0372 | O80: 25 | P80: 300 | Q80: 394 | R80: 302 | T80: 115 | U80: 4.38 | V80: 3.15 | AJ80: 45000 | AK80: 400 | AL80: 10 | AM80: 21.823 | AN80: 0.72 | AP80: 479.4969685
A81: HENO Alfalfa Sin especificar (verano) IAMZ | B81: 90 | C81: 0.8027529859 | D81: 0.732612327 | E81: 187 | F81: 39.27 | G81: 76.69014372 | H81: 44.68883486 | I81: 1.004731173 | J81: 1.006321977 | K81: 1.25219197 | L81: 2.152050886 | M81: 0.631828 | N81: 566.117888 | O81: 25 | P81: 284 | Q81: 583.76 | R81: 309.8 | T81: 104 | U81: 5.82 | V81: 2.03 | AJ81: 45000 | AK81: 400 | AL81: 10 | AM81: 23.151 | AN81: 0.72 | AP81: 474.0078601
A82: HENO Zulla Final floración | B82: 87.6 | C82: 0.7974276922 | D82: 0.7271766252 | E82: 143 | F82: 30.03 | G82: 68.40600963 | H82: 11.57181812 | I82: 1.041902847 | J82: 1.071676354 | K82: 1.350515054 | L82: 1.995372678 | M82: 0.63274 | N82: 575.16066 | O82: 13.5 | P82: 287 | Q82: 414 | R82: 309 | T82: 91 | U82: 0.36 | V82: 0.21 | AJ82: 45000 | AK82: 400 | AL82: 10 | AM82: 19.499 | AN82: 0.72 | AP82: 493.9941847
A83: HENO Trébol blanco Vegetativo | B83: 90 | C83: 0.7981872668 | D83: 0.7236613654 | E83: 220 | F83: 56.1 | G83: 91.79713043 | H83: 57.22036526 | I83: 0.9822368086 | J83: 0.9683089799 | K83: 1.196312677 | L83: 2.252572334 | M83: 0.6202 | N83: 557.5598 | O83: 27 | P83: 212 | Q83: 360 | R83: 320 | S83: 70 | T83: 101 | U83: 4.05 | V83: 2.17 | W83: 4.3 | X83: 3.2 | Y83: 16.2 | Z83: 1.9 | AA83: 1.7 | AB83: 0.16 | AC83: 11 | AF83: 184 | AG83: 73 | AI83: 17 | AJ83: 45000 | AK83: 400 | AL83: 10 | AM83: 25.89 | AN83: 0.66 | AP83: 446.5874095
A84: HENO Trébol violeta Final floración | B84: 89 | C84: 0.7112930165 | D84: 0.6233057215 | E84: 160 | F84: 40.8 | G84: 73.88731868 | H84: 18.87200844 | I84: 1.049059571 | J84: 1.083978186 | K84: 1.370545909 | L84: 1.966209831 | M84: 0.5746 | N84: 525.759 | O84: 28 | P84: 288 | Q84: 460 | R84: 360 | S84: 80 | T84: 85 | U84: 4.59 | V84: 1.75 | AJ84: 45000 | AK84: 400 | AL84: 10 | AM84: 20.91 | AN84: 0.66 | AP84: 429.1792985
A85: HENO Veza Inicio botones | B85: 91.4 | C85: 0.9721214262 | D85: 0.932227536 | E85: 196 | F85: 49.98 | G85: 94.63849626 | H85: 33.46866561 | I85: 0.9680489979 | J85: 0.9458914147 | K85: 1.16210933 | L85: 2.318870324 | M85: 0.718468 | N85: 653.80588 | O85: 25 | P85: 204 | Q85: 492.56 | R85: 233.8 | T85: 90 | U85: 5.28 | V85: 1.54 | AJ85: 45000 | AK85: 400 | AL85: 10 | AM85: 23.898 | AN85: 0.66 | AP85: 556.6249568
A86: HENO Veza Botones | B86: 92 | C86: 0.7602900998 | D86: 0.6840692248 | E86: 217 | F86: 55.335 | G86: 89.49619547 | H86: 56.93371672 | I86: 0.9884905805 | J86: 0.9786155001 | K86: 1.211628532 | L86: 2.224098202 | M86: 0.6088 | N86: 533.9176 | O86: 25 | P86: 244 | Q86: 470 | R86: 330 | T86: 123 | U86: 5.28 | V86: 1.54 | AJ86: 45000 | AK86: 400 | AL86: 10 | AM86: 25.641 | AN86: 0.66 | AP86: 423.0359288
A87: HENO Veza Inicio floración | B87: 90 | C87: 0.7518572372 | D87: 0.6734733305 | E87: 225 | F87: 57.375 | G87: 90.85954176 | H87: 62.84705998 | I87: 0.9844856593 | J87: 0.9718713426 | K87: 1.201833094 | L87: 2.242225526 | M87: 0.60196 | N87: 527.91892 | O87: 25 | P87: 244 | Q87: 538.16 | R87: 336 | T87: 123 | U87: 5.28 | V87: 1.54 | AJ87: 45000 | AK87: 400 | AL87: 10 | AM87: 26.305 | AN87: 0.66 | AP87: 414.2272603
A88: HENO Veza Final floración | B88: 85 | C88: 0.9139505759 | D88: 0.8625564777 | E88: 197 | F88: 50.235 | G88: 92.18452814 | H88: 36.48201349 | I88: 0.9773405656 | J88: 0.960845548 | K88: 1.184313609 | L88: 2.275394642 | M88: 0.688144 | N88: 623.458464 | O88: 25 | P88: 232 | Q88: 524.48 | R88: 260.4 | T88: 94 | U88: 4.41 | V88: 2.17 | AJ88: 45000 | AK88: 400 | AL88: 10 | AM88: 23.981 | AN88: 0.66 | AP88: 523.89411
A89: HENO Veza Fructificación | B89: 91 | C89: 0.8320963568 | D89: 0.7657742026 | E89: 186 | F89: 47.43 | G89: 85.84481608 | H89: 32.08838466 | I89: 1.000806021 | J89: 0.9997563541 | K89: 1.242213475 | L89: 2.169337956 | M89: 0.64528 | N89: 583.33312 | O89: 20 | P89: 236 | Q89: 453 | R89: 298 | T89: 96 | U89: 4.53 | V89: 1.19 | AJ89: 45000 | AK89: 400 | AL89: 10 | AM89: 23.068 | AN89: 0.66 | AP89: 484.0280298
A90: HENO Veza Pastoso | B90: 90.2 | C90: 0.9492342693 | D90: 0.908971077 | E90: 188 | F90: 47.94 | G90: 91.99944958 | H90: 28.96923571 | I90: 0.9750278921 | J90: 0.9572930027 | K90: 1.178699078 | L90: 2.286233093 | M90: 0.71596 | N90: 640.7842 | O90: 20 | P90: 278 | Q90: 576.92 | R90: 236 | T90: 105 | U90: 4.8 | V90: 2.1 | AJ90: 45000 | AK90: 400 | AL90: 10 | AM90: 23.234 | AN90: 0.66 | AP90: 545.7686271
A91: HENO Veza (> 50%) - Avena corte precoz INRA | B91: 84 | C91: 0.73 | D91: 0.65 | E91: 158 | F91: 42 | G91: 93 | H91: -18.58155175 | I91: 1.020408163 | J91: 1.024501769 | K91: 0.86 | L91: 3.13 | M91: 0.68 | N91: 881 | P91: 333 | Q91: 674 | R91: 378 | T91: 119 | AN91: 0.6 | AP91: 799.8825
A92: HENO Veza (20-50%) - Avena corte precoz INRA | B92: 79 | C92: 0.72 | D92: 0.65 | E92: 104 | F92: 24 | G92: 75 | H92: -50.30615175 | I92: 1.065092359 | J92: 1.108776844 | K92: 1.21 | L92: 2.23 | M92: 0.68 | N92: 897 | P92: 280 | Q92: 595 | R92: 323 | T92: 103 | AN92: 0.63 | AP92: 833.8825
A93: HENO Veza (<20%) - Avena corte precoz INRA | B93: 75 | C93: 0.66 | D93: 129 | E93: 29 | F93: 81 | G93: -31.06451623 | H93: 1.031870043 | I93: 1.053472022 | J93: 1.21 | K93: 2.23 | L93: 0.7 | M93: 870 | O93: 270 | P93: 575 | Q93: 308 | S93: 130 | AM93: 0.64 | AO93: 803.2617
A94: HENO Veza (> 50%) - Avena corte tardío INRA | B94: 65 | C94: 0.55 | D94: 123 | E94: 31 | F94: 81 | G94: -43.47657607 | H94: 1.07880684 | I94: 1.128333036 | J94: 0.89 | K94: 3.02 | L94: 0.61 | M94: 929 | O94: 268 | P94: 584 | Q94: 309 | S94: 71 | AM94: 0.6 | AO94: 854.0553
A95: HENO Veza (20-50%) - Avena corte tardío INRA | B95: 64 | C95: 0.55 | D95: 99 | E95: 23 | F95: 72 | G95: -53.56774055 | H95: 1.090181359 | I95: 1.155366373 | J95: 1.39 | K95: 1.94 | L95: 0.63 | M95: 901 | O95: 333 | P95: 675 | Q95: 385 | S95: 99 | AM95: 0.63 | AO95: 835.4345
A96: HENO Veza (<20%) - Avena corte tardío INRA | B96: 86 | C96: 0.61 | D96: 0.52 | E96: 74 | F96: 17 | G96: 66 | H96: =((E96*AN96)-(41.67+71.9*10^-3*AP96))-14.2 -> -72.15889383 | I96: 1.124534122 | J96: 1.228533002 | K96: 1.25 | L96: 2.16 | M96: 0.6 | N96: 916 | P96: 324 | Q96: 664 | R96: 377 | T96: 84 | AN96: 0.61 | AP96: =N96-F96-(11.4+0.08*(785-8.62*M96*100))-(6+0.599*(9.7+0.75*AM96)) -> 854.3657

Sheet 0_Tabla Concentrados
A1: Concentrados | B1: MS | C1: UFL | D1: UFV | E1: MNT_PB | F1: PDIA | G1: PDI | H1: BPR | I1: UEL | J1: UEB | K1: UEM | L1: NI ref | M1: dMO | N1: MOD_TDN | O1: EE | P1: FB | Q1: NDF | R1: ADF | S1: Lignina | T1: Cenizas | U1: Ca | V1: P | W1: Mg | X1: Cl | Y1: K | Z1: Na | AA1: S | AB1: Co | AC1: Cu | AD1: Mo | AE1: Yodo | AF1: Fe | AG1: Mn | AH1: Se | AI1: Zn | AJ1: Vit A | AK1: Vit D | AL1: Vit E | AM1: AG | AN1: DT_N | AO1: dr | AP1: MOF
A3: Cebada grano | B3: 88.8 | C3: 1.078969989 | D3: 1.067752556 | E3: 112 | F3: 27.59508246 | G3: 89.46220189 | H3: -31.34737412 | I3: 0.2046 | L3: 2 | M3: 0.837328 | N3: 816.3948 | O3: 19 | P3: 54 | Q3: 215 | R3: 65 | S3: 12 | T3: 25 | U3: 0.44 | V3: 2.964 | W3: 1.3 | Y3: 5.55 | Z3: 0.35 | AB3: 0.01 | AC3: 4.1 | AD3: 0.3 | AF3: 90 | AG3: 17.6 | AH3: 0.02 | AI3: 24.4 | AJ3: 1000 | AL3: 25 | AM3: 14.25 | AN3: 0.7349259949 | AO3: 0.9294938772 | AP3: 596.0833771
A4: Maíz grano | B4: 86 | C4: 1.24475541 | D4: 1.26 | E4: 89 | F4: 43 | G4: 94 | H4: -53 | I4: 0.3291 | L4: 2 | M4: 0.882846 | N4: 870.486156 | O4: 43 | P4: 26 | Q4: 125 | R4: 31 | S4: 60 | T4: 14 | U4: 0.275 | V4: 2.175 | W4: 1.4 | Y4: 3.6 | Z4: 0.33 | AB4: 0.02 | AC4: 2.3 | AD4: 0.3 | AF4: 80 | AG4: 10.8 | AH4: 0.02 | AI4: 21.4 | AM4: 36.55 | AN4: 0.4465708975 | AO4: 0.8730044467 | AP4: 780.9036423
A5: Trigo grano | B5: 87 | C5: 1.191513797 | D5: 1.205062577 | E5: 157 | F5: 33.00144942 | G5: 96.50582734 | H5: 5.8944095 | I5: 0.1714 | L5: 2 | M5: 0.87875 | N5: 861.175 | O5: 23 | P5: 29 | Q5: 146 | R5: 38 | S5: 12 | T5: 20 | U5: 0.275 | V5: 2.808 | AB5: 0.02 | AC5: 4.4 | AD5: 0.3 | AG5: 33.7 | AH5: 0.04 | AI5: 32.5 | AL5: 12 | AM5: 17.25 | AN5: 0.7771204339 | AO5: 0.9431116475 | AP5: 740.1774934
A6: Avena | B6: 87.4 | C6: 1.002754804 | D6: 0.9548146189 | E6: 111 | F6: 20.39754399 | G6: 75.33304787 | H6: -14.56672481 | I6: 0.3208 | L6: 2 | M6: 0.72867 | N6: 706.8099 | O6: 67 | P6: 135 | Q6: 336 | R6: 162 | S6: 27 | T6: 30 | U6: 0.55 | V6: 3 | W6: 1.75 | Y6: 4.3 | Z6: 0.5 | AB6: 0.02 | AC6: 3.5 | AD6: 0.7 | AG6: 38.4 | AH6: 0.04 | AI6: 25.2 | AL6: 15 | AM6: 60.3 | AN6: 0.7980031538 | AO6: 0.9097253799 | AP6: 747.5170565
A7: Alforfón grano | B7: 88 | C7: 1.000775785 | D7: 0.9661592102 | E7: 125 | F7: 34.09988724 | G7: 90.96989041 | H7: -20.55937996 | I7: 0.2129 | L7: 2 | M7: 0.74393 | N7: 726.81961 | O7: 28 | P7: 118 | Q7: 301 | R7: 158.9 | S7: 33.4 | T7: 23 | U7: 0.605 | V7: 2.775 | W7: 1.2 | X7: 0.5 | Y7: 5.1 | Z7: 0.6 | AA7: 1.6 | AB7: 0.06 | AC7: 11 | AF7: 50 | AG7: 38 | AI7: 10 | AM7: 21 | AN7: 0.6993867196 | AO7: 0.9074752038 | AP7: 668.2667467
A8: Mijo grano | B8: 88 | C8: 1.009546491 | D8: 0.9776763056 | E8: 131 | F8: 35.90764594 | G8: 91.77812279 | H8: -15.03762007 | I8: 0.2129 | L8: 2 | M8: 0.752754 | N8: 721.138332 | O8: 42 | P8: 106 | Q8: 284.5 | R8: 143.86 | S8: 29.7 | T8: 42 | U8: 0.22 | V8: 2.4 | W8: 1.7 | X8: 0.34 | Y8: 4.66 | Z8: 0.45 | AM8: 37.8 | AN8: 0.6997481148 | AO8: 0.9129140598 | AP8: 460.6219971
A9: Centeno grano | B9: 86.5 | C9: 1.19 | D9: 1.21 | E9: 97 | F9: 20 | G9: 81 | H9: -34.72904868 | I9: 0.2129 | L9: 2 | M9: 0.88214 | N9: 864.4972 | O9: 16.2 | P9: 26 | Q9: 132 | R9: 42 | S9: 14 | T9: 20 | U9: 0.385 | V9: 3 | W9: 1.35 | Y9: 5.25 | Z9: 0.3 | AB9: 0.03 | AC9: 4.5 | AD9: 0.2 | AG9: 55 | AH9: 0.03 | AI9: 30 | AL9: 17 | AM9: 12.15 | AN9: 0.7769651377 | AO9: 0.9244544324 | AP9: 415.4862894
A10: Sorgo grano | B10: 86 | C10: 1.21 | D10: 1.23 | E10: 105 | F10: 47 | G10: 97.13096315 | H10: -48 | I10: 0.2129 | L10: 2 | M10: 0.884686 | N10: 869.646338 | O10: 37 | P10: 25 | Q10: 107 | R10: 49 | S10: 4 | T10: 17 | U10: 0.165 | V10: 2.4 | W10: 1.75 | Y10: 3.6 | Z10: 0.4 | AC10: 10 | AF10: 160 | AG10: 14 | AI10: 14 | AJ10: 14000 | AL10: 12 | AM10: 33.3 | AN10: 0.5226342292 | AO10: 0.9376856804 | AP10: 581.7628756
A11: Triticale grano | B11: 87.1 | C11: 1.191793332 | D11: 1.210362141 | E11: 130 | F11: 38.225488 | G11: 101.2965379 | H11: -26.94851539 | I11: 0.2129 | L11: 2 | M11: 0.87145 | N11: 852.2781 | O11: 17 | P11: 33 | Q11: 148 | R11: 40 | S11: 13 | T11: 22 | U11: 0.275 | V11: 3.45 | AM11: 12.75 | AN11: 0.6853862298 | AO11: 0.9346133045 | AP11: 618.0604347
A12: Trigo salvado trigo duro | B12: 87.7 | C12: 1.017694369 | D12: 0.9779078471 | E12: 167 | F12: 34.63114108 | G12: 88.47767853 | H12: 25.24478524 | I12: 0.3057772 | L12: 2 | M12: 0.731538 | N12: 692.034948 | O12: 58 | P12: 118 | Q12: 481 | R12: 148 | S12: 38 | T12: 54 | U12: 0.935 | V12: 7.8 | AC12: 10 | AF12: 200 | AG12: 90 | AI12: 80 | AJ12: 1000 | AL12: 21 | AM12: 46.4 | AN12: 0.7727450842 | AO12: 0.9125087639 | AP12: 677.3417032
A13: Maíz copos | B13: 89 | C13: 1.285459442 | D13: 1.315633547 | E13: 100 | F13: 41.4985065 | G13: 103.9464693 | H13: -59.77494194 | I13: 0.231567 | L13: 2 | M13: 0.88266 | N13: 868.53744 | O13: 43 | P13: 26 | Q13: 90 | R13: 30 | S13: 10 | T13: 16 | U13: 0.165 | V13: 2.175 | W13: 1.4 | X13: 0.5 | Y13: 3.7 | Z13: 0.3 | AA13: 1.2 | AB13: 0.05 | AC13: 4 | AF13: 30 | AG13: 5 | AH13: 0.08 | AI13: 14 | AJ13: 1000 | AL13: 25 | AM13: 36.55 | AN13: 0.5536620228 | AO13: 0.9297552219 | AP13: 841.6236618
A14: Maíz bagazo | B14: 88.1 | C14: 1.203463873 | D14: 1.20550115 | E14: 151 | F14: 56.28378672 | G14: 116.7748185 | H14: -22.64723712 | I14: 0.2876 | L14: 2 | M14: 0.850092 | N14: 833.940252 | O14: 34 | P14: 68 | Q14: 272 | R14: 78 | S14: 11 | T14: 19 | U14: 0.5 | V14: 3.7 | W14: 1.8 | Y14: 3.5 | Z14: 9.5 | AM14: 25.5 | AN14: 0.6042201418 | AO14: 0.9417869599 | AP14: 567.5727337
A15: Maíz hominyfeed (mezcla salvado, germen y almidón) | B15: 90 | C15: 1.153355136 | D15: 1.157966805 | E15: 114 | F15: 46.52415979 | G15: 107.3745235 | H15: -49.99869329 | I15: 0.2535785 | L15: 2 | M15: 0.837476 | N15: 816.5391 | O15: 19 | P15: 54 | Q15: 215 | R15: 65 | S15: 12 | T15: 25 | U15: 0.275 | V15: 4.275 | W15: 2.6 | X15: 0.6 | Y15: 6.5 | Z15: 0.9 | AA15: 0.3 | AB15: 0.06 | AC15: 15 | AF15: 75 | AG15: 16 | AH15: 0.11 | AI15: 3 | AM15: 16.15 | AN15: 0.5612101445 | AO15: 0.9300731538 | AP15: 380.3273066
A16: Maíz gluten feed | B16: 87.7 | C16: 1.056307439 | D16: 1.029893853 | E16: 216 | F16: 53.8646516 | G16: 111.0030461 | H16: 49.88125855 | I16: 0.3125 | L16: 2 | M16: 0.825072 | N16: 769.792176 | O16: 45 | P16: 88 | Q16: 343 | R16: 100 | S16: 13 | T16: 67 | U16: 1.65 | V16: 5.304 | W16: 3.5 | Y16: 10.25 | Z16: 7 | AJ16: 3000 | AL16: 14 | AM16: 40.5 | AN16: 0.7383081976 | AO16: 0.9529277751 | AP16: 400.0063135
A17: Maíz gluten meal | B17: 89.3 | C17: 1.647747782 | D17: 1.703959302 | E17: 661 | F17: 427.8502116 | G17: 474.6927582 | H17: 117.5185209 | I17: 0.4868 | L17: 2 | M17: 0.943652 | N17: 929.49722 | O17: 35 | P17: 21 | Q17: 107 | R17: 28 | S17: 6 | T17: 15 | U17: 0.11 | V17: 2.72 | AJ17: 14000 | AL17: 26 | AM17: 28 | AN17: 0.3436078323 | AO17: 0.986113493 | AP17: 749.4135605
A18: Maíz carozo | B18: 90 | C18: 0.5231913971 | D18: 0.4115298955 | E18: 44 | F18: 14.39853914 | G18: 59.97738242 | H18: -62.53694262 | I18: 0.4692912 | L18: 2 | M18: 0.455276 | N18: 437.06496 | O18: 5 | P18: 302 | Q18: 822 | R18: 408 | S18: 38 | T18: 40 | U18: 0.66 | V18: 0.525 | AM18: 2 | AN18: 0.6232120323 | AO18: 0.8684978132 | AP18: 521.7862692
A19: Maíz salvado | B19: 88.3 | C19: 1.112973677 | D19: 1.10078662 | E19: 101 | F19: 43.23835933 | G19: 96.34428969 | H19: -50.71801618 | I19: 0.3706 | L19: 2 | M19: 0.707252 | N19: 669.060392 | O19: 40 | P19: 150 | Q19: 557 | R19: 164 | S19: 19 | T19: 54 | U19: 0.165 | V19: 1.875 | AM19: 34 | AN19: 0.5317077588 | AO19: 0.9141782203 | AP19: 556.4050738
A20: Maíz torta de gérmenes a presión | B20: 88.1 | C20: 1.17895975 | D20: 1.171602179 | E20: 146 | F20: 59.1015472 | G20: 113.8847817 | H20: -23.87880397 | I20: 0.2642698 | L20: 2 | M20: 0.801524 | N20: 763.050848 | O20: 82 | P20: 72 | Q20: 285 | R20: 82 | S20: 11 | T20: 48 | U20: 0.33 | V20: 3.525 | W20: 4.5 | Y20: 1.8 | Z20: 8.5 | AM20: 65.6 | AN20: 0.5685588128 | AO20: 0.9382625715 | AP20: 625.9611681
A21: Maíz torta de gérmenes con disolvente | B21: 87.9 | C21: 1.041990023 | D21: 1.023538393 | E21: 135 | F21: 54.17190727 | G21: 111.6965778 | H21: -33.88229766 | I21: 0.2686721 | L21: 2 | M21: 0.79028 | N21: 752.34656 | O21: 17 | P21: 79 | Q21: 310 | R21: 89 | S21: 12 | T21: 48 | U21: 0.495 | V21: 3.75 | W21: 4.5 | Y21: 1.8 | Z21: 8.5 | AJ21: 1000 | AL21: 94 | AM21: 12.75 | AN21: 0.5703343944 | AO21: 0.9339201973 | AP21: 543.5361192
A22: Maíz extrusionado | B22: 90.3 | C22: 1.26592428 | D22: 1.305945141 | E22: 96.35 | F22: 55.42277845 | G22: 120.6512297 | H22: -82.39695502 | I22: 0.21464959 | L22: 2 | M22: 0.9181304 | N22: 904.9093222 | O22: 4.32 | P22: 2.55 | Q22: 12.18 | R22: 3.1 | S22: 0.55 | T22: 14.4 | U22: 0.165 | V22: 2.175 | W22: 1.4 | X22: 0.5 | Y22: 3.7 | Z22: 0.3 | AA22: 1.2 | AB22: 0.05 | AC22: 4 | AF22: 30 | AG22: 5 | AH22: 0.08 | AI22: 14 | AJ22: 1000 | AL22: 25 | AM22: 3.672 | AN22: 0.3880056001 | AO22: 0.9399161825 | AP22: 296.3737151
A23: Alforfón segundas | B23: 89 | C23: 1.185521315 | D23: 1.168586189 | E23: 335 | F23: 98.39838218 | G23: 150.650279 | H23: 125.2564113 | I23: 0.2129 | L23: 2 | M23: 0.79562 | N23: 751.8609 | O23: 82 | P23: 83 | Q23: 251.39 | R23: 114.99 | S23: 22.61 | T23: 55 | U23: 0.275 | V23: 2.925 | AM23: 65.6 | AN23: 0.6946621902 | AO23: 0.9619722962 | AP23: 273.3737151
A24: Cebada bagazo cervecería fresco | B24: 20.5 | C24: 0.8640921799 | D24: 0.7703702942 | E24: 300 | F24: 129.9487159 | G24: 172.9796551 | H24: 53.5641575 | I24: 0.4951 | L24: 2 | M24: 0.6385 | N24: 606.575 | O24: 86 | P24: 150 | Q24: 525 | R24: 206 | S24: 47 | T24: 50 | U24: 1.815 | V24: 4.446 | W24: 1.6 | Y24: 0.7 | Z24: 1.6 | AB24: 0.08 | AC24: 22.2 | AD24: 0.5 | AG24: 38.5 | AH24: 0.06 | AI24: 85 | AL24: 29 | AM24: 38.7 | AN24: 0.5325076887 | AO24: 0.9265657975 | AP24: 565.2052521
A25: Cebada bagazo cervecería seco | B25: 91.9 | C25: 0.871193565 | D25: 0.7805426295 | E25: 262.4 | F25: 107.6156328 | G25: 151.6383987 | H25: 35.09442835 | I25: 0.4951 | L25: 2 | M25: 0.62732 | N25: 601.348952 | O25: 79.9 | P25: 161.6 | Q25: 643.3 | R25: 236.4 | S25: 78.9 | T25: 41.4 | U25: 1.265 | V25: 4.914 | AB25: 0.08 | AC25: 22.2 | AD25: 0.5 | AG25: 38.5 | AH25: 0.06 | AI25: 85 | AL25: 29 | AM25: 35.955 | AN25: 0.5371850665 | AO25: 0.886143731 | AP25: 529.6572154
A26: Cebada malta, grano germinado y secado | B26: 89.6 | C26: 0.8231856487 | D26: 0.7581965961 | E26: 255 | F26: 66.35502136 | G26: 127.2527654 | H26: 71.69727487 | I26: 0.2959 | L26: 2 | M26: 0.89925 | N26: 840.79875 | O26: 23 | P26: 10 | Q26: 94 | R26: 10 | S26: 6 | T26: 65 | U26: 1.485 | V26: 5.625 | AL26: 16 | AM26: 10.35 | AN26: 0.7318227862 | AO26: 0.9703127509 | AP26: 363.3900279
A27: Cebada salvado | B27: 89 | C27: 0.7604950037 | D27: 0.683000715 | E27: 118 | F27: 25.13276462 | G27: 75.56717545 | H27: -8.043766921 | I27: 0.3630071 | L27: 2 | M27: 0.620602 | N27: 581.504074 | O27: 32 | P27: 187 | Q27: 539 | R27: 239 | S27: 28 | T27: 63 | U27: 0.44 | V27: 2.925 | AB27: 0.03 | AC27: 11.7 | AD27: 0.6 | AG27: 123 | AH27: 0.05 | AI27: 59 | AM27: 25.6 | AN27: 0.7651033494 | AO27: 0.9067371975 | AP27: 563.5193635
A28: Cacao torta | B28: 86.6 | C28: 0.9215256292 | D28: 0.8794694618 | E28: 232 | F28: 88.67087909 | G28: 140.270913 | H28: 25.81494705 | I28: 0.34659281 | L28: 2 | M28: 0.745465 | N28: 673.154895 | O28: 20 | P28: 161 | Q28: 363.86 | R28: 212.9 | S28: 47.29 | T28: 97 | U28: 1.43 | V28: 0.884 | AM28: 15 | AN28: 0.5829749087 | AO28: 0.9164965682 | AP28: 268.232459
A29: Cacahuete, torta 48 | B29: 88.6 | C29: 1.194433583 | D29: 1.186516039 | E29: 524 | F29: 143.3022223 | G29: 198.101494 | H29: 261.736138 | I29: 0.2876 | L29: 2 | M29: 0.84376 | N29: 789.75936 | O29: 16 | P29: 77 | Q29: 150 | R29: 101 | S29: 26 | T29: 64 | U29: 0.99 | V29: 4.29 | W29: 3 | AB29: 0.3 | AC29: 14.5 | AD29: 1.7 | AF29: 450 | AG29: 47.5 | AH29: 0.11 | AI29: 61.5 | AM29: 12 | AN29: 0.7179423819 | AO29: 0.969580348 | AP29: 807.1947924
A30: Coco torta | B30: 90 | C30: 0.9709595673 | D30: 0.9339995141 | E30: 239 | F30: 87.26903545 | G30: 138.2098434 | H30: 30.48498753 | I30: 0.2876 | L30: 2 | M30: 0.71604 | N30: 660.18888 | O30: 18 | P30: 178 | Q30: 580 | R30: 316 | S30: 78 | T30: 78 | U30: 1.1 | V30: 4.488 | W30: 4 | Z30: 0.6 | AC30: 20 | AF30: 500 | AG30: 60 | AI30: 70 | AM30: 16.2 | AN30: 0.5872269422 | AO30: 0.8846081419 | AP30: 201.6193367
A31: Colza, grano | B31: 89.9 | C31: 1.96875359 | D31: 2.026164505 | E31: 217 | F31: 41.88482236 | G31: 81.98060891 | H31: 90.24033351 | I31: 0.2959 | L31: 2 | M31: 0.84608 | N31: 798.69952 | O31: 457 | P31: 68 | Q31: 199 | R31: 116 | S31: 41 | T31: 56 | U31: 1.815 | V31: 3.763 | AM31: 388.45 | AN31: 0.7911253228 | AO31: 0.924083365 | AP31: 581.9454468
A32: Colza, grano semidescascarillado | B32: 90 | C32: 2.006824385 | D32: 2.066056386 | E32: 217 | F32: 41.88482236 | G32: 80.92224091 | H32: 91.89403351 | I32: 0.2959 | L32: 2 | M32: 0.84608 | N32: 798.69952 | O32: 480 | P32: 68 | Q32: 115 | R32: 84 | S32: 41 | T32: 56 | U32: 1.815 | V32: 3.763 | AM32: 379.2 | AN32: 0.7911253228 | AO32: 0.924083365 | AP32: 817.1113866
A33: Colza, turtó | B33: 90 | C33: 0.958005025 | D33: 0.9098593603 | E33: 418 | F33: 103.9119909 | G33: 155.8627084 | H33: 193.047004 | I33: 0.3125 | L33: 2 | M33: 0.7842 | N33: 704.9958 | O33: 26 | P33: 120 | Q33: 287 | R33: 182 | S33: 74 | T33: 101 | U33: 4.62 | V33: 8.804 | W33: 5.15 | Y33: 12.4 | Z33: 0.75 | AB33: 0.1 | AC33: 5.5 | AD33: 0.5 | AF33: 300 | AG33: 63.5 | AH33: 0.07 | AI33: 64.5 | AL33: 20 | AM33: 20.8 | AN33: 0.7277738088 | AO33: 0.9131864885 | AP33: 325.121416
A34: Colza, turtó tanne, curtido | B34: 89 | C34: 1.240309081 | D34: 1.253284486 | E34: 391 | F34: 143.4249536 | G34: 193.4731611 | H34: 118.7396757 | I34: 0.3374 | L34: 2 | M34: 0.77349 | N34: 713.93127 | O34: 26 | P34: 129 | Q34: 302 | R34: 193 | S34: 79 | T34: 77 | U34: 4.62 | V34: 8.804 | Y34: 12.4 | Z34: 0.75 | AB34: 0.1 | AC34: 5.5 | AD34: 0.5 | AF34: 300 | AG34: 63.5 | AH34: 0.07 | AI34: 64.5 | AM34: 17.94 | AN34: 0.5952070214 | AO34: 0.9061810788 | AP34: 550.0468057
A35: Algodón, grano | B35: 92 | C35: 1.105745464 | D35: 1.027155353 | E35: 220 | F35: 48.76444907 | G35: 91.65479282 | H35: 70.58383788 | I35: 0.5034 | L35: 2 | M35: 0.64652 | N35: 618.71964 | O35: 198 | P35: 276 | Q35: 456 | R35: 354 | S35: 105 | T35: 43 | U35: 1.155 | V35: 4.736 | AM35: 188.1 | AN35: 0.7394108541 | AO35: 0.8505979247 | AP35: 581.8575174
A36: Algodón torta sin aceite | B36: 89 | C36: 1.150192028 | D36: 1.125943813 | E36: 466 | F36: 160.9221094 | G36: 212.6445717 | H36: 184.5836527 | I36: 0.2994882 | L36: 2 | M36: 0.802196 | N36: 750.855456 | O36: 20 | P36: 127 | Q36: 232 | R36: 138 | S36: 32 | T36: 64 | U36: 2.585 | V36: 5.922 | W36: 5.2 | Y36: 15.2 | Z36: 0.4 | AM36: 15 | AN36: 0.6409096727 | AO36: 0.9616700558 | AP36: 814.2065213
A37: Algodón cáscara | B37: 91 | C37: 0.3662081422 | D37: 0.2380788633 | E37: 81 | F37: 16.10308659 | G37: 54.6536023 | H37: -25.8351808 | I37: 0.65129486 | L37: 2 | M37: 0.323182 | N37: 309.608356 | O37: 19 | P37: 547 | Q37: 900 | R37: 697.4 | S37: 184.6 | T37: 42 | U37: 0.77 | V37: 0.693 | AM37: 14.25 | AN37: 0.7237543586 | AO37: 0.7196621715 | AP37: 816.2571164
A38: Habón grano | B38: 86.9 | C38: 1.286607118 | D38: 1.320957789 | E38: 302 | F38: 51.43027974 | G38: 115.0698849 | H38: 130.983117 | I38: 0.1714 | L38: 2 | M38: 0.9143 | N38: 876.8137 | O38: 16 | P38: 90 | Q38: 171 | R38: 108 | S38: 24.7 | T38: 41 | U38: 0.715 | V38: 3.264 | W38: 1.6 | X38: 0.8 | Y38: 12 | Z38: 0.25 | AB38: 0.4 | AC38: 13.8 | AD38: 1 | AF38: 100 | AG38: 12.7 | AH38: 0.02 | AI38: 43.7 | AM38: 12.8 | AN38: 0.8224539482 | AO38: 0.9591817888 | AP38: 509.2308572
A39: Girasol, grano | B39: 93 | C39: 1.708471184 | D39: 1.695156001 | E39: 174 | F39: 24.64749869 | G39: 60.41910651 | H39: 72.58686279 | I39: 0.2627 | L39: 2 | M39: 0.74312 | N39: 714.13832 | O39: 485 | P39: 164 | Q39: 294 | R39: 200 | S39: 56 | T39: 39 | U39: 0.99 | V39: 3.12 | AM39: 460.75 | AN39: 0.8418449238 | AO39: 0.8956544094 | AP39: 566.2107452
A40: Girasol torta descascarillado | B40: 91 | C40: 0.9910764189 | D40: 0.9439708695 | E40: 417 | F40: 80.25381508 | G40: 133.123438 | H40: 220.1112143 | I40: 0.3208 | L40: 2 | M40: 0.745917 | N40: 691.465059 | O40: 22 | P40: 176 | Q40: 299 | R40: 220 | S40: 70 | T40: 73 | U40: 2.09 | V40: 6.435 | W40: 5.5 | X40: 1.2 | Y40: 12 | Z40: 0.33 | AM40: 16.5 | AN40: 0.790120834 | AO40: 0.9169809263 | AP40: 601.9494415
A41: Lenteja grano | B41: 88 | C41: 1.292742572 | D41: 1.330655343 | E41: 281 | F41: 49.08181296 | G41: 113.199967 | H41: 113.2253843 | I41: 0.1714 | L41: 2 | M41: 0.91963 | N41: 886.52332 | O41: 19.3 | P41: 49 | Q41: 160 | R41: 72 | S41: 3 | T41: 36 | U41: 0.605 | V41: 3.06 | AM41: 14.475 | AN41: 0.8216657174 | AO41: 0.9794436099 | AP41: 617.4800936
A42: Lino, grano | B42: 90.3 | C42: 1.657583747 | D42: 1.660671498 | E42: 253 | F42: 51.01194867 | G42: 92.3191443 | H42: 111.0075068 | I42: 0.3208 | L42: 2 | M42: 0.780518 | N42: 743.3653432 | O42: 362 | P42: 101.9 | Q42: 244.7 | R42: 148.4 | S42: 62 | T42: 47.6 | U42: 2.314507198 | V42: 4.526024363 | W42: 3.986710963 | X42: 0.6644518272 | Y42: 7.973421927 | Z42: 0.7751937984 | AA42: 2.990033223 | AC42: 13.28903654 | AD42: 0.2214839424 | AF42: 163.8981174 | AG42: 32.11517165 | AI42: 49.83388704 | AM42: 343.9 | AN42: 0.7776919873 | AO42: 0.9069770052 | AP42: 614.3463707
A43: Linaza torta sin aceite | B43: 89 | C43: 1.151871054 | D43: 1.134141167 | E43: 377 | F43: 129.4671117 | G43: 180.6322598 | H43: 120.744456 | I43: 0.3064061 | L43: 2 | M43: 0.803904 | N43: 752.454144 | O43: 58 | P43: 118 | Q43: 236 | R43: 149 | S43: 88 | T43: 64 | U43: 2.585 | V43: 6.298 | W43: 6.1 | Y43: 14 | Z43: 1.3 | AB43: 0.6 | AC43: 21 | AD43: 0.6 | AF43: 250 | AG43: 59 | AH43: 0.5 | AI43: 73 | AL43: 9 | AM43: 43.5 | AN43: 0.6169566624 | AO43: 0.8965410847 | AP43: 595.3582566
A44: Palmito torta (palmiste) | B44: 90 | C44: 0.8319475036 | D44: 0.7632996493 | E44: 206 | F44: 83.76805509 | G44: 136.5208369 | H44: -3.926221648 | I44: 0.4287 | L44: 2 | M44: 0.73056 | N44: 699.14592 | O44: 19 | P44: 167 | Q44: 632 | R44: 241 | S44: 103 | T44: 43 | U44: 1.705 | V44: 4.556 | AM44: 17.1 | AN44: 0.5228718322 | AO44: 0.8522679473 | AP44: 614.3463707
A45: Judía grano | B45: 88 | C45: 1.269417567 | D45: 1.306008103 | E45: 257 | F45: 44.57202968 | G45: 108.5638422 | H45: 93.98279293 | I45: 0.1714 | L45: 2 | M45: 0.91937 | N45: 878.91772 | O45: 19 | P45: 51 | Q45: 162 | R45: 74 | S45: 3 | T45: 44 | U45: 0.715 | V45: 3.468 | W45: 1.6 | Y45: 14 | Z45: 0.4 | AM45: 15.2 | AN45: 0.8221354136 | AO45: 0.9750789946 | AP45: 689.6784425
A46: Guisante grano | B46: 85.7 | C46: 1.262578618 | D46: 1.297789954 | E46: 259 | F46: 44.91173193 | G46: 108.9957771 | H46: 95.45867945 | I46: 0.1714 | L46: 2 | M46: 0.91768 | N46: 877.30208 | O46: 15 | P46: 64 | Q46: 162 | R46: 74 | S46: 3 | T46: 44 | U46: 0.495 | V46: 3.128 | W46: 1.45 | Y46: 11 | Z46: 0.3 | AB46: 0.07 | AC46: 7.2 | AD46: 1.1 | AG46: 8 | AH46: 0.2 | AI46: 37 | AM46: 12 | AN46: 0.8222202176 | AO46: 0.9753885851 | AP46: 696.3958697
A47: Soja, grano extrusionado | B47: 88 | C47: 1.485485602 | D47: 1.497390722 | E47: 402 | F47: 188.4323551 | G47: 238.0406285 | H47: 109.2870728 | I47: 0.3208 | L47: 2 | M47: 0.97179 | N47: 912.51081 | O47: 213 | P47: 74 | Q47: 146 | R47: 92 | S47: 7 | T47: 61 | U47: 1.54 | V47: 4.48 | AM47: 202.35 | AN47: 0.526666784 | AO47: 0.9902901084 | AP47: 704.0018085
A48: Soja, grano tostado | B48: 88.6 | C48: 1.490185728 | D48: 1.502445871 | E48: 397.3 | F48: 133.307895 | G48: 185.6891829 | H48: 158.2262376 | I48: 0.2959 | L48: 2 | M48: 0.975779 | N48: 918.5007727 | O48: 216.7 | P48: 63.2 | Q48: 132 | R48: 77.78 | S48: 13.5 | T48: 58.7 | U48: 1.986455982 | V48: 4.187358916 | W48: 2.595936795 | X48: 0.5643340858 | Y48: 20.76749436 | Z48: 0.9029345372 | AA48: 3.16027088 | AC48: 38.37471783 | AD48: 4.514672686 | AF48: 161.3995485 | AG48: 31.6027088 | AH48: 0.316027088 | AI48: 45.14672686 | AM48: 205.865 | AN48: 0.6587213001 | AO48: 0.9831688769 | AP48: 771.7510797
A49: Soja torta 44 | B49: 87.2 | C49: 1.165625863 | D49: 1.159793832 | E49: 488 | F49: 153.419998 | G49: 207.0695265 | H49: 219.1726116 | I49: 0.2781056 | L49: 2 | M49: 0.849655 | N49: 779.133635 | O49: 22 | P49: 84 | Q49: 163 | R49: 104 | S49: 8 | T49: 83 | U49: 1.87 | V49: 4.9 | W49: 2.7 | Y49: 20 | Z49: 1.95 | AB49: 0.3 | AC49: 17.1 | AD49: 2.3 | AF49: 200 | AG49: 43.7 | AH49: 0.2 | AI49: 54.6 | AL49: 7 | AM49: 16.5 | AN49: 0.6819996035 | AO49: 0.9886316028 | AP49: 737.9075552
A50: Soja torta 46 | B50: 87.2 | C50: 1.204239972 | D50: 1.205333606 | E50: 505 | F50: 160.0692099 | G50: 214.4558798 | H50: 229.0708283 | I50: 0.2686721 | L50: 2 | M50: 0.863895 | N50: 799.102875 | O50: 20 | P50: 72 | Q50: 143 | R50: 89 | S50: 7 | T50: 75 | U50: 1.87 | V50: 5.18 | W50: 2.7 | Y50: 20 | Z50: 1.95 | AB50: 0.3 | AC50: 17.1 | AD50: 2.3 | AF50: 200 | AG50: 43.7 | AH50: 0.2 | AI50: 54.6 | AM50: 15 | AN50: 0.6799548883 | AO50: 0.99038767 | AP50: 751.5420857
A51: Soja torta 48 | B51: 88.3 | C51: 1.223810674 | D51: 1.22687166 | E51: 520 | F51: 165.0816182 | G51: 219.3151576 | H51: 239.0600948 | I51: 0.2674143 | L51: 2 | M51: 0.867341 | N51: 804.025107 | O51: 23 | P51: 70 | Q51: 140 | R51: 87 | S51: 7 | T51: 73 | U51: 1.87 | V51: 5.46 | W51: 2.7 | Y51: 19.7 | Z51: 1.95 | AB51: 0.3 | AC51: 17.1 | AD51: 2.3 | AF51: 200 | AG51: 43.7 | AH51: 0.2 | AI51: 54.6 | AM51: 17.25 | AN51: 0.6794639687 | AO51: 0.9904179858 | AP51: 186.2528251
A52: Soja torta 50 | B52: 87.8 | C52: 1.225744301 | D52: 1.225565004 | E52: 544 | F52: 172.4045434 | G52: 225.7154558 | H52: 256.1016993 | I52: 0.2498051 | L52: 2 | M52: 0.862027 | N52: 797.374975 | O52: 28 | P52: 77 | Q52: 102 | R52: 59 | S52: 6 | T52: 75 | U52: 1.65 | V52: 5.46 | W52: 2.7 | Y52: 19.7 | Z52: 1.95 | AB52: 0.3 | AC52: 17.1 | AD52: 2.3 | AF52: 200 | AG52: 43.7 | AH52: 0.2 | AI52: 54.6 | AM52: 21 | AN52: 0.6801163265 | AO52: 0.9907355167 | AP52: 299.4175209
A53: Soja torta 48 curtido "Tanne" | B53: 88.8 | C53: 1.223810674 | D53: 1.22687166 | E53: 520 | F53: 165.0816182 | G53: 219.3151576 | H53: 239.0600948 | I53: 0.2674143 | L53: 2 | M53: 0.867341 | N53: 804.025107 | O53: 23 | P53: 70 | Q53: 140 | R53: 87 | S53: 7 | T53: 73 | U53: 1.87 | V53: 5.46 | AB53: 0.3 | AC53: 17.1 | AD53: 2.3 | AF53: 200 | AG53: 43.7 | AH53: 0.2 | AI53: 54.6 | AM53: 15.18 | AN53: 0.6794639687 | AO53: 0.9904179858 | AP53: 152.5275173
A54: Altramuz grano | B54: 86.7 | C54: 1.49857485 | D54: 1.544346092 | E54: 399 | F54: 69.09881582 | G54: 127.2670334 | H54: 218.10216 | I54: 0.1714 | L54: 2 | M54: 0.90507 | N54: 864.34185 | O54: 104 | P54: 161 | Q54: 229 | R54: 172 | S54: 17 | T54: 45 | U54: 1.1 | V54: 3.128 | W54: 2.5 | Y54: 9.5 | Z54: 0.55 | AM54: 93.6 | AN54: 0.822898728 | AO54: 0.9778585299 | AP54: 864.527247
A55: Altramuz extrusionado | B55: 88 | C55: 1.52751288 | D55: 1.578192665 | E55: 406 | F55: 69.23209069 | G55: 127.7145253 | H55: 223.2811959 | I55: 0.1714 | L55: 2 | M55: 0.91027 | N55: 877.50028 | O55: 109 | P55: 121 | Q55: 214 | R55: 175 | S55: 34.4 | T55: 36 | U55: 1.1 | V55: 3.06 | W55: 1.7 | X55: 0.23 | Y55: 10 | Z55: 0.11 | AM55: 83.93 | AN55: 0.8224029302 | AO55: 0.9601644388 | AP55: 769.7935828
A56: Pulpas (cítricos) ensitjades | B56: 21 | C56: 1.224764853 | D56: 1.238763409 | E56: 73 | F56: 20.57651646 | G56: 79.53725613 | H56: -58.87615574 | I56: 0.2212 | L56: 2 | M56: 0.87228 | N56: 824.3046 | O56: 97 | P56: 156 | Q56: 356.65 | R56: 206.62 | S56: 44.65 | T56: 55 | U56: 11.22 | V56: 1.35 | W56: 1.6 | Y56: 6.2 | Z56: 0.9 | AA56: 0.2 | AB56: 0.16 | AC56: 6 | AF56: 160 | AG56: 7 | AI56: 16 | AM56: 58.2 | AN56: 0.6807836781 | AO56: 0.883006504 | AP56: 785.4935134
A57: Pulpas (cítricos) | B57: 90 | C57: 1.09457765 | D57: 1.103551588 | E57: 70 | F57: 20.49453097 | G57: 82.57976854 | H57: -65.70818372 | I57: 0.2212 | L57: 2 | M57: 0.87931 | N57: 822.15485 | O57: 28 | P57: 137 | Q57: 223 | R57: 158 | S57: 14 | T57: 65 | U57: 4.6 | V57: 1.17 | AM57: 16.8 | AN57: 0.6799461392 | AO57: 0.9147804468 | AP57: 367.9099184
A58: Algarrobo (algarroba) | B58: 87 | C58: 0.843494905 | D58: 0.8273952756 | E58: 58 | F58: 20.57803675 | G58: 81.08159627 | H58: -76.25681175 | I58: 0.288174289 | L58: 2 | M58: 0.8014563863 | N58: 771.8025 | O58: 11 | P58: 87 | Q58: 257.16 | R58: 120.01 | S58: 23.83 | T58: 37 | U58: 0.825 | V58: 0.408 | AM58: 9.9 | AN58: 0.6052595731 | AO58: 0.8988026382 | AP58: 645.9087874
A59: Algarrobo pulpa deshidratada sin semilla, IAMZ | B59: 86 | C59: 0.8175571336 | D59: 0.8010099087 | E59: 56 | F59: 19.88740459 | G59: 81.02326077 | H59: -78.36477527 | I59: 0.286199543 | L59: 2 | M59: 0.8034925234 | N59: 773.7633 | O59: 0.1 | P59: 84.5 | Q59: 253.55 | R59: 116.87 | S59: 23.07 | T59: 37 | U59: 0.825 | V59: 0.408 | AM59: 0.08 | AN59: 0.6049783161 | AO59: 0.8990195713 | AP59: 332.8963114
A60: Oliva molienda "orujo" | B60: 89 | C60: 0.3555684594 | D60: 0.2315284959 | E60: 111 | F60: 37.77367179 | G60: 72.19608588 | H60: -21.36502202 | I60: 0.5864 | L60: 2 | M60: 0.33429 | N60: 306.87822 | O60: 74 | P60: 339 | Q60: 620.51 | R60: 456.32 | S60: 108.36 | T60: 82 | U60: 7.7 | V60: 2.312 | AM60: 54.76 | AN60: 0.5799513971 | AO60: 0.8101523183 | AP60: 255.9763332
A61: Oliva pulpa sin extracción, IAMZ | B61: 68.5 | C61: 0.5285256608 | D61: 0.4118821932 | E61: 114 | F61: 44.70328847 | G61: 84.48223093 | H61: -28.4745976 | I61: 0.5864 | L61: 2 | M61: 0.458 | N61: 425.024 | O61: 74 | P61: 200 | Q61: 341 | R61: 295 | S61: 60.21 | T61: 72 | U61: 6.545 | V61: 1.088 | AM61: 54.76 | AN61: 0.5473115864 | AO61: 0.8662340312 | AP61: 172.2609194
A62: Oliva pulpa de extracción ( "orujo"), IAMZ | B62: 87.6 | C62: 0.2835820822 | D62: 0.1630785602 | E62: 66 | F62: 20.21048157 | G62: 53.34965943 | H62: -38.25996541 | I62: 0.5864 | L62: 2 | M62: 0.26932 | N62: 252.89148 | O62: 74 | P62: 412 | Q62: 725.77 | R62: 527.95 | S62: 134.64 | T62: 61 | U62: 3.08 | V62: 0.612 | AM62: 54.76 | AN62: 0.6005460193 | AO62: 0.7665949833 | AP62: 731.0116457
A63: Patata-ITEB | B63: 13 | C63: 1.224039877 | D63: 1.270348111 | E63: 100 | F63: 34.23948908 | G63: 100.5831692 | H63: -56.86200025 | I63: 0.1216 | L63: 2 | M63: 0.9445 | N63: 901.9975 | O63: 0.8 | P63: 30 | Q63: 174.97 | R63: 48.46 | S63: 7.28 | T63: 45 | U63: 0.55 | V63: 1.36 | W63: 1 | X63: 22 | AM63: 0.64 | AN63: 0.6332974699 | AO63: 0.9337129217 | AP63: 746.3181739
A64: Patata pulpa-ITEB | B64: 17 | C64: 1.047562058 | D64: 1.040325904 | E64: 50 | F64: 15.36772122 | G64: 77.36979178 | H64: -80.57823525 | I64: 0.1216 | L64: 2 | M64: 0.8101 | N64: 789.8475 | O64: 2.5 | P64: 150 | Q64: 348 | R64: 199.09 | S64: 43.7 | T64: 25 | U64: 2.75 | V64: 0.34 | W64: 0.8 | X64: 6 | AM64: 2 | AN64: 0.6489216562 | AO64: 0.8754582267 | AP64: 866.032
A65: Manzana desechos | B65: 22 | C65: 1.10018865 | D65: 1.102760433 | E65: 23 | F65: 8.795543217 | G65: 71.56469958 | H65: -100.0868068 | I65: 0.4868 | L65: 2 | M65: 0.82908 | N65: 813.32748 | O65: 18 | P65: 68 | Q65: 229.76 | R65: 96.16 | S65: 18 | T65: 19 | U65: 0.33 | V65: 0.408 | AM65: 16.2 | AN65: 0.5724362337 | AO65: 0.8944044201 | AP65: 695.25
A66: Manzana molienda ( "marco") deshidratada | B66: 94.1 | C66: 0.5535459391 | D66: 0.4298652377 | E66: 79 | F66: 22.41772409 | G66: 65.61179369 | H66: -39.82073375 | I66: 0.4868 | L66: 2 | M66: 0.44368 | N66: 435.25008 | O66: 39 | P66: 478 | Q66: 354 | R66: 610.79 | S66: 121 | T66: 19 | U66: 1.045 | V66: 1.088 | AM66: 35.1 | AN66: 0.6412637776 | AO66: 0.7910231575 | AP66: 0
A67: Manzana residuo deshidratado, NRC | B67: 89 | C67: 1.017592193 | D67: 0.9832011689 | E67: 49 | F67: 17.45620144 | G67: 73.71511167 | H67: -76.13454724 | I67: 0.4868 | L67: 2 | M67: 0.7332 | N67: 717.0696 | O67: 51 | P67: 170 | Q67: 376.83 | R67: 260 | S67: 50.24 | T67: 22 | U67: 0.715 | V67: 0.748 | W67: 0.7 | Y67: 4.6 | Z67: 1.2 | AA67: 0.2 | AC67: 10 | AF67: 300 | AG67: 7 | AM67: 45.9 | AN67: 0.5885548453 | AO67: 0.8658481085 | AP67: 628.0150685
A68: Uva vinaza sin pepitas | B68: 67 | C68: 0.6608050597 | D68: 0.5617156148 | E68: 172 | F68: 20.01576435 | G68: 59.87298187 | H68: -4.236902376 | I68: 0.5864 | L68: 2 | M68: 0.54433 | N68: 483.36504 | O68: 97 | P68: 103 | Q68: 777 | R68: 685 | S68: 536 | T68: 112 | U68: 3.3 | V68: 1.7 | AM68: 72.75 | AN68: 0.6891352988 | AO68: 0.3743452458 | AP68: 0
A69: Uva pulpa | B69: 90 | C69: 0.3048901197 | D69: 0.1865548158 | E69: 120 | F69: 11.60850895 | G69: 48.20840292 | H69: -20.98733433 | I69: 0.5864 | L69: 2 | M69: 0.30492 | N69: 292.41828 | O69: 7 | P69: 372 | Q69: 754 | R69: 653 | S69: 499 | T69: 41 | U69: 4.4 | V69: 2.72 | AM69: 5.25 | AN69: 0.754650443 | AO69: 0.3942846922 | AP69: 477.3495771
A70: Uva torta de huesos | B70: 89 | C70: 0.1623041941 | D70: 0.0678723051 | E70: 112 | F70: -1.654010677 | G70: 29.6262119 | H70: -16.03534777 | I70: 0.5864 | L70: 2 | M70: 0.18833 | N70: 181.17346 | O70: 16 | P70: 503 | Q70: 847 | R70: 751 | S70: 644 | T70: 38 | U70: 3.63 | V70: 0.884 | AM70: 12 | AN70: 1.063280888 | AO70: 0.2333714493 | AP70: 842.2541643
A71: Remolacha pulpas ensitjades | B71: 22 | C71: 1.00766597 | D71: 1.00149028 | E71: 98 | F71: 33.63126047 | G71: 93.73194347 | H71: -53.22731718 | I71: 0.2876 | L71: 2 | M71: 0.85378 | N71: 778.64736 | O71: 9 | P71: 206 | Q71: 428.74 | R71: 269.38 | S71: 62.22 | T71: 88 | U71: 2.6 | V71: 0.68 | AB71: 0.1 | AC71: 4.6 | AD71: 0.3 | AG71: 52.4 | AH71: 0.03 | AI71: 9.6 | AM71: 4.5 | AN71: 0.6057580172 | AO71: 0.8704707824 | AP71: 468.1746973
A72: Remolacha pulpas deshidratadas | B72: 90 | C72: 1.025471629 | D72: 1.019108024 | E72: 98 | F72: 34.16981377 | G72: 94.98664694 | H72: -54.34630184 | I72: 0.2876 | L72: 2 | M72: 0.855001 | N72: 794.2104289 | O72: 9 | P72: 202.7 | Q72: 507.9 | R72: 302.1 | S72: 55.1 | T72: 71.1 | U72: 2.12 | V72: 0.68 | W72: 2.233333333 | X72: 0.4 | Y72: 4 | Z72: 2.233333333 | AA72: 2.2 | AB72: 0.09333333333 | AC72: 7.733333333 | AD72: 0.3 | AF72: 243 | AG72: 47.6 | AH72: 0.03 | AI72: 9.733333333 | AK72: 0.6 | AM72: 4 | AN72: 0.6031402548 | AO72: 0.8785763064 | AP72: 592.8381002
A73: Melaza Remolacha | B73: 76 | C73: 1.184004733 | D73: 1.207089514 | E73: 146 | F73: 10.22 | G73: 76.74012851 | H73: 17.6422992 | I73: -0.7084 | L73: 3 | M73: 0.89 | N73: 878.252 | O73: 2 | P73: 0 | Q73: 0 | R73: 0 | S73: 0 | T73: 13.2 | U73: 1.925 | V73: 0.34 | W73: 16.5 | Y73: 55 | Z73: 12.5 | AM73: 2 | AN73: 0.93 | AO73: 1
A74: Melaza caña | B74: 75 | C74: 0.8610639099 | D74: 0.8391616233 | E74: 45 | F74: 3.15 | G74: 61.811424 | H74: -64.008475 | I74: -1.5384 | L74: 4 | M74: 0.8 | N74: 710.4 | O74: 12 | P74: 0 | Q74: 0 | R74: 0 | S74: 0 | T74: 112 | U74: 5.115 | V74: 0.748 | W74: 4.7 | X74: 27 | Y74: 33 | Z74: 1.7 | AM74: 12 | AN74: 0.93 | AO74: 1
A75: Grasa vegetal, manteca de cerdo (todos los tipos) | B75: 99.9 | C75: 3.61 | D75: 3.94 | E75: 1e-07 | F75: 1e-07 | G75: 1e-07 | H75: -14 | I75: 0.25 | L75: 2 | M75: 0.9 | N75: 1e-07 | O75: 999 | P75: 1e-07 | Q75: 1e-07 | R75: 1e-07 | S75: 1e-07 | T75: 1e-07 | U75: 5.5e-08 | V75: 6.8e-08 | W75: 1e-07 | X75: 1e-07 | Y75: 1e-07 | Z75: 1e-07 | AA75: 1e-07 | AB75: 1e-07 | AC75: 1e-07 | AD75: 1e-07 | AF75: 1e-07 | AG75: 1e-07 | AH75: 1e-07 | AI75: 1e-07 | AJ75: 1300 | AK75: 1e-07 | AL75: 95 | AM75: 999 | AN75: 0 | AO75: 0
A76: Levadura cervecería | B76: 93.3 | C76: 1.18 | D76: 1.17 | E76: 476 | F76: 87 | G76: 143 | H76: 278 | I76: 0.15 | L76: 2 | M76: 0.84 | N76: 756 | O76: 40 | P76: 21 | Q76: 88 | R76: 25 | S76: 7 | T76: 32 | U76: 1.65 | V76: 9.18 | W76: 2.4 | AM76: 32 | AN76: 0.815157707 | AO76: 0.98880568
A77: Urea | B77: 99 | C77: 0.26 | D77: 0.2 | E77: 2870 | F77: 1e-06 | G77: 71 | H77: 2557 | I77: 0.23 | L77: 2 | M77: 0.99 | N77: 1e-06 | O77: 1e-06 | P77: 1e-06 | Q77: 1e-06 | R77: 1e-06 | S77: 1e-06 | T77: 1e-06 | W77: 1e-06 | X77: 1e-06 | Y77: 1e-06 | Z77: 1e-06 | AA77: 1e-06 | AB77: 1e-06 | AC77: 1e-06 | AD77: 1e-06 | AF77: 1e-06 | AG77: 1e-06 | AH77: 1e-06 | AI77: 1e-06 | AJ77: 1e-06 | AK77: 1e-06 | AL77: 1e-06 | AM77: 0 | AN77: 0 | AO77: 0
A78: Residuo pan deshidratado, NRC | B78: 92 | C78: 1.096141567 | D78: 1.054875419 | E78: 107 | F78: 22.01612961 | G78: 70.4665579 | H78: -10.7237942 | I78: 0.294457 | L78: 2 | M78: 0.714218 | N78: 628.1690154 | O78: 127 | P78: 130 | Q78: 180 | R78: 130 | S78: 10 | T78: 44 | U78: 0.77 | V78: 1.768 | W78: 2.6 | X78: 16.1 | Y78: 5.3 | Z78: 12.4 | AA78: 0.2 | AB78: 1.05 | AC78: 5 | AF78: 31 | AG78: 71 | AI78: 16 | AJ78: 2000 | AL78: 45 | AN78: 0.7773884271 | AO78: 0.9242925602
A79: Mandioca | B79: 85 | C79: 1.142097463 | D79: 1.174454355 | E79: 31 | F79: 10.10542253 | G79: 75.49002249 | H79: -97.45343744 | I79: 0.1216 | L79: 2 | M79: 0.91762 | N79: 861.64518 | O79: 8.2 | P79: 54 | Q79: 118 | R79: 59 | S79: 14.01 | T79: 61 | U79: 1.375 | V79: 0.68 | W79: 0.9 | Y79: 7.5 | Z79: 0.35 | AC79: 2 | AF79: 50 | AG79: 5 | AI79: 30 | AM79: 6.56 | AN79: 0.638999494 | AO79: 0.9029942241
A80: Alfalfa deshidratada y aglomerados | B80: 90.2 | C80: 0.7398701174 | D80: 0.6738447078 | E80: 233 | F80: 68.64631679 | G80: 116.147103 | H80: 51.38002158 | I80: 0.3789 | L80: 2 | M80: 0.6658 | N80: 579.9118 | O80: 34 | P80: 237 | Q80: 405 | R80: 280 | S80: 76 | T80: 129 | U80: 3.84 | V80: 1.768 | AM80: 17 | AN80: 0.6663643659 | AO80: 0.8830573093
A81: Gramíneas deshidratadas y aglomeradas | B81: 91 | C81: 0.8289959418 | D81: 0.7851460594 | E81: 105 | F81: 26.82240135 | G81: 80.52058238 | H81: -29.85340787 | I81: 0.3818741 | L81: 2 | M81: 0.72207 | N81: 649.14093 | O81: 25 | P81: 238 | Q81: 508 | R81: 269 | S81: 73.08 | T81: 101 | U81: 2.365 | V81: 1.836 | AM81: 12.5 | AN81: 0.7018778114 | AO81: 0.8568682611

Sheet 0_Tabla Minerales-aa
A1: INGREDIENTES | B1: MS | C1: UFL | D1: UFV | E1: MNT_PB | F1: PDIA | G1: PDI | H1: BPR | I1: UEL | J1: UEB | K1: UEM | L1: NI ref | M1: dMO | N1: MOD_TDN | O1: EE | P1: FB | Q1: NDF | R1: ADF | S1: Lignina | T1: Cenizas | U1: Ca | V1: P | W1: Mg | X1: Cl | Y1: K | Z1: Na | AA1: S | AB1: Co | AC1: Cu | AD1: Mo | AE1: Yodo | AF1: Fe | AG1: Mn | AH1: Se | AI1: Zn | AJ1: Vit A | AK1: Vit D | AL1: Vit E | AM1: AG | AN1: DT_N | AO1: dr | AP1: MOF
A3: Carbonato cálcico | B3: 98 | T3: 955 | U3: 145.54 | W3: 14 | X3: 0.2 | Y3: 0.7 | Z3: 0.7 | AA3: 0.7 | AC3: 12 | AF3: 620
A4: Fosfato bicálcico | B4: 98.8 | T4: 836 | U4: 244 | V4: 122.4 | W4: 5 | X4: 0.4 | Y4: 1.2 | Z4: 0.8 | AA4: 11 | AC4: 15 | AF4: 7800
A5: Fosfato monocálcico | B5: 98.8 | U5: 88.2 | V5: 155.04
A6: Óxido magnésico | B6: 100 | U6: 30 | W6: 510
A7: Harina de huesos | B7: 100 | U7: 11.8 | V7: 10.2
A8: Fosfato sódico | B8: 100 | V8: 13.6 | Z8: 19
A9: Fosfórico | B9: 100 | V9: 21.488
A10: Bicarbonato sódico | B10: 99.7 | Z10: 270
A11: Carbonato de cobalto | B11: 100 | AB11: 49
A12: Carbonato de manganeso | B12: 100 | AG12: 47
A13: Carbonato de zinc | B13: 100 | AI13: 52
A14: Cloruro potásico | B14: 100 | Y14: 52
A15: Cloruro sódico | B15: 98 | X15: 570 | Z15: 360
A16: Yoduro potásico | B16: 100 | AE16: 76
A17: Óxido de cobre | B17: 100 | AC17: 80
A18: Óxido de manganeso | B18: 100 | AG18: 77
A19: Óxido de zinc | B19: 100 | AI19: 80
A20: Sulfato de cobalto | B20: 100 | AB20: 22
A21: Sulfato de cobre | B21: 100 | AC21: 25
A22: Sulfato de zinc | B22: 100 | AI22: 23
A23: Sulfato magnésico | B23: 100 | W23: 10 | AA23: 13
A24: Sulfato sódico | B24: 100 | Z24: 32 | AA24: 22

Sheet Parámetros leche (hidden)
A1: COMPONENTES | B1: POSICIÓN | C1: PARÁMETROS DE CÁLCULO
A2: ='0_Tabla Forrajes'!B1 -> MS % | B2: 1 | C2: 2
A3: ='0_Tabla Forrajes'!C1 -> UFL | B3: =1+B2 -> 2 | C3: 1
A4: ='0_Tabla Forrajes'!$E1 -> MNT_PB | B4: 4 | C4: 1
A5: ='0_Tabla Forrajes'!F1 -> PDIA | B5: =1+B4 -> 5 | C5: 1
A6: ='0_Tabla Forrajes'!G1 -> PDI | B6: 6 | C6: 1
A7: ='0_Tabla Forrajes'!H1 -> BPR | B7: 7 | C7: 1
A8: ='0_Tabla Forrajes'!I1 -> UEL | B8: 8 | C8: 1
A9: ='0_Tabla Forrajes'!L1 -> NI ref | B9: 11 | C9: 1
A10: ='0_Tabla Forrajes'!M1 -> dMO | B10: 12 | C10: 1
A11: ='0_Tabla Forrajes'!N$1 -> MOD | B11: 13 | C11: 1
A12: ='0_Tabla Forrajes'!O1 -> EE | B12: 14 | C12: 1
A13: ='0_Tabla Forrajes'!P1 -> FB | B13: =1+B12 -> 15 | C13: 1
A14: ='0_Tabla Forrajes'!Q1 -> NDF | B14: 16 | C14: 1
A15: ='0_Tabla Forrajes'!R1 -> ADF | B15: 17 | C15: 1
A16: ='0_Tabla Forrajes'!S1 -> Lignina | B16: 18 | C16: 1
A17: ='0_Tabla Forrajes'!T1 -> Cenizas | B17: 19 | C17: 1
A18: ='0_Tabla Forrajes'!U1 -> Ca | B18: 20 | C18: 1
A19: ='0_Tabla Forrajes'!V1 -> P | B19: 21 | C19: 1
A20: ='0_Tabla Forrajes'!W1 -> Mg | B20: 22 | C20: 1
A21: ='0_Tabla Forrajes'!X1 -> Cl | B21: 23 | C21: 1
A22: ='0_Tabla Forrajes'!Y1 -> K | B22: 24 | C22: 1
A23: ='0_Tabla Forrajes'!Z1 -> Na | B23: 25 | C23: 1
A24: ='0_Tabla Forrajes'!AA1 -> S | B24: 26 | C24: 1
A25: ='0_Tabla Forrajes'!AB1 -> Co | B25: 27 | C25: 1
A26: ='0_Tabla Forrajes'!AC1 -> Cu | B26: 28 | C26: 1
A27: ='0_Tabla Forrajes'!AD1 -> Mo | B27: 29 | C27: 1
A28: ='0_Tabla Forrajes'!AE1 -> Yodo | B28: 30 | C28: 1
A29: ='0_Tabla Forrajes'!AF1 -> Fe | B29: 31 | C29: 1
A30: ='0_Tabla Forrajes'!AG1 -> Mn | B30: 32 | C30: 1
A31: ='0_Tabla Forrajes'!AH1 -> Se | B31: 33 | C31: 1
A32: ='0_Tabla Forrajes'!AI1 -> Zn | B32: 34 | C32: 1
A33: ='0_Tabla Forrajes'!AJ1 -> Vit A | B33: 35 | C33: 1
A34: ='0_Tabla Forrajes'!AK1 -> Vit D | B34: 36 | C34: 1
A35: ='0_Tabla Forrajes'!AL1 -> Vit E | B35: 37 | C35: 1

Sheet CálculosVL (hidden)
D1: =OFFSET('0_Tabla Forrajes'!$A$1,0,D2,1,1) -> MS % | E1: =OFFSET('0_Tabla Forrajes'!$A$1,0,E2,1,1) -> UEL | F1: =OFFSET('0_Tabla Forrajes'!$A$1,0,F2,1,1) -> UFL | G1: =OFFSET('0_Tabla Forrajes'!$A$1,0,G2,1,1) -> PDI | H1: =OFFSET('0_Tabla Forrajes'!$A$1,0,H2,1,1) -> BPR | I1: =OFFSET('0_Tabla Forrajes'!$A$1,0,I2,1,1) -> NI ref | J1: =OFFSET('0_Tabla Forrajes'!$A$1,0,J2,1,1) -> Ca | K1: =OFFSET('0_Tabla Forrajes'!$A$1,0,K2,1,1) -> P | L1: =OFFSET('0_Tabla Forrajes'!$A$1,0,L2,1,1) -> Mg | M1: =OFFSET('0_Tabla Forrajes'!$A$1,0,M2,1,1) -> K | N1: =OFFSET('0_Tabla Forrajes'!$A$1,0,N2,1,1) -> Na | O1: =OFFSET('0_Tabla Forrajes'!$A$1,0,O2,1,1) -> S | P1: =OFFSET('0_Tabla Forrajes'!$A$1,0,P2,1,1) -> Cl | Q1: =OFFSET('0_Tabla Forrajes'!$A$1,0,Q2,1,1) -> Co | R1: =OFFSET('0_Tabla Forrajes'!$A$1,0,R2,1,1) -> Cu | S1: =OFFSET('0_Tabla Forrajes'!$A$1,0,S2,1,1) -> Mn | T1: =OFFSET('0_Tabla Forrajes'!$A$1,0,T2,1,1) -> Zn | U1: =OFFSET('0_Tabla Forrajes'!$A$1,0,U2,1,1) -> Yodo | V1: =OFFSET('0_Tabla Forrajes'!$A$1,0,V2,1,1) -> Se | W1: =OFFSET('0_Tabla Forrajes'!$A$1,0,W2,1,1) -> Vit A | X1: =OFFSET('0_Tabla Forrajes'!$A$1,0,X2,1,1) -> Vit D | Y1: =OFFSET('0_Tabla Forrajes'!$A$1,0,Y2,1,1) -> Vit E | Z1: =OFFSET('0_Tabla Forrajes'!$A$1,0,Z2,1,1) -> AG | AA1: =OFFSET('0_Tabla Forrajes'!$A$1,0,AA2,1,1) -> MNT_PB | AB1: =OFFSET('0_Tabla Forrajes'!$A$1,0,AB2,1,1) -> PDIA | AC1: =OFFSET('0_Tabla Forrajes'!$A$1,0,AC2,1,1) -> dMO | AD1: =OFFSET('0_Tabla Forrajes'!$A$1,0,AD2,1,1) -> MOD | AE1: =OFFSET('0_Tabla Forrajes'!$A$1,0,AE2,1,1) -> EE | AF1: =OFFSET('0_Tabla Forrajes'!$A$1,0,AF2,1,1) -> FB | AG1: =OFFSET('0_Tabla Forrajes'!$A$1,0,AG2,1,1) -> NDF | AH1: =OFFSET('0_Tabla Forrajes'!$A$1,0,AH2,1,1) -> ADF | AI1: =OFFSET('0_Tabla Forrajes'!$A$1,0,AI2,1,1) -> Lignina | AJ1: =OFFSET('0_Tabla Forrajes'!$A$1,0,AJ2,1,1) -> Cenizas | AK1: =OFFSET('0_Tabla Forrajes'!$A$1,0,AK2,1,1) -> Mo | AL1: =OFFSET('0_Tabla Forrajes'!$A$1,0,AL2,1,1) -> DT_N | AM1: =OFFSET('0_Tabla Forrajes'!$A$1,0,AM2,1,1) -> MOF | BI1: AG | BJ1: MNT_PB | BK1: PDIA | BL1: dMO | BM1: MOD | BN1: EE | BO1: FB | BP1: NDF | BQ1: ADF | BR1: Lignina | BS1: Cenizas | BT1: Mo
A2: TIPOS | B2: INGREDIENTES UTILIZADOS | C2: Nº | D2: 1 | E2: 8 | F2: 2 | G2: 6 | H2: 7 | I2: 11 | J2: 20 | K2: 21 | L2: 22 | M2: 24 | N2: 25 | O2: 26 | P2: 23 | Q2: 27 | R2: 28 | S2: 32 | T2: 34 | U2: 30 | V2: 33 | W2: 35 | X2: 36 | Y2: 37 | Z2: 38 | AA2: 4 | AB2: 5 | AC2: 12 | AD2: 13 | AE2: 14 | AF2: 15 | AG2: 16 | AH2: 17 | AI2: 18 | AJ2: 19 | AK2: 29 | AL2: 39 | AM2: 41 | AN2: UEL | AO2: UFL | AP2: PDI | AQ2: BPR | AR2: NI ref | AS2: Ca | AT2: P | AU2: Mg | AV2: K | AW2: Na | AX2: S | AY2: Cl | AZ2: Co | BA2: Cu | BB2: Mn | BC2: Zn | BD2: Yodo | BE2: Se | BF2: Vit A | BG2: Vit D | BH2: Vit E | BI2: AG | BJ2: MNT_PB | BK2: PDIA | BL2: dMO | BM2: MOD | BN2: EE | BO2: FB | BP2: NDF | BQ2: ADF | BR2: Lignina | BS2: Cenizas | BT2: Mo | BU2: DT_N | BV2: MOF
A3: FORRAJES | B3: =IF(OFFSET('0_Tabla Forrajes'!$A$1,C3,0,1,1)=0,"",OFFSET('0_Tabla Forrajes'!$A$1,C3,0,1,1)) -> VERDE raigrás italiano Espiga a 10 cm | C3: 4 | D3: =OFFSET('0_Tabla Forrajes'!$A$1,$C3,$D$2,1,1) -> 15.8 | E3: =OFFSET('0_Tabla Forrajes'!$A$1,$C3,$E$2,1,1) -> 0.9910346389 | F3: =OFFSET('0_Tabla Forrajes'!$A$1,$C3,$F$2,1,1) -> 1.073514419 | G3: =OFFSET('0_Tabla Forrajes'!$A$1,$C3,$G$2,1,1) -> 77.8462145 | H3: =OFFSET('0_Tabla Forrajes'!$A$1,$C3,$H$2,1,1) -> 31.10451486 | I3: =OFFSET('0_Tabla Forrajes'!$A$1,$C3,$I$2,1,1) -> 2.752047879 | J3: =OFFSET('0_Tabla Forrajes'!$A$1,$C3,$J$2,1,1) -> 1.8 | K3: =OFFSET('0_Tabla Forrajes'!$A$1,$C3,$K$2,1,1) -> 2.1 | L3: =OFFSET('0_Tabla Forrajes'!$A$1,$C3,$L$2,1,1) -> 1.7 | M3: =OFFSET('0_Tabla Forrajes'!$A$1,$C3,$M$2,1,1) -> 30 | N3: =OFFSET('0_Tabla Forrajes'!$A$1,$C3,$N$2,1,1) -> 3 | O3: =OFFSET('0_Tabla Forrajes'!$A$1,$C3,$O$2,1,1) -> 1 | P3: =OFFSET('0_Tabla Forrajes'!$A$1,$C3,$P$2,1,1) -> 0 | Q3: =OFFSET('0_Tabla Forrajes'!$A$1,$C3,$Q$2,1,1) -> 0 | R3: =OFFSET('0_Tabla Forrajes'!$A$1,$C3,$R$2,1,1) -> 8.1 | S3: =OFFSET('0_Tabla Forrajes'!$A$1,$C3,$S$2,1,1) -> 85.1 | T3: =OFFSET('0_Tabla Forrajes'!$A$1,$C3,$T$2,1,1) -> 0 | U3: =OFFSET('0_Tabla Forrajes'!$A$1,$C3,$U$2,1,1) -> 0 | V3: =OFFSET('0_Tabla Forrajes'!$A$1,$C3,$V$2,1,1) -> 0 | W3: =OFFSET('0_Tabla Forrajes'!$A$1,$C3,$W$2,1,1) -> 0 | X3: =OFFSET('0_Tabla Forrajes'!$A$1,$C3,$X$2,1,1) -> 0 | Y3: =OFFSET('0_Tabla Forrajes'!$A$1,$C3,$Y$2,1,1) -> 0 | Z3: =OFFSET('0_Tabla Forrajes'!$A$1,$C3,$Z$2,1,1) -> 24.87 | AA3: =OFFSET('0_Tabla Forrajes'!$A$1,$C3,$AA$2,1,1) -> 168 | AB3: =OFFSET('0_Tabla Forrajes'!$A$1,$C3,$AB$2,1,1) -> 26.46 | AC3: =OFFSET('0_Tabla Forrajes'!$A$1,$C3,$AC$2,1,1) -> 0.79572 | AD3: =OFFSET('0_Tabla Forrajes'!$A$1,$C3,$AD$2,1,1) -> 705.00792 | AE3: =OFFSET('0_Tabla Forrajes'!$A$1,$C3,$AE$2,1,1) -> 39 | AF3: =OFFSET('0_Tabla Forrajes'!$A$1,$C3,$AF$2,1,1) -> 188 | AG3: =OFFSET('0_Tabla Forrajes'!$A$1,$C3,$AG$2,1,1) -> 474.32 | AH3: =OFFSET('0_Tabla Forrajes'!$A$1,$C3,$AH$2,1,1) -> 213 | AI3: =OFFSET('0_Tabla Forrajes'!$A$1,$C3,$AI$2,1,1) -> 0 | AJ3: =OFFSET('0_Tabla Forrajes'!$A$1,$C3,$AJ$2,1,1) -> 114 | AK3: =OFFSET('0_Tabla Forrajes'!$A$1,$C3,$AK$2,1,1) -> 0 | AL3: =OFFSET('0_Tabla Forrajes'!$A$1,$C3,$AL$2,1,1) -> 0.79 | AM3: =OFFSET('0_Tabla Forrajes'!$A$1,$C3,$AM$2,1,1) -> 636.2376237 | AN3: =IF('II_Plantear Ración'!$E4>0,IF(CálculosVL!E3>=0,1,"No"),"") -> 1 | AO3: =IF('II_Plantear Ración'!$E4>0,IF(CálculosVL!F3>=0,1,"No"),"") -> 1 | AP3: =IF('II_Plantear Ración'!$E4>0,IF(CálculosVL!G3>=0,1,"No"),"") -> 1 | AQ3: =IF('II_Plantear Ración'!$E4>0,IF(CálculosVL!H3=0,"No",1),"") -> 1 | AR3: =IF('II_Plantear Ración'!$E4>0,IF(CálculosVL!I3>0,1,"No"),"") -> 1 | AS3: =IF('II_Plantear Ración'!$E4>0,IF(CálculosVL!J3>0,1,"No"),"") -> 1 | AT3: =IF('II_Plantear Ración'!$E4>0,IF(CálculosVL!K3>0,1,"No"),"") -> 1 | AU3: =IF('II_Plantear Ración'!$E4>0,IF(CálculosVL!L3>0,1,"No"),"") -> 1 | AV3: =IF('II_Plantear Ración'!$E4>0,IF(CálculosVL!M3>0,1,"No"),"") -> 1 | AW3: =IF('II_Plantear Ración'!$E4>0,IF(CálculosVL!N3>0,1,"No"),"") -> 1 | AX3: =IF('II_Plantear Ración'!$E4>0,IF(CálculosVL!O3>0,1,"No"),"") -> 1 | AY3: =IF('II_Plantear Ración'!$E4>0,IF(CálculosVL!P3>0,1,"No"),"") -> No | AZ3: =IF('II_Plantear Ración'!$E4>0,IF(CálculosVL!Q3>0,1,"No"),"") -> No | BA3: =IF('II_Plantear Ración'!$E4>0,IF(CálculosVL!R3>0,1,"No"),"") -> 1 | BB3: =IF('II_Plantear Ración'!$E4>0,IF(CálculosVL!S3>0,1,"No"),"") -> 1 | BC3: =IF('II_Plantear Ración'!$E4>0,IF(CálculosVL!T3>0,1,"No"),"") -> No | BD3: =IF('II_Plantear Ración'!$E4>0,IF(CálculosVL!U3>0,1,"No"),"") -> No | BE3: =IF('II_Plantear Ración'!$E4>0,IF(CálculosVL!V3>0,1,"No"),"") -> No | BF3: =IF('II_Plantear Ración'!$E4>0,IF(CálculosVL!W3>0,1,"No"),"") -> No | BG3: =IF('II_Plantear Ración'!$E4>0,IF(CálculosVL!X3>0,1,"No"),"") -> No | BH3: =IF('II_Plantear Ración'!$E4>0,IF(CálculosVL!Y3>0,1,"No"),"") -> No | BI3: =IF('II_Plantear Ración'!$E4>0,IF(CálculosVL!Z3>0,1,"No"),"") -> 1 | BJ3: =IF('II_Plantear Ración'!$E4>0,IF(CálculosVL!AA3>0,1,"No"),"") -> 1 | BK3: =IF('II_Plantear Ración'!$E4>0,IF(CálculosVL!AB3>0,1,"No"),"") -> 1 | BL3: =IF('II_Plantear Ración'!$E4>0,IF(CálculosVL!AC3>0,1,"No"),"") -> 1 | BM3: =IF('II_Plantear Ración'!$E4>0,IF(CálculosVL!AD3>0,1,"No"),"") -> 1 | BN3: =IF('II_Plantear Ración'!$E4>0,IF(CálculosVL!AE3>0,1,"No"),"") -> 1 | BO3: =IF('II_Plantear Ración'!$E4>0,IF(CálculosVL!AF3>0,1,"No"),"") -> 1 | BP3: =IF('II_Plantear Ración'!$E4>0,IF(CálculosVL!AG3>0,1,"No"),"") -> 1 | BQ3: =IF('II_Plantear Ración'!$E4>0,IF(CálculosVL!AH3>0,1,"No"),"") -> 1 | BR3: =IF('II_Plantear Ración'!$E4>0,IF(CálculosVL!AI3>0,1,"No"),"") -> No | BS3: =IF('II_Plantear Ración'!$E4>0,IF(CálculosVL!AJ3>0,1,"No"),"") -> 1 | BT3: =IF('II_Plantear Ración'!$E4>0,IF(CálculosVL!AK3>0,1,"No"),"") -> No | BU3: =IF('II_Plantear Ración'!$E4>0,IF(CálculosVL!AL3>0,1,"No"),"") -> 1 | BV3: =IF('II_Plantear Ración'!$E4>0,IF(CálculosVL!AM3>0,1,"No"),"") -> 1 | BW3: =IF(AN3="",0,1) -> 1 | BX3: =IF(AO3="",0,1) -> 1 | BY3: =IF(AP3="",0,1) -> 1 | BZ3: =IF(AQ3="",0,1) -> 1 | CA3: =IF(AR3="",0,1) -> 1 | CB3: =IF(AS3="",0,1) -> 1 | CC3: =IF(AT3="",0,1) -> 1 | CD3: =IF(AU3="",0,1) -> 1 | CE3: =IF(AV3="",0,1) -> 1 | CF3: =IF(AW3="",0,1) -> 1 | CG3: =IF(AX3="",0,1) -> 1 | CH3: =IF(AY3="",0,1) -> 1 | CI3: =IF(AZ3="",0,1) -> 1 | CJ3: =IF(BA3="",0,1) -> 1 | CK3: =IF(BB3="",0,1) -> 1 | CL3: =IF(BC3="",0,1) -> 1 | CM3: =IF(BD3="",0,1) -> 1 | CN3: =IF(BE3="",0,1) -> 1 | CO3: =IF(BF3="",0,1) -> 1 | CP3: =IF(BG3="",0,1) -> 1 | CQ3: =IF(BH3="",0,1) -> 1 | CR3: =IF(BI3="",0,1) -> 1 | CS3: =IF(BJ3="",0,1) -> 1 | CT3: =IF(BK3="",0,1) -> 1 | CU3: =IF(BL3="",0,1) -> 1 | CV3: =IF(BM3="",0,1) -> 1 | CW3: =IF(BN3="",0,1) -> 1 | CX3: =IF(BO3="",0,1) -> 1 | CY3: =IF(BP3="",0,1) -> 1 | CZ3: =IF(BQ3="",0,1) -> 1 | DA3: =IF(BR3="",0,1) -> 1 | DB3: =IF(BS3="",0,1) -> 1 | DC3: =IF(BT3="",0,1) -> 1 | DD3: =IF(BU3="",0,1) -> 1 | DE3: =IF(BV3="",0,1) -> 1
B4: =IF(OFFSET('0_Tabla Forrajes'!$A$1,C4,0,1,1)=0,"",OFFSET('0_Tabla Forrajes'!$A$1,C4,0,1,1)) -> HENO Cebada Espigado | C4: 63 | D4: =OFFSET('0_Tabla Forrajes'!$A$1,$C4,$D$2,1,1) -> 78.5 | E4: =OFFSET('0_Tabla Forrajes'!$A$1,$C4,$E$2,1,1) -> 1.11967543 | F4: =OFFSET('0_Tabla Forrajes'!$A$1,$C4,$F$2,1,1) -> 0.5919301713 | G4: =OFFSET('0_Tabla Forrajes'!$A$1,$C4,$G$2,1,1) -> 55.09811221 | H4: =OFFSET('0_Tabla Forrajes'!$A$1,$C4,$H$2,1,1) -> -9.266789075 | I4: =OFFSET('0_Tabla Forrajes'!$A$1,$C4,$I$2,1,1) -> 1.700655693 | J4: =OFFSET('0_Tabla Forrajes'!$A$1,$C4,$J$2,1,1) -> 1.18 | K4: =OFFSET('0_Tabla Forrajes'!$A$1,$C4,$K$2,1,1) -> 1.65 | L4: =OFFSET('0_Tabla Forrajes'!$A$1,$C4,$L$2,1,1) -> 1.6 | M4: =OFFSET('0_Tabla Forrajes'!$A$1,$C4,$M$2,1,1) -> 14.15 | N4: =OFFSET('0_Tabla Forrajes'!$A$1,$C4,$N$2,1,1) -> 1.75 | O4: =OFFSET('0_Tabla Forrajes'!$A$1,$C4,$O$2,1,1) -> 1.7 | P4: =OFFSET('0_Tabla Forrajes'!$A$1,$C4,$P$2,1,1) -> 0 | Q4: =OFFSET('0_Tabla Forrajes'!$A$1,$C4,$Q$2,1,1) -> 0.07 | R4: =OFFSET('0_Tabla Forrajes'!$A$1,$C4,$R$2,1,1) -> 24 | S4: =OFFSET('0_Tabla Forrajes'!$A$1,$C4,$S$2,1,1) -> 27 | T4: =OFFSET('0_Tabla Forrajes'!$A$1,$C4,$T$2,1,1) -> 48 | U4: =OFFSET('0_Tabla Forrajes'!$A$1,$C4,$U$2,1,1) -> 0 | V4: =OFFSET('0_Tabla Forrajes'!$A$1,$C4,$V$2,1,1) -> 0.16 | W4: =OFFSET('0_Tabla Forrajes'!$A$1,$C4,$W$2,1,1) -> 0 | X4: =OFFSET('0_Tabla Forrajes'!$A$1,$C4,$X$2,1,1) -> 0 | Y4: =OFFSET('0_Tabla Forrajes'!$A$1,$C4,$Y$2,1,1) -> 0 | Z4: =OFFSET('0_Tabla Forrajes'!$A$1,$C4,$Z$2,1,1) -> 16.926 | AA4: =OFFSET('0_Tabla Forrajes'!$A$1,$C4,$AA$2,1,1) -> 112 | AB4: =OFFSET('0_Tabla Forrajes'!$A$1,$C4,$AB$2,1,1) -> 26.656 | AC4: =OFFSET('0_Tabla Forrajes'!$A$1,$C4,$AC$2,1,1) -> 0.514628 | AD4: =OFFSET('0_Tabla Forrajes'!$A$1,$C4,$AD$2,1,1) -> 464.709084 | AE4: =OFFSET('0_Tabla Forrajes'!$A$1,$C4,$AE$2,1,1) -> 12.5 | AF4: =OFFSET('0_Tabla Forrajes'!$A$1,$C4,$AF$2,1,1) -> 285 | AG4: =OFFSET('0_Tabla Forrajes'!$A$1,$C4,$AG$2,1,1) -> 584.9 | AH4: =OFFSET('0_Tabla Forrajes'!$A$1,$C4,$AH$2,1,1) -> 422 | AI4: =OFFSET('0_Tabla Forrajes'!$A$1,$C4,$AI$2,1,1) -> 0 | AJ4: =OFFSET('0_Tabla Forrajes'!$A$1,$C4,$AJ$2,1,1) -> 97 | AK4: =OFFSET('0_Tabla Forrajes'!$A$1,$C4,$AK$2,1,1) -> 0 | AL4: =OFFSET('0_Tabla Forrajes'!$A$1,$C4,$AL$2,1,1) -> 0.66 | AM4: =OFFSET('0_Tabla Forrajes'!$A$1,$C4,$AM$2,1,1) -> 379.9275254 | AN4: =IF('II_Plantear Ración'!$E5>0,IF(CálculosVL!E4>=0,1,"No"),"") ->  | AO4: =IF('II_Plantear Ración'!$E5>0,IF(CálculosVL!F4>=0,1,"No"),"") ->  | AP4: =IF('II_Plantear Ración'!$E5>0,IF(CálculosVL!G4>=0,1,"No"),"") ->  | AQ4: =IF('II_Plantear Ración'!$E5>0,IF(CálculosVL!H4=0,"No",1),"") ->  | AR4: =IF('II_Plantear Ración'!$E5>0,IF(CálculosVL!I4>0,1,"No"),"") ->  | AS4: =IF('II_Plantear Ración'!$E5>0,IF(CálculosVL!J4>0,1,"No"),"") ->  | AT4: =IF('II_Plantear Ración'!$E5>0,IF(CálculosVL!K4>0,1,"No"),"") ->  | AU4: =IF('II_Plantear Ración'!$E5>0,IF(CálculosVL!L4>0,1,"No"),"") ->  | AV4: =IF('II_Plantear Ración'!$E5>0,IF(CálculosVL!M4>0,1,"No"),"") ->  | AW4: =IF('II_Plantear Ración'!$E5>0,IF(CálculosVL!N4>0,1,"No"),"") ->  | AX4: =IF('II_Plantear Ración'!$E5>0,IF(CálculosVL!O4>0,1,"No"),"") ->  | AY4: =IF('II_Plantear Ración'!$E5>0,IF(CálculosVL!P4>0,1,"No"),"") ->  | AZ4: =IF('II_Plantear Ración'!$E5>0,IF(CálculosVL!Q4>0,1,"No"),"") ->  | BA4: =IF('II_Plantear Ración'!$E5>0,IF(CálculosVL!R4>0,1,"No"),"") ->  | BB4: =IF('II_Plantear Ración'!$E5>0,IF(CálculosVL!S4>0,1,"No"),"") ->  | BC4: =IF('II_Plantear Ración'!$E5>0,IF(CálculosVL!T4>0,1,"No"),"") ->  | BD4: =IF('II_Plantear Ración'!$E5>0,IF(CálculosVL!U4>0,1,"No"),"") ->  | BE4: =IF('II_Plantear Ración'!$E5>0,IF(CálculosVL!V4>0,1,"No"),"") ->  | BF4: =IF('II_Plantear Ración'!$E5>0,IF(CálculosVL!W4>0,1,"No"),"") ->  | BG4: =IF('II_Plantear Ración'!$E5>0,IF(CálculosVL!X4>0,1,"No"),"") ->  | BH4: =IF('II_Plantear Ración'!$E5>0,IF(CálculosVL!Y4>0,1,"No"),"") ->  | BI4: =IF('II_Plantear Ración'!$E5>0,IF(CálculosVL!Z4>0,1,"No"),"") ->  | BJ4: =IF('II_Plantear Ración'!$E5>0,IF(CálculosVL!AA4>0,1,"No"),"") ->  | BK4: =IF('II_Plantear Ración'!$E5>0,IF(CálculosVL!AB4>0,1,"No"),"") ->  | BL4: =IF('II_Plantear Ración'!$E5>0,IF(CálculosVL!AC4>0,1,"No"),"") ->  | BM4: =IF('II_Plantear Ración'!$E5>0,IF(CálculosVL!AD4>0,1,"No"),"") ->  | BN4: =IF('II_Plantear Ración'!$E5>0,IF(CálculosVL!AE4>0,1,"No"),"") ->  | BO4: =IF('II_Plantear Ración'!$E5>0,IF(CálculosVL!AF4>0,1,"No"),"") ->  | BP4: =IF('II_Plantear Ración'!$E5>0,IF(CálculosVL!AG4>0,1,"No"),"") ->  | BQ4: =IF('II_Plantear Ración'!$E5>0,IF(CálculosVL!AH4>0,1,"No"),"") ->  | BR4: =IF('II_Plantear Ración'!$E5>0,IF(CálculosVL!AI4>0,1,"No"),"") ->  | BS4: =IF('II_Plantear Ración'!$E5>0,IF(CálculosVL!AJ4>0,1,"No"),"") ->  | BT4: =IF('II_Plantear Ración'!$E5>0,IF(CálculosVL!AK4>0,1,"No"),"") ->  | BU4: =IF('II_Plantear Ración'!$E5>0,IF(CálculosVL!AL4>0,1,"No"),"") ->  | BV4: =IF('II_Plantear Ración'!$E5>0,IF(CálculosVL!AM4>0,1,"No"),"") ->  | BW4: 0 | BX4: 0 | BY4: 0 | BZ4: 0 | CA4: 0 | CB4: 0 | CC4: 0 | CD4: 0 | CE4: 0 | CF4: 0 | CG4: 0 | CH4: 0 | CI4: 0 | CJ4: 0 | CK4: 0 | CL4: 0 | CM4: 0 | CN4: 0 | CO4: 0 | CP4: 0 | CQ4: 0 | CR4: 0 | CS4: 0 | CT4: 0 | CU4: 0 | CV4: 0 | CW4: 0 | CX4: 0 | CY4: 0 | CZ4: 0 | DA4: 0 | DB4: 0 | DC4: =IF(BT4="",0,1) -> 0 | DD4: =IF(BU4="",0,1) -> 0 | DE4: =IF(BV4="",0,1) -> 0
B5: =IF(OFFSET('0_Tabla Forrajes'!$A$1,C5,0,1,1)=0,"",OFFSET('0_Tabla Forrajes'!$A$1,C5,0,1,1)) -> HENO Bromo Final vegetación | C5: 55 | D5: =OFFSET('0_Tabla Forrajes'!$A$1,$C5,$D$2,1,1) -> 85 | E5: =OFFSET('0_Tabla Forrajes'!$A$1,$C5,$E$2,1,1) -> 1.083509489 | F5: =OFFSET('0_Tabla Forrajes'!$A$1,$C5,$F$2,1,1) -> 0.7641928518 | G5: =OFFSET('0_Tabla Forrajes'!$A$1,$C5,$G$2,1,1) -> 58.49315002 | H5: =OFFSET('0_Tabla Forrajes'!$A$1,$C5,$H$2,1,1) -> -20.42784718 | I5: =OFFSET('0_Tabla Forrajes'!$A$1,$C5,$I$2,1,1) -> 1.832722892 | J5: =OFFSET('0_Tabla Forrajes'!$A$1,$C5,$J$2,1,1) -> 1.24 | K5: =OFFSET('0_Tabla Forrajes'!$A$1,$C5,$K$2,1,1) -> 2.03 | L5: =OFFSET('0_Tabla Forrajes'!$A$1,$C5,$L$2,1,1) -> 0 | M5: =OFFSET('0_Tabla Forrajes'!$A$1,$C5,$M$2,1,1) -> 0 | N5: =OFFSET('0_Tabla Forrajes'!$A$1,$C5,$N$2,1,1) -> 0 | O5: =OFFSET('0_Tabla Forrajes'!$A$1,$C5,$O$2,1,1) -> 0 | P5: =OFFSET('0_Tabla Forrajes'!$A$1,$C5,$P$2,1,1) -> 0 | Q5: =OFFSET('0_Tabla Forrajes'!$A$1,$C5,$Q$2,1,1) -> 0 | R5: =OFFSET('0_Tabla Forrajes'!$A$1,$C5,$R$2,1,1) -> 0 | S5: =OFFSET('0_Tabla Forrajes'!$A$1,$C5,$S$2,1,1) -> 0 | T5: =OFFSET('0_Tabla Forrajes'!$A$1,$C5,$T$2,1,1) -> 0 | U5: =OFFSET('0_Tabla Forrajes'!$A$1,$C5,$U$2,1,1) -> 0 | V5: =OFFSET('0_Tabla Forrajes'!$A$1,$C5,$V$2,1,1) -> 0 | W5: =OFFSET('0_Tabla Forrajes'!$A$1,$C5,$W$2,1,1) -> 50000 | X5: =OFFSET('0_Tabla Forrajes'!$A$1,$C5,$X$2,1,1) -> 50 | Y5: =OFFSET('0_Tabla Forrajes'!$A$1,$C5,$Y$2,1,1) -> 5 | Z5: =OFFSET('0_Tabla Forrajes'!$A$1,$C5,$Z$2,1,1) -> 15.93 | AA5: =OFFSET('0_Tabla Forrajes'!$A$1,$C5,$AA$2,1,1) -> 100 | AB5: =OFFSET('0_Tabla Forrajes'!$A$1,$C5,$AB$2,1,1) -> 20.3 | AC5: =OFFSET('0_Tabla Forrajes'!$A$1,$C5,$AC$2,1,1) -> 0.62749 | AD5: =OFFSET('0_Tabla Forrajes'!$A$1,$C5,$AD$2,1,1) -> 564.741 | AE5: =OFFSET('0_Tabla Forrajes'!$A$1,$C5,$AE$2,1,1) -> 34 | AF5: =OFFSET('0_Tabla Forrajes'!$A$1,$C5,$AF$2,1,1) -> 320 | AG5: =OFFSET('0_Tabla Forrajes'!$A$1,$C5,$AG$2,1,1) -> 640 | AH5: =OFFSET('0_Tabla Forrajes'!$A$1,$C5,$AH$2,1,1) -> 333 | AI5: =OFFSET('0_Tabla Forrajes'!$A$1,$C5,$AI$2,1,1) -> 0 | AJ5: =OFFSET('0_Tabla Forrajes'!$A$1,$C5,$AJ$2,1,1) -> 100 | AK5: =OFFSET('0_Tabla Forrajes'!$A$1,$C5,$AK$2,1,1) -> 0 | AL5: =OFFSET('0_Tabla Forrajes'!$A$1,$C5,$AL$2,1,1) -> 0.71 | AM5: =OFFSET('0_Tabla Forrajes'!$A$1,$C5,$AM$2,1,1) -> 494.5458579 | AN5: =IF('II_Plantear Ración'!$E6>0,IF(CálculosVL!E5>=0,1,"No"),"") ->  | AO5: =IF('II_Plantear Ración'!$E6>0,IF(CálculosVL!F5>=0,1,"No"),"") ->  | AP5: =IF('II_Plantear Ración'!$E6>0,IF(CálculosVL!G5>=0,1,"No"),"") ->  | AQ5: =IF('II_Plantear Ración'!$E6>0,IF(CálculosVL!H5=0,"No",1),"") ->  | AR5: =IF('II_Plantear Ración'!$E6>0,IF(CálculosVL!I5>0,1,"No"),"") ->  | AS5: =IF('II_Plantear Ración'!$E6>0,IF(CálculosVL!J5>0,1,"No"),"") ->  | AT5: =IF('II_Plantear Ración'!$E6>0,IF(CálculosVL!K5>0,1,"No"),"") ->  | AU5: =IF('II_Plantear Ración'!$E6>0,IF(CálculosVL!L5>0,1,"No"),"") ->  | AV5: =IF('II_Plantear Ración'!$E6>0,IF(CálculosVL!M5>0,1,"No"),"") ->  | AW5: =IF('II_Plantear Ración'!$E6>0,IF(CálculosVL!N5>0,1,"No"),"") ->  | AX5: =IF('II_Plantear Ración'!$E6>0,IF(CálculosVL!O5>0,1,"No"),"") ->  | AY5: =IF('II_Plantear Ración'!$E6>0,IF(CálculosVL!P5>0,1,"No"),"") ->  | AZ5: =IF('II_Plantear Ración'!$E6>0,IF(CálculosVL!Q5>0,1,"No"),"") ->  | BA5: =IF('II_Plantear Ración'!$E6>0,IF(CálculosVL!R5>0,1,"No"),"") ->  | BB5: =IF('II_Plantear Ración'!$E6>0,IF(CálculosVL!S5>0,1,"No"),"") ->  | BC5: =IF('II_Plantear Ración'!$E6>0,IF(CálculosVL!T5>0,1,"No"),"") ->  | BD5: =IF('II_Plantear Ración'!$E6>0,IF(CálculosVL!U5>0,1,"No"),"") ->  | BE5: =IF('II_Plantear Ración'!$E6>0,IF(CálculosVL!V5>0,1,"No"),"") ->  | BF5: =IF('II_Plantear Ración'!$E6>0,IF(CálculosVL!W5>0,1,"No"),"") ->  | BG5: =IF('II_Plantear Ración'!$E6>0,IF(CálculosVL!X5>0,1,"No"),"") ->  | BH5: =IF('II_Plantear Ración'!$E6>0,IF(CálculosVL!Y5>0,1,"No"),"") ->  | BI5: =IF('II_Plantear Ración'!$E6>0,IF(CálculosVL!Z5>0,1,"No"),"") ->  | BJ5: =IF('II_Plantear Ración'!$E6>0,IF(CálculosVL!AA5>0,1,"No"),"") ->  | BK5: =IF('II_Plantear Ración'!$E6>0,IF(CálculosVL!AB5>0,1,"No"),"") ->  | BL5: =IF('II_Plantear Ración'!$E6>0,IF(CálculosVL!AC5>0,1,"No"),"") ->  | BM5: =IF('II_Plantear Ración'!$E6>0,IF(CálculosVL!AD5>0,1,"No"),"") ->  | BN5: =IF('II_Plantear Ración'!$E6>0,IF(CálculosVL!AE5>0,1,"No"),"") ->  | BO5: =IF('II_Plantear Ración'!$E6>0,IF(CálculosVL!AF5>0,1,"No"),"") ->  | BP5: =IF('II_Plantear Ración'!$E6>0,IF(CálculosVL!AG5>0,1,"No"),"") ->  | BQ5: =IF('II_Plantear Ración'!$E6>0,IF(CálculosVL!AH5>0,1,"No"),"") ->  | BR5: =IF('II_Plantear Ración'!$E6>0,IF(CálculosVL!AI5>0,1,"No"),"") ->  | BS5: =IF('II_Plantear Ración'!$E6>0,IF(CálculosVL!AJ5>0,1,"No"),"") ->  | BT5: =IF('II_Plantear Ración'!$E6>0,IF(CálculosVL!AK5>0,1,"No"),"") ->  | BU5: =IF('II_Plantear Ración'!$E6>0,IF(CálculosVL!AL5>0,1,"No"),"") ->  | BV5: =IF('II_Plantear Ración'!$E6>0,IF(CálculosVL!AM5>0,1,"No"),"") ->  | BW5: 0 | BX5: 0 | BY5: 0 | BZ5: 0 | CA5: 0 | CB5: 0 | CC5: 0 | CD5: 0 | CE5: 0 | CF5: 0 | CG5: 0 | CH5: 0 | CI5: 0 | CJ5: 0 | CK5: 0 | CL5: 0 | CM5: 0 | CN5: 0 | CO5: 0 | CP5: 0 | CQ5: 0 | CR5: 0 | CS5: 0 | CT5: 0 | CU5: 0 | CV5: 0 | CW5: 0 | CX5: 0 | CY5: 0 | CZ5: 0 | DA5: 0 | DB5: 0 | DC5: 0 | DD5: 0 | DE5: 0
B6: =IF(OFFSET('0_Tabla Forrajes'!$A$1,C6,0,1,1)=0,"",OFFSET('0_Tabla Forrajes'!$A$1,C6,0,1,1)) ->  | C6: 1 | D6: =OFFSET('0_Tabla Forrajes'!$A$1,$C6,$D$2,1,1) -> 0 | E6: =OFFSET('0_Tabla Forrajes'!$A$1,$C6,$E$2,1,1) -> 0 | F6: =OFFSET('0_Tabla Forrajes'!$A$1,$C6,$F$2,1,1) -> 0 | G6: =OFFSET('0_Tabla Forrajes'!$A$1,$C6,$G$2,1,1) -> 0 | H6: =OFFSET('0_Tabla Forrajes'!$A$1,$C6,$H$2,1,1) -> 0 | I6: =OFFSET('0_Tabla Forrajes'!$A$1,$C6,$I$2,1,1) -> 0 | J6: =OFFSET('0_Tabla Forrajes'!$A$1,$C6,$J$2,1,1) -> 0 | K6: =OFFSET('0_Tabla Forrajes'!$A$1,$C6,$K$2,1,1) -> 0 | L6: =OFFSET('0_Tabla Forrajes'!$A$1,$C6,$L$2,1,1) -> 0 | M6: =OFFSET('0_Tabla Forrajes'!$A$1,$C6,$M$2,1,1) -> 0 | N6: =OFFSET('0_Tabla Forrajes'!$A$1,$C6,$N$2,1,1) -> 0 | O6: =OFFSET('0_Tabla Forrajes'!$A$1,$C6,$O$2,1,1) -> 0 | P6: =OFFSET('0_Tabla Forrajes'!$A$1,$C6,$P$2,1,1) -> 0 | Q6: =OFFSET('0_Tabla Forrajes'!$A$1,$C6,$Q$2,1,1) -> 0 | R6: =OFFSET('0_Tabla Forrajes'!$A$1,$C6,$R$2,1,1) -> 0 | S6: =OFFSET('0_Tabla Forrajes'!$A$1,$C6,$S$2,1,1) -> 0 | T6: =OFFSET('0_Tabla Forrajes'!$A$1,$C6,$T$2,1,1) -> 0 | U6: =OFFSET('0_Tabla Forrajes'!$A$1,$C6,$U$2,1,1) -> 0 | V6: =OFFSET('0_Tabla Forrajes'!$A$1,$C6,$V$2,1,1) -> 0 | W6: =OFFSET('0_Tabla Forrajes'!$A$1,$C6,$W$2,1,1) -> 0 | X6: =OFFSET('0_Tabla Forrajes'!$A$1,$C6,$X$2,1,1) -> 0 | Y6: =OFFSET('0_Tabla Forrajes'!$A$1,$C6,$Y$2,1,1) -> 0 | Z6: =OFFSET('0_Tabla Forrajes'!$A$1,$C6,$Z$2,1,1) -> 0 | AA6: =OFFSET('0_Tabla Forrajes'!$A$1,$C6,$AA$2,1,1) -> 0 | AB6: =OFFSET('0_Tabla Forrajes'!$A$1,$C6,$AB$2,1,1) -> 0 | AC6: =OFFSET('0_Tabla Forrajes'!$A$1,$C6,$AC$2,1,1) -> 0 | AD6: =OFFSET('0_Tabla Forrajes'!$A$1,$C6,$AD$2,1,1) -> 0 | AE6: =OFFSET('0_Tabla Forrajes'!$A$1,$C6,$AE$2,1,1) -> 0 | AF6: =OFFSET('0_Tabla Forrajes'!$A$1,$C6,$AF$2,1,1) -> 0 | AG6: =OFFSET('0_Tabla Forrajes'!$A$1,$C6,$AG$2,1,1) -> 0 | AH6: =OFFSET('0_Tabla Forrajes'!$A$1,$C6,$AH$2,1,1) -> 0 | AI6: =OFFSET('0_Tabla Forrajes'!$A$1,$C6,$AI$2,1,1) -> 0 | AJ6: =OFFSET('0_Tabla Forrajes'!$A$1,$C6,$AJ$2,1,1) -> 0 | AK6: =OFFSET('0_Tabla Forrajes'!$A$1,$C6,$AK$2,1,1) -> 0 | AL6: =OFFSET('0_Tabla Forrajes'!$A$1,$C6,$AL$2,1,1) -> 0 | AM6: =OFFSET('0_Tabla Forrajes'!$A$1,$C6,$AM$2,1,1) -> 0 | AN6: =IF('II_Plantear Ración'!$E7>0,IF(CálculosVL!E6>=0,1,"No"),"") ->  | AO6: =IF('II_Plantear Ración'!$E7>0,IF(CálculosVL!F6>=0,1,"No"),"") ->  | AP6: =IF('II_Plantear Ración'!$E7>0,IF(CálculosVL!G6>=0,1,"No"),"") ->  | AQ6: =IF('II_Plantear Ración'!$E7>0,IF(CálculosVL!H6=0,"No",1),"") ->  | AR6: =IF('II_Plantear Ración'!$E7>0,IF(CálculosVL!I6>0,1,"No"),"") ->  | AS6: =IF('II_Plantear Ración'!$E7>0,IF(CálculosVL!J6>0,1,"No"),"") ->  | AT6: =IF('II_Plantear Ración'!$E7>0,IF(CálculosVL!K6>0,1,"No"),"") ->  | AU6: =IF('II_Plantear Ración'!$E7>0,IF(CálculosVL!L6>0,1,"No"),"") ->  | AV6: =IF('II_Plantear Ración'!$E7>0,IF(CálculosVL!M6>0,1,"No"),"") ->  | AW6: =IF('II_Plantear Ración'!$E7>0,IF(CálculosVL!N6>0,1,"No"),"") ->  | AX6: =IF('II_Plantear Ración'!$E7>0,IF(CálculosVL!O6>0,1,"No"),"") ->  | AY6: =IF('II_Plantear Ración'!$E7>0,IF(CálculosVL!P6>0,1,"No"),"") ->  | AZ6: =IF('II_Plantear Ración'!$E7>0,IF(CálculosVL!Q6>0,1,"No"),"") ->  | BA6: =IF('II_Plantear Ración'!$E7>0,IF(CálculosVL!R6>0,1,"No"),"") ->  | BB6: =IF('II_Plantear Ración'!$E7>0,IF(CálculosVL!S6>0,1,"No"),"") ->  | BC6: =IF('II_Plantear Ración'!$E7>0,IF(CálculosVL!T6>0,1,"No"),"") ->  | BD6: =IF('II_Plantear Ración'!$E7>0,IF(CálculosVL!U6>0,1,"No"),"") ->  | BE6: =IF('II_Plantear Ración'!$E7>0,IF(CálculosVL!V6>0,1,"No"),"") ->  | BF6: =IF('II_Plantear Ración'!$E7>0,IF(CálculosVL!W6>0,1,"No"),"") ->  | BG6: =IF('II_Plantear Ración'!$E7>0,IF(CálculosVL!X6>0,1,"No"),"") ->  | BH6: =IF('II_Plantear Ración'!$E7>0,IF(CálculosVL!Y6>0,1,"No"),"") ->  | BI6: =IF('II_Plantear Ración'!$E7>0,IF(CálculosVL!Z6>0,1,"No"),"") ->  | BJ6: =IF('II_Plantear Ración'!$E7>0,IF(CálculosVL!AA6>0,1,"No"),"") ->  | BK6: =IF('II_Plantear Ración'!$E7>0,IF(CálculosVL!AB6>0,1,"No"),"") ->  | BL6: =IF('II_Plantear Ración'!$E7>0,IF(CálculosVL!AC6>0,1,"No"),"") ->  | BM6: =IF('II_Plantear Ración'!$E7>0,IF(CálculosVL!AD6>0,1,"No"),"") ->  | BN6: =IF('II_Plantear Ración'!$E7>0,IF(CálculosVL!AE6>0,1,"No"),"") ->  | BO6: =IF('II_Plantear Ración'!$E7>0,IF(CálculosVL!AF6>0,1,"No"),"") ->  | BP6: =IF('II_Plantear Ración'!$E7>0,IF(CálculosVL!AG6>0,1,"No"),"") ->  | BQ6: =IF('II_Plantear Ración'!$E7>0,IF(CálculosVL!AH6>0,1,"No"),"") ->  | BR6: =IF('II_Plantear Ración'!$E7>0,IF(CálculosVL!AI6>0,1,"No"),"") ->  | BS6: =IF('II_Plantear Ración'!$E7>0,IF(CálculosVL!AJ6>0,1,"No"),"") ->  | BT6: =IF('II_Plantear Ración'!$E7>0,IF(CálculosVL!AK6>0,1,"No"),"") ->  | BU6: =IF('II_Plantear Ración'!$E7>0,IF(CálculosVL!AL6>0,1,"No"),"") ->  | BV6: =IF('II_Plantear Ración'!$E7>0,IF(CálculosVL!AM6>0,1,"No"),"") ->  | BW6: 0 | BX6: 0 | BY6: 0 | BZ6: 0 | CA6: 0 | CB6: 0 | CC6: 0 | CD6: 0 | CE6: 0 | CF6: 0 | CG6: 0 | CH6: 0 | CI6: 0 | CJ6: 0 | CK6: 0 | CL6: 0 | CM6: 0 | CN6: 0 | CO6: 0 | CP6: 0 | CQ6: 0 | CR6: 0 | CS6: 0 | CT6: 0 | CU6: 0 | CV6: 0 | CW6: 0 | CX6: 0 | CY6: 0 | CZ6: 0 | DA6: 0 | DB6: 0 | DC6: 0 | DD6: 0 | DE6: 0
B7: =IF(OFFSET('0_Tabla Forrajes'!$A$1,C7,0,1,1)=0,"",OFFSET('0_Tabla Forrajes'!$A$1,C7,0,1,1)) ->  | C7: 1 | D7: =OFFSET('0_Tabla Forrajes'!$A$1,$C7,$D$2,1,1) -> 0 | E7: =OFFSET('0_Tabla Forrajes'!$A$1,$C7,$E$2,1,1) -> 0 | F7: =OFFSET('0_Tabla Forrajes'!$A$1,$C7,$F$2,1,1) -> 0 | G7: =OFFSET('0_Tabla Forrajes'!$A$1,$C7,$G$2,1,1) -> 0 | H7: =OFFSET('0_Tabla Forrajes'!$A$1,$C7,$H$2,1,1) -> 0 | I7: =OFFSET('0_Tabla Forrajes'!$A$1,$C7,$I$2,1,1) -> 0 | J7: =OFFSET('0_Tabla Forrajes'!$A$1,$C7,$J$2,1,1) -> 0 | K7: =OFFSET('0_Tabla Forrajes'!$A$1,$C7,$K$2,1,1) -> 0 | L7: =OFFSET('0_Tabla Forrajes'!$A$1,$C7,$L$2,1,1) -> 0 | M7: =OFFSET('0_Tabla Forrajes'!$A$1,$C7,$M$2,1,1) -> 0 | N7: =OFFSET('0_Tabla Forrajes'!$A$1,$C7,$N$2,1,1) -> 0 | O7: =OFFSET('0_Tabla Forrajes'!$A$1,$C7,$O$2,1,1) -> 0 | P7: =OFFSET('0_Tabla Forrajes'!$A$1,$C7,$P$2,1,1) -> 0 | Q7: =OFFSET('0_Tabla Forrajes'!$A$1,$C7,$Q$2,1,1) -> 0 | R7: =OFFSET('0_Tabla Forrajes'!$A$1,$C7,$R$2,1,1) -> 0 | S7: =OFFSET('0_Tabla Forrajes'!$A$1,$C7,$S$2,1,1) -> 0 | T7: =OFFSET('0_Tabla Forrajes'!$A$1,$C7,$T$2,1,1) -> 0 | U7: =OFFSET('0_Tabla Forrajes'!$A$1,$C7,$U$2,1,1) -> 0 | V7: =OFFSET('0_Tabla Forrajes'!$A$1,$C7,$V$2,1,1) -> 0 | W7: =OFFSET('0_Tabla Forrajes'!$A$1,$C7,$W$2,1,1) -> 0 | X7: =OFFSET('0_Tabla Forrajes'!$A$1,$C7,$X$2,1,1) -> 0 | Y7: =OFFSET('0_Tabla Forrajes'!$A$1,$C7,$Y$2,1,1) -> 0 | Z7: =OFFSET('0_Tabla Forrajes'!$A$1,$C7,$Z$2,1,1) -> 0 | AA7: =OFFSET('0_Tabla Forrajes'!$A$1,$C7,$AA$2,1,1) -> 0 | AB7: =OFFSET('0_Tabla Forrajes'!$A$1,$C7,$AB$2,1,1) -> 0 | AC7: =OFFSET('0_Tabla Forrajes'!$A$1,$C7,$AC$2,1,1) -> 0 | AD7: =OFFSET('0_Tabla Forrajes'!$A$1,$C7,$AD$2,1,1) -> 0 | AE7: =OFFSET('0_Tabla Forrajes'!$A$1,$C7,$AE$2,1,1) -> 0 | AF7: =OFFSET('0_Tabla Forrajes'!$A$1,$C7,$AF$2,1,1) -> 0 | AG7: =OFFSET('0_Tabla Forrajes'!$A$1,$C7,$AG$2,1,1) -> 0 | AH7: =OFFSET('0_Tabla Forrajes'!$A$1,$C7,$AH$2,1,1) -> 0 | AI7: =OFFSET('0_Tabla Forrajes'!$A$1,$C7,$AI$2,1,1) -> 0 | AJ7: =OFFSET('0_Tabla Forrajes'!$A$1,$C7,$AJ$2,1,1) -> 0 | AK7: =OFFSET('0_Tabla Forrajes'!$A$1,$C7,$AK$2,1,1) -> 0 | AL7: =OFFSET('0_Tabla Forrajes'!$A$1,$C7,$AL$2,1,1) -> 0 | AM7: =OFFSET('0_Tabla Forrajes'!$A$1,$C7,$AM$2,1,1) -> 0 | AN7: =IF('II_Plantear Ración'!$E8>0,IF(CálculosVL!E7>=0,1,"No"),"") ->  | AO7: =IF('II_Plantear Ración'!$E8>0,IF(CálculosVL!F7>=0,1,"No"),"") ->  | AP7: =IF('II_Plantear Ración'!$E8>0,IF(CálculosVL!G7>=0,1,"No"),"") ->  | AQ7: =IF('II_Plantear Ración'!$E8>0,IF(CálculosVL!H7=0,"No",1),"") ->  | AR7: =IF('II_Plantear Ración'!$E8>0,IF(CálculosVL!I7>0,1,"No"),"") ->  | AS7: =IF('II_Plantear Ración'!$E8>0,IF(CálculosVL!J7>0,1,"No"),"") ->  | AT7: =IF('II_Plantear Ración'!$E8>0,IF(CálculosVL!K7>0,1,"No"),"") ->  | AU7: =IF('II_Plantear Ración'!$E8>0,IF(CálculosVL!L7>0,1,"No"),"") ->  | AV7: =IF('II_Plantear Ración'!$E8>0,IF(CálculosVL!M7>0,1,"No"),"") ->  | AW7: =IF('II_Plantear Ración'!$E8>0,IF(CálculosVL!N7>0,1,"No"),"") ->  | AX7: =IF('II_Plantear Ración'!$E8>0,IF(CálculosVL!O7>0,1,"No"),"") ->  | AY7: =IF('II_Plantear Ración'!$E8>0,IF(CálculosVL!P7>0,1,"No"),"") ->  | AZ7: =IF('II_Plantear Ración'!$E8>0,IF(CálculosVL!Q7>0,1,"No"),"") ->  | BA7: =IF('II_Plantear Ración'!$E8>0,IF(CálculosVL!R7>0,1,"No"),"") ->  | BB7: =IF('II_Plantear Ración'!$E8>0,IF(CálculosVL!S7>0,1,"No"),"") ->  | BC7: =IF('II_Plantear Ración'!$E8>0,IF(CálculosVL!T7>0,1,"No"),"") ->  | BD7: =IF('II_Plantear Ración'!$E8>0,IF(CálculosVL!U7>0,1,"No"),"") ->  | BE7: =IF('II_Plantear Ración'!$E8>0,IF(CálculosVL!V7>0,1,"No"),"") ->  | BF7: =IF('II_Plantear Ración'!$E8>0,IF(CálculosVL!W7>0,1,"No"),"") ->  | BG7: =IF('II_Plantear Ración'!$E8>0,IF(CálculosVL!X7>0,1,"No"),"") ->  | BH7: =IF('II_Plantear Ración'!$E8>0,IF(CálculosVL!Y7>0,1,"No"),"") ->  | BI7: =IF('II_Plantear Ración'!$E8>0,IF(CálculosVL!Z7>0,1,"No"),"") ->  | BJ7: =IF('II_Plantear Ración'!$E8>0,IF(CálculosVL!AA7>0,1,"No"),"") ->  | BK7: =IF('II_Plantear Ración'!$E8>0,IF(CálculosVL!AB7>0,1,"No"),"") ->  | BL7: =IF('II_Plantear Ración'!$E8>0,IF(CálculosVL!AC7>0,1,"No"),"") ->  | BM7: =IF('II_Plantear Ración'!$E8>0,IF(CálculosVL!AD7>0,1,"No"),"") ->  | BN7: =IF('II_Plantear Ración'!$E8>0,IF(CálculosVL!AE7>0,1,"No"),"") ->  | BO7: =IF('II_Plantear Ración'!$E8>0,IF(CálculosVL!AF7>0,1,"No"),"") ->  | BP7: =IF('II_Plantear Ración'!$E8>0,IF(CálculosVL!AG7>0,1,"No"),"") ->  | BQ7: =IF('II_Plantear Ración'!$E8>0,IF(CálculosVL!AH7>0,1,"No"),"") ->  | BR7: =IF('II_Plantear Ración'!$E8>0,IF(CálculosVL!AI7>0,1,"No"),"") ->  | BS7: =IF('II_Plantear Ración'!$E8>0,IF(CálculosVL!AJ7>0,1,"No"),"") ->  | BT7: =IF('II_Plantear Ración'!$E8>0,IF(CálculosVL!AK7>0,1,"No"),"") ->  | BU7: =IF('II_Plantear Ración'!$E8>0,IF(CálculosVL!AL7>0,1,"No"),"") ->  | BV7: =IF('II_Plantear Ración'!$E8>0,IF(CálculosVL!AM7>0,1,"No"),"") ->  | BW7: 0 | BX7: 0 | BY7: 0 | BZ7: 0 | CA7: 0 | CB7: 0 | CC7: 0 | CD7: 0 | CE7: 0 | CF7: 0 | CG7: 0 | CH7: 0 | CI7: 0 | CJ7: 0 | CK7: 0 | CL7: 0 | CM7: 0 | CN7: 0 | CO7: 0 | CP7: 0 | CQ7: 0 | CR7: 0 | CS7: 0 | CT7: 0 | CU7: 0 | CV7: 0 | CW7: 0 | CX7: 0 | CY7: 0 | CZ7: 0 | DA7: 0 | DB7: 0 | DC7: 0 | DD7: 0 | DE7: 0
A8: CONCENTRADOS | B8: =IF(OFFSET('0_Tabla Concentrados'!$A$1,C8,0,1,1)=0,"",OFFSET('0_Tabla Concentrados'!$A$1,C8,0,1,1)) -> Cebada grano | C8: 2 | D8: =OFFSET('0_Tabla Concentrados'!$A$1,$C8,$D$2,1,1) -> 88.8 | E8: =OFFSET('0_Tabla Concentrados'!$A$1,$C8,$E$2,1,1) -> 0.2046 | F8: =OFFSET('0_Tabla Concentrados'!$A$1,$C8,$F$2,1,1) -> 1.078969989 | G8: =OFFSET('0_Tabla Concentrados'!$A$1,$C8,$G$2,1,1) -> 89.46220189 | H8: =OFFSET('0_Tabla Concentrados'!$A$1,$C8,$H$2,1,1) -> -31.34737412 | I8: =OFFSET('0_Tabla Concentrados'!$A$1,$C8,$I$2,1,1) -> 2 | J8: =OFFSET('0_Tabla Concentrados'!$A$1,$C8,$J$2,1,1) -> 0.44 | K8: =OFFSET('0_Tabla Concentrados'!$A$1,$C8,$K$2,1,1) -> 2.964 | L8: =OFFSET('0_Tabla Concentrados'!$A$1,$C8,$L$2,1,1) -> 1.3 | M8: =OFFSET('0_Tabla Concentrados'!$A$1,$C8,$M$2,1,1) -> 5.55 | N8: =OFFSET('0_Tabla Concentrados'!$A$1,$C8,$N$2,1,1) -> 0.35 | O8: =OFFSET('0_Tabla Concentrados'!$A$1,$C8,$O$2,1,1) -> 0 | P8: =OFFSET('0_Tabla Concentrados'!$A$1,$C8,$P$2,1,1) -> 0 | Q8: =OFFSET('0_Tabla Concentrados'!$A$1,$C8,$Q$2,1,1) -> 0.01 | R8: =OFFSET('0_Tabla Concentrados'!$A$1,$C8,$R$2,1,1) -> 4.1 | S8: =OFFSET('0_Tabla Concentrados'!$A$1,$C8,$S$2,1,1) -> 17.6 | T8: =OFFSET('0_Tabla Concentrados'!$A$1,$C8,$T$2,1,1) -> 24.4 | U8: =OFFSET('0_Tabla Concentrados'!$A$1,$C8,$U$2,1,1) -> 0 | V8: =OFFSET('0_Tabla Concentrados'!$A$1,$C8,$V$2,1,1) -> 0.02 | W8: =OFFSET('0_Tabla Concentrados'!$A$1,$C8,$W$2,1,1) -> 1000 | X8: =OFFSET('0_Tabla Concentrados'!$A$1,$C8,$X$2,1,1) -> 0 | Y8: =OFFSET('0_Tabla Concentrados'!$A$1,$C8,$Y$2,1,1) -> 25 | Z8: =OFFSET('0_Tabla Concentrados'!$A$1,$C8,$Z$2,1,1) -> 14.25 | AA8: =OFFSET('0_Tabla Concentrados'!$A$1,$C8,$AA$2,1,1) -> 112 | AB8: =OFFSET('0_Tabla Concentrados'!$A$1,$C8,$AB$2,1,1) -> 27.59508246 | AC8: =OFFSET('0_Tabla Concentrados'!$A$1,$C8,$AC$2,1,1) -> 0.837328 | AD8: =OFFSET('0_Tabla Concentrados'!$A$1,$C8,$AD$2,1,1) -> 816.3948 | AE8: =OFFSET('0_Tabla Concentrados'!$A$1,$C8,$AE$2,1,1) -> 19 | AF8: =OFFSET('0_Tabla Concentrados'!$A$1,$C8,$AF$2,1,1) -> 54 | AG8: =OFFSET('0_Tabla Concentrados'!$A$1,$C8,$AG$2,1,1) -> 215 | AH8: =OFFSET('0_Tabla Concentrados'!$A$1,$C8,$AH$2,1,1) -> 65 | AI8: =OFFSET('0_Tabla Concentrados'!$A$1,$C8,$AI$2,1,1) -> 12 | AJ8: =OFFSET('0_Tabla Concentrados'!$A$1,$C8,$AJ$2,1,1) -> 25 | AK8: =OFFSET('0_Tabla Concentrados'!$A$1,$C8,$AK$2,1,1) -> 0.3 | AL8: =OFFSET('0_Tabla Concentrados'!$A$1,$C8,$AL$2,1,1) -> 0.7349259949 | AM8: =OFFSET('0_Tabla Concentrados'!$A$1,$C8,$AM$2,1,1) -> 596.0833771 | AN8: =IF('II_Plantear Ración'!$E9>0,IF(CálculosVL!E8>=0,1,"No"),"") ->  | AO8: =IF('II_Plantear Ración'!$E9>0,IF(CálculosVL!F8>=0,1,"No"),"") ->  | AP8: =IF('II_Plantear Ración'!$E9>0,IF(CálculosVL!G8>=0,1,"No"),"") ->  | AQ8: =IF('II_Plantear Ración'!$E9>0,IF(CálculosVL!H8=0,"No",1),"") ->  | AR8: =IF('II_Plantear Ración'!$E9>0,IF(CálculosVL!I8>0,1,"No"),"") ->  | AS8: =IF('II_Plantear Ración'!$E9>0,IF(CálculosVL!J8>0,1,"No"),"") ->  | AT8: =IF('II_Plantear Ración'!$E9>0,IF(CálculosVL!K8>0,1,"No"),"") ->  | AU8: =IF('II_Plantear Ración'!$E9>0,IF(CálculosVL!L8>0,1,"No"),"") ->  | AV8: =IF('II_Plantear Ración'!$E9>0,IF(CálculosVL!M8>0,1,"No"),"") ->  | AW8: =IF('II_Plantear Ración'!$E9>0,IF(CálculosVL!N8>0,1,"No"),"") ->  | AX8: =IF('II_Plantear Ración'!$E9>0,IF(CálculosVL!O8>0,1,"No"),"") ->  | AY8: =IF('II_Plantear Ración'!$E9>0,IF(CálculosVL!P8>0,1,"No"),"") ->  | AZ8: =IF('II_Plantear Ración'!$E9>0,IF(CálculosVL!Q8>0,1,"No"),"") ->  | BA8: =IF('II_Plantear Ración'!$E9>0,IF(CálculosVL!R8>0,1,"No"),"") ->  | BB8: =IF('II_Plantear Ración'!$E9>0,IF(CálculosVL!S8>0,1,"No"),"") ->  | BC8: =IF('II_Plantear Ración'!$E9>0,IF(CálculosVL!T8>0,1,"No"),"") ->  | BD8: =IF('II_Plantear Ración'!$E9>0,IF(CálculosVL!U8>0,1,"No"),"") ->  | BE8: =IF('II_Plantear Ración'!$E9>0,IF(CálculosVL!V8>0,1,"No"),"") ->  | BF8: =IF('II_Plantear Ración'!$E9>0,IF(CálculosVL!W8>0,1,"No"),"") ->  | BG8: =IF('II_Plantear Ración'!$E9>0,IF(CálculosVL!X8>0,1,"No"),"") ->  | BH8: =IF('II_Plantear Ración'!$E9>0,IF(CálculosVL!Y8>0,1,"No"),"") ->  | BI8: =IF('II_Plantear Ración'!$E9>0,IF(CálculosVL!Z8>0,1,"No"),"") ->  | BJ8: =IF('II_Plantear Ración'!$E9>0,IF(CálculosVL!AA8>0,1,"No"),"") ->  | BK8: =IF('II_Plantear Ración'!$E9>0,IF(CálculosVL!AB8>0,1,"No"),"") ->  | BL8: =IF('II_Plantear Ración'!$E9>0,IF(CálculosVL!AC8>0,1,"No"),"") ->  | BM8: =IF('II_Plantear Ración'!$E9>0,IF(CálculosVL!AD8>0,1,"No"),"") ->  | BN8: =IF('II_Plantear Ración'!$E9>0,IF(CálculosVL!AE8>0,1,"No"),"") ->  | BO8: =IF('II_Plantear Ración'!$E9>0,IF(CálculosVL!AF8>0,1,"No"),"") ->  | BP8: =IF('II_Plantear Ración'!$E9>0,IF(CálculosVL!AG8>0,1,"No"),"") ->  | BQ8: =IF('II_Plantear Ración'!$E9>0,IF(CálculosVL!AH8>0,1,"No"),"") ->  | BR8: =IF('II_Plantear Ración'!$E9>0,IF(CálculosVL!AI8>0,1,"No"),"") ->  | BS8: =IF('II_Plantear Ración'!$E9>0,IF(CálculosVL!AJ8>0,1,"No"),"") ->  | BT8: =IF('II_Plantear Ración'!$E9>0,IF(CálculosVL!AK8>0,1,"No"),"") ->  | BU8: =IF('II_Plantear Ración'!$E9>0,IF(CálculosVL!AL8>0,1,"No"),"") ->  | BV8: =IF('II_Plantear Ración'!$E9>0,IF(CálculosVL!AM8>0,1,"No"),"") ->  | BW8: 0 | BX8: 0 | BY8: 0 | BZ8: 0 | CA8: 0 | CB8: 0 | CC8: 0 | CD8: 0 | CE8: 0 | CF8: 0 | CG8: 0 | CH8: 0 | CI8: 0 | CJ8: 0 | CK8: 0 | CL8: 0 | CM8: 0 | CN8: 0 | CO8: 0 | CP8: 0 | CQ8: 0 | CR8: 0 | CS8: 0 | CT8: 0 | CU8: 0 | CV8: 0 | CW8: 0 | CX8: 0 | CY8: 0 | CZ8: 0 | DA8: 0 | DB8: 0 | DC8: 0 | DD8: 0 | DE8: 0
B9: =IF(OFFSET('0_Tabla Concentrados'!$A$1,C9,0,1,1)=0,"",OFFSET('0_Tabla Concentrados'!$A$1,C9,0,1,1)) -> Maíz grano | C9: 3 | D9: =OFFSET('0_Tabla Concentrados'!$A$1,$C9,$D$2,1,1) -> 86 | E9: =OFFSET('0_Tabla Concentrados'!$A$1,$C9,$E$2,1,1) -> 0.3291 | F9: =OFFSET('0_Tabla Concentrados'!$A$1,$C9,$F$2,1,1) -> 1.24475541 | G9: =OFFSET('0_Tabla Concentrados'!$A$1,$C9,$G$2,1,1) -> 94 | H9: =OFFSET('0_Tabla Concentrados'!$A$1,$C9,$H$2,1,1) -> -53 | I9: =OFFSET('0_Tabla Concentrados'!$A$1,$C9,$I$2,1,1) -> 2 | J9: =OFFSET('0_Tabla Concentrados'!$A$1,$C9,$J$2,1,1) -> 0.275 | K9: =OFFSET('0_Tabla Concentrados'!$A$1,$C9,$K$2,1,1) -> 2.175 | L9: =OFFSET('0_Tabla Concentrados'!$A$1,$C9,$L$2,1,1) -> 1.4 | M9: =OFFSET('0_Tabla Concentrados'!$A$1,$C9,$M$2,1,1) -> 3.6 | N9: =OFFSET('0_Tabla Concentrados'!$A$1,$C9,$N$2,1,1) -> 0.33 | O9: =OFFSET('0_Tabla Concentrados'!$A$1,$C9,$O$2,1,1) -> 0 | P9: =OFFSET('0_Tabla Concentrados'!$A$1,$C9,$P$2,1,1) -> 0 | Q9: =OFFSET('0_Tabla Concentrados'!$A$1,$C9,$Q$2,1,1) -> 0.02 | R9: =OFFSET('0_Tabla Concentrados'!$A$1,$C9,$R$2,1,1) -> 2.3 | S9: =OFFSET('0_Tabla Concentrados'!$A$1,$C9,$S$2,1,1) -> 10.8 | T9: =OFFSET('0_Tabla Concentrados'!$A$1,$C9,$T$2,1,1) -> 21.4 | U9: =OFFSET('0_Tabla Concentrados'!$A$1,$C9,$U$2,1,1) -> 0 | V9: =OFFSET('0_Tabla Concentrados'!$A$1,$C9,$V$2,1,1) -> 0.02 | W9: =OFFSET('0_Tabla Concentrados'!$A$1,$C9,$W$2,1,1) -> 0 | X9: =OFFSET('0_Tabla Concentrados'!$A$1,$C9,$X$2,1,1) -> 0 | Y9: =OFFSET('0_Tabla Concentrados'!$A$1,$C9,$Y$2,1,1) -> 0 | Z9: =OFFSET('0_Tabla Concentrados'!$A$1,$C9,$Z$2,1,1) -> 36.55 | AA9: =OFFSET('0_Tabla Concentrados'!$A$1,$C9,$AA$2,1,1) -> 89 | AB9: =OFFSET('0_Tabla Concentrados'!$A$1,$C9,$AB$2,1,1) -> 43 | AC9: =OFFSET('0_Tabla Concentrados'!$A$1,$C9,$AC$2,1,1) -> 0.882846 | AD9: =OFFSET('0_Tabla Concentrados'!$A$1,$C9,$AD$2,1,1) -> 870.486156 | AE9: =OFFSET('0_Tabla Concentrados'!$A$1,$C9,$AE$2,1,1) -> 43 | AF9: =OFFSET('0_Tabla Concentrados'!$A$1,$C9,$AF$2,1,1) -> 26 | AG9: =OFFSET('0_Tabla Concentrados'!$A$1,$C9,$AG$2,1,1) -> 125 | AH9: =OFFSET('0_Tabla Concentrados'!$A$1,$C9,$AH$2,1,1) -> 31 | AI9: =OFFSET('0_Tabla Concentrados'!$A$1,$C9,$AI$2,1,1) -> 60 | AJ9: =OFFSET('0_Tabla Concentrados'!$A$1,$C9,$AJ$2,1,1) -> 14 | AK9: =OFFSET('0_Tabla Concentrados'!$A$1,$C9,$AK$2,1,1) -> 0.3 | AL9: =OFFSET('0_Tabla Concentrados'!$A$1,$C9,$AL$2,1,1) -> 0.4465708975 | AM9: =OFFSET('0_Tabla Concentrados'!$A$1,$C9,$AM$2,1,1) -> 780.9036423 | AN9: =IF('II_Plantear Ración'!$E10>0,IF(CálculosVL!E9>=0,1,"No"),"") ->  | AO9: =IF('II_Plantear Ración'!$E10>0,IF(CálculosVL!F9>=0,1,"No"),"") ->  | AP9: =IF('II_Plantear Ración'!$E10>0,IF(CálculosVL!G9>=0,1,"No"),"") ->  | AQ9: =IF('II_Plantear Ración'!$E10>0,IF(CálculosVL!H9=0,"No",1),"") ->  | AR9: =IF('II_Plantear Ración'!$E10>0,IF(CálculosVL!I9>0,1,"No"),"") ->  | AS9: =IF('II_Plantear Ración'!$E10>0,IF(CálculosVL!J9>0,1,"No"),"") ->  | AT9: =IF('II_Plantear Ración'!$E10>0,IF(CálculosVL!K9>0,1,"No"),"") ->  | AU9: =IF('II_Plantear Ración'!$E10>0,IF(CálculosVL!L9>0,1,"No"),"") ->  | AV9: =IF('II_Plantear Ración'!$E10>0,IF(CálculosVL!M9>0,1,"No"),"") ->  | AW9: =IF('II_Plantear Ración'!$E10>0,IF(CálculosVL!N9>0,1,"No"),"") ->  | AX9: =IF('II_Plantear Ración'!$E10>0,IF(CálculosVL!O9>0,1,"No"),"") ->  | AY9: =IF('II_Plantear Ración'!$E10>0,IF(CálculosVL!P9>0,1,"No"),"") ->  | AZ9: =IF('II_Plantear Ración'!$E10>0,IF(CálculosVL!Q9>0,1,"No"),"") ->  | BA9: =IF('II_Plantear Ración'!$E10>0,IF(CálculosVL!R9>0,1,"No"),"") ->  | BB9: =IF('II_Plantear Ración'!$E10>0,IF(CálculosVL!S9>0,1,"No"),"") ->  | BC9: =IF('II_Plantear Ración'!$E10>0,IF(CálculosVL!T9>0,1,"No"),"") ->  | BD9: =IF('II_Plantear Ración'!$E10>0,IF(CálculosVL!U9>0,1,"No"),"") ->  | BE9: =IF('II_Plantear Ración'!$E10>0,IF(CálculosVL!V9>0,1,"No"),"") ->  | BF9: =IF('II_Plantear Ración'!$E10>0,IF(CálculosVL!W9>0,1,"No"),"") ->  | BG9: =IF('II_Plantear Ración'!$E10>0,IF(CálculosVL!X9>0,1,"No"),"") ->  | BH9: =IF('II_Plantear Ración'!$E10>0,IF(CálculosVL!Y9>0,1,"No"),"") ->  | BI9: =IF('II_Plantear Ración'!$E10>0,IF(CálculosVL!Z9>0,1,"No"),"") ->  | BJ9: =IF('II_Plantear Ración'!$E10>0,IF(CálculosVL!AA9>0,1,"No"),"") ->  | BK9: =IF('II_Plantear Ración'!$E10>0,IF(CálculosVL!AB9>0,1,"No"),"") ->  | BL9: =IF('II_Plantear Ración'!$E10>0,IF(CálculosVL!AC9>0,1,"No"),"") ->  | BM9: =IF('II_Plantear Ración'!$E10>0,IF(CálculosVL!AD9>0,1,"No"),"") ->  | BN9: =IF('II_Plantear Ración'!$E10>0,IF(CálculosVL!AE9>0,1,"No"),"") ->  | BO9: =IF('II_Plantear Ración'!$E10>0,IF(CálculosVL!AF9>0,1,"No"),"") ->  | BP9: =IF('II_Plantear Ración'!$E10>0,IF(CálculosVL!AG9>0,1,"No"),"") ->  | BQ9: =IF('II_Plantear Ración'!$E10>0,IF(CálculosVL!AH9>0,1,"No"),"") ->  | BR9: =IF('II_Plantear Ración'!$E10>0,IF(CálculosVL!AI9>0,1,"No"),"") ->  | BS9: =IF('II_Plantear Ración'!$E10>0,IF(CálculosVL!AJ9>0,1,"No"),"") ->  | BT9: =IF('II_Plantear Ración'!$E10>0,IF(CálculosVL!AK9>0,1,"No"),"") ->  | BU9: =IF('II_Plantear Ración'!$E10>0,IF(CálculosVL!AL9>0,1,"No"),"") ->  | BV9: =IF('II_Plantear Ración'!$E10>0,IF(CálculosVL!AM9>0,1,"No"),"") ->  | BW9: 0 | BX9: 0 | BY9: 0 | BZ9: 0 | CA9: 0 | CB9: 0 | CC9: 0 | CD9: 0 | CE9: 0 | CF9: 0 | CG9: 0 | CH9: 0 | CI9: 0 | CJ9: 0 | CK9: 0 | CL9: 0 | CM9: 0 | CN9: 0 | CO9: 0 | CP9: 0 | CQ9: 0 | CR9: 0 | CS9: 0 | CT9: 0 | CU9: 0 | CV9: 0 | CW9: 0 | CX9: 0 | CY9: 0 | CZ9: 0 | DA9: 0 | DB9: 0 | DC9: 0 | DD9: 0 | DE9: 0
B10: =IF(OFFSET('0_Tabla Concentrados'!$A$1,C10,0,1,1)=0,"",OFFSET('0_Tabla Concentrados'!$A$1,C10,0,1,1)) -> Maíz gluten feed | C10: 15 | D10: =OFFSET('0_Tabla Concentrados'!$A$1,$C10,$D$2,1,1) -> 87.7 | E10: =OFFSET('0_Tabla Concentrados'!$A$1,$C10,$E$2,1,1) -> 0.3125 | F10: =OFFSET('0_Tabla Concentrados'!$A$1,$C10,$F$2,1,1) -> 1.056307439 | G10: =OFFSET('0_Tabla Concentrados'!$A$1,$C10,$G$2,1,1) -> 111.0030461 | H10: =OFFSET('0_Tabla Concentrados'!$A$1,$C10,$H$2,1,1) -> 49.88125855 | I10: =OFFSET('0_Tabla Concentrados'!$A$1,$C10,$I$2,1,1) -> 2 | J10: =OFFSET('0_Tabla Concentrados'!$A$1,$C10,$J$2,1,1) -> 1.65 | K10: =OFFSET('0_Tabla Concentrados'!$A$1,$C10,$K$2,1,1) -> 5.304 | L10: =OFFSET('0_Tabla Concentrados'!$A$1,$C10,$L$2,1,1) -> 3.5 | M10: =OFFSET('0_Tabla Concentrados'!$A$1,$C10,$M$2,1,1) -> 10.25 | N10: =OFFSET('0_Tabla Concentrados'!$A$1,$C10,$N$2,1,1) -> 7 | O10: =OFFSET('0_Tabla Concentrados'!$A$1,$C10,$O$2,1,1) -> 0 | P10: =OFFSET('0_Tabla Concentrados'!$A$1,$C10,$P$2,1,1) -> 0 | Q10: =OFFSET('0_Tabla Concentrados'!$A$1,$C10,$Q$2,1,1) -> 0 | R10: =OFFSET('0_Tabla Concentrados'!$A$1,$C10,$R$2,1,1) -> 0 | S10: =OFFSET('0_Tabla Concentrados'!$A$1,$C10,$S$2,1,1) -> 0 | T10: =OFFSET('0_Tabla Concentrados'!$A$1,$C10,$T$2,1,1) -> 0 | U10: =OFFSET('0_Tabla Concentrados'!$A$1,$C10,$U$2,1,1) -> 0 | V10: =OFFSET('0_Tabla Concentrados'!$A$1,$C10,$V$2,1,1) -> 0 | W10: =OFFSET('0_Tabla Concentrados'!$A$1,$C10,$W$2,1,1) -> 3000 | X10: =OFFSET('0_Tabla Concentrados'!$A$1,$C10,$X$2,1,1) -> 0 | Y10: =OFFSET('0_Tabla Concentrados'!$A$1,$C10,$Y$2,1,1) -> 14 | Z10: =OFFSET('0_Tabla Concentrados'!$A$1,$C10,$Z$2,1,1) -> 40.5 | AA10: =OFFSET('0_Tabla Concentrados'!$A$1,$C10,$AA$2,1,1) -> 216 | AB10: =OFFSET('0_Tabla Concentrados'!$A$1,$C10,$AB$2,1,1) -> 53.8646516 | AC10: =OFFSET('0_Tabla Concentrados'!$A$1,$C10,$AC$2,1,1) -> 0.825072 | AD10: =OFFSET('0_Tabla Concentrados'!$A$1,$C10,$AD$2,1,1) -> 769.792176 | AE10: =OFFSET('0_Tabla Concentrados'!$A$1,$C10,$AE$2,1,1) -> 45 | AF10: =OFFSET('0_Tabla Concentrados'!$A$1,$C10,$AF$2,1,1) -> 88 | AG10: =OFFSET('0_Tabla Concentrados'!$A$1,$C10,$AG$2,1,1) -> 343 | AH10: =OFFSET('0_Tabla Concentrados'!$A$1,$C10,$AH$2,1,1) -> 100 | AI10: =OFFSET('0_Tabla Concentrados'!$A$1,$C10,$AI$2,1,1) -> 13 | AJ10: =OFFSET('0_Tabla Concentrados'!$A$1,$C10,$AJ$2,1,1) -> 67 | AK10: =OFFSET('0_Tabla Concentrados'!$A$1,$C10,$AK$2,1,1) -> 0 | AL10: =OFFSET('0_Tabla Concentrados'!$A$1,$C10,$AL$2,1,1) -> 0.7383081976 | AM10: =OFFSET('0_Tabla Concentrados'!$A$1,$C10,$AM$2,1,1) -> 400.0063135 | AN10: =IF('II_Plantear Ración'!$E11>0,IF(CálculosVL!E10>=0,1,"No"),"") ->  | AO10: =IF('II_Plantear Ración'!$E11>0,IF(CálculosVL!F10>=0,1,"No"),"") ->  | AP10: =IF('II_Plantear Ración'!$E11>0,IF(CálculosVL!G10>=0,1,"No"),"") ->  | AQ10: =IF('II_Plantear Ración'!$E11>0,IF(CálculosVL!H10=0,"No",1),"") ->  | AR10: =IF('II_Plantear Ración'!$E11>0,IF(CálculosVL!I10>0,1,"No"),"") ->  | AS10: =IF('II_Plantear Ración'!$E11>0,IF(CálculosVL!J10>0,1,"No"),"") ->  | AT10: =IF('II_Plantear Ración'!$E11>0,IF(CálculosVL!K10>0,1,"No"),"") ->  | AU10: =IF('II_Plantear Ración'!$E11>0,IF(CálculosVL!L10>0,1,"No"),"") ->  | AV10: =IF('II_Plantear Ración'!$E11>0,IF(CálculosVL!M10>0,1,"No"),"") ->  | AW10: =IF('II_Plantear Ración'!$E11>0,IF(CálculosVL!N10>0,1,"No"),"") ->  | AX10: =IF('II_Plantear Ración'!$E11>0,IF(CálculosVL!O10>0,1,"No"),"") ->  | AY10: =IF('II_Plantear Ración'!$E11>0,IF(CálculosVL!P10>0,1,"No"),"") ->  | AZ10: =IF('II_Plantear Ración'!$E11>0,IF(CálculosVL!Q10>0,1,"No"),"") ->  | BA10: =IF('II_Plantear Ración'!$E11>0,IF(CálculosVL!R10>0,1,"No"),"") ->  | BB10: =IF('II_Plantear Ración'!$E11>0,IF(CálculosVL!S10>0,1,"No"),"") ->  | BC10: =IF('II_Plantear Ración'!$E11>0,IF(CálculosVL!T10>0,1,"No"),"") ->  | BD10: =IF('II_Plantear Ración'!$E11>0,IF(CálculosVL!U10>0,1,"No"),"") ->  | BE10: =IF('II_Plantear Ración'!$E11>0,IF(CálculosVL!V10>0,1,"No"),"") ->  | BF10: =IF('II_Plantear Ración'!$E11>0,IF(CálculosVL!W10>0,1,"No"),"") ->  | BG10: =IF('II_Plantear Ración'!$E11>0,IF(CálculosVL!X10>0,1,"No"),"") ->  | BH10: =IF('II_Plantear Ración'!$E11>0,IF(CálculosVL!Y10>0,1,"No"),"") ->  | BI10: =IF('II_Plantear Ración'!$E11>0,IF(CálculosVL!Z10>0,1,"No"),"") ->  | BJ10: =IF('II_Plantear Ración'!$E11>0,IF(CálculosVL!AA10>0,1,"No"),"") ->  | BK10: =IF('II_Plantear Ración'!$E11>0,IF(CálculosVL!AB10>0,1,"No"),"") ->  | BL10: =IF('II_Plantear Ración'!$E11>0,IF(CálculosVL!AC10>0,1,"No"),"") ->  | BM10: =IF('II_Plantear Ración'!$E11>0,IF(CálculosVL!AD10>0,1,"No"),"") ->  | BN10: =IF('II_Plantear Ración'!$E11>0,IF(CálculosVL!AE10>0,1,"No"),"") ->  | BO10: =IF('II_Plantear Ración'!$E11>0,IF(CálculosVL!AF10>0,1,"No"),"") ->  | BP10: =IF('II_Plantear Ración'!$E11>0,IF(CálculosVL!AG10>0,1,"No"),"") ->  | BQ10: =IF('II_Plantear Ración'!$E11>0,IF(CálculosVL!AH10>0,1,"No"),"") ->  | BR10: =IF('II_Plantear Ración'!$E11>0,IF(CálculosVL!AI10>0,1,"No"),"") ->  | BS10: =IF('II_Plantear Ración'!$E11>0,IF(CálculosVL!AJ10>0,1,"No"),"") ->  | BT10: =IF('II_Plantear Ración'!$E11>0,IF(CálculosVL!AK10>0,1,"No"),"") ->  | BU10: =IF('II_Plantear Ración'!$E11>0,IF(CálculosVL!AL10>0,1,"No"),"") ->  | BV10: =IF('II_Plantear Ración'!$E11>0,IF(CálculosVL!AM10>0,1,"No"),"") ->  | BW10: 0 | BX10: 0 | BY10: 0 | BZ10: 0 | CA10: 0 | CB10: 0 | CC10: 0 | CD10: 0 | CE10: 0 | CF10: 0 | CG10: 0 | CH10: 0 | CI10: 0 | CJ10: 0 | CK10: 0 | CL10: 0 | CM10: 0 | CN10: 0 | CO10: 0 | CP10: 0 | CQ10: 0 | CR10: 0 | CS10: 0 | CT10: 0 | CU10: 0 | CV10: 0 | CW10: 0 | CX10: 0 | CY10: 0 | CZ10: 0 | DA10: 0 | DB10: 0 | DC10: 0 | DD10: 0 | DE10: 0
B11: =IF(OFFSET('0_Tabla Concentrados'!$A$1,C11,0,1,1)=0,"",OFFSET('0_Tabla Concentrados'!$A$1,C11,0,1,1)) -> Cebada bagazo cervecería seco | C11: 24 | D11: =OFFSET('0_Tabla Concentrados'!$A$1,$C11,$D$2,1,1) -> 91.9 | E11: =OFFSET('0_Tabla Concentrados'!$A$1,$C11,$E$2,1,1) -> 0.4951 | F11: =OFFSET('0_Tabla Concentrados'!$A$1,$C11,$F$2,1,1) -> 0.871193565 | G11: =OFFSET('0_Tabla Concentrados'!$A$1,$C11,$G$2,1,1) -> 151.6383987 | H11: =OFFSET('0_Tabla Concentrados'!$A$1,$C11,$H$2,1,1) -> 35.09442835 | I11: =OFFSET('0_Tabla Concentrados'!$A$1,$C11,$I$2,1,1) -> 2 | J11: =OFFSET('0_Tabla Concentrados'!$A$1,$C11,$J$2,1,1) -> 1.265 | K11: =OFFSET('0_Tabla Concentrados'!$A$1,$C11,$K$2,1,1) -> 4.914 | L11: =OFFSET('0_Tabla Concentrados'!$A$1,$C11,$L$2,1,1) -> 0 | M11: =OFFSET('0_Tabla Concentrados'!$A$1,$C11,$M$2,1,1) -> 0 | N11: =OFFSET('0_Tabla Concentrados'!$A$1,$C11,$N$2,1,1) -> 0 | O11: =OFFSET('0_Tabla Concentrados'!$A$1,$C11,$O$2,1,1) -> 0 | P11: =OFFSET('0_Tabla Concentrados'!$A$1,$C11,$P$2,1,1) -> 0 | Q11: =OFFSET('0_Tabla Concentrados'!$A$1,$C11,$Q$2,1,1) -> 0.08 | R11: =OFFSET('0_Tabla Concentrados'!$A$1,$C11,$R$2,1,1) -> 22.2 | S11: =OFFSET('0_Tabla Concentrados'!$A$1,$C11,$S$2,1,1) -> 38.5 | T11: =OFFSET('0_Tabla Concentrados'!$A$1,$C11,$T$2,1,1) -> 85 | U11: =OFFSET('0_Tabla Concentrados'!$A$1,$C11,$U$2,1,1) -> 0 | V11: =OFFSET('0_Tabla Concentrados'!$A$1,$C11,$V$2,1,1) -> 0.06 | W11: =OFFSET('0_Tabla Concentrados'!$A$1,$C11,$W$2,1,1) -> 0 | X11: =OFFSET('0_Tabla Concentrados'!$A$1,$C11,$X$2,1,1) -> 0 | Y11: =OFFSET('0_Tabla Concentrados'!$A$1,$C11,$Y$2,1,1) -> 29 | Z11: =OFFSET('0_Tabla Concentrados'!$A$1,$C11,$Z$2,1,1) -> 35.955 | AA11: =OFFSET('0_Tabla Concentrados'!$A$1,$C11,$AA$2,1,1) -> 262.4 | AB11: =OFFSET('0_Tabla Concentrados'!$A$1,$C11,$AB$2,1,1) -> 107.6156328 | AC11: =OFFSET('0_Tabla Concentrados'!$A$1,$C11,$AC$2,1,1) -> 0.62732 | AD11: =OFFSET('0_Tabla Concentrados'!$A$1,$C11,$AD$2,1,1) -> 601.348952 | AE11: =OFFSET('0_Tabla Concentrados'!$A$1,$C11,$AE$2,1,1) -> 79.9 | AF11: =OFFSET('0_Tabla Concentrados'!$A$1,$C11,$AF$2,1,1) -> 161.6 | AG11: =OFFSET('0_Tabla Concentrados'!$A$1,$C11,$AG$2,1,1) -> 643.3 | AH11: =OFFSET('0_Tabla Concentrados'!$A$1,$C11,$AH$2,1,1) -> 236.4 | AI11: =OFFSET('0_Tabla Concentrados'!$A$1,$C11,$AI$2,1,1) -> 78.9 | AJ11: =OFFSET('0_Tabla Concentrados'!$A$1,$C11,$AJ$2,1,1) -> 41.4 | AK11: =OFFSET('0_Tabla Concentrados'!$A$1,$C11,$AK$2,1,1) -> 0.5 | AL11: =OFFSET('0_Tabla Concentrados'!$A$1,$C11,$AL$2,1,1) -> 0.5371850665 | AM11: =OFFSET('0_Tabla Concentrados'!$A$1,$C11,$AM$2,1,1) -> 529.6572154 | AN11: =IF('II_Plantear Ración'!$E12>0,IF(CálculosVL!E11>=0,1,"No"),"") ->  | AO11: =IF('II_Plantear Ración'!$E12>0,IF(CálculosVL!F11>=0,1,"No"),"") ->  | AP11: =IF('II_Plantear Ración'!$E12>0,IF(CálculosVL!G11>=0,1,"No"),"") ->  | AQ11: =IF('II_Plantear Ración'!$E12>0,IF(CálculosVL!H11=0,"No",1),"") ->  | AR11: =IF('II_Plantear Ración'!$E12>0,IF(CálculosVL!I11>0,1,"No"),"") ->  | AS11: =IF('II_Plantear Ración'!$E12>0,IF(CálculosVL!J11>0,1,"No"),"") ->  | AT11: =IF('II_Plantear Ración'!$E12>0,IF(CálculosVL!K11>0,1,"No"),"") ->  | AU11: =IF('II_Plantear Ración'!$E12>0,IF(CálculosVL!L11>0,1,"No"),"") ->  | AV11: =IF('II_Plantear Ración'!$E12>0,IF(CálculosVL!M11>0,1,"No"),"") ->  | AW11: =IF('II_Plantear Ración'!$E12>0,IF(CálculosVL!N11>0,1,"No"),"") ->  | AX11: =IF('II_Plantear Ración'!$E12>0,IF(CálculosVL!O11>0,1,"No"),"") ->  | AY11: =IF('II_Plantear Ración'!$E12>0,IF(CálculosVL!P11>0,1,"No"),"") ->  | AZ11: =IF('II_Plantear Ración'!$E12>0,IF(CálculosVL!Q11>0,1,"No"),"") ->  | BA11: =IF('II_Plantear Ración'!$E12>0,IF(CálculosVL!R11>0,1,"No"),"") ->  | BB11: =IF('II_Plantear Ración'!$E12>0,IF(CálculosVL!S11>0,1,"No"),"") ->  | BC11: =IF('II_Plantear Ración'!$E12>0,IF(CálculosVL!T11>0,1,"No"),"") ->  | BD11: =IF('II_Plantear Ración'!$E12>0,IF(CálculosVL!U11>0,1,"No"),"") ->  | BE11: =IF('II_Plantear Ración'!$E12>0,IF(CálculosVL!V11>0,1,"No"),"") ->  | BF11: =IF('II_Plantear Ración'!$E12>0,IF(CálculosVL!W11>0,1,"No"),"") ->  | BG11: =IF('II_Plantear Ración'!$E12>0,IF(CálculosVL!X11>0,1,"No"),"") ->  | BH11: =IF('II_Plantear Ración'!$E12>0,IF(CálculosVL!Y11>0,1,"No"),"") ->  | BI11: =IF('II_Plantear Ración'!$E12>0,IF(CálculosVL!Z11>0,1,"No"),"") ->  | BJ11: =IF('II_Plantear Ración'!$E12>0,IF(CálculosVL!AA11>0,1,"No"),"") ->  | BK11: =IF('II_Plantear Ración'!$E12>0,IF(CálculosVL!AB11>0,1,"No"),"") ->  | BL11: =IF('II_Plantear Ración'!$E12>0,IF(CálculosVL!AC11>0,1,"No"),"") ->  | BM11: =IF('II_Plantear Ración'!$E12>0,IF(CálculosVL!AD11>0,1,"No"),"") ->  | BN11: =IF('II_Plantear Ración'!$E12>0,IF(CálculosVL!AE11>0,1,"No"),"") ->  | BO11: =IF('II_Plantear Ración'!$E12>0,IF(CálculosVL!AF11>0,1,"No"),"") ->  | BP11: =IF('II_Plantear Ración'!$E12>0,IF(CálculosVL!AG11>0,1,"No"),"") ->  | BQ11: =IF('II_Plantear Ración'!$E12>0,IF(CálculosVL!AH11>0,1,"No"),"") ->  | BR11: =IF('II_Plantear Ración'!$E12>0,IF(CálculosVL!AI11>0,1,"No"),"") ->  | BS11: =IF('II_Plantear Ración'!$E12>0,IF(CálculosVL!AJ11>0,1,"No"),"") ->  | BT11: =IF('II_Plantear Ración'!$E12>0,IF(CálculosVL!AK11>0,1,"No"),"") ->  | BU11: =IF('II_Plantear Ración'!$E12>0,IF(CálculosVL!AL11>0,1,"No"),"") ->  | BV11: =IF('II_Plantear Ración'!$E12>0,IF(CálculosVL!AM11>0,1,"No"),"") ->  | BW11: 0 | BX11: 0 | BY11: 0 | BZ11: 0 | CA11: 0 | CB11: 0 | CC11: 0 | CD11: 0 | CE11: 0 | CF11: 0 | CG11: 0 | CH11: 0 | CI11: 0 | CJ11: 0 | CK11: 0 | CL11: 0 | CM11: 0 | CN11: 0 | CO11: 0 | CP11: 0 | CQ11: 0 | CR11: 0 | CS11: 0 | CT11: 0 | CU11: 0 | CV11: 0 | CW11: 0 | CX11: 0 | CY11: 0 | CZ11: 0 | DA11: 0 | DB11: 0 | DC11: 0 | DD11: 0 | DE11: 0
B12: =IF(OFFSET('0_Tabla Concentrados'!$A$1,C12,0,1,1)=0,"",OFFSET('0_Tabla Concentrados'!$A$1,C12,0,1,1)) -> Soja torta 44 | C12: 48 | D12: =OFFSET('0_Tabla Concentrados'!$A$1,$C12,$D$2,1,1) -> 87.2 | E12: =OFFSET('0_Tabla Concentrados'!$A$1,$C12,$E$2,1,1) -> 0.2781056 | F12: =OFFSET('0_Tabla Concentrados'!$A$1,$C12,$F$2,1,1) -> 1.165625863 | G12: =OFFSET('0_Tabla Concentrados'!$A$1,$C12,$G$2,1,1) -> 207.0695265 | H12: =OFFSET('0_Tabla Concentrados'!$A$1,$C12,$H$2,1,1) -> 219.1726116 | I12: =OFFSET('0_Tabla Concentrados'!$A$1,$C12,$I$2,1,1) -> 2 | J12: =OFFSET('0_Tabla Concentrados'!$A$1,$C12,$J$2,1,1) -> 1.87 | K12: =OFFSET('0_Tabla Concentrados'!$A$1,$C12,$K$2,1,1) -> 4.9 | L12: =OFFSET('0_Tabla Concentrados'!$A$1,$C12,$L$2,1,1) -> 2.7 | M12: =OFFSET('0_Tabla Concentrados'!$A$1,$C12,$M$2,1,1) -> 20 | N12: =OFFSET('0_Tabla Concentrados'!$A$1,$C12,$N$2,1,1) -> 1.95 | O12: =OFFSET('0_Tabla Concentrados'!$A$1,$C12,$O$2,1,1) -> 0 | P12: =OFFSET('0_Tabla Concentrados'!$A$1,$C12,$P$2,1,1) -> 0 | Q12: =OFFSET('0_Tabla Concentrados'!$A$1,$C12,$Q$2,1,1) -> 0.3 | R12: =OFFSET('0_Tabla Concentrados'!$A$1,$C12,$R$2,1,1) -> 17.1 | S12: =OFFSET('0_Tabla Concentrados'!$A$1,$C12,$S$2,1,1) -> 43.7 | T12: =OFFSET('0_Tabla Concentrados'!$A$1,$C12,$T$2,1,1) -> 54.6 | U12: =OFFSET('0_Tabla Concentrados'!$A$1,$C12,$U$2,1,1) -> 0 | V12: =OFFSET('0_Tabla Concentrados'!$A$1,$C12,$V$2,1,1) -> 0.2 | W12: =OFFSET('0_Tabla Concentrados'!$A$1,$C12,$W$2,1,1) -> 0 | X12: =OFFSET('0_Tabla Concentrados'!$A$1,$C12,$X$2,1,1) -> 0 | Y12: =OFFSET('0_Tabla Concentrados'!$A$1,$C12,$Y$2,1,1) -> 7 | Z12: =OFFSET('0_Tabla Concentrados'!$A$1,$C12,$Z$2,1,1) -> 16.5 | AA12: =OFFSET('0_Tabla Concentrados'!$A$1,$C12,$AA$2,1,1) -> 488 | AB12: =OFFSET('0_Tabla Concentrados'!$A$1,$C12,$AB$2,1,1) -> 153.419998 | AC12: =OFFSET('0_Tabla Concentrados'!$A$1,$C12,$AC$2,1,1) -> 0.849655 | AD12: =OFFSET('0_Tabla Concentrados'!$A$1,$C12,$AD$2,1,1) -> 779.133635 | AE12: =OFFSET('0_Tabla Concentrados'!$A$1,$C12,$AE$2,1,1) -> 22 | AF12: =OFFSET('0_Tabla Concentrados'!$A$1,$C12,$AF$2,1,1) -> 84 | AG12: =OFFSET('0_Tabla Concentrados'!$A$1,$C12,$AG$2,1,1) -> 163 | AH12: =OFFSET('0_Tabla Concentrados'!$A$1,$C12,$AH$2,1,1) -> 104 | AI12: =OFFSET('0_Tabla Concentrados'!$A$1,$C12,$AI$2,1,1) -> 8 | AJ12: =OFFSET('0_Tabla Concentrados'!$A$1,$C12,$AJ$2,1,1) -> 83 | AK12: =OFFSET('0_Tabla Concentrados'!$A$1,$C12,$AK$2,1,1) -> 2.3 | AL12: =OFFSET('0_Tabla Concentrados'!$A$1,$C12,$AL$2,1,1) -> 0.6819996035 | AM12: =OFFSET('0_Tabla Concentrados'!$A$1,$C12,$AM$2,1,1) -> 737.9075552 | AN12: =IF('II_Plantear Ración'!$E13>0,IF(CálculosVL!E12>=0,1,"No"),"") ->  | AO12: =IF('II_Plantear Ración'!$E13>0,IF(CálculosVL!F12>=0,1,"No"),"") ->  | AP12: =IF('II_Plantear Ración'!$E13>0,IF(CálculosVL!G12>=0,1,"No"),"") ->  | AQ12: =IF('II_Plantear Ración'!$E13>0,IF(CálculosVL!H12=0,"No",1),"") ->  | AR12: =IF('II_Plantear Ración'!$E13>0,IF(CálculosVL!I12>0,1,"No"),"") ->  | AS12: =IF('II_Plantear Ración'!$E13>0,IF(CálculosVL!J12>0,1,"No"),"") ->  | AT12: =IF('II_Plantear Ración'!$E13>0,IF(CálculosVL!K12>0,1,"No"),"") ->  | AU12: =IF('II_Plantear Ración'!$E13>0,IF(CálculosVL!L12>0,1,"No"),"") ->  | AV12: =IF('II_Plantear Ración'!$E13>0,IF(CálculosVL!M12>0,1,"No"),"") ->  | AW12: =IF('II_Plantear Ración'!$E13>0,IF(CálculosVL!N12>0,1,"No"),"") ->  | AX12: =IF('II_Plantear Ración'!$E13>0,IF(CálculosVL!O12>0,1,"No"),"") ->  | AY12: =IF('II_Plantear Ración'!$E13>0,IF(CálculosVL!P12>0,1,"No"),"") ->  | AZ12: =IF('II_Plantear Ración'!$E13>0,IF(CálculosVL!Q12>0,1,"No"),"") ->  | BA12: =IF('II_Plantear Ración'!$E13>0,IF(CálculosVL!R12>0,1,"No"),"") ->  | BB12: =IF('II_Plantear Ración'!$E13>0,IF(CálculosVL!S12>0,1,"No"),"") ->  | BC12: =IF('II_Plantear Ración'!$E13>0,IF(CálculosVL!T12>0,1,"No"),"") ->  | BD12: =IF('II_Plantear Ración'!$E13>0,IF(CálculosVL!U12>0,1,"No"),"") ->  | BE12: =IF('II_Plantear Ración'!$E13>0,IF(CálculosVL!V12>0,1,"No"),"") ->  | BF12: =IF('II_Plantear Ración'!$E13>0,IF(CálculosVL!W12>0,1,"No"),"") ->  | BG12: =IF('II_Plantear Ración'!$E13>0,IF(CálculosVL!X12>0,1,"No"),"") ->  | BH12: =IF('II_Plantear Ración'!$E13>0,IF(CálculosVL!Y12>0,1,"No"),"") ->  | BI12: =IF('II_Plantear Ración'!$E13>0,IF(CálculosVL!Z12>0,1,"No"),"") ->  | BJ12: =IF('II_Plantear Ración'!$E13>0,IF(CálculosVL!AA12>0,1,"No"),"") ->  | BK12: =IF('II_Plantear Ración'!$E13>0,IF(CálculosVL!AB12>0,1,"No"),"") ->  | BL12: =IF('II_Plantear Ración'!$E13>0,IF(CálculosVL!AC12>0,1,"No"),"") ->  | BM12: =IF('II_Plantear Ración'!$E13>0,IF(CálculosVL!AD12>0,1,"No"),"") ->  | BN12: =IF('II_Plantear Ración'!$E13>0,IF(CálculosVL!AE12>0,1,"No"),"") ->  | BO12: =IF('II_Plantear Ración'!$E13>0,IF(CálculosVL!AF12>0,1,"No"),"") ->  | BP12: =IF('II_Plantear Ración'!$E13>0,IF(CálculosVL!AG12>0,1,"No"),"") ->  | BQ12: =IF('II_Plantear Ración'!$E13>0,IF(CálculosVL!AH12>0,1,"No"),"") ->  | BR12: =IF('II_Plantear Ración'!$E13>0,IF(CálculosVL!AI12>0,1,"No"),"") ->  | BS12: =IF('II_Plantear Ración'!$E13>0,IF(CálculosVL!AJ12>0,1,"No"),"") ->  | BT12: =IF('II_Plantear Ración'!$E13>0,IF(CálculosVL!AK12>0,1,"No"),"") ->  | BU12: =IF('II_Plantear Ración'!$E13>0,IF(CálculosVL!AL12>0,1,"No"),"") ->  | BV12: =IF('II_Plantear Ración'!$E13>0,IF(CálculosVL!AM12>0,1,"No"),"") ->  | BW12: 0 | BX12: 0 | BY12: 0 | BZ12: 0 | CA12: 0 | CB12: 0 | CC12: 0 | CD12: 0 | CE12: 0 | CF12: 0 | CG12: 0 | CH12: 0 | CI12: 0 | CJ12: 0 | CK12: 0 | CL12: 0 | CM12: 0 | CN12: 0 | CO12: 0 | CP12: 0 | CQ12: 0 | CR12: 0 | CS12: 0 | CT12: 0 | CU12: 0 | CV12: 0 | CW12: 0 | CX12: 0 | CY12: 0 | CZ12: 0 | DA12: 0 | DB12: 0 | DC12: 0 | DD12: 0 | DE12: 0
B13: =IF(OFFSET('0_Tabla Concentrados'!$A$1,C13,0,1,1)=0,"",OFFSET('0_Tabla Concentrados'!$A$1,C13,0,1,1)) -> Altramuz extrusionado | C13: 54 | D13: =OFFSET('0_Tabla Concentrados'!$A$1,$C13,$D$2,1,1) -> 88 | E13: =OFFSET('0_Tabla Concentrados'!$A$1,$C13,$E$2,1,1) -> 0.1714 | F13: =OFFSET('0_Tabla Concentrados'!$A$1,$C13,$F$2,1,1) -> 1.52751288 | G13: =OFFSET('0_Tabla Concentrados'!$A$1,$C13,$G$2,1,1) -> 127.7145253 | H13: =OFFSET('0_Tabla Concentrados'!$A$1,$C13,$H$2,1,1) -> 223.2811959 | I13: =OFFSET('0_Tabla Concentrados'!$A$1,$C13,$I$2,1,1) -> 2 | J13: =OFFSET('0_Tabla Concentrados'!$A$1,$C13,$J$2,1,1) -> 1.1 | K13: =OFFSET('0_Tabla Concentrados'!$A$1,$C13,$K$2,1,1) -> 3.06 | L13: =OFFSET('0_Tabla Concentrados'!$A$1,$C13,$L$2,1,1) -> 1.7 | M13: =OFFSET('0_Tabla Concentrados'!$A$1,$C13,$M$2,1,1) -> 10 | N13: =OFFSET('0_Tabla Concentrados'!$A$1,$C13,$N$2,1,1) -> 0.11 | O13: =OFFSET('0_Tabla Concentrados'!$A$1,$C13,$O$2,1,1) -> 0 | P13: =OFFSET('0_Tabla Concentrados'!$A$1,$C13,$P$2,1,1) -> 0.23 | Q13: =OFFSET('0_Tabla Concentrados'!$A$1,$C13,$Q$2,1,1) -> 0 | R13: =OFFSET('0_Tabla Concentrados'!$A$1,$C13,$R$2,1,1) -> 0 | S13: =OFFSET('0_Tabla Concentrados'!$A$1,$C13,$S$2,1,1) -> 0 | T13: =OFFSET('0_Tabla Concentrados'!$A$1,$C13,$T$2,1,1) -> 0 | U13: =OFFSET('0_Tabla Concentrados'!$A$1,$C13,$U$2,1,1) -> 0 | V13: =OFFSET('0_Tabla Concentrados'!$A$1,$C13,$V$2,1,1) -> 0 | W13: =OFFSET('0_Tabla Concentrados'!$A$1,$C13,$W$2,1,1) -> 0 | X13: =OFFSET('0_Tabla Concentrados'!$A$1,$C13,$X$2,1,1) -> 0 | Y13: =OFFSET('0_Tabla Concentrados'!$A$1,$C13,$Y$2,1,1) -> 0 | Z13: =OFFSET('0_Tabla Concentrados'!$A$1,$C13,$Z$2,1,1) -> 83.93 | AA13: =OFFSET('0_Tabla Concentrados'!$A$1,$C13,$AA$2,1,1) -> 406 | AB13: =OFFSET('0_Tabla Concentrados'!$A$1,$C13,$AB$2,1,1) -> 69.23209069 | AC13: =OFFSET('0_Tabla Concentrados'!$A$1,$C13,$AC$2,1,1) -> 0.91027 | AD13: =OFFSET('0_Tabla Concentrados'!$A$1,$C13,$AD$2,1,1) -> 877.50028 | AE13: =OFFSET('0_Tabla Concentrados'!$A$1,$C13,$AE$2,1,1) -> 109 | AF13: =OFFSET('0_Tabla Concentrados'!$A$1,$C13,$AF$2,1,1) -> 121 | AG13: =OFFSET('0_Tabla Concentrados'!$A$1,$C13,$AG$2,1,1) -> 214 | AH13: =OFFSET('0_Tabla Concentrados'!$A$1,$C13,$AH$2,1,1) -> 175 | AI13: =OFFSET('0_Tabla Concentrados'!$A$1,$C13,$AI$2,1,1) -> 34.4 | AJ13: =OFFSET('0_Tabla Concentrados'!$A$1,$C13,$AJ$2,1,1) -> 36 | AK13: =OFFSET('0_Tabla Concentrados'!$A$1,$C13,$AK$2,1,1) -> 0 | AL13: =OFFSET('0_Tabla Concentrados'!$A$1,$C13,$AL$2,1,1) -> 0.8224029302 | AM13: =OFFSET('0_Tabla Concentrados'!$A$1,$C13,$AM$2,1,1) -> 769.7935828 | AN13: =IF('II_Plantear Ración'!$E14>0,IF(CálculosVL!E13>=0,1,"No"),"") ->  | AO13: =IF('II_Plantear Ración'!$E14>0,IF(CálculosVL!F13>=0,1,"No"),"") ->  | AP13: =IF('II_Plantear Ración'!$E14>0,IF(CálculosVL!G13>=0,1,"No"),"") ->  | AQ13: =IF('II_Plantear Ración'!$E14>0,IF(CálculosVL!H13=0,"No",1),"") ->  | AR13: =IF('II_Plantear Ración'!$E14>0,IF(CálculosVL!I13>0,1,"No"),"") ->  | AS13: =IF('II_Plantear Ración'!$E14>0,IF(CálculosVL!J13>0,1,"No"),"") ->  | AT13: =IF('II_Plantear Ración'!$E14>0,IF(CálculosVL!K13>0,1,"No"),"") ->  | AU13: =IF('II_Plantear Ración'!$E14>0,IF(CálculosVL!L13>0,1,"No"),"") ->  | AV13: =IF('II_Plantear Ración'!$E14>0,IF(CálculosVL!M13>0,1,"No"),"") ->  | AW13: =IF('II_Plantear Ración'!$E14>0,IF(CálculosVL!N13>0,1,"No"),"") ->  | AX13: =IF('II_Plantear Ración'!$E14>0,IF(CálculosVL!O13>0,1,"No"),"") ->  | AY13: =IF('II_Plantear Ración'!$E14>0,IF(CálculosVL!P13>0,1,"No"),"") ->  | AZ13: =IF('II_Plantear Ración'!$E14>0,IF(CálculosVL!Q13>0,1,"No"),"") ->  | BA13: =IF('II_Plantear Ración'!$E14>0,IF(CálculosVL!R13>0,1,"No"),"") ->  | BB13: =IF('II_Plantear Ración'!$E14>0,IF(CálculosVL!S13>0,1,"No"),"") ->  | BC13: =IF('II_Plantear Ración'!$E14>0,IF(CálculosVL!T13>0,1,"No"),"") ->  | BD13: =IF('II_Plantear Ración'!$E14>0,IF(CálculosVL!U13>0,1,"No"),"") ->  | BE13: =IF('II_Plantear Ración'!$E14>0,IF(CálculosVL!V13>0,1,"No"),"") ->  | BF13: =IF('II_Plantear Ración'!$E14>0,IF(CálculosVL!W13>0,1,"No"),"") ->  | BG13: =IF('II_Plantear Ración'!$E14>0,IF(CálculosVL!X13>0,1,"No"),"") ->  | BH13: =IF('II_Plantear Ración'!$E14>0,IF(CálculosVL!Y13>0,1,"No"),"") ->  | BI13: =IF('II_Plantear Ración'!$E14>0,IF(CálculosVL!Z13>0,1,"No"),"") ->  | BJ13: =IF('II_Plantear Ración'!$E14>0,IF(CálculosVL!AA13>0,1,"No"),"") ->  | BK13: =IF('II_Plantear Ración'!$E14>0,IF(CálculosVL!AB13>0,1,"No"),"") ->  | BL13: =IF('II_Plantear Ración'!$E14>0,IF(CálculosVL!AC13>0,1,"No"),"") ->  | BM13: =IF('II_Plantear Ración'!$E14>0,IF(CálculosVL!AD13>0,1,"No"),"") ->  | BN13: =IF('II_Plantear Ración'!$E14>0,IF(CálculosVL!AE13>0,1,"No"),"") ->  | BO13: =IF('II_Plantear Ración'!$E14>0,IF(CálculosVL!AF13>0,1,"No"),"") ->  | BP13: =IF('II_Plantear Ración'!$E14>0,IF(CálculosVL!AG13>0,1,"No"),"") ->  | BQ13: =IF('II_Plantear Ración'!$E14>0,IF(CálculosVL!AH13>0,1,"No"),"") ->  | BR13: =IF('II_Plantear Ración'!$E14>0,IF(CálculosVL!AI13>0,1,"No"),"") ->  | BS13: =IF('II_Plantear Ración'!$E14>0,IF(CálculosVL!AJ13>0,1,"No"),"") ->  | BT13: =IF('II_Plantear Ración'!$E14>0,IF(CálculosVL!AK13>0,1,"No"),"") ->  | BU13: =IF('II_Plantear Ración'!$E14>0,IF(CálculosVL!AL13>0,1,"No"),"") ->  | BV13: =IF('II_Plantear Ración'!$E14>0,IF(CálculosVL!AM13>0,1,"No"),"") ->  | BW13: 0 | BX13: 0 | BY13: 0 | BZ13: 0 | CA13: 0 | CB13: 0 | CC13: 0 | CD13: 0 | CE13: 0 | CF13: 0 | CG13: 0 | CH13: 0 | CI13: 0 | CJ13: 0 | CK13: 0 | CL13: 0 | CM13: 0 | CN13: 0 | CO13: 0 | CP13: 0 | CQ13: 0 | CR13: 0 | CS13: 0 | CT13: 0 | CU13: 0 | CV13: 0 | CW13: 0 | CX13: 0 | CY13: 0 | CZ13: 0 | DA13: 0 | DB13: 0 | DC13: 0 | DD13: 0 | DE13: 0
B14: =IF(OFFSET('0_Tabla Concentrados'!$A$1,C14,0,1,1)=0,"",OFFSET('0_Tabla Concentrados'!$A$1,C14,0,1,1)) -> Algodón, grano | C14: 34 | D14: =OFFSET('0_Tabla Concentrados'!$A$1,$C14,$D$2,1,1) -> 92 | E14: =OFFSET('0_Tabla Concentrados'!$A$1,$C14,$E$2,1,1) -> 0.5034 | F14: =OFFSET('0_Tabla Concentrados'!$A$1,$C14,$F$2,1,1) -> 1.105745464 | G14: =OFFSET('0_Tabla Concentrados'!$A$1,$C14,$G$2,1,1) -> 91.65479282 | H14: =OFFSET('0_Tabla Concentrados'!$A$1,$C14,$H$2,1,1) -> 70.58383788 | I14: =OFFSET('0_Tabla Concentrados'!$A$1,$C14,$I$2,1,1) -> 2 | J14: =OFFSET('0_Tabla Concentrados'!$A$1,$C14,$J$2,1,1) -> 1.155 | K14: =OFFSET('0_Tabla Concentrados'!$A$1,$C14,$K$2,1,1) -> 4.736 | L14: =OFFSET('0_Tabla Concentrados'!$A$1,$C14,$L$2,1,1) -> 0 | M14: =OFFSET('0_Tabla Concentrados'!$A$1,$C14,$M$2,1,1) -> 0 | N14: =OFFSET('0_Tabla Concentrados'!$A$1,$C14,$N$2,1,1) -> 0 | O14: =OFFSET('0_Tabla Concentrados'!$A$1,$C14,$O$2,1,1) -> 0 | P14: =OFFSET('0_Tabla Concentrados'!$A$1,$C14,$P$2,1,1) -> 0 | Q14: =OFFSET('0_Tabla Concentrados'!$A$1,$C14,$Q$2,1,1) -> 0 | R14: =OFFSET('0_Tabla Concentrados'!$A$1,$C14,$R$2,1,1) -> 0 | S14: =OFFSET('0_Tabla Concentrados'!$A$1,$C14,$S$2,1,1) -> 0 | T14: =OFFSET('0_Tabla Concentrados'!$A$1,$C14,$T$2,1,1) -> 0 | U14: =OFFSET('0_Tabla Concentrados'!$A$1,$C14,$U$2,1,1) -> 0 | V14: =OFFSET('0_Tabla Concentrados'!$A$1,$C14,$V$2,1,1) -> 0 | W14: =OFFSET('0_Tabla Concentrados'!$A$1,$C14,$W$2,1,1) -> 0 | X14: =OFFSET('0_Tabla Concentrados'!$A$1,$C14,$X$2,1,1) -> 0 | Y14: =OFFSET('0_Tabla Concentrados'!$A$1,$C14,$Y$2,1,1) -> 0 | Z14: =OFFSET('0_Tabla Concentrados'!$A$1,$C14,$Z$2,1,1) -> 188.1 | AA14: =OFFSET('0_Tabla Concentrados'!$A$1,$C14,$AA$2,1,1) -> 220 | AB14: =OFFSET('0_Tabla Concentrados'!$A$1,$C14,$AB$2,1,1) -> 48.76444907 | AC14: =OFFSET('0_Tabla Concentrados'!$A$1,$C14,$AC$2,1,1) -> 0.64652 | AD14: =OFFSET('0_Tabla Concentrados'!$A$1,$C14,$AD$2,1,1) -> 618.71964 | AE14: =OFFSET('0_Tabla Concentrados'!$A$1,$C14,$AE$2,1,1) -> 198 | AF14: =OFFSET('0_Tabla Concentrados'!$A$1,$C14,$AF$2,1,1) -> 276 | AG14: =OFFSET('0_Tabla Concentrados'!$A$1,$C14,$AG$2,1,1) -> 456 | AH14: =OFFSET('0_Tabla Concentrados'!$A$1,$C14,$AH$2,1,1) -> 354 | AI14: =OFFSET('0_Tabla Concentrados'!$A$1,$C14,$AI$2,1,1) -> 105 | AJ14: =OFFSET('0_Tabla Concentrados'!$A$1,$C14,$AJ$2,1,1) -> 43 | AK14: =OFFSET('0_Tabla Concentrados'!$A$1,$C14,$AK$2,1,1) -> 0 | AL14: =OFFSET('0_Tabla Concentrados'!$A$1,$C14,$AL$2,1,1) -> 0.7394108541 | AM14: =OFFSET('0_Tabla Concentrados'!$A$1,$C14,$AM$2,1,1) -> 581.8575174 | AN14: =IF('II_Plantear Ración'!$E15>0,IF(CálculosVL!E14>=0,1,"No"),"") ->  | AO14: =IF('II_Plantear Ración'!$E15>0,IF(CálculosVL!F14>=0,1,"No"),"") ->  | AP14: =IF('II_Plantear Ración'!$E15>0,IF(CálculosVL!G14>=0,1,"No"),"") ->  | AQ14: =IF('II_Plantear Ración'!$E15>0,IF(CálculosVL!H14=0,"No",1),"") ->  | AR14: =IF('II_Plantear Ración'!$E15>0,IF(CálculosVL!I14>0,1,"No"),"") ->  | AS14: =IF('II_Plantear Ración'!$E15>0,IF(CálculosVL!J14>0,1,"No"),"") ->  | AT14: =IF('II_Plantear Ración'!$E15>0,IF(CálculosVL!K14>0,1,"No"),"") ->  | AU14: =IF('II_Plantear Ración'!$E15>0,IF(CálculosVL!L14>0,1,"No"),"") ->  | AV14: =IF('II_Plantear Ración'!$E15>0,IF(CálculosVL!M14>0,1,"No"),"") ->  | AW14: =IF('II_Plantear Ración'!$E15>0,IF(CálculosVL!N14>0,1,"No"),"") ->  | AX14: =IF('II_Plantear Ración'!$E15>0,IF(CálculosVL!O14>0,1,"No"),"") ->  | AY14: =IF('II_Plantear Ración'!$E15>0,IF(CálculosVL!P14>0,1,"No"),"") ->  | AZ14: =IF('II_Plantear Ración'!$E15>0,IF(CálculosVL!Q14>0,1,"No"),"") ->  | BA14: =IF('II_Plantear Ración'!$E15>0,IF(CálculosVL!R14>0,1,"No"),"") ->  | BB14: =IF('II_Plantear Ración'!$E15>0,IF(CálculosVL!S14>0,1,"No"),"") ->  | BC14: =IF('II_Plantear Ración'!$E15>0,IF(CálculosVL!T14>0,1,"No"),"") ->  | BD14: =IF('II_Plantear Ración'!$E15>0,IF(CálculosVL!U14>0,1,"No"),"") ->  | BE14: =IF('II_Plantear Ración'!$E15>0,IF(CálculosVL!V14>0,1,"No"),"") ->  | BF14: =IF('II_Plantear Ración'!$E15>0,IF(CálculosVL!W14>0,1,"No"),"") ->  | BG14: =IF('II_Plantear Ración'!$E15>0,IF(CálculosVL!X14>0,1,"No"),"") ->  | BH14: =IF('II_Plantear Ración'!$E15>0,IF(CálculosVL!Y14>0,1,"No"),"") ->  | BI14: =IF('II_Plantear Ración'!$E15>0,IF(CálculosVL!Z14>0,1,"No"),"") ->  | BJ14: =IF('II_Plantear Ración'!$E15>0,IF(CálculosVL!AA14>0,1,"No"),"") ->  | BK14: =IF('II_Plantear Ración'!$E15>0,IF(CálculosVL!AB14>0,1,"No"),"") ->  | BL14: =IF('II_Plantear Ración'!$E15>0,IF(CálculosVL!AC14>0,1,"No"),"") ->  | BM14: =IF('II_Plantear Ración'!$E15>0,IF(CálculosVL!AD14>0,1,"No"),"") ->  | BN14: =IF('II_Plantear Ración'!$E15>0,IF(CálculosVL!AE14>0,1,"No"),"") ->  | BO14: =IF('II_Plantear Ración'!$E15>0,IF(CálculosVL!AF14>0,1,"No"),"") ->  | BP14: =IF('II_Plantear Ración'!$E15>0,IF(CálculosVL!AG14>0,1,"No"),"") ->  | BQ14: =IF('II_Plantear Ración'!$E15>0,IF(CálculosVL!AH14>0,1,"No"),"") ->  | BR14: =IF('II_Plantear Ración'!$E15>0,IF(CálculosVL!AI14>0,1,"No"),"") ->  | BS14: =IF('II_Plantear Ración'!$E15>0,IF(CálculosVL!AJ14>0,1,"No"),"") ->  | BT14: =IF('II_Plantear Ración'!$E15>0,IF(CálculosVL!AK14>0,1,"No"),"") ->  | BU14: =IF('II_Plantear Ración'!$E15>0,IF(CálculosVL!AL14>0,1,"No"),"") ->  | BV14: =IF('II_Plantear Ración'!$E15>0,IF(CálculosVL!AM14>0,1,"No"),"") ->  | BW14: 0 | BX14: 0 | BY14: 0 | BZ14: 0 | CA14: 0 | CB14: 0 | CC14: 0 | CD14: 0 | CE14: 0 | CF14: 0 | CG14: 0 | CH14: 0 | CI14: 0 | CJ14: 0 | CK14: 0 | CL14: 0 | CM14: 0 | CN14: 0 | CO14: 0 | CP14: 0 | CQ14: 0 | CR14: 0 | CS14: 0 | CT14: 0 | CU14: 0 | CV14: 0 | CW14: 0 | CX14: 0 | CY14: 0 | CZ14: 0 | DA14: 0 | DB14: 0 | DC14: 0 | DD14: 0 | DE14: 0
B15: =IF(OFFSET('0_Tabla Concentrados'!$A$1,C15,0,1,1)=0,"",OFFSET('0_Tabla Concentrados'!$A$1,C15,0,1,1)) -> Levadura cervecería | C15: 75 | D15: =OFFSET('0_Tabla Concentrados'!$A$1,$C15,$D$2,1,1) -> 93.3 | E15: =OFFSET('0_Tabla Concentrados'!$A$1,$C15,$E$2,1,1) -> 0.15 | F15: =OFFSET('0_Tabla Concentrados'!$A$1,$C15,$F$2,1,1) -> 1.18 | G15: =OFFSET('0_Tabla Concentrados'!$A$1,$C15,$G$2,1,1) -> 143 | H15: =OFFSET('0_Tabla Concentrados'!$A$1,$C15,$H$2,1,1) -> 278 | I15: =OFFSET('0_Tabla Concentrados'!$A$1,$C15,$I$2,1,1) -> 2 | J15: =OFFSET('0_Tabla Concentrados'!$A$1,$C15,$J$2,1,1) -> 1.65 | K15: =OFFSET('0_Tabla Concentrados'!$A$1,$C15,$K$2,1,1) -> 9.18 | L15: =OFFSET('0_Tabla Concentrados'!$A$1,$C15,$L$2,1,1) -> 2.4 | M15: =OFFSET('0_Tabla Concentrados'!$A$1,$C15,$M$2,1,1) -> 0 | N15: =OFFSET('0_Tabla Concentrados'!$A$1,$C15,$N$2,1,1) -> 0 | O15: =OFFSET('0_Tabla Concentrados'!$A$1,$C15,$O$2,1,1) -> 0 | P15: =OFFSET('0_Tabla Concentrados'!$A$1,$C15,$P$2,1,1) -> 0 | Q15: =OFFSET('0_Tabla Concentrados'!$A$1,$C15,$Q$2,1,1) -> 0 | R15: =OFFSET('0_Tabla Concentrados'!$A$1,$C15,$R$2,1,1) -> 0 | S15: =OFFSET('0_Tabla Concentrados'!$A$1,$C15,$S$2,1,1) -> 0 | T15: =OFFSET('0_Tabla Concentrados'!$A$1,$C15,$T$2,1,1) -> 0 | U15: =OFFSET('0_Tabla Concentrados'!$A$1,$C15,$U$2,1,1) -> 0 | V15: =OFFSET('0_Tabla Concentrados'!$A$1,$C15,$V$2,1,1) -> 0 | W15: =OFFSET('0_Tabla Concentrados'!$A$1,$C15,$W$2,1,1) -> 0 | X15: =OFFSET('0_Tabla Concentrados'!$A$1,$C15,$X$2,1,1) -> 0 | Y15: =OFFSET('0_Tabla Concentrados'!$A$1,$C15,$Y$2,1,1) -> 0 | Z15: =OFFSET('0_Tabla Concentrados'!$A$1,$C15,$Z$2,1,1) -> 32 | AA15: =OFFSET('0_Tabla Concentrados'!$A$1,$C15,$AA$2,1,1) -> 476 | AB15: =OFFSET('0_Tabla Concentrados'!$A$1,$C15,$AB$2,1,1) -> 87 | AC15: =OFFSET('0_Tabla Concentrados'!$A$1,$C15,$AC$2,1,1) -> 0.84 | AD15: =OFFSET('0_Tabla Concentrados'!$A$1,$C15,$AD$2,1,1) -> 756 | AE15: =OFFSET('0_Tabla Concentrados'!$A$1,$C15,$AE$2,1,1) -> 40 | AF15: =OFFSET('0_Tabla Concentrados'!$A$1,$C15,$AF$2,1,1) -> 21 | AG15: =OFFSET('0_Tabla Concentrados'!$A$1,$C15,$AG$2,1,1) -> 88 | AH15: =OFFSET('0_Tabla Concentrados'!$A$1,$C15,$AH$2,1,1) -> 25 | AI15: =OFFSET('0_Tabla Concentrados'!$A$1,$C15,$AI$2,1,1) -> 7 | AJ15: =OFFSET('0_Tabla Concentrados'!$A$1,$C15,$AJ$2,1,1) -> 32 | AK15: =OFFSET('0_Tabla Concentrados'!$A$1,$C15,$AK$2,1,1) -> 0 | AL15: =OFFSET('0_Tabla Concentrados'!$A$1,$C15,$AL$2,1,1) -> 0.815157707 | AM15: =OFFSET('0_Tabla Concentrados'!$A$1,$C15,$AM$2,1,1) -> 0 | AN15: =IF('II_Plantear Ración'!$E16>0,IF(CálculosVL!E15>=0,1,"No"),"") ->  | AO15: =IF('II_Plantear Ración'!$E16>0,IF(CálculosVL!F15>=0,1,"No"),"") ->  | AP15: =IF('II_Plantear Ración'!$E16>0,IF(CálculosVL!G15>=0,1,"No"),"") ->  | AQ15: =IF('II_Plantear Ración'!$E16>0,IF(CálculosVL!H15=0,"No",1),"") ->  | AR15: =IF('II_Plantear Ración'!$E16>0,IF(CálculosVL!I15>0,1,"No"),"") ->  | AS15: =IF('II_Plantear Ración'!$E16>0,IF(CálculosVL!J15>0,1,"No"),"") ->  | AT15: =IF('II_Plantear Ración'!$E16>0,IF(CálculosVL!K15>0,1,"No"),"") ->  | AU15: =IF('II_Plantear Ración'!$E16>0,IF(CálculosVL!L15>0,1,"No"),"") ->  | AV15: =IF('II_Plantear Ración'!$E16>0,IF(CálculosVL!M15>0,1,"No"),"") ->  | AW15: =IF('II_Plantear Ración'!$E16>0,IF(CálculosVL!N15>0,1,"No"),"") ->  | AX15: =IF('II_Plantear Ración'!$E16>0,IF(CálculosVL!O15>0,1,"No"),"") ->  | AY15: =IF('II_Plantear Ración'!$E16>0,IF(CálculosVL!P15>0,1,"No"),"") ->  | AZ15: =IF('II_Plantear Ración'!$E16>0,IF(CálculosVL!Q15>0,1,"No"),"") ->  | BA15: =IF('II_Plantear Ración'!$E16>0,IF(CálculosVL!R15>0,1,"No"),"") ->  | BB15: =IF('II_Plantear Ración'!$E16>0,IF(CálculosVL!S15>0,1,"No"),"") ->  | BC15: =IF('II_Plantear Ración'!$E16>0,IF(CálculosVL!T15>0,1,"No"),"") ->  | BD15: =IF('II_Plantear Ración'!$E16>0,IF(CálculosVL!U15>0,1,"No"),"") ->  | BE15: =IF('II_Plantear Ración'!$E16>0,IF(CálculosVL!V15>0,1,"No"),"") ->  | BF15: =IF('II_Plantear Ración'!$E16>0,IF(CálculosVL!W15>0,1,"No"),"") ->  | BG15: =IF('II_Plantear Ración'!$E16>0,IF(CálculosVL!X15>0,1,"No"),"") ->  | BH15: =IF('II_Plantear Ración'!$E16>0,IF(CálculosVL!Y15>0,1,"No"),"") ->  | BI15: =IF('II_Plantear Ración'!$E16>0,IF(CálculosVL!Z15>0,1,"No"),"") ->  | BJ15: =IF('II_Plantear Ración'!$E16>0,IF(CálculosVL!AA15>0,1,"No"),"") ->  | BK15: =IF('II_Plantear Ración'!$E16>0,IF(CálculosVL!AB15>0,1,"No"),"") ->  | BL15: =IF('II_Plantear Ración'!$E16>0,IF(CálculosVL!AC15>0,1,"No"),"") ->  | BM15: =IF('II_Plantear Ración'!$E16>0,IF(CálculosVL!AD15>0,1,"No"),"") ->  | BN15: =IF('II_Plantear Ración'!$E16>0,IF(CálculosVL!AE15>0,1,"No"),"") ->  | BO15: =IF('II_Plantear Ración'!$E16>0,IF(CálculosVL!AF15>0,1,"No"),"") ->  | BP15: =IF('II_Plantear Ración'!$E16>0,IF(CálculosVL!AG15>0,1,"No"),"") ->  | BQ15: =IF('II_Plantear Ración'!$E16>0,IF(CálculosVL!AH15>0,1,"No"),"") ->  | BR15: =IF('II_Plantear Ración'!$E16>0,IF(CálculosVL!AI15>0,1,"No"),"") ->  | BS15: =IF('II_Plantear Ración'!$E16>0,IF(CálculosVL!AJ15>0,1,"No"),"") ->  | BT15: =IF('II_Plantear Ración'!$E16>0,IF(CálculosVL!AK15>0,1,"No"),"") ->  | BU15: =IF('II_Plantear Ración'!$E16>0,IF(CálculosVL!AL15>0,1,"No"),"") ->  | BV15: =IF('II_Plantear Ración'!$E16>0,IF(CálculosVL!AM15>0,1,"No"),"") ->  | BW15: 0 | BX15: 0 | BY15: 0 | BZ15: 0 | CA15: 0 | CB15: 0 | CC15: 0 | CD15: 0 | CE15: 0 | CF15: 0 | CG15: 0 | CH15: 0 | CI15: 0 | CJ15: 0 | CK15: 0 | CL15: 0 | CM15: 0 | CN15: 0 | CO15: 0 | CP15: 0 | CQ15: 0 | CR15: 0 | CS15: 0 | CT15: 0 | CU15: 0 | CV15: 0 | CW15: 0 | CX15: 0 | CY15: 0 | CZ15: 0 | DA15: 0 | DB15: 0 | DC15: 0 | DD15: 0 | DE15: 0
B16: =IF(OFFSET('0_Tabla Concentrados'!$A$1,C16,0,1,1)=0,"",OFFSET('0_Tabla Concentrados'!$A$1,C16,0,1,1)) -> Grasa vegetal, manteca de cerdo (todos los tipos) | C16: 74 | D16: =OFFSET('0_Tabla Concentrados'!$A$1,$C16,$D$2,1,1) -> 99.9 | E16: =OFFSET('0_Tabla Concentrados'!$A$1,$C16,$E$2,1,1) -> 0.25 | F16: =OFFSET('0_Tabla Concentrados'!$A$1,$C16,$F$2,1,1) -> 3.61 | G16: =OFFSET('0_Tabla Concentrados'!$A$1,$C16,$G$2,1,1) -> 1e-07 | H16: =OFFSET('0_Tabla Concentrados'!$A$1,$C16,$H$2,1,1) -> -14 | I16: =OFFSET('0_Tabla Concentrados'!$A$1,$C16,$I$2,1,1) -> 2 | J16: =OFFSET('0_Tabla Concentrados'!$A$1,$C16,$J$2,1,1) -> 5.5e-08 | K16: =OFFSET('0_Tabla Concentrados'!$A$1,$C16,$K$2,1,1) -> 6.8e-08 | L16: =OFFSET('0_Tabla Concentrados'!$A$1,$C16,$L$2,1,1) -> 1e-07 | M16: =OFFSET('0_Tabla Concentrados'!$A$1,$C16,$M$2,1,1) -> 1e-07 | N16: =OFFSET('0_Tabla Concentrados'!$A$1,$C16,$N$2,1,1) -> 1e-07 | O16: =OFFSET('0_Tabla Concentrados'!$A$1,$C16,$O$2,1,1) -> 1e-07 | P16: =OFFSET('0_Tabla Concentrados'!$A$1,$C16,$P$2,1,1) -> 1e-07 | Q16: =OFFSET('0_Tabla Concentrados'!$A$1,$C16,$Q$2,1,1) -> 1e-07 | R16: =OFFSET('0_Tabla Concentrados'!$A$1,$C16,$R$2,1,1) -> 1e-07 | S16: =OFFSET('0_Tabla Concentrados'!$A$1,$C16,$S$2,1,1) -> 1e-07 | T16: =OFFSET('0_Tabla Concentrados'!$A$1,$C16,$T$2,1,1) -> 1e-07 | U16: =OFFSET('0_Tabla Concentrados'!$A$1,$C16,$U$2,1,1) -> 0 | V16: =OFFSET('0_Tabla Concentrados'!$A$1,$C16,$V$2,1,1) -> 1e-07 | W16: =OFFSET('0_Tabla Concentrados'!$A$1,$C16,$W$2,1,1) -> 1300 | X16: =OFFSET('0_Tabla Concentrados'!$A$1,$C16,$X$2,1,1) -> 1e-07 | Y16: =OFFSET('0_Tabla Concentrados'!$A$1,$C16,$Y$2,1,1) -> 95 | Z16: =OFFSET('0_Tabla Concentrados'!$A$1,$C16,$Z$2,1,1) -> 999 | AA16: =OFFSET('0_Tabla Concentrados'!$A$1,$C16,$AA$2,1,1) -> 1e-07 | AB16: =OFFSET('0_Tabla Concentrados'!$A$1,$C16,$AB$2,1,1) -> 1e-07 | AC16: =OFFSET('0_Tabla Concentrados'!$A$1,$C16,$AC$2,1,1) -> 0.9 | AD16: =OFFSET('0_Tabla Concentrados'!$A$1,$C16,$AD$2,1,1) -> 1e-07 | AE16: =OFFSET('0_Tabla Concentrados'!$A$1,$C16,$AE$2,1,1) -> 999 | AF16: =OFFSET('0_Tabla Concentrados'!$A$1,$C16,$AF$2,1,1) -> 1e-07 | AG16: =OFFSET('0_Tabla Concentrados'!$A$1,$C16,$AG$2,1,1) -> 1e-07 | AH16: =OFFSET('0_Tabla Concentrados'!$A$1,$C16,$AH$2,1,1) -> 1e-07 | AI16: =OFFSET('0_Tabla Concentrados'!$A$1,$C16,$AI$2,1,1) -> 1e-07 | AJ16: =OFFSET('0_Tabla Concentrados'!$A$1,$C16,$AJ$2,1,1) -> 1e-07 | AK16: =OFFSET('0_Tabla Concentrados'!$A$1,$C16,$AK$2,1,1) -> 1e-07 | AL16: =OFFSET('0_Tabla Concentrados'!$A$1,$C16,$AL$2,1,1) -> 0 | AM16: =OFFSET('0_Tabla Concentrados'!$A$1,$C16,$AM$2,1,1) -> 0 | AN16: =IF('II_Plantear Ración'!$E17>0,IF(CálculosVL!E16>=0,1,"No"),"") ->  | AO16: =IF('II_Plantear Ración'!$E17>0,IF(CálculosVL!F16>=0,1,"No"),"") ->  | AP16: =IF('II_Plantear Ración'!$E17>0,IF(CálculosVL!G16>=0,1,"No"),"") ->  | AQ16: =IF('II_Plantear Ración'!$E17>0,IF(CálculosVL!H16=0,"No",1),"") ->  | AR16: =IF('II_Plantear Ración'!$E17>0,IF(CálculosVL!I16>0,1,"No"),"") ->  | AS16: =IF('II_Plantear Ración'!$E17>0,IF(CálculosVL!J16>0,1,"No"),"") ->  | AT16: =IF('II_Plantear Ración'!$E17>0,IF(CálculosVL!K16>0,1,"No"),"") ->  | AU16: =IF('II_Plantear Ración'!$E17>0,IF(CálculosVL!L16>0,1,"No"),"") ->  | AV16: =IF('II_Plantear Ración'!$E17>0,IF(CálculosVL!M16>0,1,"No"),"") ->  | AW16: =IF('II_Plantear Ración'!$E17>0,IF(CálculosVL!N16>0,1,"No"),"") ->  | AX16: =IF('II_Plantear Ración'!$E17>0,IF(CálculosVL!O16>0,1,"No"),"") ->  | AY16: =IF('II_Plantear Ración'!$E17>0,IF(CálculosVL!P16>0,1,"No"),"") ->  | AZ16: =IF('II_Plantear Ración'!$E17>0,IF(CálculosVL!Q16>0,1,"No"),"") ->  | BA16: =IF('II_Plantear Ración'!$E17>0,IF(CálculosVL!R16>0,1,"No"),"") ->  | BB16: =IF('II_Plantear Ración'!$E17>0,IF(CálculosVL!S16>0,1,"No"),"") ->  | BC16: =IF('II_Plantear Ración'!$E17>0,IF(CálculosVL!T16>0,1,"No"),"") ->  | BD16: =IF('II_Plantear Ración'!$E17>0,IF(CálculosVL!U16>0,1,"No"),"") ->  | BE16: =IF('II_Plantear Ración'!$E17>0,IF(CálculosVL!V16>0,1,"No"),"") ->  | BF16: =IF('II_Plantear Ración'!$E17>0,IF(CálculosVL!W16>0,1,"No"),"") ->  | BG16: =IF('II_Plantear Ración'!$E17>0,IF(CálculosVL!X16>0,1,"No"),"") ->  | BH16: =IF('II_Plantear Ración'!$E17>0,IF(CálculosVL!Y16>0,1,"No"),"") ->  | BI16: =IF('II_Plantear Ración'!$E17>0,IF(CálculosVL!Z16>0,1,"No"),"") ->  | BJ16: =IF('II_Plantear Ración'!$E17>0,IF(CálculosVL!AA16>0,1,"No"),"") ->  | BK16: =IF('II_Plantear Ración'!$E17>0,IF(CálculosVL!AB16>0,1,"No"),"") ->  | BL16: =IF('II_Plantear Ración'!$E17>0,IF(CálculosVL!AC16>0,1,"No"),"") ->  | BM16: =IF('II_Plantear Ración'!$E17>0,IF(CálculosVL!AD16>0,1,"No"),"") ->  | BN16: =IF('II_Plantear Ración'!$E17>0,IF(CálculosVL!AE16>0,1,"No"),"") ->  | BO16: =IF('II_Plantear Ración'!$E17>0,IF(CálculosVL!AF16>0,1,"No"),"") ->  | BP16: =IF('II_Plantear Ración'!$E17>0,IF(CálculosVL!AG16>0,1,"No"),"") ->  | BQ16: =IF('II_Plantear Ración'!$E17>0,IF(CálculosVL!AH16>0,1,"No"),"") ->  | BR16: =IF('II_Plantear Ración'!$E17>0,IF(CálculosVL!AI16>0,1,"No"),"") ->  | BS16: =IF('II_Plantear Ración'!$E17>0,IF(CálculosVL!AJ16>0,1,"No"),"") ->  | BT16: =IF('II_Plantear Ración'!$E17>0,IF(CálculosVL!AK16>0,1,"No"),"") ->  | BU16: =IF('II_Plantear Ración'!$E17>0,IF(CálculosVL!AL16>0,1,"No"),"") ->  | BV16: =IF('II_Plantear Ración'!$E17>0,IF(CálculosVL!AM16>0,1,"No"),"") ->  | BW16: 0 | BX16: 0 | BY16: 0 | BZ16: 0 | CA16: 0 | CB16: 0 | CC16: 0 | CD16: 0 | CE16: 0 | CF16: 0 | CG16: 0 | CH16: 0 | CI16: 0 | CJ16: 0 | CK16: 0 | CL16: 0 | CM16: 0 | CN16: 0 | CO16: 0 | CP16: 0 | CQ16: 0 | CR16: 0 | CS16: 0 | CT16: 0 | CU16: 0 | CV16: 0 | CW16: 0 | CX16: 0 | CY16: 0 | CZ16: 0 | DA16: 0 | DB16: 0 | DC16: 0 | DD16: 0 | DE16: 0
B17: =IF(OFFSET('0_Tabla Concentrados'!$A$1,C17,0,1,1)=0,"",OFFSET('0_Tabla Concentrados'!$A$1,C17,0,1,1)) -> Mandioca | C17: 78 | D17: =OFFSET('0_Tabla Concentrados'!$A$1,$C17,$D$2,1,1) -> 85 | E17: =OFFSET('0_Tabla Concentrados'!$A$1,$C17,$E$2,1,1) -> 0.1216 | F17: =OFFSET('0_Tabla Concentrados'!$A$1,$C17,$F$2,1,1) -> 1.142097463 | G17: =OFFSET('0_Tabla Concentrados'!$A$1,$C17,$G$2,1,1) -> 75.49002249 | H17: =OFFSET('0_Tabla Concentrados'!$A$1,$C17,$H$2,1,1) -> -97.45343744 | I17: =OFFSET('0_Tabla Concentrados'!$A$1,$C17,$I$2,1,1) -> 2 | J17: =OFFSET('0_Tabla Concentrados'!$A$1,$C17,$J$2,1,1) -> 1.375 | K17: =OFFSET('0_Tabla Concentrados'!$A$1,$C17,$K$2,1,1) -> 0.68 | L17: =OFFSET('0_Tabla Concentrados'!$A$1,$C17,$L$2,1,1) -> 0.9 | M17: =OFFSET('0_Tabla Concentrados'!$A$1,$C17,$M$2,1,1) -> 7.5 | N17: =OFFSET('0_Tabla Concentrados'!$A$1,$C17,$N$2,1,1) -> 0.35 | O17: =OFFSET('0_Tabla Concentrados'!$A$1,$C17,$O$2,1,1) -> 0 | P17: =OFFSET('0_Tabla Concentrados'!$A$1,$C17,$P$2,1,1) -> 0 | Q17: =OFFSET('0_Tabla Concentrados'!$A$1,$C17,$Q$2,1,1) -> 0 | R17: =OFFSET('0_Tabla Concentrados'!$A$1,$C17,$R$2,1,1) -> 2 | S17: =OFFSET('0_Tabla Concentrados'!$A$1,$C17,$S$2,1,1) -> 5 | T17: =OFFSET('0_Tabla Concentrados'!$A$1,$C17,$T$2,1,1) -> 30 | U17: =OFFSET('0_Tabla Concentrados'!$A$1,$C17,$U$2,1,1) -> 0 | V17: =OFFSET('0_Tabla Concentrados'!$A$1,$C17,$V$2,1,1) -> 0 | W17: =OFFSET('0_Tabla Concentrados'!$A$1,$C17,$W$2,1,1) -> 0 | X17: =OFFSET('0_Tabla Concentrados'!$A$1,$C17,$X$2,1,1) -> 0 | Y17: =OFFSET('0_Tabla Concentrados'!$A$1,$C17,$Y$2,1,1) -> 0 | Z17: =OFFSET('0_Tabla Concentrados'!$A$1,$C17,$Z$2,1,1) -> 6.56 | AA17: =OFFSET('0_Tabla Concentrados'!$A$1,$C17,$AA$2,1,1) -> 31 | AB17: =OFFSET('0_Tabla Concentrados'!$A$1,$C17,$AB$2,1,1) -> 10.10542253 | AC17: =OFFSET('0_Tabla Concentrados'!$A$1,$C17,$AC$2,1,1) -> 0.91762 | AD17: =OFFSET('0_Tabla Concentrados'!$A$1,$C17,$AD$2,1,1) -> 861.64518 | AE17: =OFFSET('0_Tabla Concentrados'!$A$1,$C17,$AE$2,1,1) -> 8.2 | AF17: =OFFSET('0_Tabla Concentrados'!$A$1,$C17,$AF$2,1,1) -> 54 | AG17: =OFFSET('0_Tabla Concentrados'!$A$1,$C17,$AG$2,1,1) -> 118 | AH17: =OFFSET('0_Tabla Concentrados'!$A$1,$C17,$AH$2,1,1) -> 59 | AI17: =OFFSET('0_Tabla Concentrados'!$A$1,$C17,$AI$2,1,1) -> 14.01 | AJ17: =OFFSET('0_Tabla Concentrados'!$A$1,$C17,$AJ$2,1,1) -> 61 | AK17: =OFFSET('0_Tabla Concentrados'!$A$1,$C17,$AK$2,1,1) -> 0 | AL17: =OFFSET('0_Tabla Concentrados'!$A$1,$C17,$AL$2,1,1) -> 0.638999494 | AM17: =OFFSET('0_Tabla Concentrados'!$A$1,$C17,$AM$2,1,1) -> 0 | AN17: =IF('II_Plantear Ración'!$E18>0,IF(CálculosVL!E17>=0,1,"No"),"") ->  | AO17: =IF('II_Plantear Ración'!$E18>0,IF(CálculosVL!F17>=0,1,"No"),"") ->  | AP17: =IF('II_Plantear Ración'!$E18>0,IF(CálculosVL!G17>=0,1,"No"),"") ->  | AQ17: =IF('II_Plantear Ración'!$E18>0,IF(CálculosVL!H17=0,"No",1),"") ->  | AR17: =IF('II_Plantear Ración'!$E18>0,IF(CálculosVL!I17>0,1,"No"),"") ->  | AS17: =IF('II_Plantear Ración'!$E18>0,IF(CálculosVL!J17>0,1,"No"),"") ->  | AT17: =IF('II_Plantear Ración'!$E18>0,IF(CálculosVL!K17>0,1,"No"),"") ->  | AU17: =IF('II_Plantear Ración'!$E18>0,IF(CálculosVL!L17>0,1,"No"),"") ->  | AV17: =IF('II_Plantear Ración'!$E18>0,IF(CálculosVL!M17>0,1,"No"),"") ->  | AW17: =IF('II_Plantear Ración'!$E18>0,IF(CálculosVL!N17>0,1,"No"),"") ->  | AX17: =IF('II_Plantear Ración'!$E18>0,IF(CálculosVL!O17>0,1,"No"),"") ->  | AY17: =IF('II_Plantear Ración'!$E18>0,IF(CálculosVL!P17>0,1,"No"),"") ->  | AZ17: =IF('II_Plantear Ración'!$E18>0,IF(CálculosVL!Q17>0,1,"No"),"") ->  | BA17: =IF('II_Plantear Ración'!$E18>0,IF(CálculosVL!R17>0,1,"No"),"") ->  | BB17: =IF('II_Plantear Ración'!$E18>0,IF(CálculosVL!S17>0,1,"No"),"") ->  | BC17: =IF('II_Plantear Ración'!$E18>0,IF(CálculosVL!T17>0,1,"No"),"") ->  | BD17: =IF('II_Plantear Ración'!$E18>0,IF(CálculosVL!U17>0,1,"No"),"") ->  | BE17: =IF('II_Plantear Ración'!$E18>0,IF(CálculosVL!V17>0,1,"No"),"") ->  | BF17: =IF('II_Plantear Ración'!$E18>0,IF(CálculosVL!W17>0,1,"No"),"") ->  | BG17: =IF('II_Plantear Ración'!$E18>0,IF(CálculosVL!X17>0,1,"No"),"") ->  | BH17: =IF('II_Plantear Ración'!$E18>0,IF(CálculosVL!Y17>0,1,"No"),"") ->  | BI17: =IF('II_Plantear Ración'!$E18>0,IF(CálculosVL!Z17>0,1,"No"),"") ->  | BJ17: =IF('II_Plantear Ración'!$E18>0,IF(CálculosVL!AA17>0,1,"No"),"") ->  | BK17: =IF('II_Plantear Ración'!$E18>0,IF(CálculosVL!AB17>0,1,"No"),"") ->  | BL17: =IF('II_Plantear Ración'!$E18>0,IF(CálculosVL!AC17>0,1,"No"),"") ->  | BM17: =IF('II_Plantear Ración'!$E18>0,IF(CálculosVL!AD17>0,1,"No"),"") ->  | BN17: =IF('II_Plantear Ración'!$E18>0,IF(CálculosVL!AE17>0,1,"No"),"") ->  | BO17: =IF('II_Plantear Ración'!$E18>0,IF(CálculosVL!AF17>0,1,"No"),"") ->  | BP17: =IF('II_Plantear Ración'!$E18>0,IF(CálculosVL!AG17>0,1,"No"),"") ->  | BQ17: =IF('II_Plantear Ración'!$E18>0,IF(CálculosVL!AH17>0,1,"No"),"") ->  | BR17: =IF('II_Plantear Ración'!$E18>0,IF(CálculosVL!AI17>0,1,"No"),"") ->  | BS17: =IF('II_Plantear Ración'!$E18>0,IF(CálculosVL!AJ17>0,1,"No"),"") ->  | BT17: =IF('II_Plantear Ración'!$E18>0,IF(CálculosVL!AK17>0,1,"No"),"") ->  | BU17: =IF('II_Plantear Ración'!$E18>0,IF(CálculosVL!AL17>0,1,"No"),"") ->  | BV17: =IF('II_Plantear Ración'!$E18>0,IF(CálculosVL!AM17>0,1,"No"),"") ->  | BW17: 0 | BX17: 0 | BY17: 0 | BZ17: 0 | CA17: 0 | CB17: 0 | CC17: 0 | CD17: 0 | CE17: 0 | CF17: 0 | CG17: 0 | CH17: 0 | CI17: 0 | CJ17: 0 | CK17: 0 | CL17: 0 | CM17: 0 | CN17: 0 | CO17: 0 | CP17: 0 | CQ17: 0 | CR17: 0 | CS17: 0 | CT17: 0 | CU17: 0 | CV17: 0 | CW17: 0 | CX17: 0 | CY17: 0 | CZ17: 0 | DA17: 0 | DB17: 0 | DC17: 0 | DD17: 0 | DE17: 0
B18: =IF(OFFSET('0_Tabla Concentrados'!$A$1,C18,0,1,1)=0,"",OFFSET('0_Tabla Concentrados'!$A$1,C18,0,1,1)) -> Urea | C18: 76 | D18: =OFFSET('0_Tabla Concentrados'!$A$1,$C18,$D$2,1,1) -> 99 | E18: =OFFSET('0_Tabla Concentrados'!$A$1,$C18,$E$2,1,1) -> 0.23 | F18: =OFFSET('0_Tabla Concentrados'!$A$1,$C18,$F$2,1,1) -> 0.26 | G18: =OFFSET('0_Tabla Concentrados'!$A$1,$C18,$G$2,1,1) -> 71 | H18: =OFFSET('0_Tabla Concentrados'!$A$1,$C18,$H$2,1,1) -> 2557 | I18: =OFFSET('0_Tabla Concentrados'!$A$1,$C18,$I$2,1,1) -> 2 | J18: =OFFSET('0_Tabla Concentrados'!$A$1,$C18,$J$2,1,1) -> 0 | K18: =OFFSET('0_Tabla Concentrados'!$A$1,$C18,$K$2,1,1) -> 0 | L18: =OFFSET('0_Tabla Concentrados'!$A$1,$C18,$L$2,1,1) -> 1e-06 | M18: =OFFSET('0_Tabla Concentrados'!$A$1,$C18,$M$2,1,1) -> 1e-06 | N18: =OFFSET('0_Tabla Concentrados'!$A$1,$C18,$N$2,1,1) -> 1e-06 | O18: =OFFSET('0_Tabla Concentrados'!$A$1,$C18,$O$2,1,1) -> 1e-06 | P18: =OFFSET('0_Tabla Concentrados'!$A$1,$C18,$P$2,1,1) -> 1e-06 | Q18: =OFFSET('0_Tabla Concentrados'!$A$1,$C18,$Q$2,1,1) -> 1e-06 | R18: =OFFSET('0_Tabla Concentrados'!$A$1,$C18,$R$2,1,1) -> 1e-06 | S18: =OFFSET('0_Tabla Concentrados'!$A$1,$C18,$S$2,1,1) -> 1e-06 | T18: =OFFSET('0_Tabla Concentrados'!$A$1,$C18,$T$2,1,1) -> 1e-06 | U18: =OFFSET('0_Tabla Concentrados'!$A$1,$C18,$U$2,1,1) -> 0 | V18: =OFFSET('0_Tabla Concentrados'!$A$1,$C18,$V$2,1,1) -> 1e-06 | W18: =OFFSET('0_Tabla Concentrados'!$A$1,$C18,$W$2,1,1) -> 1e-06 | X18: =OFFSET('0_Tabla Concentrados'!$A$1,$C18,$X$2,1,1) -> 1e-06 | Y18: =OFFSET('0_Tabla Concentrados'!$A$1,$C18,$Y$2,1,1) -> 1e-06 | Z18: =OFFSET('0_Tabla Concentrados'!$A$1,$C18,$Z$2,1,1) -> 0 | AA18: =OFFSET('0_Tabla Concentrados'!$A$1,$C18,$AA$2,1,1) -> 2870 | AB18: =OFFSET('0_Tabla Concentrados'!$A$1,$C18,$AB$2,1,1) -> 1e-06 | AC18: =OFFSET('0_Tabla Concentrados'!$A$1,$C18,$AC$2,1,1) -> 0.99 | AD18: =OFFSET('0_Tabla Concentrados'!$A$1,$C18,$AD$2,1,1) -> 1e-06 | AE18: =OFFSET('0_Tabla Concentrados'!$A$1,$C18,$AE$2,1,1) -> 1e-06 | AF18: =OFFSET('0_Tabla Concentrados'!$A$1,$C18,$AF$2,1,1) -> 1e-06 | AG18: =OFFSET('0_Tabla Concentrados'!$A$1,$C18,$AG$2,1,1) -> 1e-06 | AH18: =OFFSET('0_Tabla Concentrados'!$A$1,$C18,$AH$2,1,1) -> 1e-06 | AI18: =OFFSET('0_Tabla Concentrados'!$A$1,$C18,$AI$2,1,1) -> 1e-06 | AJ18: =OFFSET('0_Tabla Concentrados'!$A$1,$C18,$AJ$2,1,1) -> 1e-06 | AK18: =OFFSET('0_Tabla Concentrados'!$A$1,$C18,$AK$2,1,1) -> 1e-06 | AL18: =OFFSET('0_Tabla Concentrados'!$A$1,$C18,$AL$2,1,1) -> 0 | AM18: =OFFSET('0_Tabla Concentrados'!$A$1,$C18,$AM$2,1,1) -> 0 | AN18: =IF('II_Plantear Ración'!$E19>0,IF(CálculosVL!E18>=0,1,"No"),"") ->  | AO18: =IF('II_Plantear Ración'!$E19>0,IF(CálculosVL!F18>=0,1,"No"),"") ->  | AP18: =IF('II_Plantear Ración'!$E19>0,IF(CálculosVL!G18>=0,1,"No"),"") ->  | AQ18: =IF('II_Plantear Ración'!$E19>0,IF(CálculosVL!H18=0,"No",1),"") ->  | AR18: =IF('II_Plantear Ración'!$E19>0,IF(CálculosVL!I18>0,1,"No"),"") ->  | AS18: =IF('II_Plantear Ración'!$E19>0,IF(CálculosVL!J18>0,1,"No"),"") ->  | AT18: =IF('II_Plantear Ración'!$E19>0,IF(CálculosVL!K18>0,1,"No"),"") ->  | AU18: =IF('II_Plantear Ración'!$E19>0,IF(CálculosVL!L18>0,1,"No"),"") ->  | AV18: =IF('II_Plantear Ración'!$E19>0,IF(CálculosVL!M18>0,1,"No"),"") ->  | AW18: =IF('II_Plantear Ración'!$E19>0,IF(CálculosVL!N18>0,1,"No"),"") ->  | AX18: =IF('II_Plantear Ración'!$E19>0,IF(CálculosVL!O18>0,1,"No"),"") ->  | AY18: =IF('II_Plantear Ración'!$E19>0,IF(CálculosVL!P18>0,1,"No"),"") ->  | AZ18: =IF('II_Plantear Ración'!$E19>0,IF(CálculosVL!Q18>0,1,"No"),"") ->  | BA18: =IF('II_Plantear Ración'!$E19>0,IF(CálculosVL!R18>0,1,"No"),"") ->  | BB18: =IF('II_Plantear Ración'!$E19>0,IF(CálculosVL!S18>0,1,"No"),"") ->  | BC18: =IF('II_Plantear Ración'!$E19>0,IF(CálculosVL!T18>0,1,"No"),"") ->  | BD18: =IF('II_Plantear Ración'!$E19>0,IF(CálculosVL!U18>0,1,"No"),"") ->  | BE18: =IF('II_Plantear Ración'!$E19>0,IF(CálculosVL!V18>0,1,"No"),"") ->  | BF18: =IF('II_Plantear Ración'!$E19>0,IF(CálculosVL!W18>0,1,"No"),"") ->  | BG18: =IF('II_Plantear Ración'!$E19>0,IF(CálculosVL!X18>0,1,"No"),"") ->  | BH18: =IF('II_Plantear Ración'!$E19>0,IF(CálculosVL!Y18>0,1,"No"),"") ->  | BI18: =IF('II_Plantear Ración'!$E19>0,IF(CálculosVL!Z18>0,1,"No"),"") ->  | BJ18: =IF('II_Plantear Ración'!$E19>0,IF(CálculosVL!AA18>0,1,"No"),"") ->  | BK18: =IF('II_Plantear Ración'!$E19>0,IF(CálculosVL!AB18>0,1,"No"),"") ->  | BL18: =IF('II_Plantear Ración'!$E19>0,IF(CálculosVL!AC18>0,1,"No"),"") ->  | BM18: =IF('II_Plantear Ración'!$E19>0,IF(CálculosVL!AD18>0,1,"No"),"") ->  | BN18: =IF('II_Plantear Ración'!$E19>0,IF(CálculosVL!AE18>0,1,"No"),"") ->  | BO18: =IF('II_Plantear Ración'!$E19>0,IF(CálculosVL!AF18>0,1,"No"),"") ->  | BP18: =IF('II_Plantear Ración'!$E19>0,IF(CálculosVL!AG18>0,1,"No"),"") ->  | BQ18: =IF('II_Plantear Ración'!$E19>0,IF(CálculosVL!AH18>0,1,"No"),"") ->  | BR18: =IF('II_Plantear Ración'!$E19>0,IF(CálculosVL!AI18>0,1,"No"),"") ->  | BS18: =IF('II_Plantear Ración'!$E19>0,IF(CálculosVL!AJ18>0,1,"No"),"") ->  | BT18: =IF('II_Plantear Ración'!$E19>0,IF(CálculosVL!AK18>0,1,"No"),"") ->  | BU18: =IF('II_Plantear Ración'!$E19>0,IF(CálculosVL!AL18>0,1,"No"),"") ->  | BV18: =IF('II_Plantear Ración'!$E19>0,IF(CálculosVL!AM18>0,1,"No"),"") ->  | BW18: 0 | BX18: 0 | BY18: 0 | BZ18: 0 | CA18: 0 | CB18: 0 | CC18: 0 | CD18: 0 | CE18: 0 | CF18: 0 | CG18: 0 | CH18: 0 | CI18: 0 | CJ18: 0 | CK18: 0 | CL18: 0 | CM18: 0 | CN18: 0 | CO18: 0 | CP18: 0 | CQ18: 0 | CR18: 0 | CS18: 0 | CT18: 0 | CU18: 0 | CV18: 0 | CW18: 0 | CX18: 0 | CY18: 0 | CZ18: 0 | DA18: 0 | DB18: 0 | DC18: 0 | DD18: 0 | DE18: 0
B19: =IF(OFFSET('0_Tabla Concentrados'!$A$1,C19,0,1,1)=0,"",OFFSET('0_Tabla Concentrados'!$A$1,C19,0,1,1)) ->  | C19: 1 | D19: =OFFSET('0_Tabla Concentrados'!$A$1,$C19,$D$2,1,1) -> 0 | E19: =OFFSET('0_Tabla Concentrados'!$A$1,$C19,$E$2,1,1) -> 0 | F19: =OFFSET('0_Tabla Concentrados'!$A$1,$C19,$F$2,1,1) -> 0 | G19: =OFFSET('0_Tabla Concentrados'!$A$1,$C19,$G$2,1,1) -> 0 | H19: =OFFSET('0_Tabla Concentrados'!$A$1,$C19,$H$2,1,1) -> 0 | I19: =OFFSET('0_Tabla Concentrados'!$A$1,$C19,$I$2,1,1) -> 0 | J19: =OFFSET('0_Tabla Concentrados'!$A$1,$C19,$J$2,1,1) -> 0 | K19: =OFFSET('0_Tabla Concentrados'!$A$1,$C19,$K$2,1,1) -> 0 | L19: =OFFSET('0_Tabla Concentrados'!$A$1,$C19,$L$2,1,1) -> 0 | M19: =OFFSET('0_Tabla Concentrados'!$A$1,$C19,$M$2,1,1) -> 0 | N19: =OFFSET('0_Tabla Concentrados'!$A$1,$C19,$N$2,1,1) -> 0 | O19: =OFFSET('0_Tabla Concentrados'!$A$1,$C19,$O$2,1,1) -> 0 | P19: =OFFSET('0_Tabla Concentrados'!$A$1,$C19,$P$2,1,1) -> 0 | Q19: =OFFSET('0_Tabla Concentrados'!$A$1,$C19,$Q$2,1,1) -> 0 | R19: =OFFSET('0_Tabla Concentrados'!$A$1,$C19,$R$2,1,1) -> 0 | S19: =OFFSET('0_Tabla Concentrados'!$A$1,$C19,$S$2,1,1) -> 0 | T19: =OFFSET('0_Tabla Concentrados'!$A$1,$C19,$T$2,1,1) -> 0 | U19: =OFFSET('0_Tabla Concentrados'!$A$1,$C19,$U$2,1,1) -> 0 | V19: =OFFSET('0_Tabla Concentrados'!$A$1,$C19,$V$2,1,1) -> 0 | W19: =OFFSET('0_Tabla Concentrados'!$A$1,$C19,$W$2,1,1) -> 0 | X19: =OFFSET('0_Tabla Concentrados'!$A$1,$C19,$X$2,1,1) -> 0 | Y19: =OFFSET('0_Tabla Concentrados'!$A$1,$C19,$Y$2,1,1) -> 0 | Z19: =OFFSET('0_Tabla Concentrados'!$A$1,$C19,$Z$2,1,1) -> 0 | AA19: =OFFSET('0_Tabla Concentrados'!$A$1,$C19,$AA$2,1,1) -> 0 | AB19: =OFFSET('0_Tabla Concentrados'!$A$1,$C19,$AB$2,1,1) -> 0 | AC19: =OFFSET('0_Tabla Concentrados'!$A$1,$C19,$AC$2,1,1) -> 0 | AD19: =OFFSET('0_Tabla Concentrados'!$A$1,$C19,$AD$2,1,1) -> 0 | AE19: =OFFSET('0_Tabla Concentrados'!$A$1,$C19,$AE$2,1,1) -> 0 | AF19: =OFFSET('0_Tabla Concentrados'!$A$1,$C19,$AF$2,1,1) -> 0 | AG19: =OFFSET('0_Tabla Concentrados'!$A$1,$C19,$AG$2,1,1) -> 0 | AH19: =OFFSET('0_Tabla Concentrados'!$A$1,$C19,$AH$2,1,1) -> 0 | AI19: =OFFSET('0_Tabla Concentrados'!$A$1,$C19,$AI$2,1,1) -> 0 | AJ19: =OFFSET('0_Tabla Concentrados'!$A$1,$C19,$AJ$2,1,1) -> 0 | AK19: =OFFSET('0_Tabla Concentrados'!$A$1,$C19,$AK$2,1,1) -> 0 | AL19: =OFFSET('0_Tabla Concentrados'!$A$1,$C19,$AL$2,1,1) -> 0 | AM19: =OFFSET('0_Tabla Concentrados'!$A$1,$C19,$AM$2,1,1) -> 0 | AN19: =IF('II_Plantear Ración'!$E20>0,IF(CálculosVL!E19>=0,1,"No"),"") ->  | AO19: =IF('II_Plantear Ración'!$E20>0,IF(CálculosVL!F19>=0,1,"No"),"") ->  | AP19: =IF('II_Plantear Ración'!$E20>0,IF(CálculosVL!G19>=0,1,"No"),"") ->  | AQ19: =IF('II_Plantear Ración'!$E20>0,IF(CálculosVL!H19=0,"No",1),"") ->  | AR19: =IF('II_Plantear Ración'!$E20>0,IF(CálculosVL!I19>0,1,"No"),"") ->  | AS19: =IF('II_Plantear Ración'!$E20>0,IF(CálculosVL!J19>0,1,"No"),"") ->  | AT19: =IF('II_Plantear Ración'!$E20>0,IF(CálculosVL!K19>0,1,"No"),"") ->  | AU19: =IF('II_Plantear Ración'!$E20>0,IF(CálculosVL!L19>0,1,"No"),"") ->  | AV19: =IF('II_Plantear Ración'!$E20>0,IF(CálculosVL!M19>0,1,"No"),"") ->  | AW19: =IF('II_Plantear Ración'!$E20>0,IF(CálculosVL!N19>0,1,"No"),"") ->  | AX19: =IF('II_Plantear Ración'!$E20>0,IF(CálculosVL!O19>0,1,"No"),"") ->  | AY19: =IF('II_Plantear Ración'!$E20>0,IF(CálculosVL!P19>0,1,"No"),"") ->  | AZ19: =IF('II_Plantear Ración'!$E20>0,IF(CálculosVL!Q19>0,1,"No"),"") ->  | BA19: =IF('II_Plantear Ración'!$E20>0,IF(CálculosVL!R19>0,1,"No"),"") ->  | BB19: =IF('II_Plantear Ración'!$E20>0,IF(CálculosVL!S19>0,1,"No"),"") ->  | BC19: =IF('II_Plantear Ración'!$E20>0,IF(CálculosVL!T19>0,1,"No"),"") ->  | BD19: =IF('II_Plantear Ración'!$E20>0,IF(CálculosVL!U19>0,1,"No"),"") ->  | BE19: =IF('II_Plantear Ración'!$E20>0,IF(CálculosVL!V19>0,1,"No"),"") ->  | BF19: =IF('II_Plantear Ración'!$E20>0,IF(CálculosVL!W19>0,1,"No"),"") ->  | BG19: =IF('II_Plantear Ración'!$E20>0,IF(CálculosVL!X19>0,1,"No"),"") ->  | BH19: =IF('II_Plantear Ración'!$E20>0,IF(CálculosVL!Y19>0,1,"No"),"") ->  | BI19: =IF('II_Plantear Ración'!$E20>0,IF(CálculosVL!Z19>0,1,"No"),"") ->  | BJ19: =IF('II_Plantear Ración'!$E20>0,IF(CálculosVL!AA19>0,1,"No"),"") ->  | BK19: =IF('II_Plantear Ración'!$E20>0,IF(CálculosVL!AB19>0,1,"No"),"") ->  | BL19: =IF('II_Plantear Ración'!$E20>0,IF(CálculosVL!AC19>0,1,"No"),"") ->  | BM19: =IF('II_Plantear Ración'!$E20>0,IF(CálculosVL!AD19>0,1,"No"),"") ->  | BN19: =IF('II_Plantear Ración'!$E20>0,IF(CálculosVL!AE19>0,1,"No"),"") ->  | BO19: =IF('II_Plantear Ración'!$E20>0,IF(CálculosVL!AF19>0,1,"No"),"") ->  | BP19: =IF('II_Plantear Ración'!$E20>0,IF(CálculosVL!AG19>0,1,"No"),"") ->  | BQ19: =IF('II_Plantear Ración'!$E20>0,IF(CálculosVL!AH19>0,1,"No"),"") ->  | BR19: =IF('II_Plantear Ración'!$E20>0,IF(CálculosVL!AI19>0,1,"No"),"") ->  | BS19: =IF('II_Plantear Ración'!$E20>0,IF(CálculosVL!AJ19>0,1,"No"),"") ->  | BT19: =IF('II_Plantear Ración'!$E20>0,IF(CálculosVL!AK19>0,1,"No"),"") ->  | BU19: =IF('II_Plantear Ración'!$E20>0,IF(CálculosVL!AL19>0,1,"No"),"") ->  | BV19: =IF('II_Plantear Ración'!$E20>0,IF(CálculosVL!AM19>0,1,"No"),"") ->  | BW19: 0 | BX19: 0 | BY19: 0 | BZ19: 0 | CA19: 0 | CB19: 0 | CC19: 0 | CD19: 0 | CE19: 0 | CF19: 0 | CG19: 0 | CH19: 0 | CI19: 0 | CJ19: 0 | CK19: 0 | CL19: 0 | CM19: 0 | CN19: 0 | CO19: 0 | CP19: 0 | CQ19: 0 | CR19: 0 | CS19: 0 | CT19: 0 | CU19: 0 | CV19: 0 | CW19: 0 | CX19: 0 | CY19: 0 | CZ19: 0 | DA19: 0 | DB19: 0 | DC19: 0 | DD19: 0 | DE19: 0
A20: MINERALES | B20: =IF(OFFSET('0_Tabla Minerales-aa'!$A$1,C20,0,1,1)=0,"",OFFSET('0_Tabla Minerales-aa'!$A$1,C20,0,1,1)) -> Cloruro potásico | C20: 13 | D20: =OFFSET('0_Tabla Minerales-aa'!$A$1,$C20,D2,1,1) -> 100 | E20: =OFFSET('0_Tabla Minerales-aa'!$A$1,$C20,E2,1,1) -> 0 | F20: =OFFSET('0_Tabla Minerales-aa'!$A$1,$C20,F2,1,1) -> 0 | G20: =OFFSET('0_Tabla Minerales-aa'!$A$1,$C20,G2,1,1) -> 0 | H20: =OFFSET('0_Tabla Minerales-aa'!$A$1,$C20,H2,1,1) -> 0 | I20: =OFFSET('0_Tabla Minerales-aa'!$A$1,$C20,I2,1,1) -> 0 | J20: =OFFSET('0_Tabla Minerales-aa'!$A$1,$C20,J2,1,1) -> 0 | K20: =OFFSET('0_Tabla Minerales-aa'!$A$1,$C20,K2,1,1) -> 0 | L20: =OFFSET('0_Tabla Minerales-aa'!$A$1,$C20,L$2,1,1) -> 0 | M20: =OFFSET('0_Tabla Minerales-aa'!$A$1,$C20,M$2,1,1) -> 52 | N20: =OFFSET('0_Tabla Minerales-aa'!$A$1,$C20,N$2,1,1) -> 0 | O20: =OFFSET('0_Tabla Minerales-aa'!$A$1,$C20,O$2,1,1) -> 0 | P20: =OFFSET('0_Tabla Minerales-aa'!$A$1,$C20,P$2,1,1) -> 0 | Q20: =OFFSET('0_Tabla Minerales-aa'!$A$1,$C20,Q$2,1,1) -> 0 | R20: =OFFSET('0_Tabla Minerales-aa'!$A$1,$C20,R$2,1,1) -> 0 | S20: =OFFSET('0_Tabla Minerales-aa'!$A$1,$C20,S$2,1,1) -> 0 | T20: =OFFSET('0_Tabla Minerales-aa'!$A$1,$C20,T$2,1,1) -> 0 | U20: =OFFSET('0_Tabla Minerales-aa'!$A$1,$C20,U$2,1,1) -> 0 | V20: =OFFSET('0_Tabla Minerales-aa'!$A$1,$C20,V$2,1,1) -> 0 | W20: =OFFSET('0_Tabla Minerales-aa'!$A$1,$C20,W$2,1,1) -> 0 | X20: =OFFSET('0_Tabla Minerales-aa'!$A$1,$C20,X$2,1,1) -> 0 | Y20: =OFFSET('0_Tabla Minerales-aa'!$A$1,$C20,Y$2,1,1) -> 0 | Z20: =OFFSET('0_Tabla Minerales-aa'!$A$1,$C20,Z$2,1,1) -> 0 | AA20: =OFFSET('0_Tabla Minerales-aa'!$A$1,$C20,AA$2,1,1) -> 0 | AB20: =OFFSET('0_Tabla Minerales-aa'!$A$1,$C20,AB$2,1,1) -> 0 | AC20: =OFFSET('0_Tabla Minerales-aa'!$A$1,$C20,AC$2,1,1) -> 0 | AD20: =OFFSET('0_Tabla Minerales-aa'!$A$1,$C20,AD$2,1,1) -> 0 | AE20: =OFFSET('0_Tabla Minerales-aa'!$A$1,$C20,AE$2,1,1) -> 0 | AF20: =OFFSET('0_Tabla Minerales-aa'!$A$1,$C20,AF$2,1,1) -> 0 | AG20: =OFFSET('0_Tabla Minerales-aa'!$A$1,$C20,AG$2,1,1) -> 0 | AH20: =OFFSET('0_Tabla Minerales-aa'!$A$1,$C20,AH$2,1,1) -> 0 | AI20: =OFFSET('0_Tabla Minerales-aa'!$A$1,$C20,AI$2,1,1) -> 0 | AJ20: =OFFSET('0_Tabla Minerales-aa'!$A$1,$C20,AJ$2,1,1) -> 0 | AK20: =OFFSET('0_Tabla Minerales-aa'!$A$1,$C20,AK$2,1,1) -> 0 | AL20: =OFFSET('0_Tabla Minerales-aa'!$A$1,$C20,AL$2,1,1) -> 0 | AM20: =OFFSET('0_Tabla Minerales-aa'!$A$1,$C20,AM$2,1,1) -> 0 | AN20: =SUM(AN3:AN19) -> 1 | AO20: =SUM(AO3:AO19) -> 1 | AP20: =SUM(AP3:AP19) -> 1 | AQ20: =SUM(AQ3:AQ19) -> 1 | AR20: =SUM(AR3:AR19) -> 1 | AS20: 1 | AT20: 1 | AU20: 1 | AV20: 1 | AW20: 1 | AX20: 1 | AY20: 0 | AZ20: 0 | BA20: 1 | BB20: 1 | BC20: 0 | BD20: 0 | BE20: 0 | BF20: 0 | BG20: 0 | BH20: 0 | BI20: 1 | BJ20: 1 | BK20: 1 | BL20: 1 | BM20: 1 | BN20: 1 | BO20: 1 | BP20: 1 | BQ20: 1 | BR20: 0 | BS20: 1 | BT20: 0 | BU20: 1 | BV20: 1 | BW20: =SUM(BW3:BW19) -> 1 | BX20: =SUM(BX3:BX19) -> 1 | BY20: =SUM(BY3:BY19) -> 1 | BZ20: =SUM(BZ3:BZ19) -> 1 | CA20: 1 | CB20: 1 | CC20: =SUM(CC3:CC19) -> 1 | CD20: 1 | CE20: 1 | CF20: 1 | CG20: 1 | CH20: 1 | CI20: 1 | CJ20: 1 | CK20: 1 | CL20: 1 | CM20: 1 | CN20: 1 | CO20: 1 | CP20: 1 | CQ20: 1 | CR20: 1 | CS20: 1 | CT20: 1 | CU20: 1 | CV20: 1 | CW20: 1 | CX20: 1 | CY20: 1 | CZ20: 1 | DA20: 1 | DB20: 1 | DC20: 1 | DD20: 1 | DE20: =SUM(DE3:DE19) -> 1
B21: =IF(OFFSET('0_Tabla Minerales-aa'!$A$1,C21,0,1,1)=0,"",OFFSET('0_Tabla Minerales-aa'!$A$1,C21,0,1,1)) -> Fosfato bicálcico | C21: 3 | D21: =OFFSET('0_Tabla Minerales-aa'!$A$1,$C21,D2,1,1) -> 98.8 | E21: =OFFSET('0_Tabla Minerales-aa'!$A$1,$C21,E2,1,1) -> 0 | F21: =OFFSET('0_Tabla Minerales-aa'!$A$1,$C21,F2,1,1) -> 0 | G21: =OFFSET('0_Tabla Minerales-aa'!$A$1,$C21,G2,1,1) -> 0 | H21: =OFFSET('0_Tabla Minerales-aa'!$A$1,$C21,H2,1,1) -> 0 | I21: =OFFSET('0_Tabla Minerales-aa'!$A$1,$C21,I2,1,1) -> 0 | J21: =OFFSET('0_Tabla Minerales-aa'!$A$1,$C21,J2,1,1) -> 244 | K21: =OFFSET('0_Tabla Minerales-aa'!$A$1,$C21,K2,1,1) -> 122.4 | L21: =OFFSET('0_Tabla Minerales-aa'!$A$1,$C21,L$2,1,1) -> 5 | M21: =OFFSET('0_Tabla Minerales-aa'!$A$1,$C21,M$2,1,1) -> 1.2 | N21: =OFFSET('0_Tabla Minerales-aa'!$A$1,$C21,N$2,1,1) -> 0.8 | O21: =OFFSET('0_Tabla Minerales-aa'!$A$1,$C21,O$2,1,1) -> 11 | P21: =OFFSET('0_Tabla Minerales-aa'!$A$1,$C21,P$2,1,1) -> 0.4 | Q21: =OFFSET('0_Tabla Minerales-aa'!$A$1,$C21,Q$2,1,1) -> 0 | R21: =OFFSET('0_Tabla Minerales-aa'!$A$1,$C21,R$2,1,1) -> 15 | S21: =OFFSET('0_Tabla Minerales-aa'!$A$1,$C21,S$2,1,1) -> 0 | T21: =OFFSET('0_Tabla Minerales-aa'!$A$1,$C21,T$2,1,1) -> 0 | U21: =OFFSET('0_Tabla Minerales-aa'!$A$1,$C21,U$2,1,1) -> 0 | V21: =OFFSET('0_Tabla Minerales-aa'!$A$1,$C21,V$2,1,1) -> 0 | W21: =OFFSET('0_Tabla Minerales-aa'!$A$1,$C21,W$2,1,1) -> 0 | X21: =OFFSET('0_Tabla Minerales-aa'!$A$1,$C21,X$2,1,1) -> 0 | Y21: =OFFSET('0_Tabla Minerales-aa'!$A$1,$C21,Y$2,1,1) -> 0 | Z21: =OFFSET('0_Tabla Minerales-aa'!$A$1,$C21,Z$2,1,1) -> 0 | AA21: =OFFSET('0_Tabla Minerales-aa'!$A$1,$C21,AA$2,1,1) -> 0 | AB21: =OFFSET('0_Tabla Minerales-aa'!$A$1,$C21,AB$2,1,1) -> 0 | AC21: =OFFSET('0_Tabla Minerales-aa'!$A$1,$C21,AC$2,1,1) -> 0 | AD21: =OFFSET('0_Tabla Minerales-aa'!$A$1,$C21,AD$2,1,1) -> 0 | AE21: =OFFSET('0_Tabla Minerales-aa'!$A$1,$C21,AE$2,1,1) -> 0 | AF21: =OFFSET('0_Tabla Minerales-aa'!$A$1,$C21,AF$2,1,1) -> 0 | AG21: =OFFSET('0_Tabla Minerales-aa'!$A$1,$C21,AG$2,1,1) -> 0 | AH21: =OFFSET('0_Tabla Minerales-aa'!$A$1,$C21,AH$2,1,1) -> 0 | AI21: =OFFSET('0_Tabla Minerales-aa'!$A$1,$C21,AI$2,1,1) -> 0 | AJ21: =OFFSET('0_Tabla Minerales-aa'!$A$1,$C21,AJ$2,1,1) -> 836 | AK21: =OFFSET('0_Tabla Minerales-aa'!$A$1,$C21,AK$2,1,1) -> 0 | AL21: =OFFSET('0_Tabla Minerales-aa'!$A$1,$C21,AL$2,1,1) -> 0 | AM21: =OFFSET('0_Tabla Minerales-aa'!$A$1,$C21,AM$2,1,1) -> 0 | AN21: =IF(AN20/BW20=1,"",AN2) ->  | AU21: =IF(AU20/CD20=1,"", AU2) ->  | AY21: Cl | AZ21: Co | BC21: Zn | BD21: Yodo | BE21: Se | BF21: Vit A | BG21: Vit D | BH21: Vit E | BR21: Lignina | BT21: Mo | BU21: =IF(BU20/DD20=1,"", BU2) ->  | BV21: =IF(BV20/DE20=1,"", BV2) -> 
B22: =IF(OFFSET('0_Tabla Minerales-aa'!$A$1,C22,0,1,1)=0,"",OFFSET('0_Tabla Minerales-aa'!$A$1,C22,0,1,1)) -> Carbonato de zinc | C22: 12 | D22: =OFFSET('0_Tabla Minerales-aa'!$A$1,$C22,D2,1,1) -> 100 | E22: =OFFSET('0_Tabla Minerales-aa'!$A$1,$C22,E2,1,1) -> 0 | F22: =OFFSET('0_Tabla Minerales-aa'!$A$1,$C22,F2,1,1) -> 0 | G22: =OFFSET('0_Tabla Minerales-aa'!$A$1,$C22,G2,1,1) -> 0 | H22: =OFFSET('0_Tabla Minerales-aa'!$A$1,$C22,H2,1,1) -> 0 | I22: =OFFSET('0_Tabla Minerales-aa'!$A$1,$C22,I2,1,1) -> 0 | J22: =OFFSET('0_Tabla Minerales-aa'!$A$1,$C22,J2,1,1) -> 0 | K22: =OFFSET('0_Tabla Minerales-aa'!$A$1,$C22,K2,1,1) -> 0 | L22: =OFFSET('0_Tabla Minerales-aa'!$A$1,$C22,L$2,1,1) -> 0 | M22: =OFFSET('0_Tabla Minerales-aa'!$A$1,$C22,M$2,1,1) -> 0 | N22: =OFFSET('0_Tabla Minerales-aa'!$A$1,$C22,N$2,1,1) -> 0 | O22: =OFFSET('0_Tabla Minerales-aa'!$A$1,$C22,O$2,1,1) -> 0 | P22: =OFFSET('0_Tabla Minerales-aa'!$A$1,$C22,P$2,1,1) -> 0 | Q22: =OFFSET('0_Tabla Minerales-aa'!$A$1,$C22,Q$2,1,1) -> 0 | R22: =OFFSET('0_Tabla Minerales-aa'!$A$1,$C22,R$2,1,1) -> 0 | S22: =OFFSET('0_Tabla Minerales-aa'!$A$1,$C22,S$2,1,1) -> 0 | T22: =OFFSET('0_Tabla Minerales-aa'!$A$1,$C22,T$2,1,1) -> 52 | U22: =OFFSET('0_Tabla Minerales-aa'!$A$1,$C22,U$2,1,1) -> 0 | V22: =OFFSET('0_Tabla Minerales-aa'!$A$1,$C22,V$2,1,1) -> 0 | W22: =OFFSET('0_Tabla Minerales-aa'!$A$1,$C22,W$2,1,1) -> 0 | X22: =OFFSET('0_Tabla Minerales-aa'!$A$1,$C22,X$2,1,1) -> 0 | Y22: =OFFSET('0_Tabla Minerales-aa'!$A$1,$C22,Y$2,1,1) -> 0 | Z22: =OFFSET('0_Tabla Minerales-aa'!$A$1,$C22,Z$2,1,1) -> 0 | AA22: =OFFSET('0_Tabla Minerales-aa'!$A$1,$C22,AA$2,1,1) -> 0 | AB22: =OFFSET('0_Tabla Minerales-aa'!$A$1,$C22,AB$2,1,1) -> 0 | AC22: =OFFSET('0_Tabla Minerales-aa'!$A$1,$C22,AC$2,1,1) -> 0 | AD22: =OFFSET('0_Tabla Minerales-aa'!$A$1,$C22,AD$2,1,1) -> 0 | AE22: =OFFSET('0_Tabla Minerales-aa'!$A$1,$C22,AE$2,1,1) -> 0 | AF22: =OFFSET('0_Tabla Minerales-aa'!$A$1,$C22,AF$2,1,1) -> 0 | AG22: =OFFSET('0_Tabla Minerales-aa'!$A$1,$C22,AG$2,1,1) -> 0 | AH22: =OFFSET('0_Tabla Minerales-aa'!$A$1,$C22,AH$2,1,1) -> 0 | AI22: =OFFSET('0_Tabla Minerales-aa'!$A$1,$C22,AI$2,1,1) -> 0 | AJ22: =OFFSET('0_Tabla Minerales-aa'!$A$1,$C22,AJ$2,1,1) -> 0 | AK22: =OFFSET('0_Tabla Minerales-aa'!$A$1,$C22,AK$2,1,1) -> 0 | AL22: =OFFSET('0_Tabla Minerales-aa'!$A$1,$C22,AL$2,1,1) -> 0 | AM22: =OFFSET('0_Tabla Minerales-aa'!$A$1,$C22,AM$2,1,1) -> 0
B23: =IF(OFFSET('0_Tabla Minerales-aa'!$A$1,C23,0,1,1)=0,"",OFFSET('0_Tabla Minerales-aa'!$A$1,C23,0,1,1)) -> Carbonato de cobalto | C23: 10 | D23: =OFFSET('0_Tabla Minerales-aa'!$A$1,$C23,D2,1,1) -> 100 | E23: =OFFSET('0_Tabla Minerales-aa'!$A$1,$C23,E2,1,1) -> 0 | F23: =OFFSET('0_Tabla Minerales-aa'!$A$1,$C23,F2,1,1) -> 0 | G23: =OFFSET('0_Tabla Minerales-aa'!$A$1,$C23,G2,1,1) -> 0 | H23: =OFFSET('0_Tabla Minerales-aa'!$A$1,$C23,H2,1,1) -> 0 | I23: =OFFSET('0_Tabla Minerales-aa'!$A$1,$C23,I2,1,1) -> 0 | J23: =OFFSET('0_Tabla Minerales-aa'!$A$1,$C23,J2,1,1) -> 0 | K23: =OFFSET('0_Tabla Minerales-aa'!$A$1,$C23,K2,1,1) -> 0 | L23: =OFFSET('0_Tabla Minerales-aa'!$A$1,$C23,L$2,1,1) -> 0 | M23: =OFFSET('0_Tabla Minerales-aa'!$A$1,$C23,M$2,1,1) -> 0 | N23: =OFFSET('0_Tabla Minerales-aa'!$A$1,$C23,N$2,1,1) -> 0 | O23: =OFFSET('0_Tabla Minerales-aa'!$A$1,$C23,O$2,1,1) -> 0 | P23: =OFFSET('0_Tabla Minerales-aa'!$A$1,$C23,P$2,1,1) -> 0 | Q23: =OFFSET('0_Tabla Minerales-aa'!$A$1,$C23,Q$2,1,1) -> 49 | R23: =OFFSET('0_Tabla Minerales-aa'!$A$1,$C23,R$2,1,1) -> 0 | S23: =OFFSET('0_Tabla Minerales-aa'!$A$1,$C23,S$2,1,1) -> 0 | T23: =OFFSET('0_Tabla Minerales-aa'!$A$1,$C23,T$2,1,1) -> 0 | U23: =OFFSET('0_Tabla Minerales-aa'!$A$1,$C23,U$2,1,1) -> 0 | V23: =OFFSET('0_Tabla Minerales-aa'!$A$1,$C23,V$2,1,1) -> 0 | W23: =OFFSET('0_Tabla Minerales-aa'!$A$1,$C23,W$2,1,1) -> 0 | X23: =OFFSET('0_Tabla Minerales-aa'!$A$1,$C23,X$2,1,1) -> 0 | Y23: =OFFSET('0_Tabla Minerales-aa'!$A$1,$C23,Y$2,1,1) -> 0 | Z23: =OFFSET('0_Tabla Minerales-aa'!$A$1,$C23,Z$2,1,1) -> 0 | AA23: =OFFSET('0_Tabla Minerales-aa'!$A$1,$C23,AA$2,1,1) -> 0 | AB23: =OFFSET('0_Tabla Minerales-aa'!$A$1,$C23,AB$2,1,1) -> 0 | AC23: =OFFSET('0_Tabla Minerales-aa'!$A$1,$C23,AC$2,1,1) -> 0 | AD23: =OFFSET('0_Tabla Minerales-aa'!$A$1,$C23,AD$2,1,1) -> 0 | AE23: =OFFSET('0_Tabla Minerales-aa'!$A$1,$C23,AE$2,1,1) -> 0 | AF23: =OFFSET('0_Tabla Minerales-aa'!$A$1,$C23,AF$2,1,1) -> 0 | AG23: =OFFSET('0_Tabla Minerales-aa'!$A$1,$C23,AG$2,1,1) -> 0 | AH23: =OFFSET('0_Tabla Minerales-aa'!$A$1,$C23,AH$2,1,1) -> 0 | AI23: =OFFSET('0_Tabla Minerales-aa'!$A$1,$C23,AI$2,1,1) -> 0 | AJ23: =OFFSET('0_Tabla Minerales-aa'!$A$1,$C23,AJ$2,1,1) -> 0 | AK23: =OFFSET('0_Tabla Minerales-aa'!$A$1,$C23,AK$2,1,1) -> 0 | AL23: =OFFSET('0_Tabla Minerales-aa'!$A$1,$C23,AL$2,1,1) -> 0 | AM23: =OFFSET('0_Tabla Minerales-aa'!$A$1,$C23,AM$2,1,1) -> 0
B24: =IF(OFFSET('0_Tabla Minerales-aa'!$A$1,C24,0,1,1)=0,"",OFFSET('0_Tabla Minerales-aa'!$A$1,C24,0,1,1)) ->  | C24: 1 | D24: =OFFSET('0_Tabla Minerales-aa'!$A$1,$C24,D2,1,1) -> 0 | E24: =OFFSET('0_Tabla Minerales-aa'!$A$1,$C24,E2,1,1) -> 0 | F24: =OFFSET('0_Tabla Minerales-aa'!$A$1,$C24,F2,1,1) -> 0 | G24: =OFFSET('0_Tabla Minerales-aa'!$A$1,$C24,G2,1,1) -> 0 | H24: =OFFSET('0_Tabla Minerales-aa'!$A$1,$C24,H2,1,1) -> 0 | I24: =OFFSET('0_Tabla Minerales-aa'!$A$1,$C24,I2,1,1) -> 0 | J24: =OFFSET('0_Tabla Minerales-aa'!$A$1,$C24,J2,1,1) -> 0 | K24: =OFFSET('0_Tabla Minerales-aa'!$A$1,$C24,K2,1,1) -> 0 | L24: =OFFSET('0_Tabla Minerales-aa'!$A$1,$C24,L$2,1,1) -> 0 | M24: =OFFSET('0_Tabla Minerales-aa'!$A$1,$C24,M$2,1,1) -> 0 | N24: =OFFSET('0_Tabla Minerales-aa'!$A$1,$C24,N$2,1,1) -> 0 | O24: =OFFSET('0_Tabla Minerales-aa'!$A$1,$C24,O$2,1,1) -> 0 | P24: =OFFSET('0_Tabla Minerales-aa'!$A$1,$C24,P$2,1,1) -> 0 | Q24: =OFFSET('0_Tabla Minerales-aa'!$A$1,$C24,Q$2,1,1) -> 0 | R24: =OFFSET('0_Tabla Minerales-aa'!$A$1,$C24,R$2,1,1) -> 0 | S24: =OFFSET('0_Tabla Minerales-aa'!$A$1,$C24,S$2,1,1) -> 0 | T24: =OFFSET('0_Tabla Minerales-aa'!$A$1,$C24,T$2,1,1) -> 0 | U24: =OFFSET('0_Tabla Minerales-aa'!$A$1,$C24,U$2,1,1) -> 0 | V24: =OFFSET('0_Tabla Minerales-aa'!$A$1,$C24,V$2,1,1) -> 0 | W24: =OFFSET('0_Tabla Minerales-aa'!$A$1,$C24,W$2,1,1) -> 0 | X24: =OFFSET('0_Tabla Minerales-aa'!$A$1,$C24,X$2,1,1) -> 0 | Y24: =OFFSET('0_Tabla Minerales-aa'!$A$1,$C24,Y$2,1,1) -> 0 | Z24: =OFFSET('0_Tabla Minerales-aa'!$A$1,$C24,Z$2,1,1) -> 0 | AA24: =OFFSET('0_Tabla Minerales-aa'!$A$1,$C24,AA$2,1,1) -> 0 | AB24: =OFFSET('0_Tabla Minerales-aa'!$A$1,$C24,AB$2,1,1) -> 0 | AC24: =OFFSET('0_Tabla Minerales-aa'!$A$1,$C24,AC$2,1,1) -> 0 | AD24: =OFFSET('0_Tabla Minerales-aa'!$A$1,$C24,AD$2,1,1) -> 0 | AE24: =OFFSET('0_Tabla Minerales-aa'!$A$1,$C24,AE$2,1,1) -> 0 | AF24: =OFFSET('0_Tabla Minerales-aa'!$A$1,$C24,AF$2,1,1) -> 0 | AG24: =OFFSET('0_Tabla Minerales-aa'!$A$1,$C24,AG$2,1,1) -> 0 | AH24: =OFFSET('0_Tabla Minerales-aa'!$A$1,$C24,AH$2,1,1) -> 0 | AI24: =OFFSET('0_Tabla Minerales-aa'!$A$1,$C24,AI$2,1,1) -> 0 | AJ24: =OFFSET('0_Tabla Minerales-aa'!$A$1,$C24,AJ$2,1,1) -> 0 | AK24: =OFFSET('0_Tabla Minerales-aa'!$A$1,$C24,AK$2,1,1) -> 0 | AL24: =OFFSET('0_Tabla Minerales-aa'!$A$1,$C24,AL$2,1,1) -> 0 | AM24: =OFFSET('0_Tabla Minerales-aa'!$A$1,$C24,AM$2,1,1) -> 0
B25: =IF(OFFSET('0_Tabla Minerales-aa'!$A$1,C25,0,1,1)=0,"",OFFSET('0_Tabla Minerales-aa'!$A$1,C25,0,1,1)) ->  | C25: 1 | D25: =OFFSET('0_Tabla Minerales-aa'!$A$1,$C25,D2,1,1) -> 0 | E25: =OFFSET('0_Tabla Minerales-aa'!$A$1,$C25,E2,1,1) -> 0 | F25: =OFFSET('0_Tabla Minerales-aa'!$A$1,$C25,F2,1,1) -> 0 | G25: =OFFSET('0_Tabla Minerales-aa'!$A$1,$C25,G2,1,1) -> 0 | H25: =OFFSET('0_Tabla Minerales-aa'!$A$1,$C25,H2,1,1) -> 0 | I25: =OFFSET('0_Tabla Minerales-aa'!$A$1,$C25,I2,1,1) -> 0 | J25: =OFFSET('0_Tabla Minerales-aa'!$A$1,$C25,J2,1,1) -> 0 | K25: =OFFSET('0_Tabla Minerales-aa'!$A$1,$C25,K2,1,1) -> 0 | L25: =OFFSET('0_Tabla Minerales-aa'!$A$1,$C25,L$2,1,1) -> 0 | M25: =OFFSET('0_Tabla Minerales-aa'!$A$1,$C25,M$2,1,1) -> 0 | N25: =OFFSET('0_Tabla Minerales-aa'!$A$1,$C25,N$2,1,1) -> 0 | O25: =OFFSET('0_Tabla Minerales-aa'!$A$1,$C25,O$2,1,1) -> 0 | P25: =OFFSET('0_Tabla Minerales-aa'!$A$1,$C25,P$2,1,1) -> 0 | Q25: =OFFSET('0_Tabla Minerales-aa'!$A$1,$C25,Q$2,1,1) -> 0 | R25: =OFFSET('0_Tabla Minerales-aa'!$A$1,$C25,R$2,1,1) -> 0 | S25: =OFFSET('0_Tabla Minerales-aa'!$A$1,$C25,S$2,1,1) -> 0 | T25: =OFFSET('0_Tabla Minerales-aa'!$A$1,$C25,T$2,1,1) -> 0 | U25: =OFFSET('0_Tabla Minerales-aa'!$A$1,$C25,U$2,1,1) -> 0 | V25: =OFFSET('0_Tabla Minerales-aa'!$A$1,$C25,V$2,1,1) -> 0 | W25: =OFFSET('0_Tabla Minerales-aa'!$A$1,$C25,W$2,1,1) -> 0 | X25: =OFFSET('0_Tabla Minerales-aa'!$A$1,$C25,X$2,1,1) -> 0 | Y25: =OFFSET('0_Tabla Minerales-aa'!$A$1,$C25,Y$2,1,1) -> 0 | Z25: =OFFSET('0_Tabla Minerales-aa'!$A$1,$C25,Z$2,1,1) -> 0 | AA25: =OFFSET('0_Tabla Minerales-aa'!$A$1,$C25,AA$2,1,1) -> 0 | AB25: =OFFSET('0_Tabla Minerales-aa'!$A$1,$C25,AB$2,1,1) -> 0 | AC25: =OFFSET('0_Tabla Minerales-aa'!$A$1,$C25,AC$2,1,1) -> 0 | AD25: =OFFSET('0_Tabla Minerales-aa'!$A$1,$C25,AD$2,1,1) -> 0 | AE25: =OFFSET('0_Tabla Minerales-aa'!$A$1,$C25,AE$2,1,1) -> 0 | AF25: =OFFSET('0_Tabla Minerales-aa'!$A$1,$C25,AF$2,1,1) -> 0 | AG25: =OFFSET('0_Tabla Minerales-aa'!$A$1,$C25,AG$2,1,1) -> 0 | AH25: =OFFSET('0_Tabla Minerales-aa'!$A$1,$C25,AH$2,1,1) -> 0 | AI25: =OFFSET('0_Tabla Minerales-aa'!$A$1,$C25,AI$2,1,1) -> 0 | AJ25: =OFFSET('0_Tabla Minerales-aa'!$A$1,$C25,AJ$2,1,1) -> 0 | AK25: =OFFSET('0_Tabla Minerales-aa'!$A$1,$C25,AK$2,1,1) -> 0 | AL25: =OFFSET('0_Tabla Minerales-aa'!$A$1,$C25,AL$2,1,1) -> 0 | AM25: =OFFSET('0_Tabla Minerales-aa'!$A$1,$C25,AM$2,1,1) -> 0
E26: =SUMPRODUCT(E3:E25,'II_Plantear Ración'!$E$4:$E$26) -> 0.1565834729 | F26: =SUMPRODUCT(F3:F25,'II_Plantear Ración'!$E$4:$E$26) -> 0.1696152783 | G26: =SUMPRODUCT(G3:G25,'II_Plantear Ración'!$E$4:$E$26) -> 12.29970189 | H26: =SUMPRODUCT(H3:H25,'II_Plantear Ración'!$E$4:$E$26) -> 4.914513347 | I26: =SUMPRODUCT(I3:I25,'II_Plantear Ración'!$E$4:$E$26)/SUM('II_Plantear Ración'!$E$4:$E$26) -> 2.752047879 | J26: =SUMPRODUCT(J3:J25,'II_Plantear Ración'!$E$4:$E$26) -> 0.2844 | K26: =SUMPRODUCT(K3:K25,'II_Plantear Ración'!$E$4:$E$26) -> 0.3318 | L26: =SUMPRODUCT(L3:L25,'II_Plantear Ración'!$E$4:$E$26) -> 0.2686 | M26: =SUMPRODUCT(M3:M25,'II_Plantear Ración'!$E$4:$E$26) -> 4.74 | N26: =SUMPRODUCT(N3:N25,'II_Plantear Ración'!$E$4:$E$26) -> 0.474 | O26: =SUMPRODUCT(O3:O25,'II_Plantear Ración'!$E$4:$E$26) -> 0.158 | P26: =SUMPRODUCT(P3:P25,'II_Plantear Ración'!$E$4:$E$26) -> 0 | Q26: =SUMPRODUCT(Q3:Q25,'II_Plantear Ración'!$E$4:$E$26) -> 0 | R26: =SUMPRODUCT(R3:R25,'II_Plantear Ración'!$E$4:$E$26) -> 1.2798 | S26: =SUMPRODUCT(S3:S25,'II_Plantear Ración'!$E$4:$E$26) -> 13.4458 | T26: =SUMPRODUCT(T3:T25,'II_Plantear Ración'!$E$4:$E$26) -> 0 | U26: =SUMPRODUCT(U3:U25,'II_Plantear Ración'!$E$4:$E$26) -> 0 | V26: =SUMPRODUCT(V3:V25,'II_Plantear Ración'!$E$4:$E$26) -> 0 | W26: =SUMPRODUCT(W3:W25,'II_Plantear Ración'!$E$4:$E$26) -> 0 | X26: =SUMPRODUCT(X3:X25,'II_Plantear Ración'!$E$4:$E$26) -> 0 | Y26: =SUMPRODUCT(Y3:Y25,'II_Plantear Ración'!$E$4:$E$26) -> 0 | Z26: =SUMPRODUCT(Z3:Z25,'II_Plantear Ración'!$E$4:$E$26) -> 3.92946 | AA26: =SUMPRODUCT(AA3:AA25,'II_Plantear Ración'!$E$4:$E$26) -> 26.544 | AB26: =SUMPRODUCT(AB3:AB25,'II_Plantear Ración'!$E$4:$E$26) -> 4.18068 | AC26: =SUMPRODUCT(AC3:AC25,'II_Plantear Ración'!$E$4:$E$26)/SUM('II_Plantear Ración'!$E$4:$E$26) -> 0.79572 | AD26: =SUMPRODUCT(AD3:AD25,'II_Plantear Ración'!$E$4:$E$26) -> 111.3912514 | AE26: =SUMPRODUCT(AE3:AE25,'II_Plantear Ración'!$E$4:$E$26) -> 6.162 | AF26: =SUMPRODUCT(AF3:AF25,'II_Plantear Ración'!$E$4:$E$26) -> 29.704 | AG26: =SUMPRODUCT(AG3:AG25,'II_Plantear Ración'!$E$4:$E$26) -> 74.94256 | AH26: =SUMPRODUCT(AH3:AH25,'II_Plantear Ración'!$E$4:$E$26) -> 33.654 | AI26: =SUMPRODUCT(AI3:AI25,'II_Plantear Ración'!$E$4:$E$26) -> 0 | AJ26: =SUMPRODUCT(AJ3:AJ25,'II_Plantear Ración'!$E$4:$E$26) -> 18.012 | AK26: =SUMPRODUCT(AK3:AK25,'II_Plantear Ración'!$E$4:$E$26) -> 0 | AL26: =SUMPRODUCT(AL3:AL25,'II_Plantear Ración'!$E$4:$E$26)/SUM('II_Plantear Ración'!$E$4:$E$26) -> 0.79 | AM26: =SUMPRODUCT(AM3:AM25,'II_Plantear Ración'!$E$4:$E$26) -> 100.5255445
E27: =SUMPRODUCT(E8:E19,'II_Plantear Ración'!$E$9:$E$20) -> 0 | F27: =SUMPRODUCT(F8:F19,'II_Plantear Ración'!$E$9:$E$20) -> 0 | AG27: =SUMPRODUCT(AG8:AG19,'II_Plantear Ración'!$E$9:$E$20) -> 0 | AM27: =SUMPRODUCT(AM8:AM19,'II_Plantear Ración'!$E$9:$E$20) -> 0
E28: =E26-E27 -> 0.1565834729 | F28: =F26-F27 -> 0.1696152783 | AG28: =AG26-AG27 -> 74.94256
F29: Ración posible 1 | AG29: NDFND_Fa
F30: =IF('III_1_Redistribución Ración'!B7="","",F3*'III_1_Redistribución Ración'!B7) -> -45.69469748 | G30: =IF('III_1_Redistribución Ración'!B7="","",'III_1_Redistribución Ración'!B7*CálculosVL!G3) -> -3313.564454 | AG30: =IF(AC3>0,785-8.62*AC3*100,0) -> 99.08936
F31: =IF('III_1_Redistribución Ración'!B8="","",F4*'III_1_Redistribución Ración'!B8) ->  | G31: =IF('III_1_Redistribución Ración'!B8="","",'III_1_Redistribución Ración'!B8*CálculosVL!G4) ->  | AG31: =IF(AC4>0,785-8.62*AC4*100,0) -> 341.390664
F32: =IF('III_1_Redistribución Ración'!B9="","",F5*'III_1_Redistribución Ración'!B9) ->  | G32: =IF('III_1_Redistribución Ración'!B9="","",'III_1_Redistribución Ración'!B9*CálculosVL!G5) ->  | AG32: =IF(AC5>0,785-8.62*AC5*100,0) -> 244.10362
F33: =IF('III_1_Redistribución Ración'!B10="","",F6*'III_1_Redistribución Ración'!B10) ->  | G33: =IF('III_1_Redistribución Ración'!B10="","",'III_1_Redistribución Ración'!B10*CálculosVL!G6) ->  | AG33: =IF(AC6>0,785-8.62*AC6*100,0) -> 0
F34: =IF('III_1_Redistribución Ración'!B11="","",F7*'III_1_Redistribución Ración'!B11) ->  | G34: =IF('III_1_Redistribución Ración'!B11="","",'III_1_Redistribución Ración'!B11*CálculosVL!G7) ->  | AG34: =IF(AC7>0,785-8.62*AC7*100,0) -> 0
F35: =IF('III_1_Redistribución Ración'!B12="","",F8*'III_1_Redistribución Ración'!B12) ->  | G35: =IF('III_1_Redistribución Ración'!B12="","",'III_1_Redistribución Ración'!B12*CálculosVL!G8) ->  | AG35: =SUM(AG30:AG34) -> 684.583644
F36: =IF('III_1_Redistribución Ración'!B13="","",F9*'III_1_Redistribución Ración'!B13) ->  | G36: =IF('III_1_Redistribución Ración'!B13="","",'III_1_Redistribución Ración'!B13*CálculosVL!G9) ->  | AG36: NDFD_Fa
B37: =CálculosVL!B3 -> VERDE raigrás italiano Espiga a 10 cm | F37: =IF('III_1_Redistribución Ración'!B14="","",F10*'III_1_Redistribución Ración'!B14) ->  | G37: =IF('III_1_Redistribución Ración'!B14="","",'III_1_Redistribución Ración'!B14*CálculosVL!G10) ->  | AG37: =AG28-AG35 -> -609.641084
B38: =CálculosVL!B4 -> HENO Cebada Espigado | F38: =IF('III_1_Redistribución Ración'!B15="","",F11*'III_1_Redistribución Ración'!B15) ->  | G38: =IF('III_1_Redistribución Ración'!B15="","",'III_1_Redistribución Ración'!B15*CálculosVL!G11) ->  | AG38: =100*AG37/AG28 -> -813.4777942
B39: =CálculosVL!B5 -> HENO Bromo Final vegetación | F39: =IF('III_1_Redistribución Ración'!B16="","",F12*'III_1_Redistribución Ración'!B16) ->  | G39: =IF('III_1_Redistribución Ración'!B16="","",'III_1_Redistribución Ración'!B16*CálculosVL!G12) -> 
B40: =CálculosVL!B6 ->  | F40: =IF('III_1_Redistribución Ración'!B17="","",F13*'III_1_Redistribución Ración'!B17) ->  | G40: =IF('III_1_Redistribución Ración'!B17="","",'III_1_Redistribución Ración'!B17*CálculosVL!G13) -> 
B41: =CálculosVL!B7 ->  | F41: =IF('III_1_Redistribución Ración'!B18="","",F14*'III_1_Redistribución Ración'!B18) ->  | G41: =IF('III_1_Redistribución Ración'!B18="","",'III_1_Redistribución Ración'!B18*CálculosVL!G14) -> 
B42: =CálculosVL!B8 -> Cebada grano | F42: =IF('III_1_Redistribución Ración'!B19="","",F15*'III_1_Redistribución Ración'!B19) ->  | G42: =IF('III_1_Redistribución Ración'!B19="","",'III_1_Redistribución Ración'!B19*CálculosVL!G15) -> 
B43: =CálculosVL!B9 -> Maíz grano | F43: =IF('III_1_Redistribución Ración'!B20="","",F16*'III_1_Redistribución Ración'!B20) ->  | G43: =IF('III_1_Redistribución Ración'!B20="","",'III_1_Redistribución Ración'!B20*CálculosVL!G16) -> 
B44: =CálculosVL!B10 -> Maíz gluten feed | F44: =IF('III_1_Redistribución Ración'!B21="","",F17*'III_1_Redistribución Ración'!B21) ->  | G44: =IF('III_1_Redistribución Ración'!B21="","",'III_1_Redistribución Ración'!B21*CálculosVL!G17) -> 
B45: =CálculosVL!B11 -> Cebada bagazo cervecería seco | F45: =IF('III_1_Redistribución Ración'!B22="","",F18*'III_1_Redistribución Ración'!B22) ->  | G45: =IF('III_1_Redistribución Ración'!B22="","",'III_1_Redistribución Ración'!B22*CálculosVL!G18) -> 
B46: =CálculosVL!B12 -> Soja torta 44 | F46: =IF('III_1_Redistribución Ración'!B23="","",F19*'III_1_Redistribución Ración'!B23) ->  | G46: =IF('III_1_Redistribución Ración'!B23="","",'III_1_Redistribución Ración'!B23*CálculosVL!G19) -> 
B47: =CálculosVL!B13 -> Altramuz extrusionado | F47: =IF('III_1_Redistribución Ración'!B24="","",F20*'III_1_Redistribución Ración'!B24) ->  | G47: =IF('III_1_Redistribución Ración'!B24="","",'III_1_Redistribución Ración'!B24*CálculosVL!G20) -> 
B48: =CálculosVL!B14 -> Algodón, grano | F48: =IF('III_1_Redistribución Ración'!B25="","",F21*'III_1_Redistribución Ración'!B25) ->  | G48: =IF('III_1_Redistribución Ración'!B25="","",'III_1_Redistribución Ración'!B25*CálculosVL!G21) -> 
B49: =CálculosVL!B15 -> Levadura cervecería | F49: =IF('III_1_Redistribución Ración'!B26="","",F22*'III_1_Redistribución Ración'!B26) ->  | G49: =IF('III_1_Redistribución Ración'!B26="","",'III_1_Redistribución Ración'!B26*CálculosVL!G22) -> 
B50: =CálculosVL!B16 -> Grasa vegetal, manteca de cerdo (todos los tipos) | F50: =IF('III_1_Redistribución Ración'!B27="","",F23*'III_1_Redistribución Ración'!B27) ->  | G50: =IF('III_1_Redistribución Ración'!B27="","",'III_1_Redistribución Ración'!B27*CálculosVL!G23) -> 
B51: =CálculosVL!B17 -> Mandioca | F51: =IF('III_1_Redistribución Ración'!B28="","",F24*'III_1_Redistribución Ración'!B28) ->  | G51: =IF('III_1_Redistribución Ración'!B28="","",'III_1_Redistribución Ración'!B28*CálculosVL!G24) -> 
B52: =CálculosVL!B18 -> Urea | F52: =IF('III_1_Redistribución Ración'!B29="","",F25*'III_1_Redistribución Ración'!B29) ->  | G52: =IF('III_1_Redistribución Ración'!B29="","",'III_1_Redistribución Ración'!B29*CálculosVL!G25) -> 
B53: =CálculosVL!B19 ->  | F53: =SUM(F30:F52) -> -45.69469748 | G53: =SUM(G30:G52) -> -3313.564454
F54: Ración posible NRC
F55: =IF('III_1_Redistribución Ración'!G7="","",F3*'III_1_Redistribución Ración'!G7) -> 24.25371102 | G55: =IF('III_1_Redistribución Ración'!G7="","",'III_1_Redistribución Ración'!G7*CálculosVL!G3) -> 1758.765002
F56: =IF('III_1_Redistribución Ración'!G8="","",F4*'III_1_Redistribución Ración'!G8) ->  | G56: =IF('III_1_Redistribución Ración'!G8="","",'III_1_Redistribución Ración'!G8*CálculosVL!G4) -> 
F57: =IF('III_1_Redistribución Ración'!G9="","",F5*'III_1_Redistribución Ración'!G9) ->  | G57: =IF('III_1_Redistribución Ración'!G9="","",'III_1_Redistribución Ración'!G9*CálculosVL!G5) -> 
F58: =IF('III_1_Redistribución Ración'!G10="","",F6*'III_1_Redistribución Ración'!G10) ->  | G58: =IF('III_1_Redistribución Ración'!G10="","",'III_1_Redistribución Ración'!G10*CálculosVL!G6) -> 
F59: =IF('III_1_Redistribución Ración'!G11="","",F7*'III_1_Redistribución Ración'!G11) ->  | G59: =IF('III_1_Redistribución Ración'!G11="","",'III_1_Redistribución Ración'!G11*CálculosVL!G7) -> 
F60: =IF('III_1_Redistribución Ración'!G12="","",F8*'III_1_Redistribución Ración'!G12) ->  | G60: =IF('III_1_Redistribución Ración'!G12="","",'III_1_Redistribución Ración'!G12*CálculosVL!G8) -> 
F61: =IF('III_1_Redistribución Ración'!G13="","",F9*'III_1_Redistribución Ración'!G13) ->  | G61: =IF('III_1_Redistribución Ración'!G13="","",'III_1_Redistribución Ración'!G13*CálculosVL!G9) -> 
F62: =IF('III_1_Redistribución Ración'!G14="","",F10*'III_1_Redistribución Ración'!G14) ->  | G62: =IF('III_1_Redistribución Ración'!G14="","",'III_1_Redistribución Ración'!G14*CálculosVL!G10) -> 
F63: =IF('III_1_Redistribución Ración'!G15="","",F11*'III_1_Redistribución Ración'!G15) ->  | G63: =IF('III_1_Redistribución Ración'!G15="","",'III_1_Redistribución Ración'!G15*CálculosVL!G11) -> 
F64: =IF('III_1_Redistribución Ración'!G16="","",F12*'III_1_Redistribución Ración'!G16) ->  | G64: =IF('III_1_Redistribución Ración'!G16="","",'III_1_Redistribución Ración'!G16*CálculosVL!G12) -> 
F65: =IF('III_1_Redistribución Ración'!G17="","",F13*'III_1_Redistribución Ración'!G17) ->  | G65: =IF('III_1_Redistribución Ración'!G17="","",'III_1_Redistribución Ración'!G17*CálculosVL!G13) -> 
F66: =IF('III_1_Redistribución Ración'!G18="","",F14*'III_1_Redistribución Ración'!G18) ->  | G66: =IF('III_1_Redistribución Ración'!G18="","",'III_1_Redistribución Ración'!G18*CálculosVL!G14) -> 
F67: =IF('III_1_Redistribución Ración'!G19="","",F15*'III_1_Redistribución Ración'!G19) ->  | G67: =IF('III_1_Redistribución Ración'!G19="","",'III_1_Redistribución Ración'!G19*CálculosVL!G15) -> 
F68: =IF('III_1_Redistribución Ración'!G20="","",F16*'III_1_Redistribución Ración'!G20) ->  | G68: =IF('III_1_Redistribución Ración'!G20="","",'III_1_Redistribución Ración'!G20*CálculosVL!G16) -> 
F69: =IF('III_1_Redistribución Ración'!G21="","",F17*'III_1_Redistribución Ración'!G21) ->  | G69: =IF('III_1_Redistribución Ración'!G21="","",'III_1_Redistribución Ración'!G21*CálculosVL!G17) -> 
F70: =IF('III_1_Redistribución Ración'!G22="","",F18*'III_1_Redistribución Ración'!G22) ->  | G70: =IF('III_1_Redistribución Ración'!G22="","",'III_1_Redistribución Ración'!G22*CálculosVL!G18) -> 
F71: =IF('III_1_Redistribución Ración'!G23="","",F19*'III_1_Redistribución Ración'!G23) ->  | G71: =IF('III_1_Redistribución Ración'!G23="","",'III_1_Redistribución Ración'!G23*CálculosVL!G19) -> 
F72: =IF('III_1_Redistribución Ración'!G24="","",F20*'III_1_Redistribución Ración'!G24) ->  | G72: =IF('III_1_Redistribución Ración'!G24="","",'III_1_Redistribución Ración'!G24*CálculosVL!G20) -> 
F73: =IF('III_1_Redistribución Ración'!G25="","",F21*'III_1_Redistribución Ración'!G25) ->  | G73: =IF('III_1_Redistribución Ración'!G25="","",'III_1_Redistribución Ración'!G25*CálculosVL!G21) -> 
F74: =IF('III_1_Redistribución Ración'!G26="","",F22*'III_1_Redistribución Ración'!G26) ->  | G74: =IF('III_1_Redistribución Ración'!G26="","",'III_1_Redistribución Ración'!G26*CálculosVL!G22) -> 
F75: =IF('III_1_Redistribución Ración'!G27="","",F23*'III_1_Redistribución Ración'!G27) ->  | G75: =IF('III_1_Redistribución Ración'!G27="","",'III_1_Redistribución Ración'!G27*CálculosVL!G23) -> 
F76: =IF('III_1_Redistribución Ración'!G28="","",F24*'III_1_Redistribución Ración'!G28) ->  | G76: =IF('III_1_Redistribución Ración'!G28="","",'III_1_Redistribución Ración'!G28*CálculosVL!G24) -> 
F77: =IF('III_1_Redistribución Ración'!G29="","",F25*'III_1_Redistribución Ración'!G29) ->  | G77: =IF('III_1_Redistribución Ración'!G29="","",'III_1_Redistribución Ración'!G29*CálculosVL!G25) -> 
F78: =SUM(F55:F77) -> 24.25371102 | G78: =SUM(G55:G77) -> 1758.765002

Sheet Criterios (hidden)
A1: Paridad
A2: Primíparas
A3: Multíparas
A4: Estado lactación
A5: 3 primeras semanas
A6: 4 a 6 primeras semanas
A7: 7 a 12 primeras semanas
A8: Pico (90 a 150 días en lactación)
A9: Resto lactación
A10: Secado
A11: Media producción explotación
A12: <5.000
A13: 5.000 a 6.000
A14: 6.000 a 8.000
A15: 8.000 a 10.000
A16: > 10.000
A17: Edad primer parto
A18: <28 meses
A19: > 28 meses
A20: Gestación
A21: no
A22: 7º mes
A23: 8º mes
A24: 9º mes

Sheet I_Necesidades
A1: Entorno o modalidad explotación ----------------------> | E1: 2
A2: Datos explotación para la formulación | F2: Datos para una vaca en lactación | N2: =(14.24+0.015*(I7-600)+0.11*I18+(2.5-I16))*AV5*AW5*AY5 -> 17.13897807 | AU2: 0.6 | AV2: 0.7 | BR2: Autor: Antoni Seguí Parpal
A3: Producción media explotación, vaca presente y año | D3: 10000 | I3: 2 | M3: CI UE | O3: CI MS | Q3: Energía | S3: Proteína | U3: Fósforo | W3: Calcio | Y3: Mg | AA3: K | AC3: Na | AE3: S | AG3: Cl | AI3: Co mg/día | AK3: Cu mg/día | AM3: Mn mg/día | AO3: Zn mg/día | AQ3: I mg/día | AS3: Se mg/día | AU3: IL | AW3: IG | AX3: IM prim | AY3: IM multi | AZ3: I_CI PDI
A4: Tasa de grasa (%) | D4: 3 | F4: Producción a 305 días | I4: 9500 | M4: prim | N4: multi | O4: prim | P4: multi | Q4: prim | R4: multi | S4: prim | T4: multi | U4: prim | V4: multi | W4: prim | X4: multi | Y4: prim | Z4: multi | AA4: prim | AB4: multi | AC4: prim | AD4: multi | AE4: prim | AF4: multi | AG4: prim | AH4: multi | AI4: prim | AJ4: multi | AK4: prim | AL4: multi | AM4: prim | AN4: multi | AO4: prim | AP4: multi | AQ4: prim | AR4: multi | AS4: prim | AT4: multi | AU4: prim | AV4: multi
A5: Tasa de proteína (%) | D5: 4 | F5: Tasa de grasa (%) | I5: 3.9 | M5: =(13.9+(0.015*(I7-600))+(0.15*I18)+(1.5*(3-I16)))*AU5*AW5*AX5*AZ5 -> 18.82444272 | N5: =(13.9+(0.015*(I7-600))+(0.15*I18)+(1.5*(3-I16)))*AV5*AW5*AY5*AZ5 -> 18.8280795 | O5: =0.372*I18+0.0968*I7^0.75*(1-EXP(-0.192*(I12+3.67))) -> 23.60807831 | P5: =0.372*I18+0.0968*I7^0.75*(1-EXP(-0.192*(I12+3.67))) -> 23.60807831 | Q5: =(0.0536*I7^0.75)*K6+I18*0.42+(3.14-0.077*I8)+IF(I23="",0,(0.000695*I10*EXP(0.116*I23)))-I20 -> 20.4561553 | R5: =(0.0536*I7^0.75)*K6+I18*0.42+(3.14-0.077*I8)+ IF(I23="",0,(0.000695*I10*EXP(0.116*I23)))-I20 -> 20.4561553 | S5: =19.8*O5+0.312*I7+(0.2*I7^0.6)/I19+IF(I8<40,((270-6.66*I8)/I19),0)+(I18*31/I19)+IF(I23>24,(0.0448*I10*EXP(0.111*I23)/I19),0)-I21 -> 2139.695824 | T5: =19.8*P5+0.312*I7+0.2*I7^0.6/I19+IF(I8<40,((270-6.66*I8)/I19),0)+I18*31/I19+IF(I23>24,(0.0448*I10*EXP(0.111*I23)/I19),0)-I21 -> 2139.695824 | U5: =(0.83*O5+0.002*I7+0.9*I18+IF(I23>0,(7.38/(1+EXP(19.1-5.46*LN(I23)))),0))/0.65 -> 73.82394112 | V5: =(0.83*P5+0.002*I7+0.9*I18+IF(I23>0,(7.38/(1+EXP(19.1-(5.46*LN(I23))))),0))/0.65 -> 73.82394112 | W5: =(0.663*O5+0.008*I7+1.25*I18+IF(I23>0,(23.5/(1+EXP(18.8-(5.03*LN(I23))))),0))/0.4 -> 146.1958646 | X5: =(0.663*P5+0.008*I7+1.25*I18+IF(I23>0,(23.5/(1+EXP(18.8-(5.03*LN(I23))))),0))/0.4 -> 146.1958646 | Y5: =(0.011*I7+0.15*I18+IF(I23>36,0.33,0))/0.16 -> 72.90714242 | Z5: =(0.011*I7+0.15*I18+IF(I23>36,0.33,0))/0.16 -> 72.90714242 | AA5: =IF(I18>0,0.115*I7,0.07*I7)+IF(I23>24,1,0)+1.5*I18 -> 119.9014279 | AB5: =IF(I18>0,0.115*I7,0.07*I7)+IF(I23>24,1,0)+1.5*I18 -> 119.9014279 | AC5: =IF(I18>0,0.023*I7,0.015*I7)+IF(I23>24,1.3,0)+0.45*I18 -> 28.49542836 | AD5: =IF(I18>0,0.023*I7,0.015*I7)+IF(I23>24,1.3,0)+0.45*I18 -> 28.49542836 | AE5: =2*O5 -> 47.21615663 | AF5: =2*P5 -> 47.21615663 | AG5: =IF(I18>0,0.035*I7,0.023*I7)+IF(I23>24,1,0)+0.15*I18 -> 27.26514279 | AH5: =IF(I18>0,0.035*I7,0.023*I7)+IF(I23>24,1,0)+0.15*I18 -> 27.26514279 | AI5: =0.3*O5 -> 7.082423494 | AJ5: =0.3*P5 -> 7.082423494 | AK5: =10*O5 -> 236.0807831 | AL5: =10*P5 -> 236.0807831 | AM5: =50*O5 -> 1180.403916 | AN5: =50*P5 -> 1180.403916 | AO5: =50*O5 -> 1180.403916 | AP5: =50*P5 -> 1180.403916 | AQ5: =IF(I18>0,0.65*O5,0.45*O5) -> 15.3452509 | AR5: =IF(I18>0,0.65*O5,0.45*O5) -> 15.3452509 | AS5: =IF(I18>0,0.15,0) -> 0.15 | AT5: =IF(I18>0,0.15,0) -> 0.15 | AU5: =$AU$2+(1-$AU$2)*(1-EXP(-0.25*I22)) -> 0.9992278183 | AV5: =$AV$2+(1-$AV$2)*(1-EXP(-0.25*I22)) -> 0.9994208638 | AW5: =0.8+0.2*(1-EXP(-0.25*(40-I23))) -> 0.99999092 | AX5: =-0.1+1.1*(1-EXP(-0.08*I8)) -> 0.9382517609 | AY5: =-0.1+1.1*(1-EXP(-0.08*I8)) -> 0.9382517609 | AZ5: =0.91+(0.115/(1+EXP(0.13*(90-(S5/Q5))))) -> 1.010009982
A6: Intervalo entre partos (días) IP | D6: 365 | F6: Tasa de proteína (%) | I6: 3.3 | K6: =IF(E1=1,0.95,IF(E1=2,1,IF(E1=3,1.1,IF(E1=4,1.2,1.3)))) -> 1 | N6: período lactación | P6: UFL_VPR>
A7: Tiempo secado (días) | D7: 60 | F7: Peso vaca adulta (kg) | I7: 650 | N7: =(D6-D7)/7 -> 43.57142857 | O7: semanas lact | Q7: =(9*30.5+10)/7 -> 40.64285714 | R7: Semanas gestación
A8: Vacas presentes | D8: 270 | F8: Edad en meses | H8: =IF(I3=1,IF(I8>36,"edad en meses?",""),IF(I8<36,"edad en meses?","")) ->  | I8: 36 | L8: 394 | N8: =D10*0.9 -> 630 | O8: pes prim | Q8: =Q7-(61/7) -> 31.92857143 | T8: A | U8: =-9.5+0.4*N19+1.89*D11 -> 11.69570582 | V8: =-13.2+0.4*O19+1.89*D11 -> 10.02079789 | AQ8: 100 | AR8: =AQ8/7 -> 14.28571429 | BC8: =16*I7*0.9 -> 9360
A9: Vacas primera lactación (%) | D9: 0.3 | F9: Condición corporal vaca seca al parto | I9: 3 | L9: 900 | N9: =1.5*(3-D11) -> 0 | O9: =D11-1.5 -> 1.5 | T9: B | U9: =1/D11 -> 0.3333333333 | AQ9: 225 | AR9: =AQ9/7 -> 32.14285714 | BC9: =30*I7*0.9 -> 17550
A10: Peso vaca adulta (kg) | D10: 700 | F10: Peso ternero al nacimiento | I10: 42 | T10: K | U10: =U8/(52*U9) -> 0.6747522591 | V10: =V8/(52*U9) -> 0.5781229551
A11: Condición corporal vacas secas | D11: 3 | F11: Intervalo entre partos (días) | I11: 420 | K11: =INT(L11-8) -> 52 | L11: =INT(I11/7) -> 60
A12: Peso ternero al nacimiento | D12: 42 | F12: Semana lactación-----> | G12: Valor entre 1 y | H12: =K11 -> 52 | I12: 25 | J12: =L11-40 -> 20
A13: Número medio de lactación (años) Datos control lechero o de la explotación | D13: 2.34 | F13: Semana fecundación | J13: =K13-8 -> 52 | K13: =L11-I13 -> 60
A14: MS forrajera,% mínimo en la ración | D14: 50 | F14: Semana gestación calculada en lactación | I14: =IF(I13="",0,IF((I12+1)-I13>0,I12-I13,"")) -> 0 | K14: máx. gest
A15: Límites de tolerancia (%) en el cumplimiento necesidades proteicas | D15: 12.5 | F15: Semana en gestación período seco | I15: =IF(I12<=K11,"",I12-J12) ->  | BH15: =EXP(-0.25*0) -> 1 | BM15: =0.8+0.2*(1-EXP(-0.25*(40-0))) -> 0.99999092
A16: EfPDI teórica | D16: 0.67 | F16: Condición corporal calculada | I16: =IF(I18=0,I9,IF(I13>I12,"Revisar setmana fecundació",I9-(7/206)*((L148/L149)-L150*I12+(L148/(1-L149))*(EXP(-I12)-(EXP(-L149*I12)/L149))))) -> 2.523424826 | N16: =D13*D26+D7*D13 -> 854.1 | O16: =N16/365 -> 2.34 | P16: =D26/7 -> 43.57142857 | BP16: =0.6+(1-0.6)*(1-EXP(-0.16*0)) -> 0.6 | BQ16: =0.8+0.2*(1-EXP(-0.25*(40-34))) -> 0.955373968
F17: Producción máxima potencial diaria 4% (pico) | I17: =IF(I3=1,I4*(1+(0.0055*(I5*10-40)+0.0033*(I6*10-31)))/260,I4*(1+(0.0055*(I5*10-40)+0.0033*(I6*10-31)))/230) -> 41.34978261 | K17: data parto | L17: =I13+9*4.5 -> 40.5 | M17: =IF(I14="","",L17-I14) -> 40.5 | N17: Producción | R17: semana IA | T17: Semana parto des d'inici lact | AW17: mg/vaca i día | BK17: 0.6 | BL17: 0.7
F18: Producción diaria en la semana de lactación al 4% y 3,1 | I18: =IF(I15="",IF(I13>I12,"Revisar setmana fecundació",IF(I12>1,IF(I3=1,I17*(-0.55+1.66*EXP(-0.0065*I12)-0.72*EXP(-0.44*I12)-0.69*EXP(-0.16*(45-I14))),I17*(-0.83+1.92*EXP(-0.0083*I12)-0.74*EXP(-0.88*I12)-0.5*EXP(-0.12*(45-I14)))),0)),0) -> 30.10095192 | N18: Pico prim | O18: Pico multi | R18: =D25 -> 11.57142857 | T18: =R18+Q7 -> 52.21428571 | W18: UFL_VPR pot | Y18: PDI_VPR pot | AA18: CI | AC18: CI MS | AE18: Energía | AG18: Proteína | AI18: Fósforo | AK18: Calcio | AM18: Mg | AO18: K | AQ18: Na | AS18: S | AU18: Cl | AW18: Fe | AX18: No 2018 | AY18: Co | BA18: Cu | BC18: Mn | BE18: Zn | BG18: I | BI18: Se | BK18: IL | BM18: IG | BN18: IM prim | BO18: IM multi | BP18: I_CI PDI | BQ18: I_CI PDI
F19: EfPDI teórica | I19: =D16 -> 0.67 | L19: setmL teórica | N19: =D29/260 -> 38.81426456 | O19: =D29/230 -> 43.87699472 | P19: periodo | Q19: setmL | R19: setmG | S19: setmG | T19: edad meses prim | U19: CC prim | V19: CC mult | W19: prim | X19: multi | Y19: prim | Z19: multi | AA19: prim | AB19: multi | AC19: prim | AD19: multi | AE19: prim | AF19: multi | AG19: prim | AH19: multi | AI19: prim | AJ19: multi | AK19: prim | AL19: multi | AM19: prim | AN19: multi | AO19: prim | AP19: multi | AQ19: prim | AR19: multi | AS19: prim | AT19: multi | AU19: prim | AV19: multi | AW19: prim | AX19: multi | AY19: prim | AZ19: multi | BA19: prim | BB19: multi | BC19: prim | BD19: multi | BE19: prim | BF19: multi | BG19: prim | BH19: multi | BI19: prim | BJ19: multi | BK19: prim | BL19: multi | BP19: PRIM
F20: UFL_VPR pot | H20: Variación reservas corporales UFL | I20: =-L150+L152*(EXP(-L149*I22)-EXP(-I22)) -> -0.5165541137 | K20: =IF(L20<$N$7,L20,$N$7) -> 2 | L20: 2 | M20: =IF(Q20<$R$18,0,Q20-$R$18) -> 0 | N20: =IF(Q20=0,0,IF(R20="",N$19*(-0.55+1.66*EXP(-0.0065*Q20)-0.72*EXP(-0.44*Q20)),N$19*(-0.55+1.66*EXP(-0.0065*Q20)-0.72*EXP(-0.44*Q20)-(0.69*EXP(-0.16*(45-R20)))))) -> 30.66000735 | O20: =IF(Q20=0,0,IF(R20="",O$19*(-0.83+1.92*EXP(-0.0083*Q20)-0.74*EXP(-0.88*Q20)),O$19*(-0.83+1.92*EXP(-0.0083*Q20)-0.74*EXP(-0.88*Q20)-(0.5*EXP(-0.12*(45-R20)))))) -> 40.85289926 | P20: tres 1es | Q20: =IF(K20=K19,0,K20) -> 2 | R20: =IF(Q20=0,R18+4,IF((Q20-$D$25)<0,"",Q20-$D$25)) ->  | S20: =IF(R20>40,0,R20) -> 0 | T20: =IF(Q20=0,"",24+(Q20/4)) -> 24.5 | U20: =$D$11-(7/260)*(($U$8/$U$9)-$U$10*Q20+($U$8/(1-$U$9))*(EXP(-Q20)-EXP(-$U$9*Q20)/$U$9)) -> 2.755258857 | V20: =$D$11-(7/260)*(($V$8/$U$9)-$V$10*Q20+($V$8/(1-$U$9))*(EXP(-Q20)-EXP(-$U$9*Q20)/$U$9)) -> 2.790307523 | W20: =-$U$10+($U$8/(1-$U$9))*(EXP(-$U$9*Q20)-EXP(-Q20)) -> 5.958148635 | X20: =-$V$10+($V$8/(1-$U$9))*(EXP(-$U$9*Q20)-EXP(-Q20)) -> 5.104899538 | Y20: =50+33*W20 -> 246.6189049 | Z20: =50+33*X20 -> 218.4616847 | AA20: =(13.9+(0.015*($D$10-600))+0.15*N20+(1.5*(3-U20)))*BK20*BM20*BN20*BP20 -> 12.50524509 | AB20: =(13.9+(0.015*($D$10-600))+0.15*N20+(1.5*(3-U20)))*BL20*BM20*BO20*BQ20 -> 16.1421139 | AC20: =0.372*N20+0.0968*$D$10^0.75*(1-EXP(-0.192*(Q20+3.67))) -> 20.14380097 | AD20: =0.372*O20+0.0968*$D$10^0.75*(1-EXP(-0.192*(Q20+3.67))) -> 23.93555676 | AE20: =(0.0536*$D$10^0.75)*$K$6+N20*0.42+(3.14-0.077*T20)+IF(S20="",0,(0.000695*$D$12*EXP(0.116*S20)))-W20 -> 15.49612337 | AF20: =(0.0536*$D$10^0.75)*$K$6+O20*0.42+(3.14-0.077*U20)+IF(S20="",0,(0.000695*$D$12*EXP(0.116*S20)))-X20 -> 22.30473214 | AG20: =IF(S20="",19.8*AC20+0.312*$D$10+0.2*$D$10^0.6/$D$16+((270-6.66*T20)/$D$16)+(N20*31/$D$16)-Y20,19.8*AC20+0.312*$D$10+0.2*$D$10^0.6/$D$16+((270-6.66*T20)/$D$16)+(N20*31/$D$16)+0.0448*$D$12*EXP(0.111*S20)/$D$16-Y20) -> 1966.687795 | AH20: =IF(S20="",19.8*AD20+0.312*$D$10+0.2*$D$10^0.6/$D$16+(O20*31/$D$16)-Z20,19.8*AD20+0.312*$D$10+0.2*$D$10^0.6/$D$16+(O20*31/$D$16)+0.0448*$D$12*EXP(0.111*S20)/$D$16)-Z20 -> 2382.085435 | AI20: =(0.83*AC20+0.002*$D$10+0.9*N20+IF($S20=0,0,(7.38/(1+EXP(19.1-5.46*LN(S20))))))/0.65 -> 70.32824834 | AJ20: =(0.83*AD20+0.002*$D$10+0.9*O20+IF($S20=0,0,(7.38/(1+EXP(19.1-5.46*LN(S20))))))/0.65 -> 89.28326375 | AK20: =(0.663*AC20+0.008*$D$10+1.25*N20+IF(S20=0,0,(23.5/(1+EXP(18.8-(5.03*LN(S20)))))))/0.4 -> 143.2008731 | AL20: =(0.663*AD20+0.008*$D$10+1.25*O20+IF(S20=0,0,(23.5/(1+EXP(18.8-(5.03*LN(S20)))))))/0.4 -> 181.3384955 | AM20: =(0.011*$D$10+0.15*N20+IF(S20>36,0.33,0))/0.16 -> 76.86875689 | AN20: =(0.011*$D$10+0.15*O20+IF(S20>36,0.33,0))/0.16 -> 86.42459305 | AO20: =IF(N20>0,0.115*$D$10,0.07*$D$10)+IF(S20>24,1,0)+1.5*N20 -> 126.490011 | AP20: =IF(O20>0,0.115*$D$10,0.07*$D$10)+IF(S20>24,1,0)+1.5*O20 -> 141.7793489 | AQ20: =IF(N20>0,0.023*$D$10,0.015*$D$10)+IF($S20>24,1.3,0)+0.45*N20 -> 29.89700331 | AR20: =IF(O20>0,0.023*$D$10,0.015*$D$10)+IF($S20>24,1.3,0)+0.45*O20 -> 34.48380466 | AS20: =2*AC20 -> 40.28760194 | AT20: =2*AD20 -> 47.87111352 | AU20: =IF(N20>0,0.035*$D$10,0.023*$D$10)+IF($S20>24,1,0)+0.15*N20 -> 29.0990011 | AV20: =IF(O20>0,0.035*$D$10,0.023*$D$10)+IF($S20>24,1,0)+0.15*O20 -> 30.62793489 | AW20: =IF(S20="",0,IF(S20<27,N20/0.1,(N20+18)/0.1)) -> 306.6000735 | AX20: =IF(S20="",0,IF(S20<27,O20/0.1,(O20+18)/0.1)) -> 408.5289926 | AY20: =0.3*AC20 -> 6.043140291 | AZ20: =0.3*AD20 -> 7.180667028 | BA20: =10*AC20 -> 201.4380097 | BB20: =10*AD20 -> 239.3555676 | BC20: =50*AC20 -> 1007.190049 | BD20: =50*AD20 -> 1196.777838 | BE20: =50*AC20 -> 1007.190049 | BF20: =50*AD20 -> 1196.777838 | BG20: =IF(N20>0,0.65*AC20,0.45*AC20) -> 13.09347063 | BH20: =IF(O20>0,0.65*AD20,0.45*AD20) -> 15.55811189 | BI20: =IF(N20>0,0.15,0) -> 0.15 | BJ20: =IF(O20>0,0.15,0) -> 0.15 | BK20: =$BK$17+(1-$BK$17)*(1-EXP(-0.16*Q20)) -> 0.7095403852 | BL20: =$BL$17+(1-$BL$17)*(1-EXP(-0.16*Q20)) -> 0.7821552889 | BM20: =0.8+0.2*(1-EXP(-0.25*(40-S20))) -> 0.99999092 | BN20: =-0.1+1.1*(1-EXP(-0.08*T20)) -> 0.845055737 | BO20: 1 | BP20: =0.91+0.115/(1+EXP(0.13*(90-(AG20/AE20)))) -> 1.024060305 | BQ20: =0.91+0.115/(1+EXP(0.13*(90-AH20/AF20))) -> 1.013358744
F21: PDI_VPR pot | H21: Variación reservas corporales PDI | I21: =IF(I22=1,100+33*I20,IF(I22=2,50+33*I20,33*I20)) -> -17.04628575
F22: Semana lactación-----> | I22: =IF(I15="",I12,0) -> 25
F23: Semana gestación ----> | I23: =IF(I15="",I14,I15) -> 0 | BR23: Ejemplos según valor intervalo entre partos
A24: Intervalo parto fecundación (dies) | D24: =D6-284 -> 81 | J24: =IF(K24=K20,0,K24) -> 5 | K24: =IF(L24<$N$7,L24,$N$7) -> 5 | L24: 5 | M24: 0 | N24: =IF(Q24=0,0,IF(R24="",N$19*(-0.55+1.66*EXP(-0.0065*Q24)-0.72*EXP(-0.44*Q24)),N$19*(-0.55+1.66*EXP(-0.0065*Q24)-0.72*EXP(-0.44*Q24)-(0.69*EXP(-0.16*(45-R24)))))) -> 37.92693138 | O24: =IF(Q24=0,0,IF(R24="",O$19*(-0.83+1.92*EXP(-0.0083*Q24)-0.74*EXP(-0.88*Q24)),O$19*(-0.83+1.92*EXP(-0.0083*Q24)-0.74*EXP(-0.88*Q24)-(0.5*EXP(-0.12*(45-R24)))))) -> 44.00272391 | P24: 4 a 6 | Q24: =IF(K24=K20,0,K24) -> 5 | R24: =IF(Q24=0,R20+4,IF((Q24-$D$25)<0,"",Q24-$D$25)) ->  | S24: =IF(R24>40,0,R24) -> 0 | T24: =IF(Q24=0,T20+1,24+(Q24/4)) -> 25.25 | U24: 2.410629264 | V24: 2.495031329 | W24: 2.520590404 | X24: 2.159624001 | Y24: =33*W24 -> 83.17948334 | Z24: =33*X24 -> 71.26759202 | AA24: =(13.9+(0.015*($D$10-600))+0.15*N24+(1.5*(3-U24)))*BK24*BM24*BN24*BP24 -> 15.72255989 | AB24: =(13.9+(0.015*($D$10-600))+0.15*N24+(1.5*(3-U24)))*BL24*BM24*BO24*BQ24 -> 19.14134079 | AC24: =0.372*N24+0.0968*$D$10^0.75*(1-EXP(-0.192*(Q24+3.67))) -> 24.78906167 | AD24: =0.372*O24+0.0968*$D$10^0.75*(1-EXP(-0.192*(Q24+3.67))) -> 27.04925649 | AE24: =(0.0536*$D$10^0.75)*$K$6+N24*0.42+(3.14-0.077*T24)+IF(S24="",0,(0.000695*$D$12*EXP(0.116*S24)))-W24 -> 21.92803969 | AF24: =(0.0536*$D$10^0.75)*$K$6+O24*0.42+(3.14-0.077*U24)+IF(S24="",0,(0.000695*$D$12*EXP(0.116*S24)))-X24 -> 26.59947051 | AG24: =IF(S24="",19.8*AC24+0.312*$D$10+0.2*$D$10^0.6/$D$16+((270-6.66*T24)/$D$16)+(N24*31/$D$16)-Y24,19.8*AC24+0.312*$D$10+0.2*$D$10^0.6/$D$16+((270-6.66*T24)/$D$16)+(N24*31/$D$16)+0.0448*$D$12*EXP(0.111*S24)/$D$16-Y24) -> 2550.878967 | AH24: =IF(S24="",19.8*AD24+0.312*$D$10+0.2*$D$10^0.6/$D$16+(O24*31/$D$16)-Z24,19.8*AD24+0.312*$D$10+0.2*$D$10^0.6/$D$16+(O24*31/$D$16)+0.0448*$D$12*EXP(0.111*S24)/$D$16)-Z24 -> 2736.668938 | AI24: =(0.83*AC24+0.002*$D$10+0.9*N24+IF($S24=0,0,(7.38/(1+EXP(19.1-5.46*LN(S24))))))/0.65 -> 86.32178373 | AJ24: =(0.83*AD24+0.002*$D$10+0.9*O24+IF($S24=0,0,(7.38/(1+EXP(19.1-5.46*LN(S24))))))/0.65 -> 97.62051448 | AK24: =(0.663*AC24+0.008*$D$10+1.25*N24+IF(S24=0,0,(23.5/(1+EXP(18.8-(5.03*LN(S24)))))))/0.4 -> 173.6095303 | AL24: =(0.663*AD24+0.008*$D$10+1.25*O24+IF(S24=0,0,(23.5/(1+EXP(18.8-(5.03*LN(S24)))))))/0.4 -> 196.3426549 | AM24: =(0.011*$D$10+0.15*N24+IF(S24>36,0.33,0))/0.16 -> 83.68149817 | AN24: =(0.011*$D$10+0.15*O24+IF(S24>36,0.33,0))/0.16 -> 89.37755367 | AO24: =IF(N24>0,0.115*$D$10,0.07*$D$10)+IF(S24>24,1,0)+1.5*N24 -> 137.3903971 | AP24: =IF(O24>0,0.115*$D$10,0.07*$D$10)+IF(S24>24,1,0)+1.5*O24 -> 146.5040859 | AQ24: =IF(N24>0,0.023*$D$10,0.015*$D$10)+IF($S24>24,1.3,0)+0.45*N24 -> 33.16711912 | AR24: =IF(O24>0,0.023*$D$10,0.015*$D$10)+IF($S24>24,1.3,0)+0.45*O24 -> 35.90122576 | AS24: =2*AC24 -> 49.57812334 | AT24: 54.09851299 | AU24: =IF(N24>0,0.035*$D$10,0.023*$D$10)+IF($S24>24,1,0)+0.15*N24 -> 30.18903971 | AV24: =IF(O24>0,0.035*$D$10,0.023*$D$10)+IF($S24>24,1,0)+0.15*O24 -> 31.10040859 | AW24: =IF(S24="",0,IF(S24<27,N24/0.1,(N24+18)/0.1)) -> 379.2693138 | AX24: =IF(S24="",0,IF(S24<27,O24/0.1,(O24+18)/0.1)) -> 440.0272391 | AY24: =0.3*AC24 -> 7.436718501 | AZ24: =0.3*AD24 -> 8.114776948 | BA24: =10*AC24 -> 247.8906167 | BB24: =10*AD24 -> 270.4925649 | BC24: =50*AC24 -> 1239.453084 | BD24: =50*AD24 -> 1352.462825 | BE24: =50*AC24 -> 1239.453084 | BF24: =50*AD24 -> 1352.462825 | BG24: =IF(N24>0,0.65*AC24,0.45*AC24) -> 16.11289009 | BH24: =IF(O24>0,0.65*AD24,0.45*AD24) -> 17.58201672 | BI24: =IF(N24>0,0.15,0) -> 0.15 | BJ24: 0.15 | BK24: =$BK$17+(1-$BK$17)*(1-EXP(-0.16*Q24)) -> 0.8202684144 | BL24: =$BL$17+(1-$BL$17)*(1-EXP(-0.16*Q24)) -> 0.8652013108 | BM24: =0.8+0.2*(1-EXP(-0.25*(40-S24))) -> 0.99999092 | BN24: 0.8540789884 | BO24: 1 | BP24: =0.91+0.115/(1+EXP(0.13*(90-AG24/AE24))) -> 1.021367243 | BQ24: =0.91+0.115/(1+EXP(0.13*(90-AH24/AF24))) -> 1.006857202 | BR24: 365 | BS24: =BR24+10 -> 375 | BT24: =BS24+10 -> 385 | BU24: 395 | BV24: 405 | BW24: 415 | BX24: 425 | BY24: 435 | BZ24: 445 | CA24: 455 | CB24: 465
A25: Semana inseminación fecundante | D25: =D24/7 -> 11.57142857 | J25: =IF(K25=K24,0,K25) -> 9.5 | K25: 9.5 | L25: 9.5 | M25: 0 | N25: 38.79799233 | O25: 41.43083496 | P25: 7 a 12 | Q25: =IF(K25=K24,0,K25) -> 9.5 | R25: =IF(Q25=0,R24+4,IF((Q25-$D$25)<0,"",Q25-$D$25)) ->  | S25: 0 | T25: =IF(Q25=0,T24+1,24+(Q25/4)) -> 26.375 | U25: 2.287609322 | V25: 2.389628714 | W25: 0.06328756742 | X25: 0.05422433938 | Y25: =33*W25 -> 2.088489725 | Z25: 1.7894032 | AA25: =(13.9+(0.015*($D$10-600))+0.15*N25+(1.5*(3-U25)))*BK25*BM25*BN25*BP25 -> 17.91420253 | AB25: =(13.9+(0.015*($D$10-600))+0.15*N25+(1.5*(3-U25)))*BL25*BM25*BO25*BQ25 -> 20.69582446 | AC25: =0.372*N25+0.0968*$D$10^0.75*(1-EXP(-0.192*(Q25+3.67))) -> 26.55547303 | AD25: =0.372*O25+0.0968*$D$10^0.75*(1-EXP(-0.192*(Q25+3.67))) -> 27.53489048 | AE25: =(0.0536*$D$10^0.75)*$K$6+N25*0.42+(3.14-0.077*T25)+IF(S25="",0,(0.000695*$D$12*EXP(0.116*S25)))-W25 -> 24.66456313 | AF25: =(0.0536*$D$10^0.75)*$K$6+O25*0.42+(3.14-0.077*U25)+IF(S25="",0,(0.000695*$D$12*EXP(0.116*S25)))-X25 -> 27.63414934 | AG25: =IF(S25="",19.8*AC25+0.312*$D$10+0.2*$D$10^0.6/$D$16+((270-6.66*T25)/$D$16)+(N25*31/$D$16)-Y25,19.8*AC25+0.312*$D$10+0.2*$D$10^0.6/$D$16+((270-6.66*T25)/$D$16)+(N25*31/$D$16)+0.0448*$D$12*EXP(0.111*S25)/$D$16-Y25) -> 2696.064891 | AH25: =IF(S25="",19.8*AD25+0.312*$D$10+0.2*$D$10^0.6/$D$16+(O25*31/$D$16)-Z25,19.8*AD25+0.312*$D$10+0.2*$D$10^0.6/$D$16+(O25*31/$D$16)+0.0448*$D$12*EXP(0.111*S25)/$D$16)-Z25 -> 2696.764833 | AI25: 89.78343956 | AJ25: 94.67955472 | AK25: 179.2594226 | AL25: 189.1104402 | AM25: =(0.011*$D$10+0.15*N25+IF(S25>36,0.33,0))/0.16 -> 84.49811781 | AN25: =(0.011*$D$10+0.15*O25+IF(S25>36,0.33,0))/0.16 -> 86.96640778 | AO25: =IF(N25>0,0.115*$D$10,0.07*$D$10)+IF(S25>24,1,0)+1.5*N25 -> 138.6969885 | AP25: =IF(O25>0,0.115*$D$10,0.07*$D$10)+IF(S25>24,1,0)+1.5*O25 -> 142.6462524 | AQ25: =IF(N25>0,0.023*$D$10,0.015*$D$10)+IF($S25>24,1.3,0)+0.45*N25 -> 33.55909655 | AR25: 34.74387573 | AS25: 53.11094605 | AT25: 55.06978097 | AU25: =IF(N25>0,0.035*$D$10,0.023*$D$10)+IF($S25>24,1,0)+0.15*N25 -> 30.31969885 | AV25: 30.71462524 | AW25: 387.9799233 | AX25: 414.3083496 | AY25: =0.3*AC25 -> 7.966641908 | AZ25: 8.260467145 | BA25: =10*AC25 -> 265.5547303 | BB25: 275.3489048 | BC25: =50*AC25 -> 1327.773651 | BD25: 1376.744524 | BE25: =50*AC25 -> 1327.773651 | BF25: 1376.744524 | BG25: =IF(N25>0,0.65*AC25,0.45*AC25) -> 17.26105747 | BH25: 17.89767881 | BI25: 0.15 | BJ25: 0.15 | BK25: 0.9125152452 | BL25: 0.9343864339 | BM25: 0.99999092 | BN25: 0.8666382369 | BO25: 1 | BP25: =0.91+0.115/(1+EXP(0.13*(90-AG25/AE25))) -> 1.016358206 | BQ25: 0.993764552
A26: Período lactación (dies): IP - TE | D26: =D6-D7 -> 305 | J26: 16 | K26: 16 | L26: 16 | M26: 4.428571429 | N26: 36.65451776 | O26: 37.18077095 | P26: 13 a 16 | Q26: 16 | R26: =IF(Q26=0,R25+4,IF((Q26-$D$25)<0,"",Q26-$D$25)) -> 4.428571429 | S26: 4.428571429 | T26: 28 | U26: 2.352850403 | V26: 2.44552681 | W26: -0.5900548091 | X26: -0.50555478 | Y26: -19.4718087 | Z26: -16.68330774 | AA26: 18.96722161 | AB26: 21.03529638 | AC26: 26.50724616 | AD26: 26.70301234 | AE26: 24.31212193 | AF26: 26.42347875 | AG26: 2603.124603 | AH26: 2503.904584 | AI26: 86.7541641 | AJ26: 87.73280071 | AK26: 172.4818446 | AL26: 174.4508683 | AM26: 82.4886104 | AN26: 82.98197276 | AO26: 135.4817766 | AP26: 136.2711564 | AQ26: 32.59453299 | AR26: 32.83134693 | AS26: 53.01449232 | AT26: 53.40602468 | AU26: 29.99817766 | AV26: 30.07711564 | AW26: 366.5451776 | AX26: 371.8077095 | AY26: 7.952173847 | AZ26: 8.010903703 | BA26: 265.0724616 | BB26: 267.0301234 | BC26: 1325.362308 | BD26: 1335.150617 | BE26: 1325.362308 | BF26: 1335.150617 | BG26: 17.22971 | BH26: 17.35695802 | BI26: 0.15 | BJ26: 0.15 | BK26: 0.9690781038 | BL26: 0.9768085779 | BM26: 0.9999725267 | BN26: 0.8828956452 | BO26: 1 | BP26: 1.013725836 | BQ26: 0.9847457672
A27: % dies productius (IP - TE)/IP | D27: =D26/D6 -> 0.8356164384 | J27: 20 | K27: 20 | L27: =L26+4 -> 20 | M27: 8.428571429 | N27: 35.14808625 | O27: 34.66807019 | P27: 17 a 20 | Q27: 20 | R27: 8.428571429 | S27: 8.428571429 | T27: 29 | U27: 2.420478272 | V27: 2.503469889 | W27: -0.6524257694 | X27: -0.5589937769 | Y27: -21.53005039 | Z27: -18.44679464 | AA27: 19.13930732 | AB27: 20.85131628 | AC27: 26.10856419 | AD27: 25.92999821 | AE27: 23.69359882 | AF27: 25.44518326 | AG27: 2520.214319 | AH27: 2376.669341 | AI27: 84.16557881 | AJ27: 83.27292618 | AK27: 167.1309402 | AL27: 165.3349169 | AM27: 81.07633086 | AN27: 80.62631581 | AO27: 133.2221294 | AP27: 132.5021053 | AQ27: 31.91663881 | AR27: 31.70063159 | AS27: 52.21712837 | AT27: 51.85999643 | AU27: 29.77221294 | AV27: 29.70021053 | AW27: 351.4808625 | AX27: 346.6807019 | AY27: 7.832569256 | AZ27: 7.778999464 | BA27: 261.0856419 | BB27: 259.2999821 | BC27: 1305.428209 | BD27: 1296.499911 | BE27: 1305.428209 | BF27: 1296.499911 | BG27: 16.97056672 | BH27: 16.85449884 | BI27: 0.15 | BJ27: 0.15 | BK27: 0.9836951184 | BL27: 0.9877713388 | BM27: 0.9999253198 | BN27: 0.8918990558 | BO27: 1 | BP27: 1.01276009 | BQ27: 0.9800170663
A28: Producción mitjana explotación, vaca presente i año, estándar, Pl vp 4% | D28: =D3*(1+(0.0055*(D4*10-40)+0.0033*(D5*10-31)))/D27 -> 11664.44262 | J28: 24 | K28: 24 | L28: =L27+4 -> 24 | M28: 12.42857143 | N28: 33.63048016 | O28: 32.1700221 | P28: 21 a 24 | Q28: 24 | R28: 12.42857143 | S28: 12.42857143 | T28: 30 | U28: 2.491815948 | V28: 2.564591505 | W28: -0.6688670515 | X28: -0.5730805509 | Y28: -22.0726127 | Z28: -18.91165818 | AA28: 19.14482015 | AB28: 20.53524453 | AC28: 25.61903872 | AD28: 25.07574832 | AE28: 23.04146113 | AF28: 24.45041242 | AG28: 2434.906971 | AH28: 2248.639315 | AI28: 81.48681608 | AJ28: 78.77090334 | AK28: 161.6871173 | AL28: 156.222682 | AM28: 79.65357515 | AN28: 78.28439572 | AO28: 130.9457202 | AP28: 128.7550332 | AQ28: 31.23371607 | AR28: 30.57650995 | AS28: 51.23807744 | AT28: 50.15149664 | AU28: 29.54457202 | AV28: 29.32550332 | AW28: 336.3048016 | AX28: 321.700221 | AY28: 7.685711615 | AZ28: 7.522724496 | BA28: 256.1903872 | BB28: 250.7574832 | BC28: 1280.951936 | BD28: 1253.787416 | BE28: 1280.951936 | BF28: 1253.787416 | BG28: 16.65237517 | BH28: 16.29923641 | BI28: 0.15 | BJ28: 0.15 | BK28: 0.9914025595 | BL28: 0.9935519196 | BM28: 0.9997969981 | BN28: 0.9002102514 | BO28: 1 | BP28: 1.011740993 | BQ28: 0.9748131023
A29: Producción mitjana explotación, vaca lactación i año, Pl vl 4% | D29: =D28*385/(365+80) -> 10091.70879 | J29: 28 | K29: 28 | L29: 28 | M29: 16.42857143 | N29: 32.08535469 | O29: 29.64466113 | P29: 25 a 28 | Q29: 28 | R29: 16.42857143 | S29: 16.42857143 | T29: 31 | U29: 2.564131532 | V29: 2.626550985 | W29: -0.6732009351 | X29: -0.5767937917 | Y29: -22.21563086 | Z29: -19.03419513 | AA29: 19.04651259 | AB29: 20.13773791 | AC29: 25.07905868 | AD29: 24.17112067 | AE29: 22.39270848 | AF29: 23.46077192 | AG29: 2349.163844 | AH29: 2120.241803 | AI29: 78.84800837 | AJ29: 74.30921952 | AK29: 156.3539388 | AL29: 147.2218642 | AM29: 78.20502002 | AN29: 75.91686981 | AO29: 128.628032 | AP29: 124.9669917 | AQ29: 30.53840961 | AR29: 29.44009751 | AS29: 50.15811736 | AT29: 48.34224135 | AU29: 29.3128032 | AV29: 28.94669917 | AW29: 320.8535469 | AX29: 296.4466113 | AY29: 7.523717604 | AZ29: 7.251336202 | BA29: 250.7905868 | BB29: 241.7112067 | BC29: 1253.952934 | BD29: 1208.556034 | BE29: 1253.952934 | BF29: 1208.556034 | BG29: 16.30138814 | BH29: 15.71122844 | BI29: 0.15 | BJ29: 0.15 | BK29: 0.9954666347 | BL29: 0.9965999761 | BM29: 0.9994481835 | BN29: 0.9078824518 | BO29: 1 | BP29: 1.010524951 | BQ29: 0.9688972315
A30: Vaques primera lactación | D30: =D8*D9 -> 81 | J30: 32 | K30: 32 | L30: 32 | M30: 20.42857143 | N30: 30.45865353 | O30: 27.02579808 | P30: 29 a 32 | Q30: 32 | R30: 20.42857143 | S30: 20.42857143 | T30: 32 | U30: 2.636704889 | V30: 2.688731323 | W30: -0.6743433345 | X30: -0.5777725914 | Y30: -22.25333004 | Z30: -19.06649552 | AA30: 18.86417595 | AB30: 19.67109299 | AC30: 24.49007404 | AD30: 23.21305181 | AE30: 21.74952441 | AF30: 22.4721281 | AG30: 2262.056557 | AH30: 1989.85555 | AI30: 76.36440909 | AJ30: 69.98056546 | AK30: 151.3008528 | AL30: 138.4565152 | AM30: 76.67998769 | AN30: 73.4616857 | AO30: 126.1879803 | AP30: 121.0386971 | AQ30: 29.80639409 | AR30: 28.26160913 | AS30: 48.98014808 | AT30: 46.42610362 | AU30: 29.06879803 | AV30: 28.55386971 | AW30: 304.5865353 | AX30: 270.2579808 | AY30: 7.347022211 | AZ30: 6.963915543 | BA30: 244.9007404 | BB30: 232.1305181 | BC30: 1224.503702 | BD30: 1160.65259 | BE30: 1224.503702 | BF30: 1160.65259 | BG30: 15.91854812 | BH30: 15.08848368 | BI30: 0.15 | BJ30: 0.15 | BK30: 0.9976095908 | BL30: 0.9982071931 | BM30: 0.9985000073 | BN30: 0.9149647855 | BO30: 1 | BP30: 1.008973847 | BQ30: 0.962088143
A31: Vaques adultas | D31: =D8*(1-D9) -> 189 | J31: 36 | K31: 36 | L31: 36 | M31: 24.42857143 | N31: 28.64461901 | O31: 24.20807717 | P31: 33 a 36 | Q31: 36 | R31: 24.42857143 | S31: 24.42857143 | T31: 33 | U31: 2.709346195 | V31: 2.750969879 | W31: -0.6746444678 | X31: -0.5780306003 | Y31: -22.26326744 | Z31: -19.07500981 | AA31: 18.57951012 | AB31: 19.11337077 | AC31: 23.82274499 | AD31: 22.17235142 | AE31: 21.09524201 | AF31: 21.46766092 | AG31: 2170.136819 | AH31: 1854.042714 | AI31: 74.06282558 | AJ31: 65.81249586 | AK31: 146.6133704 | AL31: 130.0136498 | AM31: 74.97933032 | AN31: 70.82007234 | AO31: 124.4669285 | AP31: 117.8121157 | AQ31: 30.29007855 | AR31: 28.29363472 | AS31: 47.64548998 | AT31: 44.34470284 | AU31: 29.79669285 | AV31: 29.13121157 | AW31: 286.4461901 | AX31: 242.0807717 | AY31: 7.146823496 | AZ31: 6.651705427 | BA31: 238.2274499 | BB31: 221.7235142 | BC31: 1191.137249 | BD31: 1108.617571 | BE31: 1191.137249 | BF31: 1108.617571 | BG31: 15.48478424 | BH31: 14.41202842 | BI31: 0.15 | BJ31: 0.15 | BK31: 0.9987395554 | BL31: 0.9990546665 | BM31: 0.9959225972 | BN31: 0.9215026035 | BO31: 1 | BP31: 1.00683523 | BQ31: 0.9541595328
A32: Vaques adultas en lactación | D32: =D31*D27 -> 157.9315068 | J32: 40 | K32: 40 | L32: 40 | M32: 28.42857143 | N32: 26.44283376 | O32: 21.02279491 | P32: 37 a 40 | Q32: 40 | R32: 28.42857143 | S32: 28.42857143 | T32: 34 | U32: 2.782005411 | V32: 2.813223781 | W32: -0.6747238456 | X32: -0.5780986107 | Y32: -22.26588691 | Z32: -19.07725415 | AA32: 18.11609197 | AB32: 18.39232752 | AC32: 23.00715662 | AD32: 20.99090217 | AE32: 20.38670399 | AF32: 20.41744802 | AG32: 2065.805054 | AH32: 1706.901741 | AI32: 71.60919548 | AJ32: 61.52992447 | AK32: 142.0053614 | AL32: 121.7257983 | AM32: 72.91515665 | AN32: 67.83387023 | AO32: 121.1642506 | AP32: 113.0341924 | AQ32: 29.29927519 | AR32: 26.86025771 | AS32: 46.01431324 | AT32: 41.98180433 | AU32: 29.46642506 | AV32: 28.65341924 | AW32: 444.4283376 | AX32: 390.2279491 | AY32: 6.902146986 | AZ32: 6.29727065 | BA32: 230.0715662 | BB32: 209.9090217 | BC32: 1150.357831 | BD32: 1049.545108 | BE32: 1150.357831 | BF32: 1049.545108 | BG32: 14.9546518 | BH32: 13.64408641 | BI32: 0.15 | BJ32: 0.15 | BK32: 0.9993353771 | BL32: 0.9995015328 | BM32: 0.98891647 | BN32: 0.9275377701 | BO32: 1 | BP32: 1.003554507 | BQ32: 0.9448710474
A33: Vaques adultas eixutes | D33: =D31*(1-D27) -> 31.06849315 | J33: 43.57142857 | K33: 43.57142857 | L33: 44 | M33: 32 | N33: 23.84643573 | O33: 17.65047092 | P33: 41 a 44 | Q33: 43.57142857 | R33: 32 | S33: 32 | T33: 34.89285714 | U33: 2.846883839 | V33: 2.868811158 | W33: -0.6747436193 | X33: -0.5781155525 | Y33: -22.26653944 | Z33: -19.07781323 | AA33: 17.39502037 | AB33: 17.47501113 | AC33: 22.04278939 | AD33: 19.73789048 | AE33: 19.63278559 | AF33: 19.40139225 | AG33: 1949.765941 | AH33: 1558.121589 | AI33: 68.49452649 | AJ33: 56.97231967 | AK33: 136.9851397 | AL33: 113.8023797 | AM33: 70.4810335 | AN33: 64.67231649 | AO33: 117.2696536 | AP33: 107.9757064 | AQ33: 28.13089608 | AR33: 25.34271191 | AS33: 44.08557879 | AT33: 39.47578096 | AU33: 29.07696536 | AV33: 28.14757064 | AW33: 418.4643573 | AX33: 356.5047092 | AY33: 6.612836818 | AZ33: 5.921367145 | BA33: 220.4278939 | BB33: 197.3789048 | BC33: 1102.13947 | BD33: 986.8945241 | BE33: 1102.13947 | BF33: 986.8945241 | BG33: 14.32781311 | BH33: 12.82962881 | BI33: 0.15 | BJ33: 0.15 | BK33: 0.9996246754 | BL33: 0.9997185065 | BM33: 0.9729329434 | BN33: 0.9325331148 | BO33: 1 | BP33: 0.9985950636 | BQ33: 0.9354173769
A34: Vaques primíparas en lactación | D34: =D30*D27 -> 67.68493151 | J34: 0 | K34: 43.57142857 | L34: 48 | M34: 0 | N34: 0 | O34: 0 | P34: 45 a 48 | Q34: 0 | R34: 36 | S34: 36 | T34: 35.89285714 | U34: 3 | V34: 3 | W34: -0.6747522591 | X34: -0.5781229551 | Y34: -22.26682455 | Z34: -19.07805752 | AA34: 7.317507958 | AB34: 9.09037965 | AC34: 6.661981881 | AD34: 6.661981881 | AE34: 10.24579356 | AF34: 12.68191426 | AG34: 586.6984554 | AH34: 537.310328 | AI34: 17.63693894 | AJ34: 17.63693894 | AK34: 43.57316869 | AL34: 43.57316869 | AM34: 48.125 | AN34: 48.125 | AO34: 50 | AP34: 50 | AQ34: 11.8 | AR34: 11.8 | AS34: 13.32396376 | AT34: 13.32396376 | AU34: 17.1 | AV34: 17.1 | AW34: 180 | AX34: 180 | AY34: 1.998594564 | AZ34: 1.998594564 | BA34: 66.61981881 | BB34: 66.61981881 | BC34: 333.099094 | BD34: 333.099094 | BE34: 333.099094 | BF34: 333.099094 | BG34: 2.997891846 | BH34: 2.997891846 | BI34: 0 | BJ34: 0 | BK34: 0.6 | BL34: 0.7 | BM34: 0.9264241118 | BN34: 0.9377202155 | BO34: 1 | BP34: 0.9116079496 | BQ34: 0.9102347485
A35: Vaques primíparas eixutes | D35: =D30*(1-D27) -> 13.31506849 | J35: 0 | K35: 43.57142857 | L35: 52 | M35: 0 | N35: 0 | O35: 0 | P35: 49 a 52 | Q35: 0 | R35: 40 | S35: 40 | T35: 36.89285714 | U35: 3 | V35: 3 | W35: -0.6747522591 | X35: -0.5781229551 | Y35: -22.26682455 | Z35: -19.07805752 | AA35: 6.35335743 | AB35: 7.850728133 | AC35: 6.661981881 | AD35: 6.661981881 | AE35: 11.29084068 | AF35: 13.80396138 | AG35: 662.117497 | AH35: 622.6696682 | AI35: 19.05228112 | AJ35: 19.05228112 | AK35: 50.83761079 | AL35: 50.83761079 | AM35: 50.1875 | AN35: 50.1875 | AO35: 50 | AP35: 50 | AQ35: 11.8 | AR35: 11.8 | AS35: 13.32396376 | AT35: 13.32396376 | AU35: 17.1 | AV35: 17.1 | AW35: 180 | AX35: 180 | AY35: 1.998594564 | AZ35: 1.998594564 | BA35: 66.61981881 | BB35: 66.61981881 | BC35: 333.099094 | BD35: 333.099094 | BE35: 333.099094 | BF35: 333.099094 | BG35: 2.997891846 | BH35: 2.997891846 | BI35: 0 | BJ35: 0 | BK35: 0.6 | BL35: 0.7 | BM35: 0.8 | BN35: 0.9425085128 | BO35: 1 | BP35: 0.9119185479 | BQ35: 0.9103348948
A36: Vaques adultas en lactación (%) | D36: =D32/D8 -> 0.5849315068 | J36: 0 | K36: 43.57142857 | L36: 56 | M36: 0 | N36: 0 | O36: 0 | P36: 53 a 56 | Q36: 0 | R36: 44 | S36: 0 | T36: 37.89285714 | U36: 3 | V36: 3 | W36: -0.6747522591 | X36: -0.5781229551 | Y36: -22.26682455 | Z36: -19.07805752 | AA36: 7.968137582 | AB36: 9.81079451 | AC36: 6.661981881 | AD36: 6.661981881 | AE36: 8.220571178 | AF36: 10.81069187 | AG36: 416.9071534 | AH36: 387.399623 | AI36: 10.66068456 | AJ36: 10.66068456 | AK36: 25.04223497 | AL36: 25.04223497 | AM36: 48.125 | AN36: 48.125 | AO36: 49 | AP36: 49 | AQ36: 10.5 | AR36: 10.5 | AS36: 13.32396376 | AT36: 13.32396376 | AU36: 16.1 | AV36: 16.1 | AW36: 0 | AX36: 0 | AY36: 1.998594564 | AZ36: 1.998594564 | BA36: 66.61981881 | BB36: 66.61981881 | BC36: 333.099094 | BD36: 333.099094 | BE36: 333.099094 | BF36: 333.099094 | BG36: 2.997891846 | BH36: 2.997891846 | BI36: 0 | BJ36: 0 | BK36: 0.6 | BL36: 0.7 | BM36: 0.99999092 | BN36: 0.9469286684 | BO36: 1 | BP36: 0.9106920206 | BQ36: 0.9101005188
A37: Vaques adultas eixutes (%) | D37: =D33/D8 -> 0.1150684932 | J37: 0 | K37: 43.57142857 | L37: 60 | M37: 0 | N37: 0 | O37: 0 | P37: 57 a 60 | Q37: 0 | R37: 48 | S37: 0 | T37: 38.89285714 | U37: 3 | V37: 3 | W37: -0.6747522591 | X37: -0.5781229551 | Y37: -22.26682455 | Z37: -19.07805752 | AA37: 8.001916836 | AB37: 9.81079451 | AC37: 6.661981881 | AD37: 6.661981881 | AE37: 8.143571178 | AF37: 10.81069187 | AG37: 406.9668549 | AH37: 387.399623 | AI37: 10.66068456 | AJ37: 10.66068456 | AK37: 25.04223497 | AL37: 25.04223497 | AM37: 48.125 | AN37: 48.125 | AO37: 49 | AP37: 49 | AQ37: 10.5 | AR37: 10.5 | AS37: 13.32396376 | AT37: 13.32396376 | AU37: 16.1 | AV37: 16.1 | AW37: 0 | AX37: 0 | AY37: 1.998594564 | AZ37: 1.998594564 | BA37: 66.61981881 | BB37: 66.61981881 | BC37: 333.099094 | BD37: 333.099094 | BE37: 333.099094 | BF37: 333.099094 | BG37: 2.997891846 | BH37: 2.997891846 | BI37: 0 | BJ37: 0 | BK37: 0.6 | BL37: 0.7 | BM37: 0.99999092 | BN37: 0.9510089863 | BO37: 1 | BP37: 0.9106288074 | BQ37: 0.9101005188
A38: Vaques primíparas en lactación (%) | D38: =D34/D8 -> 0.2506849315 | J38: 0 | K38: 43.57142857 | L38: 64 | M38: 0 | N38: 0 | O38: 0 | P38: 61 a 64 | Q38: 0 | R38: 52 | S38: 0 | T38: 39.89285714 | U38: 3 | V38: 3 | W38: -0.6747522591 | X38: -0.5781229551 | Y38: -22.26682455 | Z38: -19.07805752 | AA38: 8.033093381 | AB38: 9.81079451 | AC38: 6.661981881 | AD38: 6.661981881 | AE38: 8.066571178 | AF38: 10.81069187 | AG38: 397.0265564 | AH38: 387.399623 | AI38: 10.66068456 | AJ38: 10.66068456 | AK38: 25.04223497 | AL38: 25.04223497 | AM38: 48.125 | AN38: 48.125 | AO38: 49 | AP38: 49 | AQ38: 10.5 | AR38: 10.5 | AS38: 13.32396376 | AT38: 13.32396376 | AU38: 16.1 | AV38: 16.1 | AW38: 0 | AX38: 0 | AY38: 1.998594564 | AZ38: 1.998594564 | BA38: 66.61981881 | BB38: 66.61981881 | BC38: 333.099094 | BD38: 333.099094 | BE38: 333.099094 | BF38: 333.099094 | BG38: 2.997891846 | BH38: 2.997891846 | BI38: 0 | BJ38: 0 | BK38: 0.6 | BL38: 0.7 | BM38: 0.99999092 | BN38: 0.9547755944 | BO38: 1 | BP38: 0.9105702949 | BQ38: 0.9101005188
A39: Vaques primíparas eixutes (%) | D39: =D35/D8 -> 0.04931506849 | J39: 0 | K39: 43.57142857 | L39: 68 | M39: 0 | N39: 0 | O39: 0 | P39: 65 a 68 | Q39: 0 | R39: 56 | S39: 0 | T39: 40.89285714 | U39: 3 | V39: 3 | W39: -0.6747522591 | X39: -0.5781229551 | Y39: -22.26682455 | Z39: -19.07805752 | AA39: 8.061868884 | AB39: 9.81079451 | AC39: 6.661981881 | AD39: 6.661981881 | AE39: 7.989571178 | AF39: 10.81069187 | AG39: 387.0862579 | AH39: 387.399623 | AI39: 10.66068456 | AJ39: 10.66068456 | AK39: 25.04223497 | AL39: 25.04223497 | AM39: 48.125 | AN39: 48.125 | AO39: 49 | AP39: 49 | AQ39: 10.5 | AR39: 10.5 | AS39: 13.32396376 | AT39: 13.32396376 | AU39: 16.1 | AV39: 16.1 | AW39: 0 | AX39: 0 | AY39: 1.998594564 | AZ39: 1.998594564 | BA39: 66.61981881 | BB39: 66.61981881 | BC39: 333.099094 | BD39: 333.099094 | BE39: 333.099094 | BF39: 333.099094 | BG39: 2.997891846 | BH39: 2.997891846 | BI39: 0 | BJ39: 0 | BK39: 0.6 | BL39: 0.7 | BM39: 0.99999092 | BN39: 0.958252612 | BO39: 1 | BP39: 0.9105162291 | BQ39: 0.9101005188
J40: 0 | K40: 43.57142857 | L40: 72 | M40: 0 | N40: 0 | O40: 0 | P40: 69 a 71 | Q40: 0 | R40: 60 | S40: 0 | T40: 41.89285714 | U40: 3 | V40: 3 | W40: -0.6747522591 | X40: -0.5781229551 | Y40: -22.26682455 | Z40: -19.07805752 | AA40: 8.088429313 | AB40: 9.81079451 | AC40: 6.661981881 | AD40: 6.661981881 | AE40: 7.912571178 | AF40: 10.81069187 | AG40: 377.1459594 | AH40: 387.399623 | AI40: 10.66068456 | AJ40: 10.66068456 | AK40: 25.04223497 | AL40: 25.04223497 | AM40: 48.125 | AN40: 48.125 | AO40: 49 | AP40: 49 | AQ40: 10.5 | AR40: 10.5 | AS40: 13.32396376 | AT40: 13.32396376 | AU40: 16.1 | AV40: 16.1 | AW40: 0 | AX40: 0 | AY40: 1.998594564 | AZ40: 1.998594564 | BA40: 66.61981881 | BB40: 66.61981881 | BC40: 333.099094 | BD40: 333.099094 | BE40: 333.099094 | BF40: 333.099094 | BG40: 2.997891846 | BH40: 2.997891846 | BI40: 0 | BJ40: 0 | BK40: 0.6 | BL40: 0.7 | BM40: 0.99999092 | BN40: 0.9614623037 | BO40: 1 | BP40: 0.9104663624 | BQ40: 0.9101005188
J41: 0 | K41: 43.57142857 | L41: 76 | M41: 0 | N41: 0 | O41: 0 | P41: 72 a 75 | Q41: 0 | R41: 64 | S41: 0 | T41: 42.89285714 | U41: 3 | V41: 3 | W41: -0.6747522591 | X41: -0.5781229551 | Y41: -22.26682455 | Z41: -19.07805752 | AA41: 8.112946164 | AB41: 9.81079451 | AC41: 6.661981881 | AD41: 6.661981881 | AE41: 7.835571178 | AF41: 10.81069187 | AG41: 367.2056608 | AH41: 387.399623 | AI41: 10.66068456 | AJ41: 10.66068456 | AK41: 25.04223497 | AL41: 25.04223497 | AM41: 48.125 | AN41: 48.125 | AO41: 49 | AP41: 49 | AQ41: 10.5 | AR41: 10.5 | AS41: 13.32396376 | AT41: 13.32396376 | AU41: 16.1 | AV41: 16.1 | AW41: 0 | AX41: 0 | AY41: 1.998594564 | AZ41: 1.998594564 | BA41: 66.61981881 | BB41: 66.61981881 | BC41: 333.099094 | BD41: 333.099094 | BE41: 333.099094 | BF41: 333.099094 | BG41: 2.997891846 | BH41: 2.997891846 | BI41: 0 | BJ41: 0 | BK41: 0.6 | BL41: 0.7 | BM41: 0.99999092 | BN41: 0.9644252226 | BO41: 1 | BP41: 0.9104204542 | BQ41: 0.9101005188
J42: 0 | K42: 43.57142857 | L42: 80 | M42: 0 | N42: 0 | O42: 0 | P42: 76 a 79 | Q42: 0 | R42: 68 | S42: 0 | T42: 43.89285714 | U42: 3 | V42: 3 | W42: -0.6747522591 | X42: -0.5781229551 | Y42: -22.26682455 | Z42: -19.07805752 | AA42: 8.135577584 | AB42: 9.81079451 | AC42: 6.661981881 | AD42: 6.661981881 | AE42: 7.758571178 | AF42: 10.81069187 | AG42: 357.2653623 | AH42: 387.399623 | AI42: 10.66068456 | AJ42: 10.66068456 | AK42: 25.04223497 | AL42: 25.04223497 | AM42: 48.125 | AN42: 48.125 | AO42: 49 | AP42: 49 | AQ42: 10.5 | AR42: 10.5 | AS42: 13.32396376 | AT42: 13.32396376 | AU42: 16.1 | AV42: 16.1 | AW42: 0 | AX42: 0 | AY42: 1.998594564 | AZ42: 1.998594564 | BA42: 66.61981881 | BB42: 66.61981881 | BC42: 333.099094 | BD42: 333.099094 | BE42: 333.099094 | BF42: 333.099094 | BG42: 2.997891846 | BH42: 2.997891846 | BI42: 0 | BJ42: 0 | BK42: 0.6 | BL42: 0.7 | BM42: 0.99999092 | BN42: 0.9671603414 | BO42: 1 | BP42: 0.9103782709 | BQ42: 0.9101005188
J43: 0 | K43: 43.57142857 | L43: 84 | M43: 0 | N43: 0 | O43: 0 | P43: 80 a 83 | Q43: 0 | R43: 72 | S43: 0 | T43: 44.89285714 | U43: 3 | V43: 3 | W43: -0.6747522591 | X43: -0.5781229551 | Y43: -22.26682455 | Z43: -19.07805752 | AA43: 8.156469414 | AB43: 9.81079451 | AC43: 6.661981881 | AD43: 6.661981881 | AE43: 7.681571178 | AF43: 10.81069187 | AG43: 347.3250638 | AH43: 387.399623 | AI43: 10.66068456 | AJ43: 10.66068456 | AK43: 25.04223497 | AL43: 25.04223497 | AM43: 48.125 | AN43: 48.125 | AO43: 49 | AP43: 49 | AQ43: 10.5 | AR43: 10.5 | AS43: 13.32396376 | AT43: 13.32396376 | AU43: 16.1 | AV43: 16.1 | AW43: 0 | AX43: 0 | AY43: 1.998594564 | AZ43: 1.998594564 | BA43: 66.61981881 | BB43: 66.61981881 | BC43: 333.099094 | BD43: 333.099094 | BE43: 333.099094 | BF43: 333.099094 | BG43: 2.997891846 | BH43: 2.997891846 | BI43: 0 | BJ43: 0 | BK43: 0.6 | BL43: 0.7 | BM43: 0.99999092 | BN43: 0.9696851744 | BO43: 1 | BP43: 0.9103395862 | BQ43: 0.9101005188
J44: 0 | K44: 43.57142857 | L44: 88 | M44: 0 | N44: 0 | O44: 0 | P44: 84 a 87 | Q44: 0 | R44: 76 | S44: 0 | T44: 45.89285714 | U44: 3 | V44: 3 | W44: -0.6747522591 | X44: -0.5781229551 | Y44: -22.26682455 | Z44: -19.07805752 | AA44: 8.175756149 | AB44: 9.81079451 | AC44: 6.661981881 | AD44: 6.661981881 | AE44: 7.604571178 | AF44: 10.81069187 | AG44: 337.3847653 | AH44: 387.399623 | AI44: 10.66068456 | AJ44: 10.66068456 | AK44: 25.04223497 | AL44: 25.04223497 | AM44: 48.125 | AN44: 48.125 | AO44: 49 | AP44: 49 | AQ44: 10.5 | AR44: 10.5 | AS44: 13.32396376 | AT44: 13.32396376 | AU44: 16.1 | AV44: 16.1 | AW44: 0 | AX44: 0 | AY44: 1.998594564 | AZ44: 1.998594564 | BA44: 66.61981881 | BB44: 66.61981881 | BC44: 333.099094 | BD44: 333.099094 | BE44: 333.099094 | BF44: 333.099094 | BG44: 2.997891846 | BH44: 2.997891846 | BI44: 0 | BJ44: 0 | BK44: 0.6 | BL44: 0.7 | BM44: 0.99999092 | BN44: 0.9720158889 | BO44: 1 | BP44: 0.9103041816 | BQ44: 0.9101005188
J45: 0 | K45: 43.57142857 | L45: 92 | M45: 0 | N45: 0 | O45: 0 | P45: 88 a 91 | Q45: 0 | R45: 80 | S45: 0 | T45: 46.89285714 | U45: 3 | V45: 3 | W45: -0.6747522591 | X45: -0.5781229551 | Y45: -22.26682455 | Z45: -19.07805752 | AA45: 8.19356182 | AB45: 9.81079451 | AC45: 6.661981881 | AD45: 6.661981881 | AE45: 7.527571178 | AF45: 10.81069187 | AG45: 327.4444668 | AH45: 387.399623 | AI45: 10.66068456 | AJ45: 10.66068456 | AK45: 25.04223497 | AL45: 25.04223497 | AM45: 48.125 | AN45: 48.125 | AO45: 49 | AP45: 49 | AQ45: 10.5 | AR45: 10.5 | AS45: 13.32396376 | AT45: 13.32396376 | AU45: 16.1 | AV45: 16.1 | AW45: 0 | AX45: 0 | AY45: 1.998594564 | AZ45: 1.998594564 | BA45: 66.61981881 | BB45: 66.61981881 | BC45: 333.099094 | BD45: 333.099094 | BE45: 333.099094 | BF45: 333.099094 | BG45: 2.997891846 | BH45: 2.997891846 | BI45: 0 | BJ45: 0 | BK45: 0.6 | BL45: 0.7 | BM45: 0.99999092 | BN45: 0.9741674096 | BO45: 1 | BP45: 0.9102718462 | BQ45: 0.9101005188
BB46: =IF(AB46="","",15.7*AD46) ->  | BG46: =IF(AA46="","",IF(Q46=0,0.33*AC46,0.45*AC46)) ->  | BH46: =IF(AB46="","",IF(Q46=0,0.33*AD46,0.45*AD46)) -> 
F47: durada | AW47: =IF(S47="","",IF(S47<27,N47,N47+18)) ->  | BG47: =IF(AA47="","",IF(Q47=0,0.33*AC47,0.45*AC47)) ->  | BH47: =IF(AB47="","",IF(Q47=0,0.33*AD47,0.45*AD47)) -> 
A48: Necessitats tres primeras semanas des del parto | D48: =IF(Q20>0,"Lactació",IF(S20=0,"","Eixugat")) -> Lactació
A49: Necessitats 4a a 6a semanas des del parto | D49: =IF(Q24>0,"Lactació",IF(S24=0,"","Eixugat")) -> Lactació
A50: Necessitats 7 a 12 semanas des del parto | D50: =IF(Q25>0,"Lactació",IF(S25=0,"","Eixugat")) -> Lactació | L50: Un grupo | M50: Durada, dies | O50: Total vaques | P50: prim | Q50: multi | R50: Producción llet | T50: CI | U50: CI MS | V50: UFL | W50: PDI | X50: P | Y50: UFL_VPR | Z50: PDI_VPR | AA50: Ca | AB50: Mg | AC50: K | AD50: Na | AE50: S | AF50: Cl | AG50: Fe | AH50: Co | AI50: Cu | AJ50: Mn | AK50: Zn | AL50: I | AM50: Se
A51: Necessitats 13 a 16 semanas des del parto | D51: Lactació | M51: =IF(D48="","",IF(Q20=0,IF(S20="","",30),3*7)) -> 21 | N51: =IF(D48="","",IF(M51="","",M51/$M$86)) -> 0.05753424658 | O51: =IF(M51="","",IF(N51="","",N51*$D$8)) -> 15.53424658 | P51: =IF(D48="","",IF(O51="","",O51*$D$9)) -> 4.660273973 | Q51: =IF($D48="","",IF(O51="","",O51*(1-$D$9))) -> 10.8739726 | R51: =IF($D48="","",IF(N20="","",N20*$D$9+O20*(1-$D$9))) -> 37.79503168 | T51: =IF(AA20="","",IF($D48="","",AA20*$D$9+AB20*(1-$D$9))) -> 15.05105326 | U51: =IF(AA20="","",IF($D48="","",AC20*$D$9+AD20*(1-$D$9))) -> 22.79803002 | V51: =IF(AA20="","",IF($D48="","",AE20*$D$9+AF20*(1-$D$9))) -> 20.26214951 | W51: =IF(AB20="","",IF($D48="","",AG20*$D$9+AH20*(1-$D$9))) -> 2257.466143 | X51: =IF(AB20="","",IF($D48="","",AI20*$D$9+AJ20*(1-$D$9))) -> 83.59675913 | Y51: =IF(AA20="","",IF($D48="","",W20*$D$9+X20*(1-$D$9))) -> 5.360874267 | Z51: =IF(AB20="","",IF($D48="","",Y20*$D$9+Z20*(1-$D$9))) -> 226.9088508 | AA51: =IF(AB20="","",IF($D48="","",AK20*$D$9+AL20*(1-$D$9))) -> 169.8972088 | AB51: =IF(AB20="","",IF($D48="","",AM20*$D$9+AN20*(1-$D$9))) -> 83.5578422 | AC51: =IF(AB20="","",IF($D48="","",AO20*$D$9+AP20*(1-$D$9))) -> 137.1925475 | AD51: =IF(AB20="","",IF($D48="","",AQ20*$D$9+AR20*(1-$D$9))) -> 33.10776426 | AE51: =IF(AB20="","",IF($D48="","",AS20*$D$9+AT20*(1-$D$9))) -> 45.59606004 | AF51: =IF(AB20="","",IF($D48="","",AU20*$D$9+AV20*(1-$D$9))) -> 30.16925475 | AG51: =IF(AB20="","",IF($D48="","",AW20*$D$9+AX20*(1-$D$9))) -> 377.9503168 | AH51: =IF(AB20="","",IF($D48="","",AY20*$D$9+AZ20*(1-$D$9))) -> 6.839409007 | AI51: =IF(AB20="","",IF($D48="","",BA20*$D$9+BB20*(1-$D$9))) -> 227.9803002 | AJ51: =IF(AB20="","",IF($D48="","",BC20*$D$9+BD20*(1-$D$9))) -> 1139.901501 | AK51: =IF(AB20="","",IF($D48="","",BE20*$D$9+BF20*(1-$D$9))) -> 1139.901501 | AL51: =IF(AB20="","",IF($D48="","",BG20*$D$9+BH20*(1-$D$9))) -> 14.81871951 | AM51: =IF(AB20="","",IF($D48="","",BI20*$D$9+BJ20*(1-$D$9))) -> 0.15
A52: Necessitats 17 a 20 semanas des del parto | D52: Lactació | M52: =IF(D49="","",IF(Q24=0,IF(S24="","",30),3*7)) -> 21 | N52: =IF(D49="","",IF(M52="","",M52/$M$86)) -> 0.05753424658 | O52: 15.53424658 | P52: 4.660273973 | Q52: 10.8739726 | R52: =IF($D49="","",IF(N24="","",N24*$D$9+O24*(1-$D$9))) -> 42.17998615 | T52: =IF(AA24="","",IF($D49="","",AA24*$D$9+AB24*(1-$D$9))) -> 18.11570652 | U52: =IF(AA24="","",IF($D49="","",AC24*$D$9+AD24*(1-$D$9))) -> 26.37119805 | V52: =IF(AA24="","",IF($D49="","",AE24*$D$9+AF24*(1-$D$9))) -> 25.19804126 | W52: =IF(AB24="","",IF($D49="","",AG24*$D$9+AH24*(1-$D$9))) -> 2680.931947 | X52: =IF(AB24="","",IF($D49="","",AI24*$D$9+AJ24*(1-$D$9))) -> 94.23089526 | Y52: =IF(AA24="","",IF($D49="","",W24*$D$9+X24*(1-$D$9))) -> 2.267913922 | Z52: =IF(AB24="","",IF($D49="","",Y24*$D$9+Z24*(1-$D$9))) -> 74.84115942 | AA52: =IF(AB24="","",IF($D49="","",AK24*$D$9+AL24*(1-$D$9))) -> 189.5227175 | AB52: =IF(AB24="","",IF($D49="","",AM24*$D$9+AN24*(1-$D$9))) -> 87.66873702 | AC52: =IF(AB24="","",IF($D49="","",AO24*$D$9+AP24*(1-$D$9))) -> 143.7699792 | AD52: =IF(AB24="","",IF($D49="","",AQ24*$D$9+AR24*(1-$D$9))) -> 35.08099377 | AE52: =IF(AB24="","",IF($D49="","",AS24*$D$9+AT24*(1-$D$9))) -> 52.74239609 | AF52: =IF(AB24="","",IF($D49="","",AU24*$D$9+AV24*(1-$D$9))) -> 30.82699792 | AG52: =IF(AB24="","",IF($D49="","",AW24*$D$9+AX24*(1-$D$9))) -> 421.7998615 | AH52: =IF(AB24="","",IF($D49="","",AY24*$D$9+AZ24*(1-$D$9))) -> 7.911359414 | AI52: =IF(AB24="","",IF($D49="","",BA24*$D$9+BB24*(1-$D$9))) -> 263.7119805 | AJ52: =IF(AB24="","",IF($D49="","",BC24*$D$9+BD24*(1-$D$9))) -> 1318.559902 | AK52: =IF(AB24="","",IF($D49="","",BE24*$D$9+BF24*(1-$D$9))) -> 1318.559902 | AL52: =IF(AB24="","",IF($D49="","",BG24*$D$9+BH24*(1-$D$9))) -> 17.14127873 | AM52: =IF(AB24="","",IF($D49="","",BI24*$D$9+BJ24*(1-$D$9))) -> 0.15
A53: Necessitats 21 a 24 semanas des del parto | D53: Lactació | M53: =IF(D50="","",IF(Q25=0,IF(S25="","",30),6*7)) -> 42 | N53: 0.1150684932 | O53: 31.06849315 | P53: 9.320547945 | Q53: 21.74794521 | R53: 40.64098217 | T53: 19.86133788 | U53: 27.24106525 | V53: 26.74327348 | W53: 2696.55485 | X53: 93.21072017 | Y53: 0.0569433078 | Z53: 1.879129157 | AA53: 186.1551349 | AB53: 86.22592079 | AC53: 141.4614733 | AD53: 34.38844198 | AE53: 54.48213049 | AF53: 30.59614733 | AG53: 406.4098217 | AH53: 8.172319574 | AI53: 272.4106525 | AJ53: 1362.053262 | AK53: 1362.053262 | AL53: 17.70669241 | AM53: 0.15
A54: Necessitats 25 a 28 semanas des del parto | D54: Lactació | M54: =IF(D51="","",IF(Q26=0,IF(S26="","",30),4*7)) -> 28 | N54: 0.07671232877 | O54: 20.71232877 | P54: 6.21369863 | Q54: 14.49863014 | R54: 37.02289499 | T54: 20.41487395 | U54: 26.64428249 | V54: 25.7900717 | W54: 2533.670589 | X54: 87.43920973 | Y54: -0.5309047887 | Z54: -17.51985803 | AA54: 173.8601612 | AB54: 82.83396406 | AC54: 136.0343425 | AD54: 32.76030275 | AE54: 53.28856497 | AF54: 30.05343425 | AG54: 370.2289499 | AH54: 7.993284746 | AI54: 266.4428249 | AJ54: 1332.214124 | AK54: 1332.214124 | AL54: 17.31878362 | AM54: 0.15
A55: Necessitats 29 a 32 semanas des del parto | D55: Lactació | M55: =IF(D52="","",IF(Q27=0,IF(S27="","",30),(Q27-Q26)*7)) -> 28 | N55: 0.07671232877 | O55: 20.71232877 | P55: 6.21369863 | Q55: 14.49863014 | R55: 34.81207501 | T55: 20.33771359 | U55: 25.98356801 | V55: 24.91970793 | W55: 2419.732834 | X55: 83.54072197 | Y55: -0.5870233747 | Z55: -19.37177136 | AA55: 165.8737239 | AB55: 80.76132032 | AC55: 132.7181125 | AD55: 31.76543376 | AE55: 51.96713601 | AF55: 29.72181125 | AG55: 348.1207501 | AH55: 7.795070402 | AI55: 259.8356801 | AJ55: 1299.1784 | AK55: 1299.1784 | AL55: 16.8893192 | AM55: 0.15
A56: Necessitats 33 a 36 semanas des del parto | D56: Lactació | M56: =IF(D53="","",IF(Q28=0,IF(S28="","",30),(Q28-Q27)*7)) -> 28 | N56: 0.07671232877 | O56: 20.71232877 | P56: 6.21369863 | Q56: 14.49863014 | R56: 32.60815952 | T56: 20.11811722 | U56: 25.23873544 | V56: 24.02772703 | W56: 2304.519612 | X56: 79.58567716 | Y56: -0.6018165011 | Z56: -19.85994454 | AA56: 157.8620126 | AB56: 78.69514955 | AC56: 129.4122393 | AD56: 30.77367178 | AE56: 50.47747088 | AF56: 29.39122393 | AG56: 326.0815952 | AH56: 7.571620632 | AI56: 252.3873544 | AJ56: 1261.936772 | AK56: 1261.936772 | AL56: 16.40517804 | AM56: 0.15
A57: Necessitats 37 a 40 semanas des del parto | D57: Lactació | M57: 28 | N57: 0.07671232877 | O57: 20.71232877 | P57: 6.21369863 | Q57: 14.49863014 | R57: 30.3768692 | T57: 19.81037031 | U57: 24.44350208 | V57: 23.14035289 | W57: 2188.918415 | X57: 75.67085617 | Y57: -0.6057159347 | Z57: -19.98862584 | AA57: 149.9614866 | AB57: 76.60331488 | AC57: 126.0653038 | AD57: 29.76959114 | AE57: 48.88700415 | AF57: 29.05653038 | AG57: 303.768692 | AH57: 7.333050623 | AI57: 244.4350208 | AJ57: 1222.175104 | AK57: 1222.175104 | AL57: 15.88827635 | AM57: 0.15
A58: Necessitats 41 a 44 semanas des del parto | D58: Lactació | M58: 28 | N58: 0.07671232877 | O58: 20.71232877 | P58: 6.21369863 | Q58: 14.49863014 | R58: 28.05565471 | T58: 19.42901787 | U58: 23.59615848 | V58: 22.255347 | W58: 2071.515852 | X58: 71.89571855 | Y58: -0.6067438144 | Z58: -20.02254587 | AA58: 142.3098164 | AB58: 74.42717629 | AC58: 122.5834821 | AD58: 28.72504462 | AE58: 47.19231696 | AF58: 28.70834821 | AG58: 280.5565471 | AH58: 7.078847543 | AI58: 235.9615848 | AJ58: 1179.807924 | AK58: 1179.807924 | AL58: 15.33750301 | AM58: 0.15
A59: Necessitats 45 a 48 semanas des del parto | D59: Eixugat | M59: 28 | N59: 0.07671232877 | O59: 20.71232877 | P59: 6.21369863 | Q59: 14.49863014 | R59: 25.53903972 | T59: 18.95321258 | U59: 22.66746949 | V59: 21.35593525 | W59: 1948.870945 | X59: 68.28759478 | Y59: -0.6070147605 | Z59: -20.0314871 | AA59: 134.993566 | AB59: 72.06784974 | AC59: 119.8085596 | AD59: 28.89256787 | AE59: 45.33493898 | AF59: 29.33085596 | AG59: 255.3903972 | AH59: 6.800240847 | AI59: 226.6746949 | AJ59: 1133.373475 | AK59: 1133.373475 | AL59: 14.73385517 | AM59: 0.15
A60: Necessitats 49 a 52 semanas des del parto | D60: Eixugat | M60: 28 | N60: 0.07671232877 | O60: 20.71232877 | P60: 6.21369863 | Q60: 14.49863014 | R60: 22.64880657 | T60: 18.30945685 | U60: 21.5957785 | V60: 20.40822481 | W60: 1814.572735 | X60: 64.55370577 | Y60: -0.6070861811 | Z60: -20.03384398 | AA60: 127.8096672 | AB60: 69.35825616 | AC60: 115.4732099 | AD60: 27.59196296 | AE60: 43.191557 | AF60: 28.89732099 | AG60: 406.4880657 | AH60: 6.478733551 | AI60: 215.957785 | AJ60: 1079.788925 | AK60: 1079.788925 | AL60: 14.03725603 | AM60: 0.15
A61: Necessitats 53 a 56 semanas des del parto | M61: 25 | N61: 0.06849315068 | O61: 18.49315068 | P61: 5.547945205 | Q61: 12.94520548 | R61: 19.50926036 | T61: 17.45101391 | U61: 20.42936016 | V61: 19.47081025 | W61: 1675.614895 | X61: 60.42898172 | Y61: -0.6071039726 | Z61: -20.03443109 | AA61: 120.7572077 | AB61: 66.41493159 | AC61: 110.7638905 | AD61: 26.17916716 | AE61: 40.85872031 | AF61: 28.42638905 | AG61: 375.0926036 | AH61: 6.128808047 | AI61: 204.2936016 | AJ61: 1021.468008 | AK61: 1021.468008 | AL61: 13.2790841 | AM61: 0.15
A62: Necessitats 57 a 60 semanas des del parto | M62: 30 | N62: 0.08219178082 | O62: 22.19178082 | P62: 6.657534247 | Q62: 15.53424658 | R62: 0 | T62: 8.558518142 | U62: 6.661981881 | V62: 11.95107805 | W62: 552.1267662 | X62: 17.63693894 | Y62: -0.6071117463 | Z62: -20.03468763 | AA62: 43.57316869 | AB62: 48.125 | AC62: 50 | AD62: 11.8 | AE62: 13.32396376 | AF62: 17.1 | AG62: 180 | AH62: 1.998594564 | AI62: 66.61981881 | AJ62: 333.099094 | AK62: 333.099094 | AL62: 2.997891846 | AM62: 0
A63: Necessitats 61 a 64 semanas des del parto | M63: 30 | N63: 0.08219178082 | O63: 22.19178082 | P63: 6.657534247 | Q63: 15.53424658 | R63: 0 | T63: 7.401516922 | U63: 6.661981881 | V63: 13.05002517 | W63: 634.5040168 | X63: 19.05228112 | Y63: -0.6071117463 | Z63: -20.03468763 | AA63: 50.83761079 | AB63: 50.1875 | AC63: 50 | AD63: 11.8 | AE63: 13.32396376 | AF63: 17.1 | AG63: 180 | AH63: 1.998594564 | AI63: 66.61981881 | AJ63: 333.099094 | AK63: 333.099094 | AL63: 2.997891846 | AM63: 0
A64: Necessitats 65 a 68 semanas des del parto
A83: Totales
D85: =IF($D54="Lactació",D54,"") -> Lactació
D86: =IF($D55="Lactació",D55,"") -> Lactació | L86: Un grupo >>> | M86: =SUM(M51:M85) -> 365 | N86: =SUM(N51:N85) -> 1 | O86: =SUM(O51:O85) -> 270 | P86: =SUM(P51:P85) -> 81 | Q86: =SUM(Q51:Q85) -> 189 | AA86: =IF($D83="","",AI50*$D$9+AJ50*(1-$D$9)) ->  | AE86: =IF($D83="","",AQ50*$D$9+AR50*(1-$D$9)) ->  | AF86: =IF($D83="","",AS50*$D$9+AT50*(1-$D$9)) ->  | AG86: =IF($D83="","",AU50*$D$9+AV50*(1-$D$9)) ->  | AH86: =IF($D83="","",AW50*$D$9+AX50*(1-$D$9)) ->  | AI86: =IF($D83="","",AY50*$D$9+AZ50*(1-$D$9)) ->  | AJ86: =IF($D83="","",BA50*$D$9+BB50*(1-$D$9)) ->  | AK86: =IF($D83="","",BC50*$D$9+BD50*(1-$D$9)) ->  | AL86: =IF($D83="","",BE50*$D$9+BF50*(1-$D$9)) ->  | AM86: =IF($D83="","",BG50*$D$9+BH50*(1-$D$9)) ->  | AQ86: =IF($D83="","",#REF!*$D$9+#REF!*(1-$D$9)) -> 
D87: =IF($D56="Lactació",D56,"") -> Lactació | L87: I | M87: Durada, dies | O87: Total vaques | P87: prim | Q87: multi | R87: Producción llet | T87: CI | U87: CI MS | V87: UFL | W87: PDI | X87: P | Y87: UFL_VPR | Z87: PDI_VPR | AA87: Ca | AB87: Mg | AC87: K | AD87: Na | AE87: S | AF87: Cl | AG87: Fe | AH87: Co | AI87: Cu | AJ87: Mn | AK87: Zn | AL87: I | AM87: Se
D88: Lactació | M88: =IF($D54="Lactació",M57,"") -> 28 | N88: 0.07671232877 | O88: 20.71232877 | P88: 6.21369863 | Q88: 14.49863014 | R88: 30.3768692 | T88: =IF($D54="Lactació",T57,"") -> 19.81037031 | U88: 24.44350208 | V88: 23.14035289 | W88: 2188.918415 | X88: 75.67085617 | Y88: -0.6057159347 | Z88: -19.98862584 | AA88: 149.9614866 | AB88: 76.60331488 | AC88: 126.0653038 | AD88: 29.76959114 | AE88: 48.88700415 | AF88: 29.05653038 | AG88: 303.768692 | AH88: 7.333050623 | AI88: 244.4350208 | AJ88: 1222.175104 | AK88: 1222.175104 | AL88: 15.88827635 | AM88: 0.15
D89: Lactació | M89: =IF($D55="Lactació",M58,"") -> 28 | N89: =IF($D55="Lactació",N58,"") -> 0.07671232877 | O89: 20.71232877 | P89: 6.21369863 | Q89: 14.49863014 | R89: =IF($D55="Lactació",R58,"") -> 28.05565471 | T89: 19.42901787 | U89: =IF($D55="Lactació",U58,"") -> 23.59615848 | V89: 22.255347 | W89: 2071.515852 | X89: 71.89571855 | Y89: =IF($D55="Lactació",Y58,"") -> -0.6067438144 | Z89: -20.02254587 | AA89: 142.3098164 | AB89: 74.42717629 | AC89: 122.5834821 | AD89: 28.72504462 | AE89: 47.19231696 | AF89: 28.70834821 | AG89: 280.5565471 | AH89: 7.078847543 | AI89: 235.9615848 | AJ89: 1179.807924 | AK89: 1179.807924 | AL89: 15.33750301 | AM89: 0.15
M90: =IF($D56="Lactació",M59,"") -> 28 | N90: 0.07671232877 | O90: 20.71232877 | P90: 6.21369863 | Q90: 14.49863014 | R90: 25.53903972 | T90: =IF($D56="Lactació",T59,"") -> 18.95321258 | U90: 22.66746949 | V90: 21.35593525 | W90: 1948.870945 | X90: 68.28759478 | Y90: -0.6070147605 | Z90: -20.0314871 | AA90: 134.993566 | AB90: 72.06784974 | AC90: 119.8085596 | AD90: 28.89256787 | AE90: 45.33493898 | AF90: 29.33085596 | AG90: 255.3903972 | AH90: 6.800240847 | AI90: 226.6746949 | AJ90: 1133.373475 | AK90: 1133.373475 | AL90: 14.73385517 | AM90: 0.15
M91: 28 | N91: 0.07671232877 | O91: 20.71232877 | P91: 6.21369863 | Q91: 14.49863014 | R91: 22.64880657 | T91: 18.30945685 | U91: 21.5957785 | V91: 20.40822481 | W91: 1814.572735 | X91: 64.55370577 | Y91: -0.6070861811 | Z91: -20.03384398 | AA91: 127.8096672 | AB91: 69.35825616 | AC91: 115.4732099 | AD91: 27.59196296 | AE91: 43.191557 | AF91: 28.89732099 | AG91: 406.4880657 | AH91: 6.478733551 | AI91: 215.957785 | AJ91: 1079.788925 | AK91: 1079.788925 | AL91: 14.03725603 | AM91: 0.15
M92: 25 | N92: 0.06849315068 | O92: 18.49315068 | P92: 5.547945205 | Q92: 12.94520548 | R92: 19.50926036 | T92: 17.45101391 | U92: 20.42936016 | V92: 19.47081025 | W92: 1675.614895 | X92: 60.42898172 | Y92: -0.6071039726 | Z92: -20.03443109 | AA92: 120.7572077 | AB92: 66.41493159 | AC92: 110.7638905 | AD92: 26.17916716 | AE92: 40.85872031 | AF92: 28.42638905 | AG92: 375.0926036 | AH92: 6.128808047 | AI92: 204.2936016 | AJ92: 1021.468008 | AK92: 1021.468008 | AL92: 13.2790841 | AM92: 0.15
T94: =IF($D60="Lactació",T63,"") ->  | U94: =IF($D60="Lactació",U63,"") ->  | V94: =IF($D60="Lactació",V63,"") ->  | W94: =IF($D60="Lactació",W63,"") ->  | X94: =IF($D60="Lactació",X63,"") -> 
T95: =IF($D61="Lactació",T64,"") ->  | U95: =IF($D61="Lactació",U64,"") ->  | V95: =IF($D61="Lactació",V64,"") ->  | W95: =IF($D61="Lactació",W64,"") ->  | X95: =IF($D61="Lactació",X64,"") -> 
T96: =IF($D62="Lactació",T65,"") ->  | W96: =IF($D62="Lactació",W65,"") ->  | X96: =IF($D62="Lactació",X65,"") -> 
W97: =IF($D63="Lactació",W66,"") -> 
W98: =IF($D64="Lactació",W67,"") -> 
W99: =IF($D65="Lactació",W68,"") -> 
D101: =IF($D82="Lactació",D82,"") ->  | M101: =IF($D67="Lactació",M82,"") ->  | W101: =IF($D67="Lactació",W82,"") -> 
D102: =IF($D83="Lactació",D83,"") -> 
A103: Resta lactación
D104: =IF($D54="Eixugat",D54,"") ->  | M104: =IF($D82="Lactació",M85,"") ->  | V104: =IF($D82="Lactació",T85,"") ->  | W104: =IF($D82="Lactació",W85,"") -> 
D105: =IF($D55="Eixugat",D55,"") ->  | M105: Dies | N105: Pl | O105: CI | P105: UFL | Q105: PDI | R105: P | T105: Ca | V105: Mg | W105: K | X105: Na | Y105: UFL_VPR | Z105: PDI_VPR | AA105: S | AB105: Cl | AC105: Fe | AD105: Co | AE105: Cu | AF105: Mn | AG105: Zn | AH105: I | AI105: Se | AJ105: CI kg MS
D106: =IF($D56="Eixugat",D56,"") ->  | M106: =SUM(M88:M104) -> 137 | N106: =SUMPRODUCT($N$88:$N$104,R88:R104)/SUM($N$88:$N$104) -> 25.35110857 | O106: =SUMPRODUCT($N$88:$N$104,T88:T104)/SUM($N$88:$N$104) -> 18.81994862 | P106: =SUMPRODUCT($N$88:$N$104,V88:V104)/SUM($N$88:$N$104) -> 21.36676157 | Q106: =SUMPRODUCT($N$88:$N$104,W88:W104)/SUM($N$88:$N$104) -> 1945.685802 | R106: =SUMPRODUCT($N$88:$N$104,X88:X104)/SUM($N$88:$N$104) -> 68.33682519 | T106: =SUMPRODUCT($N$88:$N$104,AA88:AA104)/SUM($N$88:$N$104) -> 135.4818774 | V106: =SUMPRODUCT($N$88:$N$104,AB88:AB104)/SUM($N$88:$N$104) -> 71.89166429 | W106: =SUMPRODUCT($N$88:$N$104,AC88:AC104)/SUM($N$88:$N$104) -> 119.1179037 | X106: =SUMPRODUCT($N$88:$N$104,AD88:AD104)/SUM($N$88:$N$104) -> 28.276612 | Y106: =SUMPRODUCT($N$88:$N$104,Y88:Y104)/SUM($N$88:$N$104) -> -0.6067248077 | Z106: =SUMPRODUCT($N$88:$N$104,Z88:Z104)/SUM($N$88:$N$104) -> -20.02191865 | AA106: =SUMPRODUCT($N$88:$N$104,AE88:AE104)/SUM($N$88:$N$104) -> 45.18562691 | AB106: 28.89390716 | AC106: 323.1461222 | AD106: 6.777844036 | AE106: 225.9281345 | AF106: 1129.640673 | AG106: 1129.640673 | AH106: 14.68532875 | AI106: 0.15 | AJ106: =SUMPRODUCT($N$88:$N$104,U88:U104)/SUM($N$88:$N$104) -> 22.59281345
D107: =IF($D57="Eixugat",D57,"") ->  | M107: =IF($D54="Eixugat",M57,"") ->  | Y107: =IF($D54="Eixugat",Y57,"") ->  | Z107: =IF($D54="Eixugat",Z57,"") ->  | AN107: =IF($D54="Eixugat",U57,"") -> 
D108: =IF($D58="Eixugat",D58,"") ->  | N108: =IF($D55="Eixugat",N58,"") ->  | O108: =IF($D55="Eixugat",O58,"") ->  | P108: =IF($D55="Eixugat",P58,"") ->  | Q108: =IF($D55="Eixugat",Q58,"") ->  | R108: =IF($D55="Eixugat",R58,"") ->  | AN108: =IF($D55="Eixugat",U58,"") -> 
M112: 30 | N112: 0.08219178082 | O112: 22.19178082 | P112: 6.657534247 | Q112: 15.53424658 | R112: 0 | T112: 8.558518142 | U112: 6.661981881 | V112: 11.95107805 | W112: 552.1267662 | X112: 17.63693894 | Y112: -0.6071117463 | Z112: -20.03468763 | AA112: 43.57316869 | AB112: 48.125 | AC112: 50 | AD112: 11.8 | AE112: 13.32396376 | AF112: 17.1 | AG112: 180 | AH112: 1.998594564 | AI112: 66.61981881 | AJ112: 333.099094 | AK112: 333.099094 | AL112: 2.997891846 | AM112: 0 | AN112: 6.661981881
M113: 30 | N113: 0.08219178082 | O113: 22.19178082 | P113: 6.657534247 | Q113: 15.53424658 | R113: 0 | T113: 7.401516922 | U113: 6.661981881 | V113: 13.05002517 | W113: 634.5040168 | X113: 19.05228112 | Y113: -0.6071117463 | Z113: -20.03468763 | AA113: 50.83761079 | AB113: 50.1875 | AC113: 50 | AD113: 11.8 | AE113: 13.32396376 | AF113: 17.1 | AG113: 180 | AH113: 1.998594564 | AI113: 66.61981881 | AJ113: 333.099094 | AK113: 333.099094 | AL113: 2.997891846 | AM113: 0 | AN113: 6.661981881
O117: =IF($D64="Eixugat",O67,"") ->  | T117: =IF($D64="Eixugat",T67,"") -> 
D118: =IF($D59="Eixugat",D59,"") -> Eixugat
D119: Eixugat
A125: Eixugat
AI129: =IF($D76="Eixugat",AI79,"") ->  | AJ129: =IF($D76="Eixugat",AJ79,"") ->  | AK129: =IF($D76="Eixugat",AK79,"") ->  | AL129: =IF($D76="Eixugat",AL79,"") ->  | AM129: =IF($D76="Eixugat",AM79,"") -> 
D130: =IF($D67="Eixugat",D67,"") ->  | T130: =IF($D77="Eixugat",T80,"") -> 
D131: =IF($D68="Eixugat",D68,"") ->  | L131: III) | M131: Dies | N131: CI | O131: UFL | P131: PDI | Q131: P | R131: Ca | T131: Mg | V131: K | W131: Na | X131: S | Y131: UFL_VPR | Z131: PDI_VPR | AA131: Cl | AB131: Fe | AC131: Co | AD131: Cu | AE131: Mn | AF131: Zn | AG131: I | AH131: Se | AI131: CI kg MS
D132: =IF($D69="Eixugat",D69,"") ->  | M132: =SUM(M107:M130) -> 60 | N132: =SUMPRODUCT($N$107:$N$130,T107:T130)/SUM($N$107:$N$130) -> 7.980017532 | O132: =SUMPRODUCT($N$107:$N$130,V107:V130)/SUM($N$107:$N$130) -> 12.50055161 | P132: =SUMPRODUCT($N$107:$N$130,W107:W130)/SUM($N$107:$N$130) -> 593.3153915 | Q132: =SUMPRODUCT($N$107:$N$130,X107:X130)/SUM($N$107:$N$130) -> 18.34461003 | R132: =SUMPRODUCT($N$107:$N$130,AA107:AA130)/SUM($N$107:$N$130) -> 47.20538974 | T132: =SUMPRODUCT($N$107:$N$130,AB107:AB130)/SUM($N$107:$N$130) -> 49.15625 | V132: =SUMPRODUCT($N$107:$N$130,AC107:AC130)/SUM($N$107:$N$130) -> 50 | W132: =SUMPRODUCT($N$107:$N$130,AD107:AD130)/SUM($N$107:$N$130) -> 11.8 | X132: =SUMPRODUCT($N$107:$N$130,AE107:AE130)/SUM($N$107:$N$130) -> 13.32396376 | Y132: =SUMPRODUCT($N$107:$N$130,Y107:Y130)/SUM($N$107:$N$130) -> -0.6071117463 | Z132: =SUMPRODUCT($N$107:$N$130,Z107:Z130)/SUM($N$107:$N$130) -> -20.03468763 | AA132: =SUMPRODUCT($N$107:$N$130,AF107:AF130)/SUM($N$107:$N$130) -> 17.1 | AB132: 180 | AC132: 1.998594564 | AD132: 66.61981881 | AE132: 333.099094 | AF132: 333.099094 | AG132: 2.997891846 | AH132: 0 | AI132: 6.661981881
D133: =IF($D82="Eixugat",D82,"") -> 
D134: =IF($D83="Eixugat",D83,"") -> 
D135: =IF($D84="Eixugat",D84,"") -> 
A136: Necesidades grupo posparto (datos explotación)
A137: Necesidades grupo alrededor del pico (datos explotación)
A138: Necesidades grupo resto de lactación, del pico al final (datos explotación) | M138: Dies | N138: Pl | O138: CI | P138: UFL | Q138: PDI | R138: P | T138: Ca | V138: Mg | W138: K | X138: Na | Y138: UFL_VPR | Z138: PDI_VPR | AA138: S | AB138: Cl | AC138: Fe | AD138: Co | AE138: Cu | AF138: Mn | AG138: Zn | AH138: I | AI138: Se | AJ138: CI kg MS
A139: Necesidades un solo grupo de lactación (datos explotación) | M139: =IF(D48="","",IF(D48="Lactació",SUM(M51:M53))) -> 84 | N139: =SUMPRODUCT($N$51:$N$53,R51:R53)/SUM($N$51:$N$53) -> 40.31424555 | O139: =SUMPRODUCT($N$51:$N$53,T51:T53)/SUM($N$51:$N$53) -> 18.22235888 | P139: =SUMPRODUCT($N$51:$N$53,V51:V53)/SUM($N$51:$N$53) -> 24.73668443 | Q139: =SUMPRODUCT($N$51:$N$53,W51:W53)/SUM($N$51:$N$53) -> 2582.876948 | R139: =SUMPRODUCT($N$51:$N$53,X51:X53)/SUM($N$51:$N$53) -> 91.06227368 | T139: =SUMPRODUCT($N$51:$N$53,AA51:AA53)/SUM($N$51:$N$53) -> 182.932549 | V139: =SUMPRODUCT($N$51:$N$53,AB51:AB53)/SUM($N$51:$N$53) -> 85.9196052 | W139: =SUMPRODUCT($N$51:$N$53,AC51:AC53)/SUM($N$51:$N$53) -> 140.9713683 | X139: =SUMPRODUCT($N$51:$N$53,AD51:AD53)/SUM($N$51:$N$53) -> 34.2414105 | Y139: =SUMPRODUCT($N$51:$N$53,Y51:Y53)/SUM($N$51:$N$53) -> 1.935668701 | Z139: =SUMPRODUCT($N$51:$N$53,Z51:Z53)/SUM($N$51:$N$53) -> 76.37706713 | AA139: =SUMPRODUCT($N$51:$N$53,AE51:AE53)/SUM($N$51:$N$53) -> 51.82567928 | AB139: =SUMPRODUCT($N$51:$N$53,AF51:AF53)/SUM($N$51:$N$53) -> 30.54713683 | AD139: =SUMPRODUCT($N$51:$N$53,AH51:AH53)/SUM($N$51:$N$53) -> 7.773851892 | AE139: 259.1283964 | AF139: 1295.641982 | AG139: 1295.641982 | AH139: 16.84334577 | AI139: 0.15 | AJ139: =SUMPRODUCT($N$51:$N$53,U51:U53)/SUM($N$51:$N$53) -> 25.91283964
A140: Necesidades grupo secado (datos explotación) | M140: =SUM(M54:M56) -> 84 | N140: =SUMPRODUCT($N$54:$N$56,R54:R56)/SUM($N$54:$N$56) -> 34.81437651 | O140: =SUMPRODUCT($N$54:$N$56,T54:T56)/SUM($N$54:$N$56) -> 20.29023492 | P140: =SUMPRODUCT($N$54:$N$56,V54:V56)/SUM($N$54:$N$56) -> 24.91250222 | Q140: =SUMPRODUCT($N$54:$N$56,W54:W56)/SUM($N$54:$N$56) -> 2419.307678 | R140: =SUMPRODUCT($N$54:$N$56,X54:X56)/SUM($N$54:$N$56) -> 83.52186962 | T140: =SUMPRODUCT($N$54:$N$56,AA54:AA56)/SUM($N$54:$N$56) -> 165.8652992 | V140: =SUMPRODUCT($N$54:$N$56,AB54:AB56)/SUM($N$54:$N$56) -> 80.76347798 | W140: =SUMPRODUCT($N$54:$N$56,AC54:AC56)/SUM($N$54:$N$56) -> 132.7215648 | X140: =SUMPRODUCT($N$54:$N$56,AD54:AD56)/SUM($N$54:$N$56) -> 31.76646943 | Y140: =SUMPRODUCT($N$54:$N$56,Y54:Y56)/SUM($N$54:$N$56) -> -0.5732482215 | Z140: =SUMPRODUCT($N$54:$N$56,Z54:Z56)/SUM($N$54:$N$56) -> -18.91719131 | AA140: =SUMPRODUCT($N$54:$N$56,AE54:AE56)/SUM($N$54:$N$56) -> 51.91105729 | AB140: =SUMPRODUCT($N$54:$N$56,AF54:AF56)/SUM($N$54:$N$56) -> 29.72215648 | AD140: =SUMPRODUCT($N$54:$N$56,AH54:AH56)/SUM($N$54:$N$56) -> 7.786658593 | AE140: 259.5552864 | AF140: 1297.776432 | AG140: 1297.776432 | AH140: 16.87109362 | AI140: 0.15 | AJ140: =SUMPRODUCT($N$54:$N$56,U54:U56)/SUM($N$54:$N$56) -> 25.95552864
A141: Necesidades para una vaca (según datos individuales) | M141: =M106 -> 137 | N141: 25.35110857 | O141: 18.81994862 | P141: 21.36676157 | Q141: 1945.685802 | R141: 68.33682519 | T141: 135.4818774 | V141: 71.89166429 | W141: 119.1179037 | X141: 28.276612 | Y141: =Y106 -> -0.6067248077 | Z141: =Z106 -> -20.02191865 | AA141: 45.18562691 | AB141: 28.89390716 | AD141: 6.777844036 | AE141: 225.9281345 | AF141: 1129.640673 | AG141: 1129.640673 | AH141: 14.68532875 | AI141: 0.15 | AJ141: 22.59281345
D142: 4 | M142: ------- | N142: =SUMPRODUCT($M$139:$M$141,N139:N141)/SUM($M$139:$M$141) -> 32.07838075 | O142: 19.06029784 | P142: 23.27140332 | Q142: 2251.614634 | R142: 78.77774783 | T142: 156.9181523 | V142: 78.19848195 | W142: 128.8831449 | X142: 30.88051724 | Y142: =SUMPRODUCT($M$139:$M$141,Y139:Y141)/SUM($M$139:$M$141) -> 0.1026951529 | Z142: =SUMPRODUCT($M$139:$M$141,Z139:Z141)/SUM($M$139:$M$141) -> 6.831562996 | AA142: 48.86661232 | AB142: 29.57733088 | AD142: 7.329991848 | AE142: 244.3330616 | AF142: 1221.665308 | AG142: 1221.665308 | AH142: 15.881649 | AI142: 0.15 | AJ142: =AJ106 -> 22.59281345 | BR142: Ejemplos segons valor intervalo entre partos
E143: <------- Elegir tipo de racionamiento | M143: =M132 -> 60 | N143: 0 | O143: =N132 -> 7.980017532 | P143: 12.50055161 | Q143: 593.3153915 | R143: 18.34461003 | T143: =R132 -> 47.20538974 | V143: =T132 -> 49.15625 | W143: 50 | X143: 11.8 | Y143: =Y132 -> -0.6071117463 | Z143: =Z132 -> -20.03468763 | AA143: =X132 -> 13.32396376 | AB143: =AA132 -> 17.1 | AD143: 1.998594564 | AE143: 66.61981881 | AF143: 333.099094 | AG143: 333.099094 | AH143: 2.997891846 | AI143: 0 | AJ143: =AI132 -> 6.661981881 | BR143: IP = 365 días | BT143: IP = 375 días | BV143: IP = 385 días | BX143: IP = 395 días | BZ143: IP = 410 días | CB143: IP = 425 días | CD143: IP = 435 días
K144: =IF(K20=K19,0,K20) -> 2 | M144: -------- | N144: =I18 -> 30.10095192 | O144: =IF(I3=1,M5,N5) -> 18.8280795 | P144: =IF($I$3=1,Q5,R5) -> 20.4561553 | Q144: =IF($I$3=1,S5,T5) -> 2139.695824 | R144: =IF($I$3=1,U5,V5) -> 73.82394112 | T144: =IF($I$3=1,W5,X5) -> 146.1958646 | V144: =IF($I$3=1,Y5,Z5) -> 72.90714242 | W144: =IF($I$3=1,AA5,AB5) -> 119.9014279 | X144: =IF($I$3=1,AC5,AD5) -> 28.49542836 | Y144: =I20 -> -0.5165541137 | Z144: =I21 -> -17.04628575 | AA144: =IF($I$3=1,AE5,AF5) -> 47.21615663 | AB144: =IF($I$3=1,AG5,AH5) -> 27.26514279 | AD144: =IF($I$3=1,AI5,AJ5) -> 7.082423494 | AE144: =IF($I$3=1,AK5,AL5) -> 236.0807831 | AF144: =IF($I$3=1,AM5,AN5) -> 1180.403916 | AG144: =IF($I$3=1,AO5,AP5) -> 1180.403916 | AH144: =IF($I$3=1,AQ5,AR5) -> 15.3452509 | AI144: =IF($I$3=1,AS5,AT5) -> 0.15 | AJ144: =IF($I$3=1,O5,P5) -> 23.60807831 | BR144: semL | BS144: semG | BT144: semL | BU144: semG | BV144: semL | BW144: semG | BX144: semL | BY144: semG | BZ144: semL | CA144: semG | CB144: semL | CC144: semG | CD144: semL | CE144: semG
A145: Necesidades | BR145: 2 | BS145: 0 | BT145: 2 | BU145: 0 | BV145: 2 | BW145: 0 | BX145: 2 | BY145: 0 | BZ145: 2 | CA145: 0 | CB145: 2 | CC145: 0 | CD145: 2 | CE145: 0
A146: Días de racionamiento | D146: =M148 -> ------- | BR146: 5 | BS146: 0 | BT146: 5 | BU146: 0 | BV146: 5 | BW146: 0 | BX146: 5 | BY146: 0 | BZ146: 5 | CA146: 0 | CB146: 5 | CC146: 0 | CD146: 5 | CE146: 0
A147: Producción de leche estándar l/vaca y día | D147: =N148 -> 32.07838075 | M147: Dies | N147: Pl | O147: CI | P147: UFL | Q147: PDI | R147: P | T147: Ca | V147: Mg | W147: K | X147: Na | Y147: UFL_VPR | Z147: PDI_VPR | AA147: S | AB147: Cl | AC147: Fe | AD147: Co | AE147: Cu | AF147: Mn | AG147: Zn | AH147: I | AI147: Se | AJ147: CI kg MS | BR147: 9.5 | BS147: 0 | BT147: 9.5 | BU147: 0 | BV147: 9.5 | BW147: 0 | BX147: 9.5 | BY147: 0 | BZ147: 9.5 | CA147: 0 | CB147: 9.5 | CC147: 0 | CD147: 9.5 | CE147: 0
A148: Capacidad ingestión (UE) | D148: =O148 -> 19.06029784 | K148: A | L148: =IF(I3=1,-9.5+0.4*I17+1.89*I9,-13.2+0.4*I17+1.89*I9) -> 9.009913043 | M148: =IF($D$142=6,M144,IF($D$142<5,IF($D$142<4,IF($D$142<3,IF($D$142<2,M139,M140),M141),M142),M143)) -> ------- | N148: =IF($D$142=6,N144,IF($D$142<5,IF($D$142<4,IF($D$142<3,IF($D$142<2,N139,N140),N141),N142),N143)) -> 32.07838075 | O148: =IF($D$142=6,O144,IF($D$142<5,IF($D$142<4,IF($D$142<3,IF($D$142<2,O139,O140),O141),O142),O143)) -> 19.06029784 | P148: 23.27140332 | Q148: 2251.614634 | R148: 78.77774783 | S148: 0 | T148: 156.9181523 | U148: 0 | V148: 78.19848195 | W148: 128.8831449 | X148: 30.88051724 | Y148: 0.1026951529 | Z148: 6.831562996 | AA148: 48.86661232 | AB148: 29.57733088 | AC148: 0 | AD148: 7.329991848 | AE148: 244.3330616 | AF148: 1221.665308 | AG148: 1221.665308 | AH148: 15.881649 | AI148: 0.15 | AJ148: 22.59281345 | BR148: 16 | BS148: 4.428571429 | BT148: 16 | BU148: 3 | BV148: 16 | BW148: 1.571428571 | BX148: 16 | BY148: 0.1428571429 | BZ148: 16 | CA148: 0 | CB148: 16 | CC148: 0 | CD148: 16 | CE148: 0
A149: Energía (UFL) | D149: =P148 -> 23.27140332 | K149: B | L149: =1/I9 -> 0.3333333333 | BR149: 20 | BS149: 8.428571429 | BT149: 20 | BU149: 7 | BV149: 20 | BW149: 5.571428571 | BX149: 20 | BY149: 4.142857143 | BZ149: 20 | CA149: 2 | CB149: 20 | CC149: 0 | CD149: 20 | CE149: 0
A150: Proteína (g PDI) | D150: =Q148 -> 2251.614634 | K150: K | L150: =L148/(52*L149) -> 0.5198026756 | BR150: 24 | BS150: 12.42857143 | BT150: 24 | BU150: 11 | BV150: 24 | BW150: 9.571428571 | BX150: 24 | BY150: 8.142857143 | BZ150: 24 | CA150: 6 | CB150: 24 | CC150: 3.857142857 | CD150: 24 | CE150: 2.428571429
A151: Ca (g) | D151: =T148 -> 156.9181523 | K151: A/B | L151: =L148/L149 -> 27.02973913 | BR151: 28 | BS151: 16.42857143 | BT151: 28 | BU151: 15 | BV151: 28 | BW151: 13.57142857 | BX151: 28 | BY151: 12.14285714 | BZ151: 28 | CA151: 10 | CB151: 28 | CC151: 7.857142857 | CD151: 28 | CE151: 6.428571429
A152: P (g) | D152: =R148 -> 78.77774783 | K152: A/1-B | L152: =L148/(1-L149) -> 13.51486957 | BR152: 32 | BS152: 20.42857143 | BT152: 32 | BU152: 19 | BV152: 32 | BW152: 17.57142857 | BX152: 32 | BY152: 16.14285714 | BZ152: 32 | CA152: 14 | CB152: 32 | CC152: 11.85714286 | CD152: 32 | CE152: 10.42857143
A153: Mg (g) | D153: =V148 -> 78.19848195 | K153: exp(-sl) | L153: =EXP(-I12) -> 1.388794386e-11 | BR153: 36 | BS153: 24.42857143 | BT153: 36 | BU153: 23 | BV153: 36 | BW153: 21.57142857 | BX153: 36 | BY153: 20.14285714 | BZ153: 36 | CA153: 18 | CB153: 36 | CC153: 15.85714286 | CD153: 36 | CE153: 14.42857143
A154: K (g) | D154: =W148 -> 128.8831449 | K154: exp(-b*sl)/B | L154: =EXP(-L149*I12)/L149 -> 0.0007211084293 | P154: Trabada | BR154: 40 | BS154: 28.42857143 | BT154: 40 | BU154: 27 | BV154: 40 | BW154: 25.57142857 | BX154: 40 | BY154: 24.14285714 | BZ154: 40 | CA154: 22 | CB154: 40 | CC154: 19.85714286 | CD154: 40 | CE154: 18.42857143
A155: Na (g) | D155: =X148 -> 30.88051724 | P155: Libre | BR155: 43.57142857 | BS155: 32 | BT155: 44 | BU155: 31 | BV155: 44 | BW155: 29.57142857 | BX155: 44 | BY155: 28.14285714 | BZ155: 44 | CA155: 26 | CB155: 44 | CC155: 23.85714286 | CD155: 44 | CE155: 22.42857143
A156: S (g) | D156: =AA148 -> 48.86661232 | M156: =I18*224 -> 6742.61323 | P156: Pastoreo llano | BR156: 0 | BS156: 36 | BT156: 45 | BU156: 32 | BV156: 46.42857143 | BW156: 32 | BX156: 47.85714286 | BY156: 32 | BZ156: 48 | CA156: 30 | CB156: 48 | CC156: 27.85714286 | CD156: 48 | CE156: 26.42857143
A157: Cl (g) | D157: =AB148 -> 29.57733088 | P157: Pastoreo larga distancia o dificultosa | BR157: 0 | BS157: 40 | BT157: 0 | BU157: 36 | BV157: 0 | BW157: 36 | BX157: 0 | BY157: 36 | BZ157: 50 | CA157: 32 | CB157: 52 | CC157: 31.85714286 | CD157: 52 | CE157: 30.42857143
A158: Co (mg) | D158: =AD148 -> 7.329991848 | K158: -0.83 | M158: =12000/224 -> 53.57142857 | P158: Pastoreo montañoso | BT158: 0 | BU158: 40 | BV158: 0 | BW158: 40 | BX158: 0 | BY158: 40 | BZ158: 0 | CA158: 36 | CB158: 52.14285714 | CC158: 32 | CD158: 53.57142857 | CE158: 32
A159: Cu (mg) | D159: =AE148 -> 244.3330616 | K159: =1.92*EXP(-0.0083*I12) -> 1.560217424 | BZ159: 0 | CA159: 40 | CB159: 0 | CC159: 36 | CD159: 0 | CE159: 36
A160: Mn (mg) | D160: =AF148 -> 1221.665308 | K160: =0.74*EXP(-0.88*I12) -> 2.064206389e-10 | CB160: 0 | CC160: 40 | CD160: 0 | CE160: 40
A161: Zn (mg) | D161: =AG148 -> 1221.665308 | K161: =0.5*EXP(-0.12*(45-I14)) -> 0.002258290471 | M161: =I17/(-0.55+1.66*EXP(-0.0065*I12)-0.72*EXP(-0.44*I12)-N161) -> 48.05323033 | N161: =0.69*EXP(-0.16*(45-I14)) -> 0.0005151442078
A162: I (mg) | D162: =AH148 -> 15.881649 | K162: =K158+K159-K160-K161 -> 0.7279591335 | L162: =I17/K162 -> 56.80234055
A163: Se (mg) | D163: =AI148 -> 0.15
A164: Peso vaca adulta | D164: =IF(D142=6,I7,D10) -> 700
A165: EN mant | D165: =0.0536*D164^0.75*K6 -> 7.294378918
A166: EN leche | D166: =D147*0.42 -> 13.47291991
A167: CI kg MSI | D167: =AJ148 -> 22.59281345
A168: MP | D168: =D147*31 -> 994.4298031
A169: UFL_VPR | D169: =Y148 -> 0.1026951529
A170: PDI_VPR | D170: =Z148 -> 6.831562996
A171: PDI/UFL | D171: =D150/D149 -> 96.75457054

Sheet II_Plantear Ración
A1: Selección ingredientes, límites incorporación, precio
B2: Límites incorporación | D2: Cálculos | G2: Precio ingrediente
B3: kg mín. | C3: kg máx. | D3: kg fresco | E3: kg MS | F3: % fresco ración | G3: €/kg fresco | H3: Resultados solver
B4: 0 | C4: 100 | D4: 1 | E4: =D4*CálculosVL!D3/100 -> 0.158 | F4: =(D4*100)/$J$4 -> 100 | G4: 0.01 | H4: Kg fresco total | J4: =SUM(D4:D26) -> 1 | K4: Kg forraje fresco total | M4: =SUM(D4:D8) -> 1
A5: 0 | B5: 0 | C5: 10 | D5: 0 | E5: =D5*CálculosVL!D4/100 -> 0 | F5: 0 | G5: 0.01 | H5: Kg concentrado fresco total | J5: =J4-M4 -> 0 | K5: Aportaciones totales UE | M5: =K15 -> 0.1565834729
A6: 0 | B6: 0 | C6: 4 | D6: 0 | E6: =D6*CálculosVL!D5/100 -> 0 | F6: 0 | G6: 0.01 | H6: Kg MS total | J6: =SUM(E4:E26) -> 0.158 | K6: Kg MS total concentrada | M6: =J6-J7 -> 0
A7: 0 | B7: 0 | C7: 0 | D7: 0 | E7: =D7*CálculosVL!D6/100 -> 0 | F7: 0 | G7: 0.01 | H7: Kg MS total forraje | J7: =SUM(E4:E8) -> 0.158 | K7: PCO | M7: =(M6)/J6 -> 0
A8: 0 | B8: 0 | C8: 0 | D8: 0 | E8: =D8*CálculosVL!D7/100 -> 0 | F8: 0 | G8: 0.01 | H8: % MS forraje en la ración | J8: =(J7*100)/J6 -> 100 | K8: Relación UFL/UE forraje | M8: =SUMPRODUCT($E$4:$E$8,CálculosVL!$F$3:$F$7)/SUMPRODUCT($E$4:$E$8,CálculosVL!$E$3:$E$7) -> 1.083225931
A9: 0 | B9: 0 | C9: 4 | D9: 0 | E9: =D9*CálculosVL!D8/100 -> 0 | F9: 0 | G9: 0.01 | H9: Tasa de sustitución global | J9: =IF(M7=0,0,IF((B84-B83)*((1+(1/(9.5*M7))*LN((B86*EXP(9.5*(B89-M7))+1)/(B86*EXP(9.5*B89)+1))))+B83<0,0,(B84-B83)*((1+(1/(9.5*M7))*LN((B86*EXP(9.5*(B89-M7))+1)/(B86*EXP(9.5*B89)+1))))+B83)) -> 0 | K9: VALOR FUNCIÓN OBJETIVO €/Kg fresco
A10: 0 | B10: 0 | C10: 13 | D10: 0 | E10: =D10*CálculosVL!D9/100 -> 0 | F10: 0 | G10: 0.01 | H10: Producción leche | J10: =I_Necesidades!D147 -> 32.07838075 | K10: =SUMPRODUCT(D4:D26,G4:G26) -> 0.01 | L10: =SUMPRODUCT(D4:D8,G4:G8) -> 0.01 | M10: =K10-L10 -> 0
A11: 0 | B11: 0 | C11: 2 | D11: 0 | E11: =D11*CálculosVL!D10/100 -> 0 | F11: 0 | G11: 0.01 | H11: Parámetros nutritivos, límites, valores finales
A12: 0 | B12: 0 | C12: 10 | D12: 0 | E12: =D12*CálculosVL!D11/100 -> 0 | F12: 0 | G12: 0.01 | H12: Parámetros | I12: Mínimo | J12: Máximo | K12: Valor | L12: Valor/kg MS o % | M12: En algunos ingredientes no constan los nutrientes ...
A13: 0 | B13: 0 | C13: 8 | D13: 0 | E13: =D13*CálculosVL!D12/100 -> 0 | F13: 0 | G13: 0.01 | H13: MSI (Kg/día) | I13: =0.95*E29 -> 21.46317278 | J13: =1.05*E29 -> 23.72245413 | K13: =J6 -> 0.158
A14: 0 | B14: 0 | C14: 1 | D14: 0 | E14: =D14*CálculosVL!D13/100 -> 0 | F14: 0 | G14: 0.01 | H14: %MS ración | I14: 0 | J14: 999 | K14: =SUMPRODUCT(F4:F26,CálculosVL!D3:D25)/100 -> 15.8
A15: 0 | B15: 0 | C15: 2 | D15: 0 | E15: =D15*CálculosVL!D14/100 -> 0 | F15: 0 | G15: 0.01 | H15: UEL | I15: =IF(J10=0,0.95*I_Necesidades!D148,0.95*I_Necesidades!D148*B87) -> 16.67208225 | J15: =IF(J10=0,1.05*I_Necesidades!D148,1.05*I_Necesidades!D148*B87) -> 18.42703827 | K15: =IF(J10=0,CálculosVL!E26,IF(J9<0,0,IF(CálculosVL!E28=0,0,CálculosVL!E28+CálculosVL!E28*'II_Plantear Ración'!J9*(M7/(1-M7))))) -> 0.1565834729 | L15: =K15/$J$6 -> 0.9910346389 | M15: =CálculosVL!AN21 -> 
A16: 0 | B16: 0 | C16: 1 | D16: 0 | E16: =D16*CálculosVL!D15/100 -> 0 | F16: 0 | G16: 0.01 | H16: UFL | I16: =IF(J10=0,I_Necesidades!D149,I_Necesidades!D149*B47/B48) -> 20.39789998 | J16: =IF(J10=0,I_Necesidades!D149,I_Necesidades!D149*B47/B48) -> 20.39789998 | K16: =CálculosVL!F26 -> 0.1696152783 | L16: =K16/$J$6 -> 1.073514419 | M16: =CálculosVL!AO21 -> 
A17: 0 | B17: 0 | C17: 1 | D17: 0 | E17: =D17*CálculosVL!D16/100 -> 0 | F17: 0 | G17: 0.01 | H17: PDI | I17: =IF(J10=0,(1-E32/100)*(I_Necesidades!D150+E30*(0.5*(5.7+0.074*B57))/B79)*0.67/B79,(1-E32/100)*(G32+(G33+E30*(0.5*(5.7+0.074*B57))/B79)*(0.67/B79))) -> 2484.030943 | J17: =IF(J10=0,(1+E32/100)*(I_Necesidades!D150+E30*(0.5*(5.7+0.074*B57))/B79)*0.67/B79,(1+E32/100)*(G32+(G33+E30*(0.5*(5.7+0.074*B57))/B79)*(0.67/B79))) -> 3193.75407 | K17: =CálculosVL!G26 -> 12.29970189 | L17: =K17/$J$6 -> 77.8462145 | M17: =CálculosVL!AP21 -> 
B18: 0 | C18: 1 | D18: 0 | E18: =D18*CálculosVL!D17/100 -> 0 | F18: 0 | G18: 0.01 | H18: BPR | I18: =IF(J10>30,ABS(-8),ABS(-14.2)) -> 8 | J18: =IF(J10>30,ABS(0),ABS(-8)) -> 0 | K18: =CálculosVL!H26 -> 4.914513347 | L18: =ABS(K18/K13) -> 31.10451486 | M18: =CálculosVL!AQ21 -> 
A19: 0 | B19: 0 | C19: 3 | D19: 0 | E19: =D19*CálculosVL!D18/100 -> 0 | F19: 0 | G19: 0.01 | H19: NI | I19: =CálculosVL!I26 -> 2.752047879 | J19: =I19 -> 2.752047879 | K19: =K13*100/I_Necesidades!D164 -> 0.02257142857 | L19: =K19 -> 0.02257142857 | M19: =CálculosVL!AR21 -> 
A20: 0 | B20: 0 | C20: 0 | D20: 0 | E20: =D20*CálculosVL!D19/100 -> 0 | F20: 0 | G20: 0.01 | H20: Ca | I20: =((100-E32)/100)*(I_Necesidades!D151+0.663*$E$30) -> 124.2883871 | J20: =(100+E32)/100*(I_Necesidades!D151+0.663*$E$30) -> 159.7993549 | K20: =CálculosVL!J26 -> 0.2844 | L20: =K20/$J$6 -> 1.8 | M20: =CálculosVL!AS21 -> 
A21: 0 | B21: 0 | C21: 2 | D21: 0 | E21: =D21*CálculosVL!D20/100 -> 0 | F21: 0 | G21: 0.01 | H21: P | I21: =((100-E32)/100)*(I_Necesidades!D152+0.83*E30) -> 52.63724608 | J21: =(100+E32)/100*(I_Necesidades!D152+0.83*E30) -> 67.67645924 | K21: =CálculosVL!K26 -> 0.3318 | L21: 2.1 | M21: =CálculosVL!AT21 -> 
A22: 0 | B22: 0 | C22: 1 | D22: 0 | E22: =D22*CálculosVL!D21/100 -> 0 | F22: 0 | G22: 0.01 | H22: Mg | I22: =((100-E32)/100)*I_Necesidades!D153 -> 68.42367171 | J22: =(100+E32)/100*I_Necesidades!D153 -> 87.97329219 | K22: =CálculosVL!L26 -> 0.2686 | L22: 1.7 | M22: =CálculosVL!AU21 -> 
B23: 0 | C23: 1 | D23: 0 | E23: =D23*CálculosVL!D22/100 -> 0 | F23: 0 | G23: 0.01 | H23: K | I23: =((100-E32)/100)*I_Necesidades!D154 -> 112.7727518 | J23: =(100+E32)/100*I_Necesidades!D154 -> 144.993538 | K23: =CálculosVL!M26 -> 4.74 | L23: 30 | M23: =CálculosVL!AV21 -> 
B24: 0 | C24: 1 | D24: 0 | E24: =D24*CálculosVL!D23/100 -> 0 | F24: 0 | G24: 0.01 | H24: Na | I24: =((100-E32)/100)*I_Necesidades!D155 -> 27.02045258 | J24: =(100+E32)/100*I_Necesidades!D155 -> 34.74058189 | K24: =CálculosVL!N26 -> 0.474 | L24: 3 | M24: =CálculosVL!AW21 -> 
B25: 0 | C25: 0 | D25: 0 | E25: =D25*CálculosVL!D24/100 -> 0 | F25: 0 | G25: 0.01 | H25: S | I25: =((100-E32)/100)*(I_Necesidades!D156+2*E30) -> 3.497362238 | J25: =(100+E32)/100*(I_Necesidades!D156+2*E30) -> 4.496608591 | K25: =CálculosVL!O26 -> 0.158 | L25: 1 | M25: =CálculosVL!AX21 -> 
B26: 0 | C26: 0 | D26: 0 | E26: =D26*CálculosVL!D25/100 -> 0 | F26: 0 | G26: 0.01 | H26: Cl | I26: =((100-E32)/100)*I_Necesidades!D157 -> 25.88016452 | J26: =(100+E32)/100*I_Necesidades!D157 -> 33.27449724 | K26: =CálculosVL!P26 -> 0 | L26: 0 | M26: =CálculosVL!AY21 -> Cl
A27: Cálculos | F27: =SUM(F4:F26) -> 100 | H27: Co | I27: =((100-E32)/100)*(I_Necesidades!D158+0.3*E30) -> 0.5246043356 | J27: =(100+E32)/100*(I_Necesidades!D158+0.3*E30) -> 0.6744912887 | K27: =CálculosVL!Q26 -> 0 | L27: 0 | M27: =CálculosVL!AZ21 -> Co
A28: Efecto NI | D28: =IF(I_Necesidades!D142<6,IF(I_Necesidades!D142<5,IF(I_Necesidades!D142<4,IF(I_Necesidades!D142<3,IF(I_Necesidades!D142<2,I_Necesidades!A136,I_Necesidades!A137),I_Necesidades!A138),I_Necesidades!A139),I_Necesidades!A140),I_Necesidades!A141) -> Necesidades un solo grupo de lactación (datos explotación) | H28: Cu | I28: =((100-E32)/100)*(I_Necesidades!D159+10*E30) -> 17.48681119 | J28: =(100+E32)/100*(I_Necesidades!D159+10*E30) -> 22.48304296 | K28: =CálculosVL!R26 -> 1.2798 | L28: 8.1 | M28: =CálculosVL!BA21 -> 
A29: NIref | B29: =J19 -> 2.752047879 | D29: MS prevista NRC | E29: =I_Necesidades!D167 -> 22.59281345 | F29: CI | G29: =I_Necesidades!D148 -> 19.06029784 | H29: Mn | I29: =((100-E32)/100)*(I_Necesidades!D160+50*E30) -> 87.43405594 | J29: =(100+E32)/100*(I_Necesidades!D160+50*E30) -> 112.4152148 | K29: =CálculosVL!S26 -> 13.4458 | L29: 85.1 | M29: =CálculosVL!BB21 -> 
A30: NI % PV | B30: =K19 -> 0.02257142857 | D30: Diferencia ración calculada | E30: =J6-E29 -> -22.43481345 | F30: UFL | G30: =I_Necesidades!D149 -> 23.27140332 | H30: Zn | I30: =((100-E32)/100)*(I_Necesidades!D160+50*E30) -> 87.43405594 | J30: =(100+E32)/100*(I_Necesidades!D160+50*E30) -> 112.4152148 | K30: =CálculosVL!T26 -> 0 | L30: 0 | M30: =CálculosVL!BC21 -> Zn
A31: dMOm | B31: =76-2.74*B30 -> 75.93815429 | D31: MS forrajera, % mínimo en la ración | E31: =I_Necesidades!D14 -> 50 | F31: PDI | G31: =I_Necesidades!D150 -> 2251.614634 | H31: Yodo | I31: =((100-E32)/100)*(I_Necesidades!D162+0.65*E30) -> 1.136642727 | J31: =(100+E32)/100*(I_Necesidades!D162+0.65*E30) -> 1.461397792 | K31: =CálculosVL!U26 -> 0 | L31: 0 | M31: =CálculosVL!BD21 -> Yodo
A32: Δ dMO_NI | B32: =-2.74*(B30-B29)/100 -> 0.07478765474 | D32: % tolerancia cálculos | E32: =I_Necesidades!D15 -> 12.5 | F32: NecPDI_PUendo | G32: =0.312*I_Necesidades!D164 -> 218.4 | H32: Se | I32: =((100-E32)/100)*I_Necesidades!D163 -> 0.13125 | J32: =(100+E32)/100*I_Necesidades!D163 -> 0.16875 | K32: =CálculosVL!V26 -> 0 | L32: 0 | M32: =CálculosVL!BE21 -> Se
A33: Efecto %Co (PCO) | E33: NecPDI - NecPDI_PUendo | G33: =G31-G32 -> 2033.214634 | H33: Vit A | I33: =IF(J10>0,IF(M7<0.4,4200*J6,6600*J6),6000*J6) -> 663.6 | J33: =I33 -> 663.6 | K33: =CálculosVL!W26 -> 0 | L33: 0 | M33: =CálculosVL!BF21 -> Vit A
A34: PCO | B34: =M7 -> 0 | F34: =I_Necesidades!A169 -> UFL_VPR | G34: =I_Necesidades!D169 -> 0.1026951529 | H34: Vit D | I34: =1000*J6 -> 158 | J34: =I34 -> 158 | K34: =CálculosVL!X26 -> 0 | L34: 0 | M34: =CálculosVL!BG21 -> Vit D
A35: Δ dMO_CO | B35: =IF(B34=0,0,(-6.5/(1+(0.35/B34)^3))/100) -> 0 | F35: UFLf | G35: =CálculosVL!F28 -> 0.1696152783 | H35: Vit E | I35: =IF(J10>0,IF(M7<0.4,15*J6,40*J6),25*J6) -> 2.37 | J35: =I35 -> 2.37 | K35: =CálculosVL!Y26 -> 0 | L35: 0 | M35: =CálculosVL!BH21 -> Vit E
A36: Efecto balance proteico rumen | F36: UEf | G36: =CálculosVL!E28 -> 0.1565834729 | H36: AG | K36: =CálculosVL!Z26 -> 3.92946 | L36: 24.87 | M36: =CálculosVL!BI21 -> 
A37: MNT ingerida | B37: =L37 -> 168 | F37: UFLc | G37: =CálculosVL!F27 -> 0 | H37: MNT_PB | K37: =CálculosVL!AA26 -> 26.544 | L37: 168 | M37: =CálculosVL!BJ21 -> 
A38: MOrD o MOF | B38: =L49 -> 636.2376237 | H38: PDIA | K38: =CálculosVL!AB26 -> 4.18068 | L38: 26.46 | M38: =CálculosVL!BK21 -> 
A39: MNrD_rumen (MNF) fermentadas rumen | B39: =B37*L48 -> 132.72 | H39: dMO | J39: =B48 -> 0.9078150726 | K39: =CálculosVL!AC26 -> 0.79572 | L39: =J39 -> 0.9078150726 | M39: =CálculosVL!BL21 -> 
A40: MN alim_duodeno (PIA) no ferm en rumen | B40: =B37*(1-L48) -> 35.28 | H40: MOD | K40: =CálculosVL!AD26*J39/K39 -> 127.0832164 | L40: =K40/$J$6 -> 804.3241543 | M40: =CálculosVL!BM21 -> 
A41: MN microbiana intestino ( 41,7 + 71,9 x 10^-3 x MOrD_rumen + 8,40 x PCO) | B41: =41.7+(B38*71.9*10^-3)+8.4*B34 -> 87.44548514 | H41: EE | J41: =IF(J10=0,3,IF(G29<18,4,IF(G30<20,4,IF(G30<24,6,7)))) -> 6 | K41: =CálculosVL!AE26 -> 6.162 | L41: =K41/($J$6*10) -> 3.9 | M41: =CálculosVL!BN21 -> 
A42: MN endógena | B42: 14.2 | H42: FB | K42: =CálculosVL!AF26 -> 29.704 | L42: =K42/$J$6 -> 188 | M42: =CálculosVL!BO21 -> 
A43: BPR ración | B43: =B37-(B40+B41+B42) -> 31.07451486 | H43: NDF | K43: =CálculosVL!AG26 -> 74.94256 | L43: 474.32 | M43: =CálculosVL!BP21 -> 
A44: BPR ref. | B44: =-L18 -> -31.10451486 | H44: ADF | K44: =CálculosVL!AH26 -> 33.654 | L44: 213 | M44: =CálculosVL!BQ21 -> 
A45: Δ dMO_BPR | B45: =(0.06*(B43-B44))/100 -> 0.03730741783 | H45: Lignina | K45: =CálculosVL!AI26 -> 0 | L45: 0 | M45: =CálculosVL!BR21 -> Lignina
H46: Cenizas | K46: =CálculosVL!AJ26 -> 18.012 | L46: 114 | M46: =CálculosVL!BS21 -> 
A47: ∑ dMO x PMO | B47: =K39 -> 0.79572 | H47: Mo | K47: =CálculosVL!AK26 -> 0 | L47: 0 | M47: =CálculosVL!BT21 -> Mo
A48: Efecto total interacciones | B48: =B47+(B32+B35+B45) -> 0.9078150726 | H48: DT_N | K48: =CálculosVL!AL26 -> 0.79 | L48: =K48 -> 0.79
H49: MOF | K49: =CálculosVL!AM26 -> 100.5255445 | L49: =K49/K13 -> 636.2376237
A50: MODc_rumen (MOF corregida) | B50: =B38*B48/B47 -> 725.8660138 | H50: MO | K50: =K49/L39 -> 110.7335046 | L50: =K50/K13 -> 700.844966
A51: PANDI | B51: =0.193*B40 -> 6.80904 | H51: PDI/UFL | I51: =(1-E32/100)*I_Necesidades!D171 -> 84.66024922 | J51: =(1+E32/100)*I_Necesidades!D171 -> 108.8488919 | K51: =K17/K16 -> 72.51529471
A52: dr | B52: =(B40-B51)/B40 -> 0.807 | H52: NDF_Fa | K52: =CálculosVL!AG28 -> 74.94256 | L52: =K52/K13/10 -> 47.432
A53: PDIA | B53: =B37*(1-L48)*B52 -> 28.47096 | H53: NDFD_Fa | K53: =CálculosVL!AG37 -> -609.641084
A54: MN microbianas_duodeno (corregida) | B54: =40.7+75.6*10^-3*B50+8.07*B34-0.0114*B43 -> 95.22122118 | H54: NDFD_Fa %NDF_Fa | K54: =K53*100/K52 -> -813.4777942
A55: PDI = PDIA + MN microbianas_duodeno x 0,8 x 0,8 | B55: =B53+B54*0.8*0.8 -> 89.41254155 | H55: ADF/NDF | K55: =K44/K43 -> 0.4490639231
A56: Flujo de N duodenal endógeno (actualización) | H56: MSI (Kg/día)* | I56: =IF(N56=1,"No Predicción",IF(N56=6,IF(I_Necesidades!$I$12<9,"No predicción",12-0.107*L52+8.17*K55+0.0253*K54-0.328*(K55-0.602)*(K54-48.3)+0.225*J10+0.0039*(K54-48.3)*(J10-33.1)),12-0.107*L52+8.17*K55+0.0253*K54-0.328*(K55-0.602)*(K54-48.3)+0.225*J10+0.0039*(K54-48.3)*(J10-33.1))) -> -42.56551813 | J56: *J. Dairy Sci. 102:7961–7969 M. S. Allen et al 2019 | N56: =I_Necesidades!D142 -> 4
A57: MOND = MO - MODc_rumen | B57: =L50-B50 -> -25.0210478 | H57: MOFconcentrados | L57: =CálculosVL!AM27/'II_Plantear Ración'!K13 -> 0
A58: N duodenal endo, g MNT/kg MSI = 14,2 x MSI | B58: =14.2*J6 -> 2.2436 | H58: pH | I58: 6.16 | L58: =6.49-0.0109*L57/10 -> 6.49
A59: PÉRDIDAS FECALES ENDÓGENAS (PEF) Y (NEC_PDI Actualización) | H59: C/N | I59: 15 | J59: 26 | L59: =14.2+52.7*EXP(-0.014*L37)-3.76*M7 -> 19.21591298
A60: MNND = 0,163 x MN alim_duodeno + 0,20 x MN mic_duodeno + 5,7 + 0,074 x MOND | B60: =0.163*B40+0.2*B54+5.7+0.074*B57 -> 28.6433267
A61: PEF (proteínas endógenas fecales) = 5,7 + 0,074 x MOND | B61: =5.7+0.074*B57 -> 3.848442463
A62: Nec PDI_PEF = MSI x [0,5 x (5,7 + 0,074 x MOND)]/EfPDI | B62: =J6*(0.5*(5.7+0.074*B57))/B79 -> 0.6109030207
A63: PÉRDIDAS ENDÓGENAS URINARIAS Y (NEC_PDI Actualización)
A64: log10 NU (N urinario g/día) log10 NU = - 1,17 + 1,00 x log10 Pv | B64: =-1.17+LOG10(I_Necesidades!D164) -> 1.67509804
A65: NU | B65: =10^B64 -> 47.32580828
A66: NUNP microbiano/NU = 0,3325/(1 + (NU/0,203)) | B66: =0.3325/(1+(B65/0.203)) -> 0.0014201387
A67: NU endo | B67: =0.05*I_Necesidades!D164 -> 35
A68: Nec PDI_NU endo | B68: =0.312*I_Necesidades!D164 -> 218.4
A69: PÉRDIDAS NITROGENADAS POR EPIDERMIS y (Nec_PDI actualización)
A70: P epidérmicas (0,2 g PDI/Kg Pv0,60) | B70: =0.2*I_Necesidades!D164^0.6 -> 10.18799726
A71: Nec PDI_P epidérmicas = 0,2 x Pv0,60/EffPDI | B71: =B70/B79 -> 20.47146876
A72: Nec_PDI no productivas | B72: =B62+B68+B71 -> 239.4823718
A73: Eficacia de la síntesis proteica en lactación
A74: PDI disponible = PDI ingerida - Nec PDI_NU endógenas | B74: =K17-B68 -> -206.1002981
A75: EfPDI = ∑ gasto prot/PDI disponible = 0,67xEXP(-0,007x(PDI-100) | B75: =0.67*EXP(-0.007*(L17-100)) -> 0.7823906834 | C75: =(67.5-0.52*(L17-100)+0.014*(I_Necesidades!D168-1000))/100 -> 0.789419857
A76: Bal EN | B76: =K16+I_Necesidades!D169-I_Necesidades!D149 -> -22.99909289
A77: bal Proteína | B77: =K17+I_Necesidades!D170-I_Necesidades!D150 -> -2232.483369
A78: MP producción proteínas leche | B78: =J10*31 -> 994.4298031
A79: EfPDI = (PEF + P epid + MP + bal Prote)/(PDI disponible) | B79: =IF(B76>0,(B61+B70+B78+B77)/B74,(B61+B70+B78)/(B74+ABS(B77))) -> 0.4976681147 | C79: =0.67*EXP(-0.007*(L17-100)) -> 0.7823906834 | D79: EfPDI
C80: mín. NU | D80: máx. NU
A81: NUcal=0,79xBPR/6,25 + (PDI/6,25) x (1-E·fPDI)+Nuendo + NUNPmic + 0,47X bal N | B81: =(0.79*B43/6.25+(K17/6.25)*(1-B79)+B67/6.25+(B41/6.25)+0.47*ABS(B77)/6.25)/I_Necesidades!D164 -> 0.2748434441 | C81: 0.2 | D81: 0.3
A83: S0 = bVEc/UEf | B83: =IF((CálculosVL!E26-CálculosVL!E27)=0,0,CálculosVL!E27/(CálculosVL!E26-CálculosVL!E27)) -> 0
A84: S = UFLc/UFLf | B84: =IF(CálculosVL!F26-CálculosVL!F27=0,0,CálculosVL!F27/(CálculosVL!F26-CálculosVL!F27)) -> 0
A85: PI =0,4 + 04/(1+exp(0.15*(PDI/UFL - 100)) | B85: =0.4+(0.4/(1+EXP(0.15*((K17/K16)-100)))) -> 0.7936230625
A86: d = (S - S0)/(PI-S0) | B86: =IF(((B84-B83)/(B85-B83))-1<0,0,((B84-B83)/(B85-B83))-1) -> 0
A87: I_CI PDI = 0,91+0,115/(1+exp(0,13*(90-PDI/UFL)) | B87: =0.91+0.115/(1+EXP(0.13*(90-K17/K16))) -> 0.9207390361
A88: Sg(Rpco) | B88: =IF(M7=0,0,(B84-B83)*(1+(1/(9.5*M7))*LN((B86+1)/(B86*EXP(9.5*M7)+1)))+B83) -> 0
A89: Rpco | B89: =IF(M7=0,0,IF(G35=0,0,((G29*G35/G36)-(G30-G34))/(((G30-G34)*(B88-1)-(G29/G36)*(G37-G35))))) -> 0

Sheet CálculosCR (hidden)
D1: =OFFSET('0_Tabla Forrajes'!$A$1,0,D2,1,1) -> MS % | E1: =OFFSET('0_Tabla Forrajes'!$A$1,0,E2,1,1) -> UEL | F1: =OFFSET('0_Tabla Forrajes'!$A$1,0,F2,1,1) -> UFL | G1: =OFFSET('0_Tabla Forrajes'!$A$1,0,G2,1,1) -> PDI | H1: =OFFSET('0_Tabla Forrajes'!$A$1,0,H2,1,1) -> BPR | I1: =OFFSET('0_Tabla Forrajes'!$A$1,0,I2,1,1) -> NI ref | J1: =OFFSET('0_Tabla Forrajes'!$A$1,0,J2,1,1) -> Ca | K1: =OFFSET('0_Tabla Forrajes'!$A$1,0,K2,1,1) -> P | L1: =OFFSET('0_Tabla Forrajes'!$A$1,0,L2,1,1) -> Mg | M1: =OFFSET('0_Tabla Forrajes'!$A$1,0,M2,1,1) -> K | N1: =OFFSET('0_Tabla Forrajes'!$A$1,0,N2,1,1) -> Na | O1: =OFFSET('0_Tabla Forrajes'!$A$1,0,O2,1,1) -> S | P1: =OFFSET('0_Tabla Forrajes'!$A$1,0,P2,1,1) -> Cl | Q1: =OFFSET('0_Tabla Forrajes'!$A$1,0,Q2,1,1) -> Co | R1: =OFFSET('0_Tabla Forrajes'!$A$1,0,R2,1,1) -> Cu | S1: =OFFSET('0_Tabla Forrajes'!$A$1,0,S2,1,1) -> Mn | T1: =OFFSET('0_Tabla Forrajes'!$A$1,0,T2,1,1) -> Zn | U1: =OFFSET('0_Tabla Forrajes'!$A$1,0,U2,1,1) -> Yodo | V1: =OFFSET('0_Tabla Forrajes'!$A$1,0,V2,1,1) -> Se | W1: =OFFSET('0_Tabla Forrajes'!$A$1,0,W2,1,1) -> Vit A | X1: =OFFSET('0_Tabla Forrajes'!$A$1,0,X2,1,1) -> Vit D | Y1: =OFFSET('0_Tabla Forrajes'!$A$1,0,Y2,1,1) -> Vit E | Z1: =OFFSET('0_Tabla Forrajes'!$A$1,0,Z2,1,1) -> AG | AA1: =OFFSET('0_Tabla Forrajes'!$A$1,0,AA2,1,1) -> MNT_PB | AB1: =OFFSET('0_Tabla Forrajes'!$A$1,0,AB2,1,1) -> PDIA | AC1: =OFFSET('0_Tabla Forrajes'!$A$1,0,AC2,1,1) -> dMO | AD1: =OFFSET('0_Tabla Forrajes'!$A$1,0,AD2,1,1) -> MOD | AE1: =OFFSET('0_Tabla Forrajes'!$A$1,0,AE2,1,1) -> EE | AF1: =OFFSET('0_Tabla Forrajes'!$A$1,0,AF2,1,1) -> FB | AG1: =OFFSET('0_Tabla Forrajes'!$A$1,0,AG2,1,1) -> NDF | AH1: =OFFSET('0_Tabla Forrajes'!$A$1,0,AH2,1,1) -> ADF | AI1: =OFFSET('0_Tabla Forrajes'!$A$1,0,AI2,1,1) -> Lignina | AJ1: =OFFSET('0_Tabla Forrajes'!$A$1,0,AJ2,1,1) -> Cenizas | AK1: =OFFSET('0_Tabla Forrajes'!$A$1,0,AK2,1,1) -> Mo | AL1: =OFFSET('0_Tabla Forrajes'!$A$1,0,AL2,1,1) -> DT_N | AM1: =OFFSET('0_Tabla Forrajes'!$A$1,0,AM2,1,1) -> MOF | BI1: AG | BJ1: MNT_PB | BK1: PDIA | BL1: dMO | BM1: MOD | BN1: EE | BO1: FB | BP1: NDF | BQ1: ADF | BR1: Lignina | BS1: Cenizas | BT1: Mo
A2: TIPUS | B2: INGREDIENTS UTILITZATS | C2: Nº | D2: 1 | E2: 8 | F2: 2 | G2: 6 | H2: 7 | I2: 11 | J2: 20 | K2: 21 | L2: 22 | M2: 24 | N2: 25 | O2: 26 | P2: 23 | Q2: 27 | R2: 28 | S2: 32 | T2: 34 | U2: 30 | V2: 33 | W2: 35 | X2: 36 | Y2: 37 | Z2: 38 | AA2: 4 | AB2: 5 | AC2: 12 | AD2: 13 | AE2: 14 | AF2: 15 | AG2: 16 | AH2: 17 | AI2: 18 | AJ2: 19 | AK2: 29 | AL2: 39 | AM2: 41 | AN2: UEL | AO2: UFL | AP2: PDI | AQ2: BPR | AR2: NI ref | AS2: Ca | AT2: P | AU2: Mg | AV2: K | AW2: Na | AX2: S | AY2: Cl | AZ2: Co | BA2: Cu | BB2: Mn | BC2: Zn | BD2: Yodo | BE2: Se | BF2: Vit A | BG2: Vit D | BH2: Vit E | BI2: AG | BJ2: MNT_PB | BK2: PDIA | BL2: dMO | BM2: MOD | BN2: EE | BO2: FB | BP2: NDF | BQ2: ADF | BR2: Lignina | BS2: Cenizas | BT2: Mo | BU2: DT_N | BV2: MOF
